Workbook

Sheet TIEOSAT
D1: Uudenmaan ELY-keskuksen tieverkon merkittävyysluokitus
D2: PISTEYTYSTEKIJÄT JA PAINOARVOT | N2: PALAUTUS- JA LAJITTELUTYÖKALUT
D3: OSA-ALUEET | J3: Taajama | P3: Tietokannan palauttaminen oletusarvoihin
D4: Säännöllinen henkilöliikenne | G4: Yht. | H4: painotus | J4: tieosasta | K4: 0.5
D5: KVL | F5: 9 | G5: =SUM(F5:F7) -> 15 | H5: =1/3 -> 0.3333333333 | J5: Liikenne | K5: Vähä/loput
D6: Linja-autovuorot | F6: 3 | J6: KVL | K6: 1000
D7: Työmatkat | F7: 3 | J7: KVLRAS | K7: 50 | P7: Lajittele muutosten/ nollauksen jälkeen | Q7: MAALISKUU 2025
D8: Säännöllinen tavaraliikenne | G8: Yht. | H8: painotus | J8: KKVL | K8: 1000
D9: KVLRAS | F9: 8 | G9: =SUM(F9:F20) -> 25 | H9: 0.3333333333 | J9: Työmatkat | Q9: =HYPERLINK("https://linea.maps.arcgis.com/apps/instant/sidebar/index.html?appid=6a26f2bfa66e4b1b82c25dc079beaf25","ONLINE-KARTTA") -> ONLINE-KARTTA
D10: Maitoreitti | F10: 2 | J10: Pisteet | L10: Työmatkoja | U10: TILASTOTIEDOT
D11: Jäte | F11: 1 | J11: =F7 -> 3 | K11: =CONCATENATE("≥ ",L11,) -> ≥ 300 | L11: 300
D12: Maa-aines | F12: 1 | J12: =CONCATENATE("0-",J11) -> 0-3 | K12: 0–299 lineaarisesti | N12: SUODATUS- JA HAKUTYÖKALUT | Q12: TIEJAKSO RAPORTTI | U12: Merkittävyysluokka | X12: % max pisteistä | Z12: Tieosista
D13: Turve | F13: 1 | J13: Linja-autovuorot | U13: 1 luokka | X13: =CW27 -> 0.841241633 | Z13: 0.05
D14: Vilja ja kasvihuoneet | F14: 2 | J14: Pisteet | L14: Vuoromäärä | P14: KVL tekijät poistetaan käytöstä | U14: 2 luokka | X14: =CW28 -> 0.6881820656 | Z14: 0.2
D15: Eläintilat | F15: 2 | J15: 3 | K15: ≥ 40 | L15: 40 | U15: 3 luokka | X15: =CW29 -> 0.1933976208 | Z15: 0.5
D16: Elintarvikelaitos | F16: 2 | J16: 0-3 | K16: 0–39 lineaariseti | U16: 4 luokka | X16: =CW30 -> 0.06931291673 | Z16: =1-SUM(Z13:Z15) -> 0.25
D17: Tuotantolaitos | F17: 2 | J17: Eläintilat (tieosalle kumuloitunut lkm) | P17: Järjestä tieosat luokan mukaan | Q17: NÄYTÄ VAIN SORATIET
D18: Logistiikka-alue | F18: 1 | J18: Pisteet (0-0,5 lineaarisesti) | L18: Eläinten lkm | U18: Pituus km | W18: Km | X18: Km | Y18: LOPUT | Z18: VÄHÄ
D19: Päivittäistavarakauppa | F19: 2 | J19: =$F$15/4 -> 0.5 | K19: Nauta | L19: 300 | U19: Luokka | V19: 1 | W19: =SUMIFS(X37:X1816,N37:N1816,"LOPUT",K37:K1816,1)/1000 -> 571.235 | X19: =SUMIFS(X37:X1816,N37:N1816,"VÄHÄ",K37:K1816,1)/1000 -> 0
D20: Puukuljetusreitit | F20: 1 | J20: =$F$15/4 -> 0.5 | K20: Lammas/vuohi/hevonen | L20: 100 | P20: Tienumerojärjestys | U20: Luokka | V20: 2 | W20: =SUMIFS(X37:X1816,N37:N1816,"LOPUT",K37:K1816,2)/1000 -> 1593.287 | X20: =SUMIFS(X37:X1816,N37:N1816,"VÄHÄ",K37:K1816,2)/1000 -> 133.451 | DA20: Taajama
D21: Muut tekijät | G21: Yht. | H21: painotus | J21: =$F$15/4 -> 0.5 | K21: Sika | L21: 1000 | U21: Luokka | V21: 3 | W21: =SUMIFS(X37:X1816,N37:N1816,"LOPUT",K37:K1816,3)/1000 -> 841.834 | X21: =SUMIFS(X37:X1816,N37:N1816,"VÄHÄ",K37:K1816,3)/1000 -> 3445.132 | CW21: Luokkien min pist. | DA21: Pisteet | DC21: Tieosasta
D22: Koulu | F22: 1 | G22: =SUM(F22:F30) -> 10 | H22: =1/3 -> 0.3333333333 | J22: =$F$15/4 -> 0.5 | K22: Linnut | L22: 30 | Q22: PK-LUOKKIEN MUKAAN | U22: Luokka | V22: 4 | W22: =SUMIFS(X37:X1816,N37:N1816,"LOPUT",K37:K1816,4)/1000 -> 0 | X22: =SUMIFS(X37:X1816,N37:N1816,"VÄHÄ",K37:K1816,4)/1000 -> 2099.085 | CW22: =MIN(IF(K37:K1742=V19,G37:G1742)) -> 12.76178172 | DA22: =$F$25 -> 1 | DB22: =CONCATENATE("≥ ",DC22*100," %") -> ≥ 50 % | DC22: =K4 -> 0.5
D23: Erikoiskuljetusreitti | F23: 1 | J23: Tuotantolaitokset (kumuloituneet) | P23: Hae tiejakso | U23: Yht. | W23: =SUM(W19:W22) -> 3006.356 | X23: =SUM(X19:X22) -> 5677.668 | CW23: =MIN(IF(K37:K1742=V20,G37:G1742)) -> 10.43984149 | DA23: =F25/2 -> 0.5 | DB23: =CONCATENATE("1-",DC22*100-1," %") -> 1-49 %
D24: Varareitti | F24: 1 | J24: Pisteet | L24: Laitosten lkm | CW24: =MIN(IF(K37:K1742=V21,G37:G1742)) -> 2.933875507
D25: Taajama | F25: 1 | J25: =F17 -> 2 | K25: =CONCATENATE("≥ ",L25,) -> ≥ 3 | L25: 3 | U25: Tieosia (kpl) | W25: kpl | X25: osuus | Y25: kpl | Z25: osuus | AA25: KAIKKI | CW25: =MIN(IF(K37:K1742=V22,G37:G1742)) -> 1.051488989
D26: Asukastiheys | F26: 1 | J26: 0-2 | K26: 0–3 lineaariseti | P26: Suodata KVL:n perusteella | U26: Luokka 1 | W26: =COUNTIFS(N37:N1816,"LOPUT",K37:K1816,1) -> 89 | X26: =W26/$W$30 -> 0.1377708978 | Y26: =COUNTIFS(N37:N1816,"VÄHÄ",K37:K1816,1) -> 0 | Z26: =Y26/$Y$30 -> 0 | AA26: =(W26+Y26)/($W$30+$Y$30) -> 0.05 | CW26: Osuusmax | DA26: Koulubufferi (3 km tieverkkoa pitkin)
D27: KKVL | F27: 2 | I27: Puukuljetukset (ka valituilta vuosilta) | Q27: TIENUMEROA TUPLA-KLIKKAAMALLA SIIRTYMINEN KVL-JAKSOIHIN | U27: Luokka 2 | W27: =COUNTIFS(N37:N1816,"LOPUT",K37:K1816,2) -> 336 | X27: =W27/$W$30 -> 0.520123839 | Y27: =COUNTIFS(N37:N1816,"VÄHÄ",K37:K1816,2) -> 21 | Z27: =Y27/$Y$30 -> 0.01851851852 | AA27: =(W27+Y27)/($W$30+$Y$30) -> 0.2005617978 | CW27: =CW22/$CQ$30 -> 0.841241633 | DA27: Pisteet | DC27: Tieosasta
D28: Matkailureitti | F28: 1 | I28: 2020 | J28: 2021 | K28: 2022 | L28: 2023 | U28: Luokka 3 | W28: =COUNTIFS(N37:N1816,"LOPUT",K37:K1816,3) -> 221 | X28: =W28/$W$30 -> 0.3421052632 | Y28: =COUNTIFS(N37:N1816,"VÄHÄ",K37:K1816,3) -> 671 | Z28: =Y28/$Y$30 -> 0.5917107584 | AA28: =(W28+Y28)/($W$30+$Y$30) -> 0.5011235955 | CW28: =CW23/$CQ$30 -> 0.6881820656 | DA28: =$F$22 -> 1 | DB28: =CONCATENATE("≥ ",DC28*100," %") -> ≥ 50 % | DC28: 0.5
D29: Matkailukohde | F29: 1 | I29: TRUE | J29: TRUE | K29: TRUE | L29: FALSE | P29: Hae maakunta | Q29: TIEOSA JAKAUTUU KVL-JAKSOIHIN | U29: Luokka 4 | W29: =COUNTIFS(N37:N1816,"LOPUT",K37:K1816,4) -> 0 | X29: =W29/$W$30 -> 0 | Y29: =COUNTIFS(N37:N1816,"VÄHÄ",K37:K1816,4) -> 442 | Z29: =Y29/$Y$30 -> 0.3897707231 | AA29: =(W29+Y29)/($W$30+$Y$30) -> 0.2483146067 | CQ29: MAX | CW29: =CW24/$CQ$30 -> 0.1933976208 | DA29: =F22/2 -> 0.5 | DB29: =CONCATENATE("1-",DC28*100-1," %") -> 1-49 % | EI29: Luokka muuttunut VÄHÄ/LOPUT
D30: Tien verkollinen asema | F30: 1 | I30: Raja-arvo (ajon./vrk) | K30: 9 | L30: 5 | U30: Yht. | W30: =SUM(W26:W29) -> 646 | X30: =SUM(X26:X29) -> 1 | Y30: =SUM(Y26:Y29) -> 1134 | Z30: =SUM(Z26:Z29) -> 1 | CQ30: =MAX(CP37:CP1816) -> 15.17017373 | CW30: =CW25/$CQ$30 -> 0.06931291673 | EI30: 4 x VÄHÄ → LOPUT ja 12 x LOPUT → VÄHÄ
A31: 1 | B31: 2 | D31: 1 | E31: 2 | F31: 3 | G31: 4 | K31: 5 | L31: 6 | M31: 7 | N31: 8 | O31: 9 | P31: 10 | U31: 14 | V31: 15 | W31: 16 | X31: 17 | Y31: 18 | Z31: 19 | AA31: 20 | AB31: 21 | AE31: 22 | AF31: 23 | AG31: 24 | AK31: 28 | AR31: 32 | AS31: 33 | AW31: 35 | AX31: 36 | AY31: 37 | AZ31: 38 | BA31: 39 | BB31: 40 | BC31: 41 | BD31: 42 | BE31: 43 | BF31: 44 | BG31: 45 | BH31: 46 | BI31: 47 | BJ31: 48 | BK31: 49 | BU31: 50 | BV31: 51 | BW31: 52 | BX31: 53 | BY31: 54 | BZ31: 55 | CA31: 56 | CB31: 57 | CC31: 58 | CD31: 59 | CE31: 60 | CF31: 61 | CL31: 67 | CM31: 68 | CN31: 69 | CO31: 70 | CP31: 10.6 | CQ31: 71 | CW31: 72 | CX31: 73
A32: Lajittelu, ID | B32: LUOKKA | C32: Lajittelu | D32: Sija | E32: Herkkyys, sija ennen muutosta | F32: Herkkyys, sijamuutos | G32: Pisteet | H32: Sään. henkliik. pisteet | I32: Sään. tavaraliik. pisteet | J32: Muut tekijät pisteet | K32: Merkittävyys-luokka | L32: Luokan muutos | M32: Google Maps | S32: TIEOSAN OMINAISUUDET | AR32: SÄÄNNÖLLINEN HENKILÖLIIKENNE | AY32: PISTEET YHTEENSÄ (max. 15) | AZ32: PISTEET YHTEENSÄ, PAINOTETTU | BA32: SÄÄNNÖLLINEN TAVARALIIKENNE | BU32: PISTEET YHTEENSÄ (max. 25) | BV32: PISTEET YHTEENSÄ, PAINOTETTU | BW32: MUUT TEKIJÄT | CM32: PISTEET YHTEENSÄ (max. 10) | CN32: PISTEET YHTEENSÄ, PAINOTETTU | CO32: PISTEET YHTEENSÄ (max. 50) | CP32: PISTEET YHTEENSÄ, PAINOTETTU | CQ32: MERKITTÄVYYS-LUOKKA | EI32: Muutokset 2020-2022
AN33: Seudullinen merkitys | AO33: Jkpp-väylä % | AR33: Liikennemäärä | AS33: Linja-autoliikenne (matka.fi) | AW33: Työmatkareitti | BA33: KVLRAS pisteet | BB33: Maito | BC33: Jäte | BD33: Maa-aines | BE33: Turve | BF33: Vilja + kasvih. | BG33: Nauta | BH33: Lammas | BI33: Sika | BJ33: Siipikarja | BK33: Elintarvikelaitos | BL33: Tuotantolaitos | BM33: Logistiikka-alue | BN33: Päivittäistavarakauppa | BO33: Puukuljetusreitit (Väylä) | BS33: Puukuljetuspotentiaali | BT33: Pisteet, puu | BW33: 3 km koulubufferi | BZ33: Erikoiskuljetusreitti | CC33: Varareitti | CD33: Taajama | CG33: Asukastiheys | CI33: Liikennemäärä | CJ33: Matkailureitti | CK33: Matkailukohde | CL33: Tien verkollinen asema | EB33: vertailu | EI33: LUOKKA 2020 | EJ33: Sija 2020 | EK33: Sija-muutos | EL33: Luokka 2020 | EM33: Luokanmuutos
A34: Lajittelu, ID | B34: Lajittelu, KVL | N34: LUOKKA | O34: TOIML | P34: Tien nimi | Q34: Kunta | R34: Maakunta | S34: TIE | T34: AOSA | U34: AET | V34: LOSA | W34: LET | X34: PITUUS | Y34: KVL, ka | Z34: KVLRAS | AA34: KKVL | AB34: KVL, ketjutus | AC34: PK-LUOKKA | AD34: PK ketju | AE34: Nopeusrajoitus | AF34: Hoitoluokka | AG34: Päällyste | AH34: HEVA 20-24 | AI34: kaikki onn. 20-24 | AJ34: Huonokuntoinen päällyste | AK34: KVLYHD | AL34: TEN-T | AM34: PÄÄVÄYLÄ | AR34: KVL pisteet | AS34: Vuorot | AT34: Uusi | AU34: Ilman HSL | AV34: Pisteet | AW34: Työmatkat | AX34: Pisteet | BO34: Autoa/vrk 2020 | BP34: Autoa/vrk 2021 | BQ34: Autoa/vrk 2022 | BR34: Autoa/vrk 2023 | BS34: Autoa/vrk 2022 | BW34: Pituus | BX34: Prosentti | BY34: Pisteet | BZ34: Pituus | CA34: Prosentti | CB34: Pisteet | CC34: Pisteet | CD34: Pituus | CE34: Prosentti | CF34: Pisteet | CG34: Asukkaat | CH34: Pisteet | CI34: KKVL pisteet | CJ34: Pisteet | CK34: Pisteet | CL34: Pisteet | CR34: KVLosuus | CX34: Gmaps linkki | DA34: Maito, reititys lypsytilat | DB34: Maito, Arla | DC34: Maito, Valio | DD34: Maito yht. | DE34: Jäte | DF34: Maa-aines | DG34: Turve | DH34: Viljan säilytys | DI34: Kasvihuone | DJ34: Nauta | DK34: Lammas/Vuohi/Hevonen | DL34: Sika | DM34: Siipikarja | DN34: Elintarvikelaitos | DP34: Koulubufferi | DQ34: Tuotanto | DR34: Logistiikka | DS34: Varareitit | DT34: Taajama | DU34: jos kkvl > raja | DV34: jos kkvl/kvl > 1,5 kertainen | DW34: kkvl yhteensä | DX34: Matkailukohde reititys | DY34: Matkailutie | DZ34: Pyörämatkailu | EA34: Matkailureitti | EB34: Matkailukohde | EC34: Tien verkollinen asema | ED34: Kauppa | EE34: Katukohde, osuus | EF34: jkp-osuus | EG34: logistiikka kerroala | EO34: 2020 tiedot
G35: 15
D36: Sija | E36: Ennen muutosta | F36: Sijamuutos | G36: Pisteet | K36: Luokka | L36: Luokan muutos | M36: ID | N36: Gmaps | O36: LUOKKA | S36: TIE | T36: AOSA | U36: AET | V36: LOSA | W36: LET | X36: PITUUS | Y36: KVL | Z36: KVLRAS | AA36: KKVL | AB36: KVL, ketjutus | AC36: Kunta | AE36: Nopeusrajoitus | AF36: Hoitoluokka | AG36: Päällyste | AH36: HEVA 09-13 | AI36: kaikki onn. | AJ36: Asukkaat (500m) | AK36: Siltanumero | AL36: Kuntoluokka | AR36: KVL pisteet | AS36: Vuorot | AV36: Pisteet | AW36: Työmatkat | AX36: Pisteet | AY36: PISTEET YHTEENSÄ (max. 15) | AZ36: PISTEET YHTEENSÄ, PAINOTETTU | BA36: KVLRAS pisteet | BB36: Maito | BC36: Jäte | BD36: Maa-aines | BE36: Turve | BF36: Maatalousrakennukset | BH36: Lammas | BI36: Sika | BJ36: Siipikarja | BK36: Elintarvikelaitos | BL36: Tuotantolaitos | BM36: Logistiikka-alue | BU36: PISTEET YHTEENSÄ (max. 15) | BV36: PISTEET YHTEENSÄ, PAINOTETTU | BW36: Pituus | BX36: Prosentti | BY36: KOULU | BZ36: Pituus | CA36: Prosentti | CB36: ERIKU | CC36: VARAREITTI | CD36: Pituus | CE36: Prosentti | CF36: TAAJAMA | CG36: Asukkaat | CH36: KYLÄ | CI36: KKVL pisteet | CJ36: Matkailureitti | CK36: Matkailukohde | CL36: Tien verkollinen asema | CM36: PISTEET YHTEENSÄ (max. 15) | CN36: PISTEET YHTEENSÄ, PAINOTETTU | CO36: PISTEET YHTEENSÄ (max. 45) | CP36: PISTEET YHTEENSÄ, PAINOTETTU | CQ36: MERKITSEVYYS-LUOKKA
A37: 292_1_0 | B37: 1 | C37: =CONCATENATE(S37,"_",T37) -> 292_1 | D37: =RANK(CP37,$CP$37:$CP$1816) -> 1 | E37: 1 | F37: =E37-D37 -> 0 | G37: =CP37 -> 15.17017373 | H37: =AZ37 -> 5 | I37: =BV37 -> 7.336840396 | J37: =CN37 -> 2.833333333 | K37: =CQ37 -> 1 | L37: =B37-K37 -> 0 | M37: =HYPERLINK(CX37,"Gmaps") -> Gmaps | N37: =IF(Y37>$K$6,"LOPUT","VÄHÄ") -> LOPUT | O37: =IF(S37<40,"Valta",IF(S37<100,"Kanta",IF(S37<1000,"Seutu",IF(S37>999,"Yhdys")))) -> Seutu | P37: Turengintie | Q37: Janakkala | R37: Kanta-Häme | S37: 292 | T37: 1 | U37: 0 | V37: 1 | W37: 6483 | X37: 6483 | Y37: 5351.196977 | Z37: 295.2211939 | AA37: 5835.491593 | AB37: 4847 (48 %), 5460 (40 %), 6918 (13 %) | AC37: PK2 | AD37: PK2 (98 %) | AE37: 40 (11 %), 50 (26 %), 60 (13 %), 70 (50 %) | AF37: Ic (13 %), Is (87 %) | AG37: Asfalttibetoni (66 %), Kivimastiksiasfaltti (34 %) | AH37: 2 | AI37: 5 | AJ37: 0.1448016218 | AK37: 107.0516736 | AN37: Katu (100 %) | AO37: 0.4982422356 | AR37: =+IF(Y37>=$K$6,$F$5,($F$5/($K$6))*Y37) -> 9 | AS37: 42 | AV37: =+IF(AS37>=$L$15,$J$15,IF(AS37<($L$15),AS37*($J$15/($L$15)),)) -> 3 | AW37: 3034 | AX37: =+IF(AW37>=$L$11,$J$11,IF(AW37<($L$11),AW37*($J$11/($L$11)),)) -> 3 | AY37: =SUM(AR37,AV37,AX37) -> 15 | AZ37: =+AY37*$H$5 -> 5 | BA37: =+IF(Z37=0,0,IF(Z37>$K$7,$F$9,($F$9/$K$7)*Z37)) -> 8 | BB37: =IF(DD37>0,$F$10,0) -> 2 | BC37: =IF(DE37>0,$F$11,0) -> 1 | BD37: =IF(DF37>0,$F$12,0) -> 1 | BE37: =IF(DG37>0,$F$13,0) -> 0 | BF37: =IF(DI37>0,$F$14,IF(DH37>0,$F$14/2,0)) -> 2 | BG37: =+IF(DJ37>=$L$19,$J$19,IF(DJ37<($L$19),DJ37*($J$19/($L$19)),)) -> 0.5 | BH37: =+IF(DK37>=$L$20,$J$20,IF(DK37<($L$20),DK37*($J$20/($L$20)),)) -> 0.49 | BI37: =+IF(DL37>=$L$21,$J$21,IF(DL37<($L$21),DL37*($J$21/($L$21)),)) -> 0 | BJ37: =+IF(DM37>=$L$22,$J$22,IF(DM37<($L$22),DM37*($J$22/($L$22)),)) -> 0 | BK37: =IF(DN37>0,$F$16,0) -> 2 | BL37: =+IF(DQ37>=$L$25,$J$25,IF(DQ37<($L$25),DQ37*($J$25/($L$25)),)) -> 2 | BM37: =IF(EG37>100000,$F$18,IF(EG37>0,$F$18/2,0)) -> 0.5 | BN37: =IF(ED37>0,$F$19,0) -> 2 | BO37: 3.56364 | BP37: 6.32628 | BQ37: 6.50822 | BR37: 4.70339 | BS37: 0.4104237734 | BT37: =IF(COUNTIF($I$29:$L$29,TRUE)=0,0,IF(SUMIF($I$29:$L$29,TRUE,BO37:BR37)/COUNTIF($I$29:$L$29,TRUE)>=$L$30,$F$20/2,$F$20/2*(SUMIF($I$29:$L$29,TRUE,BO37:BR37)/COUNTIF($I$29:$L$29,TRUE)/$L$30)))+IF(BS37>=10,$F$20/2,IF(BS37<(10),BS37*($F$20/2/10))) -> 0.5205211887 | BU37: =SUM(BA37+BB37+BC37+BD37+BE37+BF37+BK37+BG37+BH37+BI37+BJ37+BL37+BM37+BN37+BT37) -> 22.01052119 | BV37: =+BU37*$H$9 -> 7.336840396 | BW37: 4724.684718 | BX37: =BW37/X37 -> 0.7287806136 | BY37: =IF(BX37>0,IF(BX37>=$DC$28,$DA$28,IF(BX37<$DC$28,$DA$29,0)),0) -> 1 | BZ37: 1945.80741 | CA37: =BZ37/X37 -> 0.3001399676 | CB37: =IF(CA37,$F$23,0) -> 1 | CC37: =IF(DS37>0,$F$24,0) -> 1 | CD37: 2222.176397 | CE37: =CD37/X37 -> 0.3427697666 | CF37: =IF(CE37>0,IF(CE37>=$DC$22,$DA$22,IF(CE37<$DC$28,$DA$23,0)),0) -> 0.5 | CG37: 263.2952337 | CH37: =IF(CG37>0,IF(CG37>=100,$F$26,IF(CG37<100,$F$26/2)),0) -> 1 | CI37: =SUM(DW37) -> 1 | CJ37: =IF(EA37>0,$F$28,0) -> 1 | CK37: =IF(DX37>0,$F$29,0) -> 1 | CL37: =IF(EC37>0,$F$30,0) -> 1 | CM37: =SUM(BY37,CB37,CH37,CC37,CF37,CI37,CJ37,CK37,CL37) -> 8.5 | CN37: =+CM37*$H$22 -> 2.833333333 | CO37: =SUM(AY37,BU37,CM37) -> 45.51052119 | CP37: =SUM(AZ37,BV37,CN37) -> 15.17017373 | CQ37: =IF(D37<($Z$13*1785),1,IF(D37<(($Z$14+$Z$13)*1785),2,IF(D37<(($Z$15+$Z$13+$Z$14)*1785),3,4))) -> 1 | CR37: =VLOOKUP(C37,Taul1!$F$6:$G$1718,2,FALSE) -> 3 | CX37: https://www.google.com/maps/@60.9120801,24.53909318,3a,75y,90t/data=!3m3!1e1!3m1!2e0 | DA37: 0 | DB37: 1 | DC37: 0 | DD37: =SUM(DA37:DC37) -> 1 | DE37: 4 | DF37: 6 | DG37: 0 | DH37: 46 | DI37: 2 | DJ37: 475 | DK37: 98 | DL37: 0 | DM37: 0 | DN37: 3 | DP37: 4724.684718 | DQ37: 13 | DR37: 2 | DS37: 10 | DT37: 2222.176397 | DU37: =+IF(AA37>$K$8,$F$27/2,0) -> 1 | DV37: =+IF(AA37/Y37>1.5,$F$27/2,0) -> 0 | DW37: =SUM(DU37:DV37) -> 1 | DX37: 3 | DY37: 0 | DZ37: 1 | EA37: =SUM(DY37:DZ37) -> 1 | EC37: 1 | ED37: 5 | EG37: 56161
A38: 51_14_0 | B38: 1 | C38: =CONCATENATE(S38,"_",T38) -> 51_14 | D38: =RANK(CP38,$CP$37:$CP$1816) -> 2 | E38: 2 | F38: =E38-D38 -> 0 | G38: =CP38 -> 15.02614927 | H38: =AZ38 -> 5 | I38: =BV38 -> 7.526149274 | J38: =CN38 -> 2.5 | K38: =CQ38 -> 1 | L38: =B38-K38 -> 0 | M38: =HYPERLINK(CX38,"Gmaps") -> Gmaps | N38: =IF(Y38>$K$6,"LOPUT","VÄHÄ") -> LOPUT | O38: =IF(S38<40,"Valta",IF(S38<100,"Kanta",IF(S38<1000,"Seutu",IF(S38>999,"Yhdys")))) -> Kanta | P38: Inkoon Rannikkotie, Inkoontie | Q38: Inkoo, Raasepori | R38: Uusimaa | S38: 51 | T38: 14 | U38: 0 | V38: 14 | W38: 11185 | X38: 11185 | Y38: 5684.534645 | Z38: 427.0295038 | AA38: 6925.383102 | AB38: 5195 (72 %), 6936 (28 %) | AC38: PK1 | AD38: PK1 (100 %) | AE38: 80 (11 %), 100 (88 %) | AF38: Is (100 %) | AG38: Kivimastiksiasfaltti (100 %) | AH38: 5 | AI38: 20 | AJ38: 0 | AK38: 285.4398748 | AN38: Maantie (99 %) | AO38: 0.01122178646 | AR38: =+IF(Y38>=$K$6,$F$5,($F$5/($K$6))*Y38) -> 9 | AS38: 110 | AV38: =+IF(AS38>=$L$15,$J$15,IF(AS38<($L$15),AS38*($J$15/($L$15)),)) -> 3 | AW38: 1898 | AX38: =+IF(AW38>=$L$11,$J$11,IF(AW38<($L$11),AW38*($J$11/($L$11)),)) -> 3 | AY38: =SUM(AR38,AV38,AX38) -> 15 | AZ38: =+AY38*$H$5 -> 5 | BA38: =+IF(Z38=0,0,IF(Z38>$K$7,$F$9,($F$9/$K$7)*Z38)) -> 8 | BB38: =IF(DD38>0,$F$10,0) -> 2 | BC38: =IF(DE38>0,$F$11,0) -> 1 | BD38: =IF(DF38>0,$F$12,0) -> 1 | BE38: =IF(DG38>0,$F$13,0) -> 1 | BF38: =IF(DI38>0,$F$14,IF(DH38>0,$F$14/2,0)) -> 2 | BG38: =+IF(DJ38>=$L$19,$J$19,IF(DJ38<($L$19),DJ38*($J$19/($L$19)),)) -> 0.315 | BH38: =+IF(DK38>=$L$20,$J$20,IF(DK38<($L$20),DK38*($J$20/($L$20)),)) -> 0.255 | BI38: =+IF(DL38>=$L$21,$J$21,IF(DL38<($L$21),DL38*($J$21/($L$21)),)) -> 0 | BJ38: =+IF(DM38>=$L$22,$J$22,IF(DM38<($L$22),DM38*($J$22/($L$22)),)) -> 0 | BK38: =IF(DN38>0,$F$16,0) -> 2 | BL38: =+IF(DQ38>=$L$25,$J$25,IF(DQ38<($L$25),DQ38*($J$25/($L$25)),)) -> 2 | BM38: =IF(EG38>100000,$F$18,IF(EG38>0,$F$18/2,0)) -> 0.5 | BN38: =IF(ED38>0,$F$19,0) -> 2 | BO38: 2.72295 | BP38: 2.61805 | BQ38: 1.19967 | BR38: 0.447423 | BS38: 5.80850979 | BT38: =IF(COUNTIF($I$29:$L$29,TRUE)=0,0,IF(SUMIF($I$29:$L$29,TRUE,BO38:BR38)/COUNTIF($I$29:$L$29,TRUE)>=$L$30,$F$20/2,$F$20/2*(SUMIF($I$29:$L$29,TRUE,BO38:BR38)/COUNTIF($I$29:$L$29,TRUE)/$L$30)))+IF(BS38>=10,$F$20/2,IF(BS38<(10),BS38*($F$20/2/10))) -> 0.5084478228 | BU38: =SUM(BA38+BB38+BC38+BD38+BE38+BF38+BK38+BG38+BH38+BI38+BJ38+BL38+BM38+BN38+BT38) -> 22.57844782 | BV38: =+BU38*$H$9 -> 7.526149274 | BW38: 4437.823535 | BX38: =BW38/X38 -> 0.3967656268 | BY38: =IF(BX38>0,IF(BX38>=$DC$28,$DA$28,IF(BX38<$DC$28,$DA$29,0)),0) -> 0.5 | BZ38: 11153.54967 | CA38: =BZ38/X38 -> 0.9971881694 | CB38: =IF(CA38,$F$23,0) -> 1 | CC38: =IF(DS38>0,$F$24,0) -> 1 | CD38: 1180.973855 | CE38: =CD38/X38 -> 0.1055855033 | CF38: =IF(CE38>0,IF(CE38>=$DC$22,$DA$22,IF(CE38<$DC$28,$DA$23,0)),0) -> 0.5 | CG38: 21.28743853 | CH38: =IF(CG38>0,IF(CG38>=100,$F$26,IF(CG38<100,$F$26/2)),0) -> 0.5 | CI38: =SUM(DW38) -> 1 | CJ38: =IF(EA38>0,$F$28,0) -> 1 | CK38: =IF(DX38>0,$F$29,0) -> 1 | CL38: =IF(EC38>0,$F$30,0) -> 1 | CM38: =SUM(BY38,CB38,CH38,CC38,CF38,CI38,CJ38,CK38,CL38) -> 7.5 | CN38: =+CM38*$H$22 -> 2.5 | CO38: =SUM(AY38,BU38,CM38) -> 45.07844782 | CP38: =SUM(AZ38,BV38,CN38) -> 15.02614927 | CQ38: =IF(D38<($Z$13*1785),1,IF(D38<(($Z$14+$Z$13)*1785),2,IF(D38<(($Z$15+$Z$13+$Z$14)*1785),3,4))) -> 1 | CR38: =VLOOKUP(C38,Taul1!$F$6:$G$1718,2,FALSE) -> 2 | CX38: https://www.google.com/maps/@60.05527383,24.0026859,3a,75y,90t/data=!3m3!1e1!3m1!2e0 | DA38: 0 | DB38: 1 | DC38: 0 | DD38: =SUM(DA38:DC38) -> 1 | DE38: 1 | DF38: 2 | DG38: 1 | DH38: 8 | DI38: 3 | DJ38: 189 | DK38: 51 | DL38: 0 | DM38: 0 | DN38: 2 | DP38: 4437.823535 | DQ38: 9 | DR38: 1 | DS38: 4 | DT38: 1180.973855 | DU38: =+IF(AA38>$K$8,$F$27/2,0) -> 1 | DV38: =+IF(AA38/Y38>1.5,$F$27/2,0) -> 0 | DW38: =SUM(DU38:DV38) -> 1 | DX38: 2 | DY38: 0 | DZ38: 1 | EA38: =SUM(DY38:DZ38) -> 1 | EC38: 1 | ED38: 2 | EG38: 18543
A39: 313_4_0 | B39: 1 | C39: =CONCATENATE(S39,"_",T39) -> 313_4 | D39: =RANK(CP39,$CP$37:$CP$1816) -> 3 | E39: 3 | F39: =E39-D39 -> 0 | G39: =CP39 -> 14.805 | H39: =AZ39 -> 5 | I39: =BV39 -> 7.138333333 | J39: =CN39 -> 2.666666667 | K39: =CQ39 -> 1 | L39: =B39-K39 -> 0 | M39: =HYPERLINK(CX39,"Gmaps") -> Gmaps | N39: =IF(Y39>$K$6,"LOPUT","VÄHÄ") -> LOPUT | O39: =IF(S39<40,"Valta",IF(S39<100,"Kanta",IF(S39<1000,"Seutu",IF(S39>999,"Yhdys")))) -> Seutu | P39: Heinolantie, Urajärventie, Vääksyntie | Q39: Asikkala, Heinola | R39: Päijät-Häme | S39: 313 | T39: 4 | U39: 0 | V39: 4 | W39: 8732 | X39: 8732 | Y39: 1666.594137 | Z39: 150.6944572 | AA39: 2502.063216 | AB39: 1364 (25 %), 1484 (66 %), 3765 (9 %) | AC39: PK2 | AD39: PK2 (97 %) | AE39: 50 (8 %), 60 (37 %), 70 (12 %), 80 (44 %) | AF39: Ib (100 %) | AG39: Asfalttibetoni (32 %), Pehmeät asfalttibetonit (PAB-B) (66 %) | AH39: 0 | AI39: 2 | AJ39: 0.35854228 | AK39: 78.84287678 | AN39: Maantie tai katu (99 %) | AO39: 0.005203570137 | AR39: =+IF(Y39>=$K$6,$F$5,($F$5/($K$6))*Y39) -> 9 | AS39: 212 | AV39: =+IF(AS39>=$L$15,$J$15,IF(AS39<($L$15),AS39*($J$15/($L$15)),)) -> 3 | AW39: 1313 | AX39: =+IF(AW39>=$L$11,$J$11,IF(AW39<($L$11),AW39*($J$11/($L$11)),)) -> 3 | AY39: =SUM(AR39,AV39,AX39) -> 15 | AZ39: =+AY39*$H$5 -> 5 | BA39: =+IF(Z39=0,0,IF(Z39>$K$7,$F$9,($F$9/$K$7)*Z39)) -> 8 | BB39: =IF(DD39>0,$F$10,0) -> 2 | BC39: =IF(DE39>0,$F$11,0) -> 1 | BD39: =IF(DF39>0,$F$12,0) -> 1 | BE39: =IF(DG39>0,$F$13,0) -> 1 | BF39: =IF(DI39>0,$F$14,IF(DH39>0,$F$14/2,0)) -> 2 | BG39: =+IF(DJ39>=$L$19,$J$19,IF(DJ39<($L$19),DJ39*($J$19/($L$19)),)) -> 0.5 | BH39: =+IF(DK39>=$L$20,$J$20,IF(DK39<($L$20),DK39*($J$20/($L$20)),)) -> 0.415 | BI39: =+IF(DL39>=$L$21,$J$21,IF(DL39<($L$21),DL39*($J$21/($L$21)),)) -> 0 | BJ39: =+IF(DM39>=$L$22,$J$22,IF(DM39<($L$22),DM39*($J$22/($L$22)),)) -> 0 | BK39: =IF(DN39>0,$F$16,0) -> 0 | BL39: =+IF(DQ39>=$L$25,$J$25,IF(DQ39<($L$25),DQ39*($J$25/($L$25)),)) -> 2 | BM39: =IF(EG39>100000,$F$18,IF(EG39>0,$F$18/2,0)) -> 0.5 | BN39: =IF(ED39>0,$F$19,0) -> 2 | BO39: 5.65664 | BP39: 9.29792 | BQ39: 7.65727 | BR39: 4.23943 | BS39: 11.40681053 | BT39: =IF(COUNTIF($I$29:$L$29,TRUE)=0,0,IF(SUMIF($I$29:$L$29,TRUE,BO39:BR39)/COUNTIF($I$29:$L$29,TRUE)>=$L$30,$F$20/2,$F$20/2*(SUMIF($I$29:$L$29,TRUE,BO39:BR39)/COUNTIF($I$29:$L$29,TRUE)/$L$30)))+IF(BS39>=10,$F$20/2,IF(BS39<(10),BS39*($F$20/2/10))) -> 1 | BU39: =SUM(BA39+BB39+BC39+BD39+BE39+BF39+BK39+BG39+BH39+BI39+BJ39+BL39+BM39+BN39+BT39) -> 21.415 | BV39: =+BU39*$H$9 -> 7.138333333 | BW39: 0 | BX39: =BW39/X39 -> 0 | BY39: =IF(BX39>0,IF(BX39>=$DC$28,$DA$28,IF(BX39<$DC$28,$DA$29,0)),0) -> 0 | BZ39: 8377.117541 | CA39: =BZ39/X39 -> 0.9593583991 | CB39: =IF(CA39,$F$23,0) -> 1 | CC39: =IF(DS39>0,$F$24,0) -> 1 | CD39: 608.7098335 | CE39: =CD39/X39 -> 0.06971024204 | CF39: =IF(CE39>0,IF(CE39>=$DC$22,$DA$22,IF(CE39<$DC$28,$DA$23,0)),0) -> 0.5 | CG39: 15.85890976 | CH39: =IF(CG39>0,IF(CG39>=100,$F$26,IF(CG39<100,$F$26/2)),0) -> 0.5 | CI39: =SUM(DW39) -> 2 | CJ39: =IF(EA39>0,$F$28,0) -> 1 | CK39: =IF(DX39>0,$F$29,0) -> 1 | CL39: =IF(EC39>0,$F$30,0) -> 1 | CM39: =SUM(BY39,CB39,CH39,CC39,CF39,CI39,CJ39,CK39,CL39) -> 8 | CN39: =+CM39*$H$22 -> 2.666666667 | CO39: =SUM(AY39,BU39,CM39) -> 44.415 | CP39: =SUM(AZ39,BV39,CN39) -> 14.805 | CQ39: =IF(D39<($Z$13*1785),1,IF(D39<(($Z$14+$Z$13)*1785),2,IF(D39<(($Z$15+$Z$13+$Z$14)*1785),3,4))) -> 1 | CR39: =VLOOKUP(C39,Taul1!$F$6:$G$1718,2,FALSE) -> 3 | CX39: https://www.google.com/maps/@61.13209626,25.78725457,3a,75y,90t/data=!3m3!1e1!3m1!2e0 | DA39: 0 | DB39: 0 | DC39: 1 | DD39: =SUM(DA39:DC39) -> 1 | DE39: 2 | DF39: 8 | DG39: 1 | DH39: 15 | DI39: 1 | DJ39: 568 | DK39: 83 | DL39: 0 | DM39: 0 | DN39: 0 | DP39: 0 | DQ39: 17 | DR39: 1 | DS39: 41 | DT39: 608.7098335 | DU39: =+IF(AA39>$K$8,$F$27/2,0) -> 1 | DV39: =+IF(AA39/Y39>1.5,$F$27/2,0) -> 1 | DW39: =SUM(DU39:DV39) -> 2 | DX39: 2 | DY39: 0 | DZ39: 1 | EA39: =SUM(DY39:DZ39) -> 1 | EC39: 1 | ED39: 2 | EG39: 44888
A40: 111_2_0 | B40: 1 | C40: =CONCATENATE(S40,"_",T40) -> 111_2 | D40: =RANK(CP40,$CP$37:$CP$1816) -> 4 | E40: 4 | F40: =E40-D40 -> 0 | G40: =CP40 -> 14.7687519 | H40: =AZ40 -> 5 | I40: =BV40 -> 6.768751899 | J40: =CN40 -> 3 | K40: =CQ40 -> 1 | L40: =B40-K40 -> 0 | M40: =HYPERLINK(CX40,"Gmaps") -> Gmaps | N40: =IF(Y40>$K$6,"LOPUT","VÄHÄ") -> LOPUT | O40: =IF(S40<40,"Valta",IF(S40<100,"Kanta",IF(S40<1000,"Seutu",IF(S40>999,"Yhdys")))) -> Seutu | P40: Turuntie | Q40: Raasepori | R40: Uusimaa | S40: 111 | T40: 2 | U40: 0 | V40: 2 | W40: 8477 | X40: 8477 | Y40: 4272.079155 | Z40: 193.4618379 | AA40: 5398.047894 | AB40: 1358 (11 %), 4639 (89 %) | AC40: PK2 | AD40: PK2 (99 %) | AE40: 50 (12 %), 80 (88 %) | AF40: Is (100 %) | AG40: Asfalttibetoni (99 %) | AH40: 5 | AI40: 13 | AJ40: 0 | AK40: 48.5332075 | AN40: Katu (10 %), Maantie tai katu (90 %) | AO40: 0.4340108997 | AR40: =+IF(Y40>=$K$6,$F$5,($F$5/($K$6))*Y40) -> 9 | AS40: 49 | AV40: =+IF(AS40>=$L$15,$J$15,IF(AS40<($L$15),AS40*($J$15/($L$15)),)) -> 3 | AW40: 1343 | AX40: =+IF(AW40>=$L$11,$J$11,IF(AW40<($L$11),AW40*($J$11/($L$11)),)) -> 3 | AY40: =SUM(AR40,AV40,AX40) -> 15 | AZ40: =+AY40*$H$5 -> 5 | BA40: =+IF(Z40=0,0,IF(Z40>$K$7,$F$9,($F$9/$K$7)*Z40)) -> 8 | BB40: =IF(DD40>0,$F$10,0) -> 2 | BC40: =IF(DE40>0,$F$11,0) -> 1 | BD40: =IF(DF40>0,$F$12,0) -> 0 | BE40: =IF(DG40>0,$F$13,0) -> 0 | BF40: =IF(DI40>0,$F$14,IF(DH40>0,$F$14/2,0)) -> 2 | BG40: =+IF(DJ40>=$L$19,$J$19,IF(DJ40<($L$19),DJ40*($J$19/($L$19)),)) -> 0.1366666667 | BH40: =+IF(DK40>=$L$20,$J$20,IF(DK40<($L$20),DK40*($J$20/($L$20)),)) -> 0.5 | BI40: =+IF(DL40>=$L$21,$J$21,IF(DL40<($L$21),DL40*($J$21/($L$21)),)) -> 0 | BJ40: =+IF(DM40>=$L$22,$J$22,IF(DM40<($L$22),DM40*($J$22/($L$22)),)) -> 0 | BK40: =IF(DN40>0,$F$16,0) -> 2 | BL40: =+IF(DQ40>=$L$25,$J$25,IF(DQ40<($L$25),DQ40*($J$25/($L$25)),)) -> 2 | BM40: =IF(EG40>100000,$F$18,IF(EG40>0,$F$18/2,0)) -> 0 | BN40: =IF(ED40>0,$F$19,0) -> 2 | BO40: 5.18463 | BP40: 6.0555 | BQ40: 6.64346 | BR40: 3.26948 | BS40: 3.39178059 | BT40: =IF(COUNTIF($I$29:$L$29,TRUE)=0,0,IF(SUMIF($I$29:$L$29,TRUE,BO40:BR40)/COUNTIF($I$29:$L$29,TRUE)>=$L$30,$F$20/2,$F$20/2*(SUMIF($I$29:$L$29,TRUE,BO40:BR40)/COUNTIF($I$29:$L$29,TRUE)/$L$30)))+IF(BS40>=10,$F$20/2,IF(BS40<(10),BS40*($F$20/2/10))) -> 0.6695890295 | BU40: =SUM(BA40+BB40+BC40+BD40+BE40+BF40+BK40+BG40+BH40+BI40+BJ40+BL40+BM40+BN40+BT40) -> 20.3062557 | BV40: =+BU40*$H$9 -> 6.768751899 | BW40: 5824.612346 | BX40: =BW40/X40 -> 0.6871077441 | BY40: =IF(BX40>0,IF(BX40>=$DC$28,$DA$28,IF(BX40<$DC$28,$DA$29,0)),0) -> 1 | BZ40: 8468.607844 | CA40: =BZ40/X40 -> 0.9990100087 | CB40: =IF(CA40,$F$23,0) -> 1 | CC40: =IF(DS40>0,$F$24,0) -> 1 | CD40: 5238.695462 | CE40: =CD40/X40 -> 0.6179893195 | CF40: =IF(CE40>0,IF(CE40>=$DC$22,$DA$22,IF(CE40<$DC$28,$DA$23,0)),0) -> 1 | CG40: 188.6800755 | CH40: =IF(CG40>0,IF(CG40>=100,$F$26,IF(CG40<100,$F$26/2)),0) -> 1 | CI40: =SUM(DW40) -> 1 | CJ40: =IF(EA40>0,$F$28,0) -> 1 | CK40: =IF(DX40>0,$F$29,0) -> 1 | CL40: =IF(EC40>0,$F$30,0) -> 1 | CM40: =SUM(BY40,CB40,CH40,CC40,CF40,CI40,CJ40,CK40,CL40) -> 9 | CN40: =+CM40*$H$22 -> 3 | CO40: =SUM(AY40,BU40,CM40) -> 44.3062557 | CP40: =SUM(AZ40,BV40,CN40) -> 14.7687519 | CQ40: =IF(D40<($Z$13*1785),1,IF(D40<(($Z$14+$Z$13)*1785),2,IF(D40<(($Z$15+$Z$13+$Z$14)*1785),3,4))) -> 1 | CR40: =VLOOKUP(C40,Taul1!$F$6:$G$1718,2,FALSE) -> 2 | CX40: https://www.google.com/maps/@60.08187535,23.66174451,3a,75y,90t/data=!3m3!1e1!3m1!2e0 | DA40: 0 | DB40: 0 | DC40: 2 | DD40: =SUM(DA40:DC40) -> 2 | DE40: 2 | DF40: 0 | DG40: 0 | DH40: 4 | DI40: 1 | DJ40: 82 | DK40: 108 | DL40: 0 | DM40: 0 | DN40: 2 | DP40: 5824.612346 | DQ40: 5 | DR40: 0 | DS40: 5 | DT40: 5238.695462 | DU40: =+IF(AA40>$K$8,$F$27/2,0) -> 1 | DV40: =+IF(AA40/Y40>1.5,$F$27/2,0) -> 0 | DW40: =SUM(DU40:DV40) -> 1 | DX40: 1 | DY40: 0 | DZ40: 1 | EA40: =SUM(DY40:DZ40) -> 1 | EC40: 1 | ED40: 3 | EG40: 0
A41: 24_6_0 | B41: 1 | C41: =CONCATENATE(S41,"_",T41) -> 24_6 | D41: =RANK(CP41,$CP$37:$CP$1816) -> 5 | E41: 5 | F41: =E41-D41 -> 0 | G41: =CP41 -> 14.64111111 | H41: =AZ41 -> 5 | I41: =BV41 -> 6.807777778 | J41: =CN41 -> 2.833333333 | K41: =CQ41 -> 1 | L41: =B41-K41 -> 0 | M41: =HYPERLINK(CX41,"Gmaps") -> Gmaps | N41: =IF(Y41>$K$6,"LOPUT","VÄHÄ") -> LOPUT | O41: =IF(S41<40,"Valta",IF(S41<100,"Kanta",IF(S41<1000,"Seutu",IF(S41>999,"Yhdys")))) -> Valta | P41: Jyväskyläntie | Q41: Asikkala | R41: Päijät-Häme | S41: 24 | T41: 6 | U41: 0 | V41: 6 | W41: 5930 | X41: 5930 | Y41: 4270 | Z41: 201 | AA41: 5429 | AB41: 4270 (100 %) | AC41: PK2 | AD41: PK2 (100 %) | AE41: 50 (7 %), 80 (93 %) | AF41: Is (100 %) | AG41: Asfalttibetoni (96 %), Kivimastiksiasfaltti (3 %) | AH41: 2 | AI41: 4 | AJ41: 0.04770992366 | AK41: 91 | AN41: Maantie (100 %) | AO41: 0.6657556045 | AR41: =+IF(Y41>=$K$6,$F$5,($F$5/($K$6))*Y41) -> 9 | AS41: 56 | AV41: =+IF(AS41>=$L$15,$J$15,IF(AS41<($L$15),AS41*($J$15/($L$15)),)) -> 3 | AW41: 947 | AX41: =+IF(AW41>=$L$11,$J$11,IF(AW41<($L$11),AW41*($J$11/($L$11)),)) -> 3 | AY41: =SUM(AR41,AV41,AX41) -> 15 | AZ41: =+AY41*$H$5 -> 5 | BA41: =+IF(Z41=0,0,IF(Z41>$K$7,$F$9,($F$9/$K$7)*Z41)) -> 8 | BB41: =IF(DD41>0,$F$10,0) -> 2 | BC41: =IF(DE41>0,$F$11,0) -> 1 | BD41: =IF(DF41>0,$F$12,0) -> 0 | BE41: =IF(DG41>0,$F$13,0) -> 0 | BF41: =IF(DI41>0,$F$14,IF(DH41>0,$F$14/2,0)) -> 2 | BG41: =+IF(DJ41>=$L$19,$J$19,IF(DJ41<($L$19),DJ41*($J$19/($L$19)),)) -> 0.2233333333 | BH41: =+IF(DK41>=$L$20,$J$20,IF(DK41<($L$20),DK41*($J$20/($L$20)),)) -> 0 | BI41: =+IF(DL41>=$L$21,$J$21,IF(DL41<($L$21),DL41*($J$21/($L$21)),)) -> 0.2 | BJ41: =+IF(DM41>=$L$22,$J$22,IF(DM41<($L$22),DM41*($J$22/($L$22)),)) -> 0 | BK41: =IF(DN41>0,$F$16,0) -> 2 | BL41: =+IF(DQ41>=$L$25,$J$25,IF(DQ41<($L$25),DQ41*($J$25/($L$25)),)) -> 2 | BM41: =IF(EG41>100000,$F$18,IF(EG41>0,$F$18/2,0)) -> 0 | BN41: =IF(ED41>0,$F$19,0) -> 2 | BO41: 7.50951 | BP41: 9.72127 | BQ41: 4.89954 | BR41: 4.30226 | BS41: 29.38816771 | BT41: =IF(COUNTIF($I$29:$L$29,TRUE)=0,0,IF(SUMIF($I$29:$L$29,TRUE,BO41:BR41)/COUNTIF($I$29:$L$29,TRUE)>=$L$30,$F$20/2,$F$20/2*(SUMIF($I$29:$L$29,TRUE,BO41:BR41)/COUNTIF($I$29:$L$29,TRUE)/$L$30)))+IF(BS41>=10,$F$20/2,IF(BS41<(10),BS41*($F$20/2/10))) -> 1 | BU41: =SUM(BA41+BB41+BC41+BD41+BE41+BF41+BK41+BG41+BH41+BI41+BJ41+BL41+BM41+BN41+BT41) -> 20.42333333 | BV41: =+BU41*$H$9 -> 6.807777778 | BW41: 4097.819272 | BX41: =BW41/X41 -> 0.6910319177 | BY41: =IF(BX41>0,IF(BX41>=$DC$28,$DA$28,IF(BX41<$DC$28,$DA$29,0)),0) -> 1 | BZ41: 5906.496656 | CA41: =BZ41/X41 -> 0.9960365356 | CB41: =IF(CA41,$F$23,0) -> 1 | CC41: =IF(DS41>0,$F$24,0) -> 1 | CD41: 2982.539288 | CE41: =CD41/X41 -> 0.5029577214 | CF41: =IF(CE41>0,IF(CE41>=$DC$22,$DA$22,IF(CE41<$DC$28,$DA$23,0)),0) -> 1 | CG41: 66.74873524 | CH41: =IF(CG41>0,IF(CG41>=100,$F$26,IF(CG41<100,$F$26/2)),0) -> 0.5 | CI41: =SUM(DW41) -> 1 | CJ41: =IF(EA41>0,$F$28,0) -> 1 | CK41: =IF(DX41>0,$F$29,0) -> 1 | CL41: =IF(EC41>0,$F$30,0) -> 1 | CM41: =SUM(BY41,CB41,CH41,CC41,CF41,CI41,CJ41,CK41,CL41) -> 8.5 | CN41: =+CM41*$H$22 -> 2.833333333 | CO41: =SUM(AY41,BU41,CM41) -> 43.92333333 | CP41: =SUM(AZ41,BV41,CN41) -> 14.64111111 | CQ41: =IF(D41<($Z$13*1785),1,IF(D41<(($Z$14+$Z$13)*1785),2,IF(D41<(($Z$15+$Z$13+$Z$14)*1785),3,4))) -> 1 | CR41: =VLOOKUP(C41,Taul1!$F$6:$G$1718,2,FALSE) -> 1 | CX41: https://www.google.com/maps/@61.17340045,25.53040799,3a,75y,90t/data=!3m3!1e1!3m1!2e0 | DA41: 0 | DB41: 1 | DC41: 1 | DD41: =SUM(DA41:DC41) -> 2 | DE41: 1 | DF41: 0 | DG41: 0 | DH41: 12 | DI41: 1 | DJ41: 134 | DK41: 0 | DL41: 400 | DM41: 0 | DN41: 1 | DP41: 4097.819272 | DQ41: 4 | DR41: 0 | DS41: 12 | DT41: 2982.539288 | DU41: =+IF(AA41>$K$8,$F$27/2,0) -> 1 | DV41: =+IF(AA41/Y41>1.5,$F$27/2,0) -> 0 | DW41: =SUM(DU41:DV41) -> 1 | DX41: 2 | DY41: 0 | DZ41: 1 | EA41: =SUM(DY41:DZ41) -> 1 | EC41: 1 | ED41: 1 | EG41: 0
A42: 140_5_0 | B42: 1 | C42: =CONCATENATE(S42,"_",T42) -> 140_5 | D42: =RANK(CP42,$CP$37:$CP$1816) -> 6 | E42: 6 | F42: =E42-D42 -> 0 | G42: =CP42 -> 14.57915976 | H42: =AZ42 -> 5 | I42: =BV42 -> 6.57915976 | J42: =CN42 -> 3 | K42: =CQ42 -> 1 | L42: =B42-K42 -> 0 | M42: =HYPERLINK(CX42,"Gmaps") -> Gmaps | N42: =IF(Y42>$K$6,"LOPUT","VÄHÄ") -> LOPUT | O42: =IF(S42<40,"Valta",IF(S42<100,"Kanta",IF(S42<1000,"Seutu",IF(S42>999,"Yhdys")))) -> Seutu | P42: Lahdentie, Vanha Lahdentie | Q42: Järvenpää, Kerava, Sipoo, Tuusula, Vantaa | R42: Uusimaa | S42: 140 | T42: 5 | U42: 0 | V42: 5 | W42: 18701 | X42: 18701 | Y42: 7248.807006 | Z42: 380.4531635 | AA42: 8002.023355 | AB42: 4800 (24 %), 6096 (11 %), 6994 (26 %), 7673 (13 %), 8502 (26 %), 8756 (26 %) | AC42: PK2 | AD42: PK2 (100 %) | AE42: 50 (1 %), 60 (28 %), 80 (69 %) | AF42: Is (100 %) | AG42: Asfalttibetoni (25 %), Kivimastiksiasfaltti (72 %) | AH42: 18 | AI42: 36 | AJ42: 0.01030290542 | AK42: 90.60997877 | AN42: Katu (49 %), Maantie tai katu (49 %) | AO42: 0.5856468921 | AR42: =+IF(Y42>=$K$6,$F$5,($F$5/($K$6))*Y42) -> 9 | AS42: 1042 | AV42: =+IF(AS42>=$L$15,$J$15,IF(AS42<($L$15),AS42*($J$15/($L$15)),)) -> 3 | AW42: 8185 | AX42: =+IF(AW42>=$L$11,$J$11,IF(AW42<($L$11),AW42*($J$11/($L$11)),)) -> 3 | AY42: =SUM(AR42,AV42,AX42) -> 15 | AZ42: =+AY42*$H$5 -> 5 | BA42: =+IF(Z42=0,0,IF(Z42>$K$7,$F$9,($F$9/$K$7)*Z42)) -> 8 | BB42: =IF(DD42>0,$F$10,0) -> 0 | BC42: =IF(DE42>0,$F$11,0) -> 1 | BD42: =IF(DF42>0,$F$12,0) -> 1 | BE42: =IF(DG42>0,$F$13,0) -> 0 | BF42: =IF(DI42>0,$F$14,IF(DH42>0,$F$14/2,0)) -> 2 | BG42: =+IF(DJ42>=$L$19,$J$19,IF(DJ42<($L$19),DJ42*($J$19/($L$19)),)) -> 0.2166666667 | BH42: =+IF(DK42>=$L$20,$J$20,IF(DK42<($L$20),DK42*($J$20/($L$20)),)) -> 0.075 | BI42: =+IF(DL42>=$L$21,$J$21,IF(DL42<($L$21),DL42*($J$21/($L$21)),)) -> 0 | BJ42: =+IF(DM42>=$L$22,$J$22,IF(DM42<($L$22),DM42*($J$22/($L$22)),)) -> 0 | BK42: =IF(DN42>0,$F$16,0) -> 2 | BL42: =+IF(DQ42>=$L$25,$J$25,IF(DQ42<($L$25),DQ42*($J$25/($L$25)),)) -> 2 | BM42: =IF(EG42>100000,$F$18,IF(EG42>0,$F$18/2,0)) -> 1 | BN42: =IF(ED42>0,$F$19,0) -> 2 | BO42: 0.220779 | BP42: 0.240067 | BQ42: 0.675735 | BR42: 0.0320567 | BS42: 8.158531603 | BT42: =IF(COUNTIF($I$29:$L$29,TRUE)=0,0,IF(SUMIF($I$29:$L$29,TRUE,BO42:BR42)/COUNTIF($I$29:$L$29,TRUE)>=$L$30,$F$20/2,$F$20/2*(SUMIF($I$29:$L$29,TRUE,BO42:BR42)/COUNTIF($I$29:$L$29,TRUE)/$L$30)))+IF(BS42>=10,$F$20/2,IF(BS42<(10),BS42*($F$20/2/10))) -> 0.4458126135 | BU42: =SUM(BA42+BB42+BC42+BD42+BE42+BF42+BK42+BG42+BH42+BI42+BJ42+BL42+BM42+BN42+BT42) -> 19.73747928 | BV42: =+BU42*$H$9 -> 6.57915976 | BW42: 16183.14673 | BX42: =BW42/X42 -> 0.86536264 | BY42: =IF(BX42>0,IF(BX42>=$DC$28,$DA$28,IF(BX42<$DC$28,$DA$29,0)),0) -> 1 | BZ42: 17743.20204 | CA42: =BZ42/X42 -> 0.9487835965 | CB42: =IF(CA42,$F$23,0) -> 1 | CC42: =IF(DS42>0,$F$24,0) -> 1 | CD42: 10340.30047 | CE42: =CD42/X42 -> 0.5529276761 | CF42: =IF(CE42>0,IF(CE42>=$DC$22,$DA$22,IF(CE42<$DC$28,$DA$23,0)),0) -> 1 | CG42: 221.9895193 | CH42: =IF(CG42>0,IF(CG42>=100,$F$26,IF(CG42<100,$F$26/2)),0) -> 1 | CI42: =SUM(DW42) -> 1 | CJ42: =IF(EA42>0,$F$28,0) -> 1 | CK42: =IF(DX42>0,$F$29,0) -> 1 | CL42: =IF(EC42>0,$F$30,0) -> 1 | CM42: =SUM(BY42,CB42,CH42,CC42,CF42,CI42,CJ42,CK42,CL42) -> 9 | CN42: =+CM42*$H$22 -> 3 | CO42: =SUM(AY42,BU42,CM42) -> 43.73747928 | CP42: =SUM(AZ42,BV42,CN42) -> 14.57915976 | CQ42: =IF(D42<($Z$13*1785),1,IF(D42<(($Z$14+$Z$13)*1785),2,IF(D42<(($Z$15+$Z$13+$Z$14)*1785),3,4))) -> 1 | CR42: =VLOOKUP(C42,Taul1!$F$6:$G$1718,2,FALSE) -> 5 | CX42: https://www.google.com/maps/@60.305155,25.10474344,3a,75y,90t/data=!3m3!1e1!3m1!2e0 | DA42: 0 | DB42: 0 | DC42: 0 | DD42: =SUM(DA42:DC42) -> 0 | DE42: 6 | DF42: 5 | DG42: 0 | DH42: 16 | DI42: 7 | DJ42: 130 | DK42: 15 | DL42: 0 | DM42: 0 | DN42: 2 | DP42: 16183.14673 | DQ42: 22 | DR42: 3 | DS42: 10 | DT42: 10340.30047 | DU42: =+IF(AA42>$K$8,$F$27/2,0) -> 1 | DV42: =+IF(AA42/Y42>1.5,$F$27/2,0) -> 0 | DW42: =SUM(DU42:DV42) -> 1 | DX42: 3 | DY42: 0 | DZ42: 1 | EA42: =SUM(DY42:DZ42) -> 1 | EC42: 1 | ED42: 5 | EG42: 113746
A43: 2_13_0 | B43: 1 | C43: =CONCATENATE(S43,"_",T43) -> 2_13 | D43: =RANK(CP43,$CP$37:$CP$1816) -> 7 | E43: 7 | F43: =E43-D43 -> 0 | G43: =CP43 -> 14.54833526 | H43: =AZ43 -> 5 | I43: =BV43 -> 7.215001922 | J43: =CN43 -> 2.333333333 | K43: =CQ43 -> 1 | L43: =B43-K43 -> 0 | M43: =HYPERLINK(CX43,"Gmaps") -> Gmaps | N43: =IF(Y43>$K$6,"LOPUT","VÄHÄ") -> LOPUT | O43: =IF(S43<40,"Valta",IF(S43<100,"Kanta",IF(S43<1000,"Seutu",IF(S43>999,"Yhdys")))) -> Valta | P43: Porintie | Q43: Karkkila | R43: Uusimaa | S43: 2 | T43: 13 | U43: 0 | V43: 13 | W43: 5174 | X43: 5174 | Y43: 6606.833784 | Z43: 590.9037495 | AA43: 8198.640124 | AB43: 5567 (35 %), 7173 (65 %) | AC43: PK1 | AD43: PK1 (100 %) | AE43: 60 (8 %), 80 (76 %), 100 (16 %) | AF43: Is (100 %) | AG43: Kivimastiksiasfaltti (97 %) | AH43: 2 | AI43: 5 | AJ43: 0.01075731497 | AK43: 340.2145342 | AL43: Kattava | AM43: I | AN43: Maantie (100 %) | AO43: 0.6637412538 | AR43: =+IF(Y43>=$K$6,$F$5,($F$5/($K$6))*Y43) -> 9 | AS43: 197 | AV43: =+IF(AS43>=$L$15,$J$15,IF(AS43<($L$15),AS43*($J$15/($L$15)),)) -> 3 | AW43: 3149 | AX43: =+IF(AW43>=$L$11,$J$11,IF(AW43<($L$11),AW43*($J$11/($L$11)),)) -> 3 | AY43: =SUM(AR43,AV43,AX43) -> 15 | AZ43: =+AY43*$H$5 -> 5 | BA43: =+IF(Z43=0,0,IF(Z43>$K$7,$F$9,($F$9/$K$7)*Z43)) -> 8 | BB43: =IF(DD43>0,$F$10,0) -> 2 | BC43: =IF(DE43>0,$F$11,0) -> 1 | BD43: =IF(DF43>0,$F$12,0) -> 1 | BE43: =IF(DG43>0,$F$13,0) -> 1 | BF43: =IF(DI43>0,$F$14,IF(DH43>0,$F$14/2,0)) -> 1 | BG43: =+IF(DJ43>=$L$19,$J$19,IF(DJ43<($L$19),DJ43*($J$19/($L$19)),)) -> 0.1183333333 | BH43: =+IF(DK43>=$L$20,$J$20,IF(DK43<($L$20),DK43*($J$20/($L$20)),)) -> 0.03 | BI43: =+IF(DL43>=$L$21,$J$21,IF(DL43<($L$21),DL43*($J$21/($L$21)),)) -> 0.0365 | BJ43: =+IF(DM43>=$L$22,$J$22,IF(DM43<($L$22),DM43*($J$22/($L$22)),)) -> 0 | BK43: =IF(DN43>0,$F$16,0) -> 2 | BL43: =+IF(DQ43>=$L$25,$J$25,IF(DQ43<($L$25),DQ43*($J$25/($L$25)),)) -> 2 | BM43: =IF(EG43>100000,$F$18,IF(EG43>0,$F$18/2,0)) -> 0.5 | BN43: =IF(ED43>0,$F$19,0) -> 2 | BO43: 4.98236 | BP43: 9.17177 | BQ43: 7.26638 | BR43: 3.161 | BS43: 9.203448661 | BT43: =IF(COUNTIF($I$29:$L$29,TRUE)=0,0,IF(SUMIF($I$29:$L$29,TRUE,BO43:BR43)/COUNTIF($I$29:$L$29,TRUE)>=$L$30,$F$20/2,$F$20/2*(SUMIF($I$29:$L$29,TRUE,BO43:BR43)/COUNTIF($I$29:$L$29,TRUE)/$L$30)))+IF(BS43>=10,$F$20/2,IF(BS43<(10),BS43*($F$20/2/10))) -> 0.9601724331 | BU43: =SUM(BA43+BB43+BC43+BD43+BE43+BF43+BK43+BG43+BH43+BI43+BJ43+BL43+BM43+BN43+BT43) -> 21.64500577 | BV43: =+BU43*$H$9 -> 7.215001922 | BW43: 3742.003646 | BX43: =BW43/X43 -> 0.7232322469 | BY43: =IF(BX43>0,IF(BX43>=$DC$28,$DA$28,IF(BX43<$DC$28,$DA$29,0)),0) -> 1 | BZ43: 4514.291018 | CA43: =BZ43/X43 -> 0.8724953648 | CB43: =IF(CA43,$F$23,0) -> 1 | CC43: =IF(DS43>0,$F$24,0) -> 1 | CD43: 3842.062396 | CE43: =CD43/X43 -> 0.7425710082 | CF43: =IF(CE43>0,IF(CE43>=$DC$22,$DA$22,IF(CE43<$DC$28,$DA$23,0)),0) -> 1 | CG43: 313.0390414 | CH43: =IF(CG43>0,IF(CG43>=100,$F$26,IF(CG43<100,$F$26/2)),0) -> 1 | CI43: =SUM(DW43) -> 1 | CJ43: =IF(EA43>0,$F$28,0) -> 0 | CK43: =IF(DX43>0,$F$29,0) -> 0 | CL43: =IF(EC43>0,$F$30,0) -> 1 | CM43: =SUM(BY43,CB43,CH43,CC43,CF43,CI43,CJ43,CK43,CL43) -> 7 | CN43: =+CM43*$H$22 -> 2.333333333 | CO43: =SUM(AY43,BU43,CM43) -> 43.64500577 | CP43: =SUM(AZ43,BV43,CN43) -> 14.54833526 | CQ43: =IF(D43<($Z$13*1785),1,IF(D43<(($Z$14+$Z$13)*1785),2,IF(D43<(($Z$15+$Z$13+$Z$14)*1785),3,4))) -> 1 | CR43: =VLOOKUP(C43,Taul1!$F$6:$G$1718,2,FALSE) -> 2 | CX43: https://www.google.com/maps/@60.50754776,24.26456658,3a,75y,90t/data=!3m3!1e1!3m1!2e0 | DA43: 0 | DB43: 0 | DC43: 4 | DD43: =SUM(DA43:DC43) -> 4 | DE43: 1 | DF43: 3 | DG43: 1 | DH43: 2 | DI43: 0 | DJ43: 71 | DK43: 6 | DL43: 73 | DM43: 0 | DN43: 3 | DP43: 3742.003646 | DQ43: 6 | DR43: 1 | DS43: 4 | DT43: 3842.062396 | DU43: =+IF(AA43>$K$8,$F$27/2,0) -> 1 | DV43: =+IF(AA43/Y43>1.5,$F$27/2,0) -> 0 | DW43: =SUM(DU43:DV43) -> 1 | DX43: 0 | DY43: 0 | DZ43: 0 | EA43: =SUM(DY43:DZ43) -> 0 | EC43: 1 | ED43: 4 | EG43: 10088
A44: 6_116_0 | B44: 1 | C44: =CONCATENATE(S44,"_",T44) -> 6_116 | D44: =RANK(CP44,$CP$37:$CP$1816) -> 8 | E44: 8 | F44: =E44-D44 -> 0 | G44: =CP44 -> 14.5 | H44: =AZ44 -> 5 | I44: =BV44 -> 7.333333333 | J44: =CN44 -> 2.166666667 | K44: =CQ44 -> 1 | L44: =B44-K44 -> 0 | M44: =HYPERLINK(CX44,"Gmaps") -> Gmaps | N44: =IF(Y44>$K$6,"LOPUT","VÄHÄ") -> LOPUT | O44: =IF(S44<40,"Valta",IF(S44<100,"Kanta",IF(S44<1000,"Seutu",IF(S44>999,"Yhdys")))) -> Valta | P44: Valtatie | Q44: Loviisa | R44: Uusimaa | S44: 6 | T44: 116 | U44: 0 | V44: 116 | W44: 10270 | X44: 10270 | Y44: 5748 | Z44: 638 | AA44: 7071 | AB44: 5748 (100 %) | AC44: PK1 | AD44: PK1 (100 %) | AE44: 80 (21 %), 100 (79 %) | AF44: Is (100 %) | AG44: Kivimastiksiasfaltti (100 %) | AH44: 2 | AI44: 2 | AJ44: 0.01098018211 | AK44: 472 | AL44: Kattava | AM44: I | AN44: Maantie (100 %) | AO44: 0 | AR44: =+IF(Y44>=$K$6,$F$5,($F$5/($K$6))*Y44) -> 9 | AS44: 46 | AV44: =+IF(AS44>=$L$15,$J$15,IF(AS44<($L$15),AS44*($J$15/($L$15)),)) -> 3 | AW44: 3053 | AX44: =+IF(AW44>=$L$11,$J$11,IF(AW44<($L$11),AW44*($J$11/($L$11)),)) -> 3 | AY44: =SUM(AR44,AV44,AX44) -> 15 | AZ44: =+AY44*$H$5 -> 5 | BA44: =+IF(Z44=0,0,IF(Z44>$K$7,$F$9,($F$9/$K$7)*Z44)) -> 8 | BB44: =IF(DD44>0,$F$10,0) -> 2 | BC44: =IF(DE44>0,$F$11,0) -> 1 | BD44: =IF(DF44>0,$F$12,0) -> 1 | BE44: =IF(DG44>0,$F$13,0) -> 0 | BF44: =IF(DI44>0,$F$14,IF(DH44>0,$F$14/2,0)) -> 2 | BG44: =+IF(DJ44>=$L$19,$J$19,IF(DJ44<($L$19),DJ44*($J$19/($L$19)),)) -> 0.5 | BH44: =+IF(DK44>=$L$20,$J$20,IF(DK44<($L$20),DK44*($J$20/($L$20)),)) -> 0.5 | BI44: =+IF(DL44>=$L$21,$J$21,IF(DL44<($L$21),DL44*($J$21/($L$21)),)) -> 0 | BJ44: =+IF(DM44>=$L$22,$J$22,IF(DM44<($L$22),DM44*($J$22/($L$22)),)) -> 0 | BK44: =IF(DN44>0,$F$16,0) -> 2 | BL44: =+IF(DQ44>=$L$25,$J$25,IF(DQ44<($L$25),DQ44*($J$25/($L$25)),)) -> 2 | BM44: =IF(EG44>100000,$F$18,IF(EG44>0,$F$18/2,0)) -> 0 | BN44: =IF(ED44>0,$F$19,0) -> 2 | BO44: 7.38712 | BP44: 10.9139 | BQ44: 10.4782 | BR44: 6.95193 | BS44: 26.71196956 | BT44: =IF(COUNTIF($I$29:$L$29,TRUE)=0,0,IF(SUMIF($I$29:$L$29,TRUE,BO44:BR44)/COUNTIF($I$29:$L$29,TRUE)>=$L$30,$F$20/2,$F$20/2*(SUMIF($I$29:$L$29,TRUE,BO44:BR44)/COUNTIF($I$29:$L$29,TRUE)/$L$30)))+IF(BS44>=10,$F$20/2,IF(BS44<(10),BS44*($F$20/2/10))) -> 1 | BU44: =SUM(BA44+BB44+BC44+BD44+BE44+BF44+BK44+BG44+BH44+BI44+BJ44+BL44+BM44+BN44+BT44) -> 22 | BV44: =+BU44*$H$9 -> 7.333333333 | BW44: 3297.921728 | BX44: =BW44/X44 -> 0.321121882 | BY44: =IF(BX44>0,IF(BX44>=$DC$28,$DA$28,IF(BX44<$DC$28,$DA$29,0)),0) -> 0.5 | BZ44: 10259.45363 | CA44: =BZ44/X44 -> 0.9989730894 | CB44: =IF(CA44,$F$23,0) -> 1 | CC44: =IF(DS44>0,$F$24,0) -> 1 | CD44: 591.0992917 | CE44: =CD44/X44 -> 0.05755591935 | CF44: =IF(CE44>0,IF(CE44>=$DC$22,$DA$22,IF(CE44<$DC$28,$DA$23,0)),0) -> 0.5 | CG44: 9.341772152 | CH44: =IF(CG44>0,IF(CG44>=100,$F$26,IF(CG44<100,$F$26/2)),0) -> 0.5 | CI44: =SUM(DW44) -> 1 | CJ44: =IF(EA44>0,$F$28,0) -> 0 | CK44: =IF(DX44>0,$F$29,0) -> 1 | CL44: =IF(EC44>0,$F$30,0) -> 1 | CM44: =SUM(BY44,CB44,CH44,CC44,CF44,CI44,CJ44,CK44,CL44) -> 6.5 | CN44: =+CM44*$H$22 -> 2.166666667 | CO44: =SUM(AY44,BU44,CM44) -> 43.5 | CP44: =SUM(AZ44,BV44,CN44) -> 14.5 | CQ44: =IF(D44<($Z$13*1785),1,IF(D44<(($Z$14+$Z$13)*1785),2,IF(D44<(($Z$15+$Z$13+$Z$14)*1785),3,4))) -> 1 | CR44: =VLOOKUP(C44,Taul1!$F$6:$G$1718,2,FALSE) -> 1 | CX44: https://www.google.com/maps/@60.49113071,25.95867292,3a,75y,90t/data=!3m3!1e1!3m1!2e0 | DA44: 0 | DB44: 3 | DC44: 0 | DD44: =SUM(DA44:DC44) -> 3 | DE44: 4 | DF44: 13 | DG44: 0 | DH44: 24 | DI44: 1 | DJ44: 529 | DK44: 175 | DL44: 0 | DM44: 0 | DN44: 1 | DP44: 3297.921728 | DQ44: 5 | DR44: 0 | DS44: 5 | DT44: 591.0992917 | DU44: =+IF(AA44>$K$8,$F$27/2,0) -> 1 | DV44: =+IF(AA44/Y44>1.5,$F$27/2,0) -> 0 | DW44: =SUM(DU44:DV44) -> 1 | DX44: 1 | DY44: 0 | DZ44: 0 | EA44: =SUM(DY44:DZ44) -> 0 | EC44: 1 | ED44: 2 | EG44: 0
A45: 57_1_405 | B45: 1 | C45: =CONCATENATE(S45,"_",T45) -> 57_1 | D45: =RANK(CP45,$CP$37:$CP$1816) -> 9 | E45: 9 | F45: =E45-D45 -> 0 | G45: =CP45 -> 14.43986675 | H45: =AZ45 -> 5 | I45: =BV45 -> 6.773200087 | J45: =CN45 -> 2.666666667 | K45: =CQ45 -> 1 | L45: =B45-K45 -> 0 | M45: =HYPERLINK(CX45,"Gmaps") -> Gmaps | N45: =IF(Y45>$K$6,"LOPUT","VÄHÄ") -> LOPUT | O45: =IF(S45<40,"Valta",IF(S45<100,"Kanta",IF(S45<1000,"Seutu",IF(S45>999,"Yhdys")))) -> Kanta | P45: Pälkäneentie, Tiiriöntie | Q45: Hattula, Hämeenlinna | R45: Kanta-Häme | S45: 57 | T45: 1 | U45: 405 | V45: 1 | W45: 6825 | X45: 6420 | Y45: 8120.490187 | Z45: 353.8920561 | AA45: 9193.165109 | AB45: 7815 (5 %), 7870 (76 %), 9197 (19 %) | AC45: PK2 | AD45: PK2 (100 %) | AE45: 50 (2 %), 60 (29 %), 80 (68 %) | AF45: Is (100 %) | AG45: Asfalttibetoni (1 %), Kivimastiksiasfaltti (99 %) | AH45: 7 | AI45: 12 | AJ45: 0.0401243856 | AK45: 121.3484424 | AN45: Maantie tai katu (3 %), Maantie (91 %) | AO45: 0.9726453652 | AR45: =+IF(Y45>=$K$6,$F$5,($F$5/($K$6))*Y45) -> 9 | AS45: 181 | AV45: =+IF(AS45>=$L$15,$J$15,IF(AS45<($L$15),AS45*($J$15/($L$15)),)) -> 3 | AW45: 5115 | AX45: =+IF(AW45>=$L$11,$J$11,IF(AW45<($L$11),AW45*($J$11/($L$11)),)) -> 3 | AY45: =SUM(AR45,AV45,AX45) -> 15 | AZ45: =+AY45*$H$5 -> 5 | BA45: =+IF(Z45=0,0,IF(Z45>$K$7,$F$9,($F$9/$K$7)*Z45)) -> 8 | BB45: =IF(DD45>0,$F$10,0) -> 2 | BC45: =IF(DE45>0,$F$11,0) -> 1 | BD45: =IF(DF45>0,$F$12,0) -> 1 | BE45: =IF(DG45>0,$F$13,0) -> 0 | BF45: =IF(DI45>0,$F$14,IF(DH45>0,$F$14/2,0)) -> 1 | BG45: =+IF(DJ45>=$L$19,$J$19,IF(DJ45<($L$19),DJ45*($J$19/($L$19)),)) -> 0.1716666667 | BH45: =+IF(DK45>=$L$20,$J$20,IF(DK45<($L$20),DK45*($J$20/($L$20)),)) -> 0 | BI45: =+IF(DL45>=$L$21,$J$21,IF(DL45<($L$21),DL45*($J$21/($L$21)),)) -> 0 | BJ45: =+IF(DM45>=$L$22,$J$22,IF(DM45<($L$22),DM45*($J$22/($L$22)),)) -> 0 | BK45: =IF(DN45>0,$F$16,0) -> 2 | BL45: =+IF(DQ45>=$L$25,$J$25,IF(DQ45<($L$25),DQ45*($J$25/($L$25)),)) -> 2 | BM45: =IF(EG45>100000,$F$18,IF(EG45>0,$F$18/2,0)) -> 0.5 | BN45: =IF(ED45>0,$F$19,0) -> 2 | BO45: 1.77907 | BP45: 2.23282 | BQ45: 2.0027 | BR45: 0.806157 | BS45: 8.948945236 | BT45: =IF(COUNTIF($I$29:$L$29,TRUE)=0,0,IF(SUMIF($I$29:$L$29,TRUE,BO45:BR45)/COUNTIF($I$29:$L$29,TRUE)>=$L$30,$F$20/2,$F$20/2*(SUMIF($I$29:$L$29,TRUE,BO45:BR45)/COUNTIF($I$29:$L$29,TRUE)/$L$30)))+IF(BS45>=10,$F$20/2,IF(BS45<(10),BS45*($F$20/2/10))) -> 0.6479335951 | BU45: =SUM(BA45+BB45+BC45+BD45+BE45+BF45+BK45+BG45+BH45+BI45+BJ45+BL45+BM45+BN45+BT45) -> 20.31960026 | BV45: =+BU45*$H$9 -> 6.773200087 | BW45: 6398.878774 | BX45: =BW45/X45 -> 0.9967100895 | BY45: =IF(BX45>0,IF(BX45>=$DC$28,$DA$28,IF(BX45<$DC$28,$DA$29,0)),0) -> 1 | BZ45: 6398.878773 | CA45: =BZ45/X45 -> 0.9967100893 | CB45: =IF(CA45,$F$23,0) -> 1 | CC45: =IF(DS45>0,$F$24,0) -> 1 | CD45: 3816.72093 | CE45: =CD45/X45 -> 0.5945048177 | CF45: =IF(CE45>0,IF(CE45>=$DC$22,$DA$22,IF(CE45<$DC$28,$DA$23,0)),0) -> 1 | CG45: 272.2936137 | CH45: =IF(CG45>0,IF(CG45>=100,$F$26,IF(CG45<100,$F$26/2)),0) -> 1 | CI45: =SUM(DW45) -> 1 | CJ45: =IF(EA45>0,$F$28,0) -> 0 | CK45: =IF(DX45>0,$F$29,0) -> 1 | CL45: =IF(EC45>0,$F$30,0) -> 1 | CM45: =SUM(BY45,CB45,CH45,CC45,CF45,CI45,CJ45,CK45,CL45) -> 8 | CN45: =+CM45*$H$22 -> 2.666666667 | CO45: =SUM(AY45,BU45,CM45) -> 43.31960026 | CP45: =SUM(AZ45,BV45,CN45) -> 14.43986675 | CQ45: =IF(D45<($Z$13*1785),1,IF(D45<(($Z$14+$Z$13)*1785),2,IF(D45<(($Z$15+$Z$13+$Z$14)*1785),3,4))) -> 1 | CR45: =VLOOKUP(C45,Taul1!$F$6:$G$1718,2,FALSE) -> 3 | CX45: https://www.google.com/maps/@61.00934665,24.41705951,3a,75y,90t/data=!3m3!1e1!3m1!2e0 | DA45: 0 | DB45: 3 | DC45: 2 | DD45: =SUM(DA45:DC45) -> 5 | DE45: 5 | DF45: 1 | DG45: 0 | DH45: 16 | DI45: 0 | DJ45: 103 | DK45: 0 | DL45: 0 | DM45: 0 | DN45: 1 | DP45: 6398.878774 | DQ45: 11 | DR45: 2 | DS45: 33 | DT45: 3816.72093 | DU45: =+IF(AA45>$K$8,$F$27/2,0) -> 1 | DV45: =+IF(AA45/Y45>1.5,$F$27/2,0) -> 0 | DW45: =SUM(DU45:DV45) -> 1 | DX45: 2 | DY45: 0 | DZ45: 0 | EA45: =SUM(DY45:DZ45) -> 0 | EC45: 1 | ED45: 2 | EG45: 34526
A46: 167_2_0 | B46: 1 | C46: =CONCATENATE(S46,"_",T46) -> 167_2 | D46: =RANK(CP46,$CP$37:$CP$1816) -> 10 | E46: 10 | F46: =E46-D46 -> 0 | G46: =CP46 -> 14.42696573 | H46: =AZ46 -> 5 | I46: =BV46 -> 7.093632402 | J46: =CN46 -> 2.333333333 | K46: =CQ46 -> 1 | L46: =B46-K46 -> 0 | M46: =HYPERLINK(CX46,"Gmaps") -> Gmaps | N46: =IF(Y46>$K$6,"LOPUT","VÄHÄ") -> LOPUT | O46: =IF(S46<40,"Valta",IF(S46<100,"Kanta",IF(S46<1000,"Seutu",IF(S46>999,"Yhdys")))) -> Seutu | P46: Lahdentie, Uusi Orimattilantie | Q46: Lahti, Orimattila | R46: Päijät-Häme | S46: 167 | T46: 2 | U46: 0 | V46: 2 | W46: 6590 | X46: 6590 | Y46: 10365.34977 | Z46: 641.7086495 | AA46: 11590.91351 | AB46: 10148 (91 %), 12477 (9 %) | AC46: PK2 | AD46: PK2 (91 %) | AE46: 60 (22 %), 70 (9 %), 80 (69 %) | AF46: Is (93 %) | AG46: Asfalttibetoni (8 %), Kivimastiksiasfaltti (84 %) | AH46: 3 | AI46: 11 | AJ46: 0.1948811225 | AK46: 290.9218513 | AN46: Maantie tai katu (7 %), Maantie (93 %) | AO46: 0.1335241316 | AR46: =+IF(Y46>=$K$6,$F$5,($F$5/($K$6))*Y46) -> 9 | AS46: 430 | AV46: =+IF(AS46>=$L$15,$J$15,IF(AS46<($L$15),AS46*($J$15/($L$15)),)) -> 3 | AW46: 7878 | AX46: =+IF(AW46>=$L$11,$J$11,IF(AW46<($L$11),AW46*($J$11/($L$11)),)) -> 3 | AY46: =SUM(AR46,AV46,AX46) -> 15 | AZ46: =+AY46*$H$5 -> 5 | BA46: =+IF(Z46=0,0,IF(Z46>$K$7,$F$9,($F$9/$K$7)*Z46)) -> 8 | BB46: =IF(DD46>0,$F$10,0) -> 2 | BC46: =IF(DE46>0,$F$11,0) -> 1 | BD46: =IF(DF46>0,$F$12,0) -> 1 | BE46: =IF(DG46>0,$F$13,0) -> 0 | BF46: =IF(DI46>0,$F$14,IF(DH46>0,$F$14/2,0)) -> 1 | BG46: =+IF(DJ46>=$L$19,$J$19,IF(DJ46<($L$19),DJ46*($J$19/($L$19)),)) -> 0.1883333333 | BH46: =+IF(DK46>=$L$20,$J$20,IF(DK46<($L$20),DK46*($J$20/($L$20)),)) -> 0.5 | BI46: =+IF(DL46>=$L$21,$J$21,IF(DL46<($L$21),DL46*($J$21/($L$21)),)) -> 0 | BJ46: =+IF(DM46>=$L$22,$J$22,IF(DM46<($L$22),DM46*($J$22/($L$22)),)) -> 0 | BK46: =IF(DN46>0,$F$16,0) -> 2 | BL46: =+IF(DQ46>=$L$25,$J$25,IF(DQ46<($L$25),DQ46*($J$25/($L$25)),)) -> 2 | BM46: =IF(EG46>100000,$F$18,IF(EG46>0,$F$18/2,0)) -> 1 | BN46: =IF(ED46>0,$F$19,0) -> 2 | BO46: 1.24788 | BP46: 2.28253 | BQ46: 1.11515 | BR46: 0.896422 | BS46: 8.754237428 | BT46: =IF(COUNTIF($I$29:$L$29,TRUE)=0,0,IF(SUMIF($I$29:$L$29,TRUE,BO46:BR46)/COUNTIF($I$29:$L$29,TRUE)>=$L$30,$F$20/2,$F$20/2*(SUMIF($I$29:$L$29,TRUE,BO46:BR46)/COUNTIF($I$29:$L$29,TRUE)/$L$30)))+IF(BS46>=10,$F$20/2,IF(BS46<(10),BS46*($F$20/2/10))) -> 0.5925638714 | BU46: =SUM(BA46+BB46+BC46+BD46+BE46+BF46+BK46+BG46+BH46+BI46+BJ46+BL46+BM46+BN46+BT46) -> 21.2808972 | BV46: =+BU46*$H$9 -> 7.093632402 | BW46: 5373.732725 | BX46: =BW46/X46 -> 0.8154374393 | BY46: =IF(BX46>0,IF(BX46>=$DC$28,$DA$28,IF(BX46<$DC$28,$DA$29,0)),0) -> 1 | BZ46: 6496.124882 | CA46: =BZ46/X46 -> 0.9857549139 | CB46: =IF(CA46,$F$23,0) -> 1 | CC46: =IF(DS46>0,$F$24,0) -> 1 | CD46: 1968.907209 | CE46: =CD46/X46 -> 0.2987719589 | CF46: =IF(CE46>0,IF(CE46>=$DC$22,$DA$22,IF(CE46<$DC$28,$DA$23,0)),0) -> 0.5 | CG46: 43.68740516 | CH46: =IF(CG46>0,IF(CG46>=100,$F$26,IF(CG46<100,$F$26/2)),0) -> 0.5 | CI46: =SUM(DW46) -> 1 | CJ46: =IF(EA46>0,$F$28,0) -> 0 | CK46: =IF(DX46>0,$F$29,0) -> 1 | CL46: =IF(EC46>0,$F$30,0) -> 1 | CM46: =SUM(BY46,CB46,CH46,CC46,CF46,CI46,CJ46,CK46,CL46) -> 7 | CN46: =+CM46*$H$22 -> 2.333333333 | CO46: =SUM(AY46,BU46,CM46) -> 43.2808972 | CP46: =SUM(AZ46,BV46,CN46) -> 14.42696573 | CQ46: =IF(D46<($Z$13*1785),1,IF(D46<(($Z$14+$Z$13)*1785),2,IF(D46<(($Z$15+$Z$13+$Z$14)*1785),3,4))) -> 1 | CR46: =VLOOKUP(C46,Taul1!$F$6:$G$1718,2,FALSE) -> 2 | CX46: https://www.google.com/maps/@60.93599436,25.63294806,3a,75y,90t/data=!3m3!1e1!3m1!2e0 | DA46: 0 | DB46: 0 | DC46: 3 | DD46: =SUM(DA46:DC46) -> 3 | DE46: 1 | DF46: 2 | DG46: 0 | DH46: 22 | DI46: 0 | DJ46: 113 | DK46: 108 | DL46: 0 | DM46: 0 | DN46: 1 | DP46: 5373.732725 | DQ46: 17 | DR46: 2 | DS46: 44 | DT46: 1968.907209 | DU46: =+IF(AA46>$K$8,$F$27/2,0) -> 1 | DV46: =+IF(AA46/Y46>1.5,$F$27/2,0) -> 0 | DW46: =SUM(DU46:DV46) -> 1 | DX46: 1 | DY46: 0 | DZ46: 0 | EA46: =SUM(DY46:DZ46) -> 0 | EC46: 1 | ED46: 3 | EG46: 117662
A47: 24_4_0 | B47: 1 | C47: =CONCATENATE(S47,"_",T47) -> 24_4 | D47: =RANK(CP47,$CP$37:$CP$1816) -> 11 | E47: 11 | F47: =E47-D47 -> 0 | G47: =CP47 -> 14.338299 | H47: =AZ47 -> 5 | I47: =BV47 -> 6.504965669 | J47: =CN47 -> 2.833333333 | K47: =CQ47 -> 1 | L47: =B47-K47 -> 0 | M47: =HYPERLINK(CX47,"Gmaps") -> Gmaps | N47: =IF(Y47>$K$6,"LOPUT","VÄHÄ") -> LOPUT | O47: =IF(S47<40,"Valta",IF(S47<100,"Kanta",IF(S47<1000,"Seutu",IF(S47>999,"Yhdys")))) -> Valta | P47: Jyväskyläntie, Lahdentie, Vesikansantie | Q47: Asikkala, Hollola | R47: Päijät-Häme | S47: 24 | T47: 4 | U47: 0 | V47: 4 | W47: 10200 | X47: 10200 | Y47: 6748.021176 | Z47: 286.4211765 | AA47: 8580.929412 | AB47: 5323 (9 %), 6892 (91 %) | AC47: PK2 | AD47: PK2 (99 %) | AE47: 60 (13 %), 80 (50 %), 100 (37 %) | AF47: Is (100 %) | AG47: Kivimastiksiasfaltti (99 %) | AH47: 5 | AI47: 14 | AJ47: 0.04909180167 | AK47: 148.4494118 | AN47: Maantie (100 %) | AO47: 0.3168252399 | AR47: =+IF(Y47>=$K$6,$F$5,($F$5/($K$6))*Y47) -> 9 | AS47: 68 | AV47: =+IF(AS47>=$L$15,$J$15,IF(AS47<($L$15),AS47*($J$15/($L$15)),)) -> 3 | AW47: 2505 | AX47: =+IF(AW47>=$L$11,$J$11,IF(AW47<($L$11),AW47*($J$11/($L$11)),)) -> 3 | AY47: =SUM(AR47,AV47,AX47) -> 15 | AZ47: =+AY47*$H$5 -> 5 | BA47: =+IF(Z47=0,0,IF(Z47>$K$7,$F$9,($F$9/$K$7)*Z47)) -> 8 | BB47: =IF(DD47>0,$F$10,0) -> 0 | BC47: =IF(DE47>0,$F$11,0) -> 1 | BD47: =IF(DF47>0,$F$12,0) -> 1 | BE47: =IF(DG47>0,$F$13,0) -> 0 | BF47: =IF(DI47>0,$F$14,IF(DH47>0,$F$14/2,0)) -> 2 | BG47: =+IF(DJ47>=$L$19,$J$19,IF(DJ47<($L$19),DJ47*($J$19/($L$19)),)) -> 0.5 | BH47: =+IF(DK47>=$L$20,$J$20,IF(DK47<($L$20),DK47*($J$20/($L$20)),)) -> 0.045 | BI47: =+IF(DL47>=$L$21,$J$21,IF(DL47<($L$21),DL47*($J$21/($L$21)),)) -> 0 | BJ47: =+IF(DM47>=$L$22,$J$22,IF(DM47<($L$22),DM47*($J$22/($L$22)),)) -> 0.1666666667 | BK47: =IF(DN47>0,$F$16,0) -> 2 | BL47: =+IF(DQ47>=$L$25,$J$25,IF(DQ47<($L$25),DQ47*($J$25/($L$25)),)) -> 2 | BM47: =IF(EG47>100000,$F$18,IF(EG47>0,$F$18/2,0)) -> 0 | BN47: =IF(ED47>0,$F$19,0) -> 2 | BO47: 7.56556 | BP47: 5.44387 | BQ47: 2.39536 | BR47: 2.86418 | BS47: 6.064606801 | BT47: =IF(COUNTIF($I$29:$L$29,TRUE)=0,0,IF(SUMIF($I$29:$L$29,TRUE,BO47:BR47)/COUNTIF($I$29:$L$29,TRUE)>=$L$30,$F$20/2,$F$20/2*(SUMIF($I$29:$L$29,TRUE,BO47:BR47)/COUNTIF($I$29:$L$29,TRUE)/$L$30)))+IF(BS47>=10,$F$20/2,IF(BS47<(10),BS47*($F$20/2/10))) -> 0.80323034 | BU47: =SUM(BA47+BB47+BC47+BD47+BE47+BF47+BK47+BG47+BH47+BI47+BJ47+BL47+BM47+BN47+BT47) -> 19.51489701 | BV47: =+BU47*$H$9 -> 6.504965669 | BW47: 6458.920143 | BX47: =BW47/X47 -> 0.633227465 | BY47: =IF(BX47>0,IF(BX47>=$DC$28,$DA$28,IF(BX47<$DC$28,$DA$29,0)),0) -> 1 | BZ47: 10177.58697 | CA47: =BZ47/X47 -> 0.9978026438 | CB47: =IF(CA47,$F$23,0) -> 1 | CC47: =IF(DS47>0,$F$24,0) -> 1 | CD47: 4433.965328 | CE47: =CD47/X47 -> 0.4347024832 | CF47: =IF(CE47>0,IF(CE47>=$DC$22,$DA$22,IF(CE47<$DC$28,$DA$23,0)),0) -> 0.5 | CG47: 264.7254902 | CH47: =IF(CG47>0,IF(CG47>=100,$F$26,IF(CG47<100,$F$26/2)),0) -> 1 | CI47: =SUM(DW47) -> 1 | CJ47: =IF(EA47>0,$F$28,0) -> 1 | CK47: =IF(DX47>0,$F$29,0) -> 1 | CL47: =IF(EC47>0,$F$30,0) -> 1 | CM47: =SUM(BY47,CB47,CH47,CC47,CF47,CI47,CJ47,CK47,CL47) -> 8.5 | CN47: =+CM47*$H$22 -> 2.833333333 | CO47: =SUM(AY47,BU47,CM47) -> 43.01489701 | CP47: =SUM(AZ47,BV47,CN47) -> 14.338299 | CQ47: =IF(D47<($Z$13*1785),1,IF(D47<(($Z$14+$Z$13)*1785),2,IF(D47<(($Z$15+$Z$13+$Z$14)*1785),3,4))) -> 1 | CR47: =VLOOKUP(C47,Taul1!$F$6:$G$1718,2,FALSE) -> 2 | CX47: https://www.google.com/maps/@61.10783884,25.64175408,3a,75y,90t/data=!3m3!1e1!3m1!2e0 | DA47: 0 | DB47: 0 | DC47: 0 | DD47: =SUM(DA47:DC47) -> 0 | DE47: 2 | DF47: 4 | DG47: 0 | DH47: 19 | DI47: 2 | DJ47: 599 | DK47: 9 | DL47: 0 | DM47: 10 | DN47: 2 | DP47: 6458.920143 | DQ47: 16 | DR47: 0 | DS47: 30 | DT47: 4433.965328 | DU47: =+IF(AA47>$K$8,$F$27/2,0) -> 1 | DV47: =+IF(AA47/Y47>1.5,$F$27/2,0) -> 0 | DW47: =SUM(DU47:DV47) -> 1 | DX47: 1 | DY47: 0 | DZ47: 1 | EA47: =SUM(DY47:DZ47) -> 1 | EC47: 1 | ED47: 4 | EG47: 0
A48: 12_224_0 | B48: 1 | C48: =CONCATENATE(S48,"_",T48) -> 12_224 | D48: =RANK(CP48,$CP$37:$CP$1816) -> 12 | E48: 12 | F48: =E48-D48 -> 0 | G48: =CP48 -> 14.33333333 | H48: =AZ48 -> 5 | I48: =BV48 -> 7 | J48: =CN48 -> 2.333333333 | K48: =CQ48 -> 1 | L48: =B48-K48 -> 0 | M48: =HYPERLINK(CX48,"Gmaps") -> Gmaps | N48: =IF(Y48>$K$6,"LOPUT","VÄHÄ") -> LOPUT | O48: =IF(S48<40,"Valta",IF(S48<100,"Kanta",IF(S48<1000,"Seutu",IF(S48>999,"Yhdys")))) -> Valta | P48: Arolantie, Valtatie 12 | Q48: Iitti, Lahti, Orimattila | R48: Päijät-Häme | S48: 12 | T48: 224 | U48: 0 | V48: 224 | W48: 26205 | X48: 26205 | Y48: 8622.464797 | Z48: 925.5229918 | AA48: 9555.675062 | AB48: 6039 (35 %), 6677 (27 %), 7115 (2 %), 12167 (10 %), 12836 (26 %) | AC48: PK1 | AD48: PK1 (100 %) | AE48: 60 (9 %), 80 (29 %), 100 (61 %) | AF48: Is (35 %), Ise (65 %) | AG48: Asfalttibetoni (6 %), Kivimastiksiasfaltti (94 %) | AH48: 9 | AI48: 40 | AJ48: 0.06191950464 | AK48: 578.4119443 | AL48: Kattava | AM48: I | AN48: Maantie (100 %) | AO48: 0.009618255125 | AR48: =+IF(Y48>=$K$6,$F$5,($F$5/($K$6))*Y48) -> 9 | AS48: 348 | AV48: =+IF(AS48>=$L$15,$J$15,IF(AS48<($L$15),AS48*($J$15/($L$15)),)) -> 3 | AW48: 10572 | AX48: =+IF(AW48>=$L$11,$J$11,IF(AW48<($L$11),AW48*($J$11/($L$11)),)) -> 3 | AY48: =SUM(AR48,AV48,AX48) -> 15 | AZ48: =+AY48*$H$5 -> 5 | BA48: =+IF(Z48=0,0,IF(Z48>$K$7,$F$9,($F$9/$K$7)*Z48)) -> 8 | BB48: =IF(DD48>0,$F$10,0) -> 2 | BC48: =IF(DE48>0,$F$11,0) -> 1 | BD48: =IF(DF48>0,$F$12,0) -> 1 | BE48: =IF(DG48>0,$F$13,0) -> 0 | BF48: =IF(DI48>0,$F$14,IF(DH48>0,$F$14/2,0)) -> 2 | BG48: =+IF(DJ48>=$L$19,$J$19,IF(DJ48<($L$19),DJ48*($J$19/($L$19)),)) -> 0.5 | BH48: =+IF(DK48>=$L$20,$J$20,IF(DK48<($L$20),DK48*($J$20/($L$20)),)) -> 0.5 | BI48: =+IF(DL48>=$L$21,$J$21,IF(DL48<($L$21),DL48*($J$21/($L$21)),)) -> 0 | BJ48: =+IF(DM48>=$L$22,$J$22,IF(DM48<($L$22),DM48*($J$22/($L$22)),)) -> 0.5 | BK48: =IF(DN48>0,$F$16,0) -> 0 | BL48: =+IF(DQ48>=$L$25,$J$25,IF(DQ48<($L$25),DQ48*($J$25/($L$25)),)) -> 2 | BM48: =IF(EG48>100000,$F$18,IF(EG48>0,$F$18/2,0)) -> 0.5 | BN48: =IF(ED48>0,$F$19,0) -> 2 | BO48: 37.6441 | BP48: 37.8461 | BQ48: 23.6852 | BR48: 21.0006 | BS48: 48.61875973 | BT48: =IF(COUNTIF($I$29:$L$29,TRUE)=0,0,IF(SUMIF($I$29:$L$29,TRUE,BO48:BR48)/COUNTIF($I$29:$L$29,TRUE)>=$L$30,$F$20/2,$F$20/2*(SUMIF($I$29:$L$29,TRUE,BO48:BR48)/COUNTIF($I$29:$L$29,TRUE)/$L$30)))+IF(BS48>=10,$F$20/2,IF(BS48<(10),BS48*($F$20/2/10))) -> 1 | BU48: =SUM(BA48+BB48+BC48+BD48+BE48+BF48+BK48+BG48+BH48+BI48+BJ48+BL48+BM48+BN48+BT48) -> 21 | BV48: =+BU48*$H$9 -> 7 | BW48: 10556.22465 | BX48: =BW48/X48 -> 0.4028324614 | BY48: =IF(BX48>0,IF(BX48>=$DC$28,$DA$28,IF(BX48<$DC$28,$DA$29,0)),0) -> 0.5 | BZ48: 23859.0436 | CA48: =BZ48/X48 -> 0.910476764 | CB48: =IF(CA48,$F$23,0) -> 1 | CC48: =IF(DS48>0,$F$24,0) -> 1 | CD48: 6636.484616 | CE48: =CD48/X48 -> 0.2532526089 | CF48: =IF(CE48>0,IF(CE48>=$DC$22,$DA$22,IF(CE48<$DC$28,$DA$23,0)),0) -> 0.5 | CG48: 100.9692807 | CH48: =IF(CG48>0,IF(CG48>=100,$F$26,IF(CG48<100,$F$26/2)),0) -> 1 | CI48: =SUM(DW48) -> 1 | CJ48: =IF(EA48>0,$F$28,0) -> 0 | CK48: =IF(DX48>0,$F$29,0) -> 1 | CL48: =IF(EC48>0,$F$30,0) -> 1 | CM48: =SUM(BY48,CB48,CH48,CC48,CF48,CI48,CJ48,CK48,CL48) -> 7 | CN48: =+CM48*$H$22 -> 2.333333333 | CO48: =SUM(AY48,BU48,CM48) -> 43 | CP48: =SUM(AZ48,BV48,CN48) -> 14.33333333 | CQ48: =IF(D48<($Z$13*1785),1,IF(D48<(($Z$14+$Z$13)*1785),2,IF(D48<(($Z$15+$Z$13+$Z$14)*1785),3,4))) -> 1 | CR48: =VLOOKUP(C48,Taul1!$F$6:$G$1718,2,FALSE) -> 5 | CX48: https://www.google.com/maps/@60.97150602,25.71205311,3a,75y,90t/data=!3m3!1e1!3m1!2e0 | DA48: 0 | DB48: 1 | DC48: 6 | DD48: =SUM(DA48:DC48) -> 7 | DE48: 2 | DF48: 16 | DG48: 0 | DH48: 67 | DI48: 2 | DJ48: 514 | DK48: 141 | DL48: 0 | DM48: 138 | DN48: 0 | DP48: 10556.22465 | DQ48: 35 | DR48: 1 | DS48: 12 | DT48: 6636.484616 | DU48: =+IF(AA48>$K$8,$F$27/2,0) -> 1 | DV48: =+IF(AA48/Y48>1.5,$F$27/2,0) -> 0 | DW48: =SUM(DU48:DV48) -> 1 | DX48: 2 | DY48: 0 | DZ48: 0 | EA48: =SUM(DY48:DZ48) -> 0 | EC48: 1 | ED48: 7 | EG48: 10800
A49: 2804_2_0 | B49: 1 | C49: =CONCATENATE(S49,"_",T49) -> 2804_2 | D49: =RANK(CP49,$CP$37:$CP$1816) -> 13 | E49: 13 | F49: =E49-D49 -> 0 | G49: =CP49 -> 14.29967897 | H49: =AZ49 -> 5 | I49: =BV49 -> 6.299678974 | J49: =CN49 -> 3 | K49: =CQ49 -> 1 | L49: =B49-K49 -> 0 | M49: =HYPERLINK(CX49,"Gmaps") -> Gmaps | N49: =IF(Y49>$K$6,"LOPUT","VÄHÄ") -> LOPUT | O49: =IF(S49<40,"Valta",IF(S49<100,"Kanta",IF(S49<1000,"Seutu",IF(S49>999,"Yhdys")))) -> Yhdys | P49: Forssantie, Jokioistentie, Keskuskatu, Yhtiönkatu | Q49: Forssa, Jokioinen | R49: Kanta-Häme | S49: 2804 | T49: 2 | U49: 0 | V49: 2 | W49: 7505 | X49: 7505 | Y49: 4718.156829 | Z49: 226.4892738 | AA49: 4908.387475 | AB49: 4081 (33 %), 5026 (47 %), 5053 (20 %) | AC49: PK2 | AD49: PK2 (98 %) | AE49: 40 (8 %), 50 (12 %), 60 (44 %), 80 (35 %) | AF49: Is (100 %) | AG49: Asfalttibetoni (99 %) | AH49: 8 | AI49: 15 | AJ49: 0.06436314363 | AK49: 72.59613591 | AN49: Katu (100 %) | AO49: 1 | AR49: =+IF(Y49>=$K$6,$F$5,($F$5/($K$6))*Y49) -> 9 | AS49: 133 | AV49: =+IF(AS49>=$L$15,$J$15,IF(AS49<($L$15),AS49*($J$15/($L$15)),)) -> 3 | AW49: 2577 | AX49: =+IF(AW49>=$L$11,$J$11,IF(AW49<($L$11),AW49*($J$11/($L$11)),)) -> 3 | AY49: =SUM(AR49,AV49,AX49) -> 15 | AZ49: =+AY49*$H$5 -> 5 | BA49: =+IF(Z49=0,0,IF(Z49>$K$7,$F$9,($F$9/$K$7)*Z49)) -> 8 | BB49: =IF(DD49>0,$F$10,0) -> 2 | BC49: =IF(DE49>0,$F$11,0) -> 1 | BD49: =IF(DF49>0,$F$12,0) -> 1 | BE49: =IF(DG49>0,$F$13,0) -> 1 | BF49: =IF(DI49>0,$F$14,IF(DH49>0,$F$14/2,0)) -> 1 | BG49: =+IF(DJ49>=$L$19,$J$19,IF(DJ49<($L$19),DJ49*($J$19/($L$19)),)) -> 0.1933333333 | BH49: =+IF(DK49>=$L$20,$J$20,IF(DK49<($L$20),DK49*($J$20/($L$20)),)) -> 0 | BI49: =+IF(DL49>=$L$21,$J$21,IF(DL49<($L$21),DL49*($J$21/($L$21)),)) -> 0 | BJ49: =+IF(DM49>=$L$22,$J$22,IF(DM49<($L$22),DM49*($J$22/($L$22)),)) -> 0 | BK49: =IF(DN49>0,$F$16,0) -> 0 | BL49: =+IF(DQ49>=$L$25,$J$25,IF(DQ49<($L$25),DQ49*($J$25/($L$25)),)) -> 2 | BM49: =IF(EG49>100000,$F$18,IF(EG49>0,$F$18/2,0)) -> 0.5 | BN49: =IF(ED49>0,$F$19,0) -> 2 | BO49: 0.975135 | BP49: 0.784479 | BQ49: 0.464029 | BR49: 0.0893952 | BS49: 2.631643091 | BT49: =IF(COUNTIF($I$29:$L$29,TRUE)=0,0,IF(SUMIF($I$29:$L$29,TRUE,BO49:BR49)/COUNTIF($I$29:$L$29,TRUE)>=$L$30,$F$20/2,$F$20/2*(SUMIF($I$29:$L$29,TRUE,BO49:BR49)/COUNTIF($I$29:$L$29,TRUE)/$L$30)))+IF(BS49>=10,$F$20/2,IF(BS49<(10),BS49*($F$20/2/10))) -> 0.2057035879 | BU49: =SUM(BA49+BB49+BC49+BD49+BE49+BF49+BK49+BG49+BH49+BI49+BJ49+BL49+BM49+BN49+BT49) -> 18.89903692 | BV49: =+BU49*$H$9 -> 6.299678974 | BW49: 5974.918477 | BX49: =BW49/X49 -> 0.7961250469 | BY49: =IF(BX49>0,IF(BX49>=$DC$28,$DA$28,IF(BX49<$DC$28,$DA$29,0)),0) -> 1 | BZ49: 7240.148187 | CA49: =BZ49/X49 -> 0.9647099516 | CB49: =IF(CA49,$F$23,0) -> 1 | CC49: =IF(DS49>0,$F$24,0) -> 1 | CD49: 4405.25262 | CE49: =CD49/X49 -> 0.5869756989 | CF49: =IF(CE49>0,IF(CE49>=$DC$22,$DA$22,IF(CE49<$DC$28,$DA$23,0)),0) -> 1 | CG49: 215.6695536 | CH49: =IF(CG49>0,IF(CG49>=100,$F$26,IF(CG49<100,$F$26/2)),0) -> 1 | CI49: =SUM(DW49) -> 1 | CJ49: =IF(EA49>0,$F$28,0) -> 1 | CK49: =IF(DX49>0,$F$29,0) -> 1 | CL49: =IF(EC49>0,$F$30,0) -> 1 | CM49: =SUM(BY49,CB49,CH49,CC49,CF49,CI49,CJ49,CK49,CL49) -> 9 | CN49: =+CM49*$H$22 -> 3 | CO49: =SUM(AY49,BU49,CM49) -> 42.89903692 | CP49: =SUM(AZ49,BV49,CN49) -> 14.29967897 | CQ49: =IF(D49<($Z$13*1785),1,IF(D49<(($Z$14+$Z$13)*1785),2,IF(D49<(($Z$15+$Z$13+$Z$14)*1785),3,4))) -> 1 | CR49: =VLOOKUP(C49,Taul1!$F$6:$G$1718,2,FALSE) -> 3 | CX49: https://www.google.com/maps/@60.80389561,23.48594442,3a,75y,90t/data=!3m3!1e1!3m1!2e0 | DA49: 0 | DB49: 0 | DC49: 3 | DD49: =SUM(DA49:DC49) -> 3 | DE49: 21 | DF49: 1 | DG49: 1 | DH49: 1 | DI49: 0 | DJ49: 116 | DK49: 0 | DL49: 0 | DM49: 0 | DN49: 0 | DP49: 5974.918477 | DQ49: 14 | DR49: 1 | DS49: 40 | DT49: 4405.25262 | DU49: =+IF(AA49>$K$8,$F$27/2,0) -> 1 | DV49: =+IF(AA49/Y49>1.5,$F$27/2,0) -> 0 | DW49: =SUM(DU49:DV49) -> 1 | DX49: 2 | DY49: 0 | DZ49: 1 | EA49: =SUM(DY49:DZ49) -> 1 | EC49: 1 | ED49: 4 | EG49: 11078
A50: 2896_1_0 | B50: 1 | C50: =CONCATENATE(S50,"_",T50) -> 2896_1 | D50: =RANK(CP50,$CP$37:$CP$1816) -> 14 | E50: 14 | F50: =E50-D50 -> 0 | G50: =CP50 -> 14.27782597 | H50: =AZ50 -> 4.75 | I50: =BV50 -> 6.861159303 | J50: =CN50 -> 2.666666667 | K50: =CQ50 -> 1 | L50: =B50-K50 -> 0 | M50: =HYPERLINK(CX50,"Gmaps") -> Gmaps | N50: =IF(Y50>$K$6,"LOPUT","VÄHÄ") -> LOPUT | O50: =IF(S50<40,"Valta",IF(S50<100,"Kanta",IF(S50<1000,"Seutu",IF(S50>999,"Yhdys")))) -> Yhdys | P50: Tervakoskentie | Q50: Janakkala | R50: Kanta-Häme | S50: 2896 | T50: 1 | U50: 0 | V50: 1 | W50: 1955 | X50: 1955 | Y50: 3441 | Z50: 226 | AA50: 4198 | AB50: 3441 (100 %) | AC50: PK2 | AD50: PK2 (99 %) | AE50: 50 (42 %), 80 (60 %) | AF50: Ib (100 %) | AG50: Asfalttibetoni (100 %) | AH50: 1 | AI50: 3 | AJ50: 0 | AK50: 106 | AN50: Katu (16 %), Maantie tai katu (86 %) | AO50: 0.7604666067 | AR50: =+IF(Y50>=$K$6,$F$5,($F$5/($K$6))*Y50) -> 9 | AS50: 30 | AV50: =+IF(AS50>=$L$15,$J$15,IF(AS50<($L$15),AS50*($J$15/($L$15)),)) -> 2.25 | AW50: 2126 | AX50: =+IF(AW50>=$L$11,$J$11,IF(AW50<($L$11),AW50*($J$11/($L$11)),)) -> 3 | AY50: =SUM(AR50,AV50,AX50) -> 14.25 | AZ50: =+AY50*$H$5 -> 4.75 | BA50: =+IF(Z50=0,0,IF(Z50>$K$7,$F$9,($F$9/$K$7)*Z50)) -> 8 | BB50: =IF(DD50>0,$F$10,0) -> 2 | BC50: =IF(DE50>0,$F$11,0) -> 1 | BD50: =IF(DF50>0,$F$12,0) -> 1 | BE50: =IF(DG50>0,$F$13,0) -> 1 | BF50: =IF(DI50>0,$F$14,IF(DH50>0,$F$14/2,0)) -> 2 | BG50: =+IF(DJ50>=$L$19,$J$19,IF(DJ50<($L$19),DJ50*($J$19/($L$19)),)) -> 0.395 | BH50: =+IF(DK50>=$L$20,$J$20,IF(DK50<($L$20),DK50*($J$20/($L$20)),)) -> 0.22 | BI50: =+IF(DL50>=$L$21,$J$21,IF(DL50<($L$21),DL50*($J$21/($L$21)),)) -> 0 | BJ50: =+IF(DM50>=$L$22,$J$22,IF(DM50<($L$22),DM50*($J$22/($L$22)),)) -> 0.5 | BK50: =IF(DN50>0,$F$16,0) -> 0 | BL50: =+IF(DQ50>=$L$25,$J$25,IF(DQ50<($L$25),DQ50*($J$25/($L$25)),)) -> 2 | BM50: =IF(EG50>100000,$F$18,IF(EG50>0,$F$18/2,0)) -> 0 | BN50: =IF(ED50>0,$F$19,0) -> 2 | BO50: 1.31328 | BP50: 2.44282 | BQ50: 3.03107 | BR50: 0.24284 | BS50: 4.84477818 | BT50: =IF(COUNTIF($I$29:$L$29,TRUE)=0,0,IF(SUMIF($I$29:$L$29,TRUE,BO50:BR50)/COUNTIF($I$29:$L$29,TRUE)>=$L$30,$F$20/2,$F$20/2*(SUMIF($I$29:$L$29,TRUE,BO50:BR50)/COUNTIF($I$29:$L$29,TRUE)/$L$30)))+IF(BS50>=10,$F$20/2,IF(BS50<(10),BS50*($F$20/2/10))) -> 0.468477909 | BU50: =SUM(BA50+BB50+BC50+BD50+BE50+BF50+BK50+BG50+BH50+BI50+BJ50+BL50+BM50+BN50+BT50) -> 20.58347791 | BV50: =+BU50*$H$9 -> 6.861159303 | BW50: 1983.865729 | BX50: =BW50/X50 -> 1.014765079 | BY50: =IF(BX50>0,IF(BX50>=$DC$28,$DA$28,IF(BX50<$DC$28,$DA$29,0)),0) -> 1 | BZ50: 231.6429203 | CA50: =BZ50/X50 -> 0.1184874273 | CB50: =IF(CA50,$F$23,0) -> 1 | CC50: =IF(DS50>0,$F$24,0) -> 1 | CD50: 956.5631183 | CE50: =CD50/X50 -> 0.4892905976 | CF50: =IF(CE50>0,IF(CE50>=$DC$22,$DA$22,IF(CE50<$DC$28,$DA$23,0)),0) -> 0.5 | CG50: 70.74168798 | CH50: =IF(CG50>0,IF(CG50>=100,$F$26,IF(CG50<100,$F$26/2)),0) -> 0.5 | CI50: =SUM(DW50) -> 1 | CJ50: =IF(EA50>0,$F$28,0) -> 1 | CK50: =IF(DX50>0,$F$29,0) -> 1 | CL50: =IF(EC50>0,$F$30,0) -> 1 | CM50: =SUM(BY50,CB50,CH50,CC50,CF50,CI50,CJ50,CK50,CL50) -> 8 | CN50: =+CM50*$H$22 -> 2.666666667 | CO50: =SUM(AY50,BU50,CM50) -> 42.83347791 | CP50: =SUM(AZ50,BV50,CN50) -> 14.27782597 | CQ50: =IF(D50<($Z$13*1785),1,IF(D50<(($Z$14+$Z$13)*1785),2,IF(D50<(($Z$15+$Z$13+$Z$14)*1785),3,4))) -> 1 | CR50: =VLOOKUP(C50,Taul1!$F$6:$G$1718,2,FALSE) -> 1 | CX50: https://www.google.com/maps/@60.81804382,24.63981626,3a,75y,90t/data=!3m3!1e1!3m1!2e0 | DA50: 0 | DB50: 1 | DC50: 0 | DD50: =SUM(DA50:DC50) -> 1 | DE50: 6 | DF50: 5 | DG50: 1 | DH50: 73 | DI50: 8 | DJ50: 237 | DK50: 44 | DL50: 0 | DM50: 3755 | DN50: 0 | DP50: 1983.865729 | DQ50: 15 | DR50: 0 | DS50: 13 | DT50: 956.5631183 | DU50: =+IF(AA50>$K$8,$F$27/2,0) -> 1 | DV50: =+IF(AA50/Y50>1.5,$F$27/2,0) -> 0 | DW50: =SUM(DU50:DV50) -> 1 | DX50: 2 | DY50: 0 | DZ50: 1 | EA50: =SUM(DY50:DZ50) -> 1 | EC50: 1 | ED50: 4 | EG50: 0
A51: 176_1_0 | B51: 1 | C51: =CONCATENATE(S51,"_",T51) -> 176_1 | D51: =RANK(CP51,$CP$37:$CP$1816) -> 15 | E51: 15 | F51: =E51-D51 -> 0 | G51: =CP51 -> 14.2726957 | H51: =AZ51 -> 5 | I51: =BV51 -> 6.939362372 | J51: =CN51 -> 2.333333333 | K51: =CQ51 -> 1 | L51: =B51-K51 -> 0 | M51: =HYPERLINK(CX51,"Gmaps") -> Gmaps | N51: =IF(Y51>$K$6,"LOPUT","VÄHÄ") -> LOPUT | O51: =IF(S51<40,"Valta",IF(S51<100,"Kanta",IF(S51<1000,"Seutu",IF(S51>999,"Yhdys")))) -> Seutu | P51: Lapinjärventie | Q51: Loviisa | R51: Uusimaa | S51: 176 | T51: 1 | U51: 0 | V51: 1 | W51: 6557 | X51: 6557 | Y51: 2016 | Z51: 101 | AA51: 2217 | AB51: 2016 (100 %) | AC51: PK2 | AD51: PK2 (100 %) | AE51: 50 (59 %), 60 (10 %), 70 (30 %) | AF51: I (8 %), Ib (38 %), Is (54 %) | AG51: Asfalttibetoni (100 %) | AH51: 1 | AI51: 2 | AJ51: 0 | AK51: 32 | AN51: Maantie (100 %) | AO51: 0.1015551321 | AR51: =+IF(Y51>=$K$6,$F$5,($F$5/($K$6))*Y51) -> 9 | AS51: 44 | AV51: =+IF(AS51>=$L$15,$J$15,IF(AS51<($L$15),AS51*($J$15/($L$15)),)) -> 3 | AW51: 2092 | AX51: =+IF(AW51>=$L$11,$J$11,IF(AW51<($L$11),AW51*($J$11/($L$11)),)) -> 3 | AY51: =SUM(AR51,AV51,AX51) -> 15 | AZ51: =+AY51*$H$5 -> 5 | BA51: =+IF(Z51=0,0,IF(Z51>$K$7,$F$9,($F$9/$K$7)*Z51)) -> 8 | BB51: =IF(DD51>0,$F$10,0) -> 2 | BC51: =IF(DE51>0,$F$11,0) -> 1 | BD51: =IF(DF51>0,$F$12,0) -> 1 | BE51: =IF(DG51>0,$F$13,0) -> 0 | BF51: =IF(DI51>0,$F$14,IF(DH51>0,$F$14/2,0)) -> 2 | BG51: =+IF(DJ51>=$L$19,$J$19,IF(DJ51<($L$19),DJ51*($J$19/($L$19)),)) -> 0.04 | BH51: =+IF(DK51>=$L$20,$J$20,IF(DK51<($L$20),DK51*($J$20/($L$20)),)) -> 0.08 | BI51: =+IF(DL51>=$L$21,$J$21,IF(DL51<($L$21),DL51*($J$21/($L$21)),)) -> 0 | BJ51: =+IF(DM51>=$L$22,$J$22,IF(DM51<($L$22),DM51*($J$22/($L$22)),)) -> 0 | BK51: =IF(DN51>0,$F$16,0) -> 2 | BL51: =+IF(DQ51>=$L$25,$J$25,IF(DQ51<($L$25),DQ51*($J$25/($L$25)),)) -> 2 | BM51: =IF(EG51>100000,$F$18,IF(EG51>0,$F$18/2,0)) -> 0.5 | BN51: =IF(ED51>0,$F$19,0) -> 2 | BO51: 1.08887 | BP51: 1.04862 | BQ51: 0.580651 | BR51: 0.330684 | BS51: 2.149648292 | BT51: =IF(COUNTIF($I$29:$L$29,TRUE)=0,0,IF(SUMIF($I$29:$L$29,TRUE,BO51:BR51)/COUNTIF($I$29:$L$29,TRUE)>=$L$30,$F$20/2,$F$20/2*(SUMIF($I$29:$L$29,TRUE,BO51:BR51)/COUNTIF($I$29:$L$29,TRUE)/$L$30)))+IF(BS51>=10,$F$20/2,IF(BS51<(10),BS51*($F$20/2/10))) -> 0.1980871146 | BU51: =SUM(BA51+BB51+BC51+BD51+BE51+BF51+BK51+BG51+BH51+BI51+BJ51+BL51+BM51+BN51+BT51) -> 20.81808711 | BV51: =+BU51*$H$9 -> 6.939362372 | BW51: 1899.926003 | BX51: =BW51/X51 -> 0.2897553764 | BY51: =IF(BX51>0,IF(BX51>=$DC$28,$DA$28,IF(BX51<$DC$28,$DA$29,0)),0) -> 0.5 | BZ51: 6546.405807 | CA51: =BZ51/X51 -> 0.9983842927 | CB51: =IF(CA51,$F$23,0) -> 1 | CC51: =IF(DS51>0,$F$24,0) -> 1 | CD51: 4471.796457 | CE51: =CD51/X51 -> 0.681988174 | CF51: =IF(CE51>0,IF(CE51>=$DC$22,$DA$22,IF(CE51<$DC$28,$DA$23,0)),0) -> 1 | CG51: 52.48604545 | CH51: =IF(CG51>0,IF(CG51>=100,$F$26,IF(CG51<100,$F$26/2)),0) -> 0.5 | CI51: =SUM(DW51) -> 1 | CJ51: =IF(EA51>0,$F$28,0) -> 0 | CK51: =IF(DX51>0,$F$29,0) -> 1 | CL51: =IF(EC51>0,$F$30,0) -> 1 | CM51: =SUM(BY51,CB51,CH51,CC51,CF51,CI51,CJ51,CK51,CL51) -> 7 | CN51: =+CM51*$H$22 -> 2.333333333 | CO51: =SUM(AY51,BU51,CM51) -> 42.81808711 | CP51: =SUM(AZ51,BV51,CN51) -> 14.2726957 | CQ51: =IF(D51<($Z$13*1785),1,IF(D51<(($Z$14+$Z$13)*1785),2,IF(D51<(($Z$15+$Z$13+$Z$14)*1785),3,4))) -> 1 | CR51: =VLOOKUP(C51,Taul1!$F$6:$G$1718,2,FALSE) -> 1 | CX51: https://www.google.com/maps/@60.45846426,26.19412486,3a,75y,90t/data=!3m3!1e1!3m1!2e0 | DA51: 0 | DB51: 1 | DC51: 0 | DD51: =SUM(DA51:DC51) -> 1 | DE51: 2 | DF51: 1 | DG51: 0 | DH51: 14 | DI51: 3 | DJ51: 24 | DK51: 16 | DL51: 0 | DM51: 0 | DN51: 1 | DP51: 1899.926003 | DQ51: 16 | DR51: 1 | DS51: 6 | DT51: 4471.796457 | DU51: =+IF(AA51>$K$8,$F$27/2,0) -> 1 | DV51: =+IF(AA51/Y51>1.5,$F$27/2,0) -> 0 | DW51: =SUM(DU51:DV51) -> 1 | DX51: 3 | DY51: 0 | DZ51: 0 | EA51: =SUM(DY51:DZ51) -> 0 | EC51: 1 | ED51: 7 | EG51: 37753
A52: 2_23_0 | B52: 1 | C52: =CONCATENATE(S52,"_",T52) -> 2_23 | D52: =RANK(CP52,$CP$37:$CP$1816) -> 16 | E52: 16 | F52: =E52-D52 -> 0 | G52: =CP52 -> 14.26388982 | H52: =AZ52 -> 5 | I52: =BV52 -> 6.597223152 | J52: =CN52 -> 2.666666667 | K52: =CQ52 -> 1 | L52: =B52-K52 -> 0 | M52: =HYPERLINK(CX52,"Gmaps") -> Gmaps | N52: =IF(Y52>$K$6,"LOPUT","VÄHÄ") -> LOPUT | O52: =IF(S52<40,"Valta",IF(S52<100,"Kanta",IF(S52<1000,"Seutu",IF(S52>999,"Yhdys")))) -> Valta | P52: Porin valtatie, Valtatie 2 | Q52: Forssa, Jokioinen, Tammela | R52: Kanta-Häme | S52: 2 | T52: 23 | U52: 0 | V52: 23 | W52: 14438 | X52: 14438 | Y52: 5901.275592 | Z52: 817.2821028 | AA52: 7181.539202 | AB52: 5690 (10 %), 5699 (20 %), 5960 (53 %), 6080 (17 %) | AC52: PK1 | AD52: PK1 (100 %) | AE52: 60 (6 %), 80 (57 %), 100 (38 %) | AF52: Is (100 %) | AG52: Asfalttibetoni (37 %), Kivimastiksiasfaltti (62 %) | AH52: 2 | AI52: 12 | AJ52: 0.04072990789 | AK52: 516.9632913 | AL52: Kattava | AM52: I | AN52: Maantie (99 %) | AO52: 0.1216036071 | AR52: =+IF(Y52>=$K$6,$F$5,($F$5/($K$6))*Y52) -> 9 | AS52: 141 | AV52: =+IF(AS52>=$L$15,$J$15,IF(AS52<($L$15),AS52*($J$15/($L$15)),)) -> 3 | AW52: 3860 | AX52: =+IF(AW52>=$L$11,$J$11,IF(AW52<($L$11),AW52*($J$11/($L$11)),)) -> 3 | AY52: =SUM(AR52,AV52,AX52) -> 15 | AZ52: =+AY52*$H$5 -> 5 | BA52: =+IF(Z52=0,0,IF(Z52>$K$7,$F$9,($F$9/$K$7)*Z52)) -> 8 | BB52: =IF(DD52>0,$F$10,0) -> 2 | BC52: =IF(DE52>0,$F$11,0) -> 1 | BD52: =IF(DF52>0,$F$12,0) -> 1 | BE52: =IF(DG52>0,$F$13,0) -> 1 | BF52: =IF(DI52>0,$F$14,IF(DH52>0,$F$14/2,0)) -> 1 | BG52: =+IF(DJ52>=$L$19,$J$19,IF(DJ52<($L$19),DJ52*($J$19/($L$19)),)) -> 0.05333333333 | BH52: =+IF(DK52>=$L$20,$J$20,IF(DK52<($L$20),DK52*($J$20/($L$20)),)) -> 0.015 | BI52: =+IF(DL52>=$L$21,$J$21,IF(DL52<($L$21),DL52*($J$21/($L$21)),)) -> 0.5 | BJ52: =+IF(DM52>=$L$22,$J$22,IF(DM52<($L$22),DM52*($J$22/($L$22)),)) -> 0 | BK52: =IF(DN52>0,$F$16,0) -> 0 | BL52: =+IF(DQ52>=$L$25,$J$25,IF(DQ52<($L$25),DQ52*($J$25/($L$25)),)) -> 2 | BM52: =IF(EG52>100000,$F$18,IF(EG52>0,$F$18/2,0)) -> 0.5 | BN52: =IF(ED52>0,$F$19,0) -> 2 | BO52: 7.07897 | BP52: 10.9914 | BQ52: 9.0101 | BR52: 4.98257 | BS52: 4.466722468 | BT52: =IF(COUNTIF($I$29:$L$29,TRUE)=0,0,IF(SUMIF($I$29:$L$29,TRUE,BO52:BR52)/COUNTIF($I$29:$L$29,TRUE)>=$L$30,$F$20/2,$F$20/2*(SUMIF($I$29:$L$29,TRUE,BO52:BR52)/COUNTIF($I$29:$L$29,TRUE)/$L$30)))+IF(BS52>=10,$F$20/2,IF(BS52<(10),BS52*($F$20/2/10))) -> 0.7233361234 | BU52: =SUM(BA52+BB52+BC52+BD52+BE52+BF52+BK52+BG52+BH52+BI52+BJ52+BL52+BM52+BN52+BT52) -> 19.79166946 | BV52: =+BU52*$H$9 -> 6.597223152 | BW52: 9933.283366 | BX52: =BW52/X52 -> 0.6879958004 | BY52: =IF(BX52>0,IF(BX52>=$DC$28,$DA$28,IF(BX52<$DC$28,$DA$29,0)),0) -> 1 | BZ52: 14461.36861 | CA52: =BZ52/X52 -> 1.001618549 | CB52: =IF(CA52,$F$23,0) -> 1 | CC52: =IF(DS52>0,$F$24,0) -> 1 | CD52: 7282.534726 | CE52: =CD52/X52 -> 0.5044005212 | CF52: =IF(CE52>0,IF(CE52>=$DC$22,$DA$22,IF(CE52<$DC$28,$DA$23,0)),0) -> 1 | CG52: 223.4647458 | CH52: =IF(CG52>0,IF(CG52>=100,$F$26,IF(CG52<100,$F$26/2)),0) -> 1 | CI52: =SUM(DW52) -> 1 | CJ52: =IF(EA52>0,$F$28,0) -> 0 | CK52: =IF(DX52>0,$F$29,0) -> 1 | CL52: =IF(EC52>0,$F$30,0) -> 1 | CM52: =SUM(BY52,CB52,CH52,CC52,CF52,CI52,CJ52,CK52,CL52) -> 8 | CN52: =+CM52*$H$22 -> 2.666666667 | CO52: =SUM(AY52,BU52,CM52) -> 42.79166946 | CP52: =SUM(AZ52,BV52,CN52) -> 14.26388982 | CQ52: =IF(D52<($Z$13*1785),1,IF(D52<(($Z$14+$Z$13)*1785),2,IF(D52<(($Z$15+$Z$13+$Z$14)*1785),3,4))) -> 1 | CR52: =VLOOKUP(C52,Taul1!$F$6:$G$1718,2,FALSE) -> 4 | CX52: https://www.google.com/maps/@60.7806253,23.6665466,3a,75y,90t/data=!3m3!1e1!3m1!2e0 | DA52: 0 | DB52: 0 | DC52: 5 | DD52: =SUM(DA52:DC52) -> 5 | DE52: 25 | DF52: 1 | DG52: 1 | DH52: 23 | DI52: 0 | DJ52: 32 | DK52: 3 | DL52: 4173 | DM52: 0 | DN52: 0 | DP52: 9933.283366 | DQ52: 29 | DR52: 3 | DS52: 47 | DT52: 7282.534726 | DU52: =+IF(AA52>$K$8,$F$27/2,0) -> 1 | DV52: =+IF(AA52/Y52>1.5,$F$27/2,0) -> 0 | DW52: =SUM(DU52:DV52) -> 1 | DX52: 1 | DY52: 0 | DZ52: 0 | EA52: =SUM(DY52:DZ52) -> 0 | EC52: 1 | ED52: 5 | EG52: 40406
A53: 312_1_1445 | B53: 1 | C53: =CONCATENATE(S53,"_",T53) -> 312_1 | D53: =RANK(CP53,$CP$37:$CP$1816) -> 17 | E53: 17 | F53: =E53-D53 -> 0 | G53: =CP53 -> 14.22120204 | H53: =AZ53 -> 5 | I53: =BV53 -> 6.22120204 | J53: =CN53 -> 3 | K53: =CQ53 -> 1 | L53: =B53-K53 -> 0 | M53: =HYPERLINK(CX53,"Gmaps") -> Gmaps | N53: =IF(Y53>$K$6,"LOPUT","VÄHÄ") -> LOPUT | O53: =IF(S53<40,"Valta",IF(S53<100,"Kanta",IF(S53<1000,"Seutu",IF(S53>999,"Yhdys")))) -> Seutu | P53: Kukkastie, Levonkatu, Nastolantie, Villähteentie | Q53: Lahti | R53: Päijät-Häme | S53: 312 | T53: 1 | U53: 1445 | V53: 1 | W53: 11406 | X53: 9961 | Y53: 5010.503162 | Z53: 484.2592109 | AA53: 5174.840578 | AB53: 4585 (58 %), 4832 (20 %), 5236 (14 %), 7858 (9 %) | AC53: PK2 | AD53: PK2 (100 %) | AE53: 40 (14 %), 50 (38 %), 60 (48 %) | AF53: Is (100 %) | AG53: Kivimastiksiasfaltti (99 %) | AH53: 5 | AI53: 13 | AJ53: 0.3700562794 | AK53: 137.3797811 | AN53: Katu (88 %) | AO53: 0.9840971358 | AR53: =+IF(Y53>=$K$6,$F$5,($F$5/($K$6))*Y53) -> 9 | AS53: 614 | AV53: =+IF(AS53>=$L$15,$J$15,IF(AS53<($L$15),AS53*($J$15/($L$15)),)) -> 3 | AW53: 4601 | AX53: =+IF(AW53>=$L$11,$J$11,IF(AW53<($L$11),AW53*($J$11/($L$11)),)) -> 3 | AY53: =SUM(AR53,AV53,AX53) -> 15 | AZ53: =+AY53*$H$5 -> 5 | BA53: =+IF(Z53=0,0,IF(Z53>$K$7,$F$9,($F$9/$K$7)*Z53)) -> 8 | BB53: =IF(DD53>0,$F$10,0) -> 2 | BC53: =IF(DE53>0,$F$11,0) -> 1 | BD53: =IF(DF53>0,$F$12,0) -> 1 | BE53: =IF(DG53>0,$F$13,0) -> 0 | BF53: =IF(DI53>0,$F$14,IF(DH53>0,$F$14/2,0)) -> 2 | BG53: =+IF(DJ53>=$L$19,$J$19,IF(DJ53<($L$19),DJ53*($J$19/($L$19)),)) -> 0.02833333333 | BH53: =+IF(DK53>=$L$20,$J$20,IF(DK53<($L$20),DK53*($J$20/($L$20)),)) -> 0.08 | BI53: =+IF(DL53>=$L$21,$J$21,IF(DL53<($L$21),DL53*($J$21/($L$21)),)) -> 0 | BJ53: =+IF(DM53>=$L$22,$J$22,IF(DM53<($L$22),DM53*($J$22/($L$22)),)) -> 0 | BK53: =IF(DN53>0,$F$16,0) -> 0 | BL53: =+IF(DQ53>=$L$25,$J$25,IF(DQ53<($L$25),DQ53*($J$25/($L$25)),)) -> 2 | BM53: =IF(EG53>100000,$F$18,IF(EG53>0,$F$18/2,0)) -> 0.5 | BN53: =IF(ED53>0,$F$19,0) -> 2 | BO53: 0.226215 | BP53: 0.290176 | BQ53: 0.352173 | BR53: 0.156706 | BS53: 0.5264130467 | BT53: =IF(COUNTIF($I$29:$L$29,TRUE)=0,0,IF(SUMIF($I$29:$L$29,TRUE,BO53:BR53)/COUNTIF($I$29:$L$29,TRUE)>=$L$30,$F$20/2,$F$20/2*(SUMIF($I$29:$L$29,TRUE,BO53:BR53)/COUNTIF($I$29:$L$29,TRUE)/$L$30)))+IF(BS53>=10,$F$20/2,IF(BS53<(10),BS53*($F$20/2/10))) -> 0.05527278567 | BU53: =SUM(BA53+BB53+BC53+BD53+BE53+BF53+BK53+BG53+BH53+BI53+BJ53+BL53+BM53+BN53+BT53) -> 18.66360612 | BV53: =+BU53*$H$9 -> 6.22120204 | BW53: 8768.412187 | BX53: =BW53/X53 -> 0.8802742884 | BY53: =IF(BX53>0,IF(BX53>=$DC$28,$DA$28,IF(BX53<$DC$28,$DA$29,0)),0) -> 1 | BZ53: 7677.416508 | CA53: =BZ53/X53 -> 0.7707475663 | CB53: =IF(CA53,$F$23,0) -> 1 | CC53: =IF(DS53>0,$F$24,0) -> 1 | CD53: 7428.337597 | CE53: =CD53/X53 -> 0.7457421541 | CF53: =IF(CE53>0,IF(CE53>=$DC$22,$DA$22,IF(CE53<$DC$28,$DA$23,0)),0) -> 1 | CG53: 242.6661982 | CH53: =IF(CG53>0,IF(CG53>=100,$F$26,IF(CG53<100,$F$26/2)),0) -> 1 | CI53: =SUM(DW53) -> 1 | CJ53: =IF(EA53>0,$F$28,0) -> 1 | CK53: =IF(DX53>0,$F$29,0) -> 1 | CL53: =IF(EC53>0,$F$30,0) -> 1 | CM53: =SUM(BY53,CB53,CH53,CC53,CF53,CI53,CJ53,CK53,CL53) -> 9 | CN53: =+CM53*$H$22 -> 3 | CO53: =SUM(AY53,BU53,CM53) -> 42.66360612 | CP53: =SUM(AZ53,BV53,CN53) -> 14.22120204 | CQ53: =IF(D53<($Z$13*1785),1,IF(D53<(($Z$14+$Z$13)*1785),2,IF(D53<(($Z$15+$Z$13+$Z$14)*1785),3,4))) -> 1 | CR53: =VLOOKUP(C53,Taul1!$F$6:$G$1718,2,FALSE) -> 5 | CX53: https://www.google.com/maps/@60.94749743,25.89445448,3a,75y,90t/data=!3m3!1e1!3m1!2e0 | DA53: 0 | DB53: 0 | DC53: 6 | DD53: =SUM(DA53:DC53) -> 6 | DE53: 14 | DF53: 5 | DG53: 0 | DH53: 15 | DI53: 1 | DJ53: 17 | DK53: 16 | DL53: 0 | DM53: 0 | DN53: 0 | DP53: 8768.412187 | DQ53: 24 | DR53: 1 | DS53: 30 | DT53: 7428.337597 | DU53: =+IF(AA53>$K$8,$F$27/2,0) -> 1 | DV53: =+IF(AA53/Y53>1.5,$F$27/2,0) -> 0 | DW53: =SUM(DU53:DV53) -> 1 | DX53: 2 | DY53: 0 | DZ53: 1 | EA53: =SUM(DY53:DZ53) -> 1 | EC53: 1 | ED53: 4 | EG53: 10800
A54: 25_14_0 | B54: 1 | C54: =CONCATENATE(S54,"_",T54) -> 25_14 | D54: =RANK(CP54,$CP$37:$CP$1816) -> 18 | E54: 18 | F54: =E54-D54 -> 0 | G54: =CP54 -> 14.21222222 | H54: =AZ54 -> 5 | I54: =BV54 -> 6.878888889 | J54: =CN54 -> 2.333333333 | K54: =CQ54 -> 1 | L54: =B54-K54 -> 0 | M54: =HYPERLINK(CX54,"Gmaps") -> Gmaps | N54: =IF(Y54>$K$6,"LOPUT","VÄHÄ") -> LOPUT | O54: =IF(S54<40,"Valta",IF(S54<100,"Kanta",IF(S54<1000,"Seutu",IF(S54>999,"Yhdys")))) -> Valta | P54: Hangontie, Lohjantie | Q54: Raasepori | R54: Uusimaa | S54: 25 | T54: 14 | U54: 0 | V54: 14 | W54: 1991 | X54: 1991 | Y54: 9003.581115 | Z54: 1007.06881 | AA54: 11663.29081 | AB54: 4834 (16 %), 9811 (84 %) | AC54: PK1 | AD54: PK1 (99 %) | AE54: 60 (21 %), 80 (72 %), 100 (7 %) | AF54: Is (99 %) | AG54: Kivimastiksiasfaltti (99 %) | AH54: 2 | AI54: 5 | AJ54: 0 | AK54: 602.7086891 | AL54: Kattava | AM54: I | AN54: Maantie (99 %) | AO54: 0 | AR54: =+IF(Y54>=$K$6,$F$5,($F$5/($K$6))*Y54) -> 9 | AS54: 182 | AV54: =+IF(AS54>=$L$15,$J$15,IF(AS54<($L$15),AS54*($J$15/($L$15)),)) -> 3 | AW54: 3772 | AX54: =+IF(AW54>=$L$11,$J$11,IF(AW54<($L$11),AW54*($J$11/($L$11)),)) -> 3 | AY54: =SUM(AR54,AV54,AX54) -> 15 | AZ54: =+AY54*$H$5 -> 5 | BA54: =+IF(Z54=0,0,IF(Z54>$K$7,$F$9,($F$9/$K$7)*Z54)) -> 8 | BB54: =IF(DD54>0,$F$10,0) -> 2 | BC54: =IF(DE54>0,$F$11,0) -> 1 | BD54: =IF(DF54>0,$F$12,0) -> 0 | BE54: =IF(DG54>0,$F$13,0) -> 0 | BF54: =IF(DI54>0,$F$14,IF(DH54>0,$F$14/2,0)) -> 2 | BG54: =+IF(DJ54>=$L$19,$J$19,IF(DJ54<($L$19),DJ54*($J$19/($L$19)),)) -> 0.1366666667 | BH54: =+IF(DK54>=$L$20,$J$20,IF(DK54<($L$20),DK54*($J$20/($L$20)),)) -> 0.5 | BI54: =+IF(DL54>=$L$21,$J$21,IF(DL54<($L$21),DL54*($J$21/($L$21)),)) -> 0 | BJ54: =+IF(DM54>=$L$22,$J$22,IF(DM54<($L$22),DM54*($J$22/($L$22)),)) -> 0 | BK54: =IF(DN54>0,$F$16,0) -> 2 | BL54: =+IF(DQ54>=$L$25,$J$25,IF(DQ54<($L$25),DQ54*($J$25/($L$25)),)) -> 2 | BM54: =IF(EG54>100000,$F$18,IF(EG54>0,$F$18/2,0)) -> 0 | BN54: =IF(ED54>0,$F$19,0) -> 2 | BO54: 10.841 | BP54: 11.1199 | BQ54: 11.426 | BR54: 5.87554 | BS54: 11.30232454 | BT54: =IF(COUNTIF($I$29:$L$29,TRUE)=0,0,IF(SUMIF($I$29:$L$29,TRUE,BO54:BR54)/COUNTIF($I$29:$L$29,TRUE)>=$L$30,$F$20/2,$F$20/2*(SUMIF($I$29:$L$29,TRUE,BO54:BR54)/COUNTIF($I$29:$L$29,TRUE)/$L$30)))+IF(BS54>=10,$F$20/2,IF(BS54<(10),BS54*($F$20/2/10))) -> 1 | BU54: =SUM(BA54+BB54+BC54+BD54+BE54+BF54+BK54+BG54+BH54+BI54+BJ54+BL54+BM54+BN54+BT54) -> 20.63666667 | BV54: =+BU54*$H$9 -> 6.878888889 | BW54: 1010.857089 | BX54: =BW54/X54 -> 0.507713254 | BY54: =IF(BX54>0,IF(BX54>=$DC$28,$DA$28,IF(BX54<$DC$28,$DA$29,0)),0) -> 1 | BZ54: 1980.16303 | CA54: =BZ54/X54 -> 0.9945570218 | CB54: =IF(CA54,$F$23,0) -> 1 | CC54: =IF(DS54>0,$F$24,0) -> 1 | CD54: 483.3733488 | CE54: =CD54/X54 -> 0.2427791807 | CF54: =IF(CE54>0,IF(CE54>=$DC$22,$DA$22,IF(CE54<$DC$28,$DA$23,0)),0) -> 0.5 | CG54: 32.14465093 | CH54: =IF(CG54>0,IF(CG54>=100,$F$26,IF(CG54<100,$F$26/2)),0) -> 0.5 | CI54: =SUM(DW54) -> 1 | CJ54: =IF(EA54>0,$F$28,0) -> 0 | CK54: =IF(DX54>0,$F$29,0) -> 1 | CL54: =IF(EC54>0,$F$30,0) -> 1 | CM54: =SUM(BY54,CB54,CH54,CC54,CF54,CI54,CJ54,CK54,CL54) -> 7 | CN54: =+CM54*$H$22 -> 2.333333333 | CO54: =SUM(AY54,BU54,CM54) -> 42.63666667 | CP54: =SUM(AZ54,BV54,CN54) -> 14.21222222 | CQ54: =IF(D54<($Z$13*1785),1,IF(D54<(($Z$14+$Z$13)*1785),2,IF(D54<(($Z$15+$Z$13+$Z$14)*1785),3,4))) -> 1 | CR54: =VLOOKUP(C54,Taul1!$F$6:$G$1718,2,FALSE) -> 2 | CX54: https://www.google.com/maps/@60.06760835,23.69263842,3a,75y,90t/data=!3m3!1e1!3m1!2e0 | DA54: 0 | DB54: 1 | DC54: 1 | DD54: =SUM(DA54:DC54) -> 2 | DE54: 2 | DF54: 0 | DG54: 0 | DH54: 5 | DI54: 1 | DJ54: 82 | DK54: 124 | DL54: 0 | DM54: 0 | DN54: 2 | DP54: 1010.857089 | DQ54: 6 | DR54: 0 | DS54: 5 | DT54: 483.3733488 | DU54: =+IF(AA54>$K$8,$F$27/2,0) -> 1 | DV54: =+IF(AA54/Y54>1.5,$F$27/2,0) -> 0 | DW54: =SUM(DU54:DV54) -> 1 | DX54: 1 | DY54: 0 | DZ54: 0 | EA54: =SUM(DY54:DZ54) -> 0 | EC54: 1 | ED54: 4 | EG54: 0
A55: 54_11_0 | B55: 1 | C55: =CONCATENATE(S55,"_",T55) -> 54_11 | D55: =RANK(CP55,$CP$37:$CP$1816) -> 19 | E55: 19 | F55: =E55-D55 -> 0 | G55: =CP55 -> 14.14467489 | H55: =AZ55 -> 5 | I55: =BV55 -> 6.978008222 | J55: =CN55 -> 2.166666667 | K55: =CQ55 -> 1 | L55: =B55-K55 -> 0 | M55: =HYPERLINK(CX55,"Gmaps") -> Gmaps | N55: =IF(Y55>$K$6,"LOPUT","VÄHÄ") -> LOPUT | O55: =IF(S55<40,"Valta",IF(S55<100,"Kanta",IF(S55<1000,"Seutu",IF(S55>999,"Yhdys")))) -> Kanta | P55: Lahdentie, Riihimäentie | Q55: Hausjärvi, Riihimäki | R55: Kanta-Häme | S55: 54 | T55: 11 | U55: 0 | V55: 11 | W55: 10712 | X55: 10712 | Y55: 5515.338592 | Z55: 634.0005601 | AA55: 6296.490198 | AB55: 5006 (57 %), 5053 (3 %), 5208 (28 %), 6903 (6 %), 10499 (6 %) | AC55: PK1 | AD55: PK1 (98 %) | AE55: 60 (4 %), 70 (16 %), 80 (50 %), 100 (30 %) | AF55: Is (100 %) | AG55: Asfalttibetoni (62 %), Kivimastiksiasfaltti (38 %) | AH55: 10 | AI55: 23 | AJ55: 0.02943254062 | AK55: 412.2618559 | AN55: Maantie (100 %) | AO55: 0.0674926597 | AR55: =+IF(Y55>=$K$6,$F$5,($F$5/($K$6))*Y55) -> 9 | AS55: 63 | AV55: =+IF(AS55>=$L$15,$J$15,IF(AS55<($L$15),AS55*($J$15/($L$15)),)) -> 3 | AW55: 8053 | AX55: =+IF(AW55>=$L$11,$J$11,IF(AW55<($L$11),AW55*($J$11/($L$11)),)) -> 3 | AY55: =SUM(AR55,AV55,AX55) -> 15 | AZ55: =+AY55*$H$5 -> 5 | BA55: =+IF(Z55=0,0,IF(Z55>$K$7,$F$9,($F$9/$K$7)*Z55)) -> 8 | BB55: =IF(DD55>0,$F$10,0) -> 2 | BC55: =IF(DE55>0,$F$11,0) -> 1 | BD55: =IF(DF55>0,$F$12,0) -> 1 | BE55: =IF(DG55>0,$F$13,0) -> 1 | BF55: =IF(DI55>0,$F$14,IF(DH55>0,$F$14/2,0)) -> 2 | BG55: =+IF(DJ55>=$L$19,$J$19,IF(DJ55<($L$19),DJ55*($J$19/($L$19)),)) -> 0.2733333333 | BH55: =+IF(DK55>=$L$20,$J$20,IF(DK55<($L$20),DK55*($J$20/($L$20)),)) -> 0.5 | BI55: =+IF(DL55>=$L$21,$J$21,IF(DL55<($L$21),DL55*($J$21/($L$21)),)) -> 0.2325 | BJ55: =+IF(DM55>=$L$22,$J$22,IF(DM55<($L$22),DM55*($J$22/($L$22)),)) -> 0 | BK55: =IF(DN55>0,$F$16,0) -> 0 | BL55: =+IF(DQ55>=$L$25,$J$25,IF(DQ55<($L$25),DQ55*($J$25/($L$25)),)) -> 2 | BM55: =IF(EG55>100000,$F$18,IF(EG55>0,$F$18/2,0)) -> 0 | BN55: =IF(ED55>0,$F$19,0) -> 2 | BO55: 4.34079 | BP55: 4.89469 | BQ55: 3.61026 | BR55: 2.65114 | BS55: 38.6194389 | BT55: =IF(COUNTIF($I$29:$L$29,TRUE)=0,0,IF(SUMIF($I$29:$L$29,TRUE,BO55:BR55)/COUNTIF($I$29:$L$29,TRUE)>=$L$30,$F$20/2,$F$20/2*(SUMIF($I$29:$L$29,TRUE,BO55:BR55)/COUNTIF($I$29:$L$29,TRUE)/$L$30)))+IF(BS55>=10,$F$20/2,IF(BS55<(10),BS55*($F$20/2/10))) -> 0.9281913333 | BU55: =SUM(BA55+BB55+BC55+BD55+BE55+BF55+BK55+BG55+BH55+BI55+BJ55+BL55+BM55+BN55+BT55) -> 20.93402467 | BV55: =+BU55*$H$9 -> 6.978008222 | BW55: 4285.880241 | BX55: =BW55/X55 -> 0.400100844 | BY55: =IF(BX55>0,IF(BX55>=$DC$28,$DA$28,IF(BX55<$DC$28,$DA$29,0)),0) -> 0.5 | BZ55: 10705.57022 | CA55: =BZ55/X55 -> 0.9993997591 | CB55: =IF(CA55,$F$23,0) -> 1 | CC55: =IF(DS55>0,$F$24,0) -> 1 | CD55: 2634.804187 | CE55: =CD55/X55 -> 0.2459675305 | CF55: =IF(CE55>0,IF(CE55>=$DC$22,$DA$22,IF(CE55<$DC$28,$DA$23,0)),0) -> 0.5 | CG55: 74.61725168 | CH55: =IF(CG55>0,IF(CG55>=100,$F$26,IF(CG55<100,$F$26/2)),0) -> 0.5 | CI55: =SUM(DW55) -> 1 | CJ55: =IF(EA55>0,$F$28,0) -> 0 | CK55: =IF(DX55>0,$F$29,0) -> 1 | CL55: =IF(EC55>0,$F$30,0) -> 1 | CM55: =SUM(BY55,CB55,CH55,CC55,CF55,CI55,CJ55,CK55,CL55) -> 6.5 | CN55: =+CM55*$H$22 -> 2.166666667 | CO55: =SUM(AY55,BU55,CM55) -> 42.43402467 | CP55: =SUM(AZ55,BV55,CN55) -> 14.14467489 | CQ55: =IF(D55<($Z$13*1785),1,IF(D55<(($Z$14+$Z$13)*1785),2,IF(D55<(($Z$15+$Z$13+$Z$14)*1785),3,4))) -> 1 | CR55: =VLOOKUP(C55,Taul1!$F$6:$G$1718,2,FALSE) -> 5 | CX55: https://www.google.com/maps/@60.7496555,24.72474215,3a,75y,90t/data=!3m3!1e1!3m1!2e0 | DA55: 0 | DB55: 0 | DC55: 12 | DD55: =SUM(DA55:DC55) -> 12 | DE55: 15 | DF55: 8 | DG55: 1 | DH55: 63 | DI55: 10 | DJ55: 164 | DK55: 124 | DL55: 465 | DM55: 0 | DN55: 0 | DP55: 4285.880241 | DQ55: 33 | DR55: 0 | DS55: 77 | DT55: 2634.804187 | DU55: =+IF(AA55>$K$8,$F$27/2,0) -> 1 | DV55: =+IF(AA55/Y55>1.5,$F$27/2,0) -> 0 | DW55: =SUM(DU55:DV55) -> 1 | DX55: 4 | DY55: 0 | DZ55: 0 | EA55: =SUM(DY55:DZ55) -> 0 | EC55: 1 | ED55: 16 | EG55: 0
A56: 1311_1_0 | B56: 1 | C56: =CONCATENATE(S56,"_",T56) -> 1311_1 | D56: =RANK(CP56,$CP$37:$CP$1816) -> 20 | E56: 20 | F56: =E56-D56 -> 0 | G56: =CP56 -> 14.033494 | H56: =AZ56 -> 5 | I56: =BV56 -> 6.033494003 | J56: =CN56 -> 3 | K56: =CQ56 -> 1 | L56: =B56-K56 -> 0 | M56: =HYPERLINK(CX56,"Gmaps") -> Gmaps | N56: =IF(Y56>$K$6,"LOPUT","VÄHÄ") -> LOPUT | O56: =IF(S56<40,"Valta",IF(S56<100,"Kanta",IF(S56<1000,"Seutu",IF(S56>999,"Yhdys")))) -> Yhdys | P56: Helsingintie, Siippoontie | Q56: Nurmijärvi | R56: Uusimaa | S56: 1311 | T56: 1 | U56: 0 | V56: 1 | W56: 2453 | X56: 2453 | Y56: 9695 | Z56: 369 | AA56: 9598 | AB56: 9695 (100 %) | AC56: PK2 | AD56: PK2 (100 %) | AE56: 50 (38 %), 70 (64 %) | AF56: Is (100 %) | AG56: Kivimastiksiasfaltti (100 %) | AH56: 5 | AI56: 9 | AJ56: 0.0866873065 | AK56: 94 | AN56: Katu (102 %) | AO56: 1 | AR56: =+IF(Y56>=$K$6,$F$5,($F$5/($K$6))*Y56) -> 9 | AS56: 447 | AV56: =+IF(AS56>=$L$15,$J$15,IF(AS56<($L$15),AS56*($J$15/($L$15)),)) -> 3 | AW56: 6232 | AX56: =+IF(AW56>=$L$11,$J$11,IF(AW56<($L$11),AW56*($J$11/($L$11)),)) -> 3 | AY56: =SUM(AR56,AV56,AX56) -> 15 | AZ56: =+AY56*$H$5 -> 5 | BA56: =+IF(Z56=0,0,IF(Z56>$K$7,$F$9,($F$9/$K$7)*Z56)) -> 8 | BB56: =IF(DD56>0,$F$10,0) -> 0 | BC56: =IF(DE56>0,$F$11,0) -> 1 | BD56: =IF(DF56>0,$F$12,0) -> 0 | BE56: =IF(DG56>0,$F$13,0) -> 0 | BF56: =IF(DI56>0,$F$14,IF(DH56>0,$F$14/2,0)) -> 2 | BG56: =+IF(DJ56>=$L$19,$J$19,IF(DJ56<($L$19),DJ56*($J$19/($L$19)),)) -> 0 | BH56: =+IF(DK56>=$L$20,$J$20,IF(DK56<($L$20),DK56*($J$20/($L$20)),)) -> 0.03 | BI56: =+IF(DL56>=$L$21,$J$21,IF(DL56<($L$21),DL56*($J$21/($L$21)),)) -> 0 | BJ56: =+IF(DM56>=$L$22,$J$22,IF(DM56<($L$22),DM56*($J$22/($L$22)),)) -> 0 | BK56: =IF(DN56>0,$F$16,0) -> 2 | BL56: =+IF(DQ56>=$L$25,$J$25,IF(DQ56<($L$25),DQ56*($J$25/($L$25)),)) -> 2 | BM56: =IF(EG56>100000,$F$18,IF(EG56>0,$F$18/2,0)) -> 1 | BN56: =IF(ED56>0,$F$19,0) -> 2 | BO56: 0.262119 | BP56: 0.198652 | BQ56: 0.308856 | BR56: 0.0275281 | BS56: 0.8965555183 | BT56: =IF(COUNTIF($I$29:$L$29,TRUE)=0,0,IF(SUMIF($I$29:$L$29,TRUE,BO56:BR56)/COUNTIF($I$29:$L$29,TRUE)>=$L$30,$F$20/2,$F$20/2*(SUMIF($I$29:$L$29,TRUE,BO56:BR56)/COUNTIF($I$29:$L$29,TRUE)/$L$30)))+IF(BS56>=10,$F$20/2,IF(BS56<(10),BS56*($F$20/2/10))) -> 0.07048200925 | BU56: =SUM(BA56+BB56+BC56+BD56+BE56+BF56+BK56+BG56+BH56+BI56+BJ56+BL56+BM56+BN56+BT56) -> 18.10048201 | BV56: =+BU56*$H$9 -> 6.033494003 | BW56: 2507.051755 | BX56: =BW56/X56 -> 1.022034959 | BY56: =IF(BX56>0,IF(BX56>=$DC$28,$DA$28,IF(BX56<$DC$28,$DA$29,0)),0) -> 1 | BZ56: 1398.678074 | CA56: =BZ56/X56 -> 0.5701908171 | CB56: =IF(CA56,$F$23,0) -> 1 | CC56: =IF(DS56>0,$F$24,0) -> 1 | CD56: 2281.790195 | CE56: =CD56/X56 -> 0.9302039117 | CF56: =IF(CE56>0,IF(CE56>=$DC$22,$DA$22,IF(CE56<$DC$28,$DA$23,0)),0) -> 1 | CG56: 726.7835304 | CH56: =IF(CG56>0,IF(CG56>=100,$F$26,IF(CG56<100,$F$26/2)),0) -> 1 | CI56: =SUM(DW56) -> 1 | CJ56: =IF(EA56>0,$F$28,0) -> 1 | CK56: =IF(DX56>0,$F$29,0) -> 1 | CL56: =IF(EC56>0,$F$30,0) -> 1 | CM56: =SUM(BY56,CB56,CH56,CC56,CF56,CI56,CJ56,CK56,CL56) -> 9 | CN56: =+CM56*$H$22 -> 3 | CO56: =SUM(AY56,BU56,CM56) -> 42.10048201 | CP56: =SUM(AZ56,BV56,CN56) -> 14.033494 | CQ56: =IF(D56<($Z$13*1785),1,IF(D56<(($Z$14+$Z$13)*1785),2,IF(D56<(($Z$15+$Z$13+$Z$14)*1785),3,4))) -> 1 | CR56: =VLOOKUP(C56,Taul1!$F$6:$G$1718,2,FALSE) -> 1 | CX56: https://www.google.com/maps/@60.45582215,24.84961446,3a,75y,90t/data=!3m3!1e1!3m1!2e0 | DA56: 0 | DB56: 0 | DC56: 0 | DD56: =SUM(DA56:DC56) -> 0 | DE56: 8 | DF56: 0 | DG56: 0 | DH56: 10 | DI56: 1 | DJ56: 0 | DK56: 6 | DL56: 0 | DM56: 0 | DN56: 2 | DP56: 2507.051755 | DQ56: 13 | DR56: 1 | DS56: 39 | DT56: 2281.790195 | DU56: =+IF(AA56>$K$8,$F$27/2,0) -> 1 | DV56: =+IF(AA56/Y56>1.5,$F$27/2,0) -> 0 | DW56: =SUM(DU56:DV56) -> 1 | DX56: 1 | DY56: 0 | DZ56: 1 | EA56: =SUM(DY56:DZ56) -> 1 | EC56: 1 | ED56: 5 | EG56: 100001
A57: 54_16_0 | B57: 1 | C57: =CONCATENATE(S57,"_",T57) -> 54_16 | D57: =RANK(CP57,$CP$37:$CP$1816) -> 21 | E57: 21 | F57: =E57-D57 -> 0 | G57: =CP57 -> 13.968 | H57: =AZ57 -> 4 | I57: =BV57 -> 7.634666667 | J57: =CN57 -> 2.333333333 | K57: =CQ57 -> 1 | L57: =B57-K57 -> 0 | M57: =HYPERLINK(CX57,"Gmaps") -> Gmaps | N57: =IF(Y57>$K$6,"LOPUT","VÄHÄ") -> LOPUT | O57: =IF(S57<40,"Valta",IF(S57<100,"Kanta",IF(S57<1000,"Seutu",IF(S57>999,"Yhdys")))) -> Kanta | P57: Riihimäentie | Q57: Kärkölä | R57: Päijät-Häme | S57: 54 | T57: 16 | U57: 0 | V57: 16 | W57: 6495 | X57: 6495 | Y57: 4222.770901 | Z57: 390.5445727 | AA57: 5268.75612 | AB57: 3690 (7 %), 4263 (93 %) | AC57: PK1 | AD57: PK1 (100 %) | AE57: 80 (10 %), 100 (90 %) | AF57: Is (100 %) | AG57: Asfalttibetoni (100 %) | AH57: 1 | AI57: 2 | AJ57: 0.01287001287 | AK57: 254.2808314 | AN57: Maantie (100 %) | AO57: 0 | AR57: =+IF(Y57>=$K$6,$F$5,($F$5/($K$6))*Y57) -> 9 | AS57: 0 | AV57: =+IF(AS57>=$L$15,$J$15,IF(AS57<($L$15),AS57*($J$15/($L$15)),)) -> 0 | AW57: 1689 | AX57: =+IF(AW57>=$L$11,$J$11,IF(AW57<($L$11),AW57*($J$11/($L$11)),)) -> 3 | AY57: =SUM(AR57,AV57,AX57) -> 12 | AZ57: =+AY57*$H$5 -> 4 | BA57: =+IF(Z57=0,0,IF(Z57>$K$7,$F$9,($F$9/$K$7)*Z57)) -> 8 | BB57: =IF(DD57>0,$F$10,0) -> 2 | BC57: =IF(DE57>0,$F$11,0) -> 1 | BD57: =IF(DF57>0,$F$12,0) -> 1 | BE57: =IF(DG57>0,$F$13,0) -> 0 | BF57: =IF(DI57>0,$F$14,IF(DH57>0,$F$14/2,0)) -> 2 | BG57: =+IF(DJ57>=$L$19,$J$19,IF(DJ57<($L$19),DJ57*($J$19/($L$19)),)) -> 0.5 | BH57: =+IF(DK57>=$L$20,$J$20,IF(DK57<($L$20),DK57*($J$20/($L$20)),)) -> 0.5 | BI57: =+IF(DL57>=$L$21,$J$21,IF(DL57<($L$21),DL57*($J$21/($L$21)),)) -> 0.404 | BJ57: =+IF(DM57>=$L$22,$J$22,IF(DM57<($L$22),DM57*($J$22/($L$22)),)) -> 0 | BK57: =IF(DN57>0,$F$16,0) -> 2 | BL57: =+IF(DQ57>=$L$25,$J$25,IF(DQ57<($L$25),DQ57*($J$25/($L$25)),)) -> 2 | BM57: =IF(EG57>100000,$F$18,IF(EG57>0,$F$18/2,0)) -> 0.5 | BN57: =IF(ED57>0,$F$19,0) -> 2 | BO57: 17.0093 | BP57: 32.3983 | BQ57: 28.5343 | BR57: 19.1375 | BS57: 55.83880621 | BT57: =IF(COUNTIF($I$29:$L$29,TRUE)=0,0,IF(SUMIF($I$29:$L$29,TRUE,BO57:BR57)/COUNTIF($I$29:$L$29,TRUE)>=$L$30,$F$20/2,$F$20/2*(SUMIF($I$29:$L$29,TRUE,BO57:BR57)/COUNTIF($I$29:$L$29,TRUE)/$L$30)))+IF(BS57>=10,$F$20/2,IF(BS57<(10),BS57*($F$20/2/10))) -> 1 | BU57: =SUM(BA57+BB57+BC57+BD57+BE57+BF57+BK57+BG57+BH57+BI57+BJ57+BL57+BM57+BN57+BT57) -> 22.904 | BV57: =+BU57*$H$9 -> 7.634666667 | BW57: 3753.688394 | BX57: =BW57/X57 -> 0.5779350876 | BY57: =IF(BX57>0,IF(BX57>=$DC$28,$DA$28,IF(BX57<$DC$28,$DA$29,0)),0) -> 1 | BZ57: 6480.865154 | CA57: =BZ57/X57 -> 0.9978237342 | CB57: =IF(CA57,$F$23,0) -> 1 | CC57: =IF(DS57>0,$F$24,0) -> 1 | CD57: 1431.272891 | CE57: =CD57/X57 -> 0.2203653411 | CF57: =IF(CE57>0,IF(CE57>=$DC$22,$DA$22,IF(CE57<$DC$28,$DA$23,0)),0) -> 0.5 | CG57: 45.14626636 | CH57: =IF(CG57>0,IF(CG57>=100,$F$26,IF(CG57<100,$F$26/2)),0) -> 0.5 | CI57: =SUM(DW57) -> 1 | CJ57: =IF(EA57>0,$F$28,0) -> 1 | CK57: =IF(DX57>0,$F$29,0) -> 0 | CL57: =IF(EC57>0,$F$30,0) -> 1 | CM57: =SUM(BY57,CB57,CH57,CC57,CF57,CI57,CJ57,CK57,CL57) -> 7 | CN57: =+CM57*$H$22 -> 2.333333333 | CO57: =SUM(AY57,BU57,CM57) -> 41.904 | CP57: =SUM(AZ57,BV57,CN57) -> 13.968 | CQ57: =IF(D57<($Z$13*1785),1,IF(D57<(($Z$14+$Z$13)*1785),2,IF(D57<(($Z$15+$Z$13+$Z$14)*1785),3,4))) -> 1 | CR57: =VLOOKUP(C57,Taul1!$F$6:$G$1718,2,FALSE) -> 2 | CX57: https://www.google.com/maps/@60.85157206,25.17286911,3a,75y,90t/data=!3m3!1e1!3m1!2e0 | DA57: 0 | DB57: 0 | DC57: 23 | DD57: =SUM(DA57:DC57) -> 23 | DE57: 7 | DF57: 13 | DG57: 0 | DH57: 30 | DI57: 2 | DJ57: 618 | DK57: 154 | DL57: 808 | DM57: 0 | DN57: 1 | DP57: 3753.688394 | DQ57: 7 | DR57: 1 | DS57: 7 | DT57: 1431.272891 | DU57: =+IF(AA57>$K$8,$F$27/2,0) -> 1 | DV57: =+IF(AA57/Y57>1.5,$F$27/2,0) -> 0 | DW57: =SUM(DU57:DV57) -> 1 | DX57: 0 | DY57: 0 | DZ57: 1 | EA57: =SUM(DY57:DZ57) -> 1 | EC57: 1 | ED57: 2 | EG57: 12161
A58: 51_8_0 | B58: 1 | C58: =CONCATENATE(S58,"_",T58) -> 51_8 | D58: =RANK(CP58,$CP$37:$CP$1816) -> 22 | E58: 22 | F58: =E58-D58 -> 0 | G58: =CP58 -> 13.9509199 | H58: =AZ58 -> 5 | I58: =BV58 -> 6.284253233 | J58: =CN58 -> 2.666666667 | K58: =CQ58 -> 1 | L58: =B58-K58 -> 0 | M58: =HYPERLINK(CX58,"Gmaps") -> Gmaps | N58: =IF(Y58>$K$6,"LOPUT","VÄHÄ") -> LOPUT | O58: =IF(S58<40,"Valta",IF(S58<100,"Kanta",IF(S58<1000,"Seutu",IF(S58>999,"Yhdys")))) -> Kanta | P58: Länsiväylä | Q58: Kirkkonummi | R58: Uusimaa | S58: 51 | T58: 8 | U58: 0 | V58: 8 | W58: 5930 | X58: 5930 | Y58: 26032 | Z58: 1234 | AA58: 28796 | AB58: 26032 (100 %) | AC58: PK1 | AD58: PK1 (100 %) | AE58: 80 (13 %), 100 (87 %) | AF58: Ise (100 %) | AG58: Asfalttibetoni (87 %), Kivimastiksiasfaltti (13 %) | AH58: 1 | AI58: 7 | AJ58: 0.1096121417 | AK58: 589 | AN58: Maantie (100 %) | AO58: 0 | AR58: =+IF(Y58>=$K$6,$F$5,($F$5/($K$6))*Y58) -> 9 | AS58: 820 | AV58: =+IF(AS58>=$L$15,$J$15,IF(AS58<($L$15),AS58*($J$15/($L$15)),)) -> 3 | AW58: 12592 | AX58: =+IF(AW58>=$L$11,$J$11,IF(AW58<($L$11),AW58*($J$11/($L$11)),)) -> 3 | AY58: =SUM(AR58,AV58,AX58) -> 15 | AZ58: =+AY58*$H$5 -> 5 | BA58: =+IF(Z58=0,0,IF(Z58>$K$7,$F$9,($F$9/$K$7)*Z58)) -> 8 | BB58: =IF(DD58>0,$F$10,0) -> 2 | BC58: =IF(DE58>0,$F$11,0) -> 1 | BD58: =IF(DF58>0,$F$12,0) -> 0 | BE58: =IF(DG58>0,$F$13,0) -> 0 | BF58: =IF(DI58>0,$F$14,IF(DH58>0,$F$14/2,0)) -> 2 | BG58: =+IF(DJ58>=$L$19,$J$19,IF(DJ58<($L$19),DJ58*($J$19/($L$19)),)) -> 0.2616666667 | BH58: =+IF(DK58>=$L$20,$J$20,IF(DK58<($L$20),DK58*($J$20/($L$20)),)) -> 0.5 | BI58: =+IF(DL58>=$L$21,$J$21,IF(DL58<($L$21),DL58*($J$21/($L$21)),)) -> 0 | BJ58: =+IF(DM58>=$L$22,$J$22,IF(DM58<($L$22),DM58*($J$22/($L$22)),)) -> 0 | BK58: =IF(DN58>0,$F$16,0) -> 0 | BL58: =+IF(DQ58>=$L$25,$J$25,IF(DQ58<($L$25),DQ58*($J$25/($L$25)),)) -> 2 | BM58: =IF(EG58>100000,$F$18,IF(EG58>0,$F$18/2,0)) -> 0.5 | BN58: =IF(ED58>0,$F$19,0) -> 2 | BO58: 1.02523 | BP58: 1.13555 | BQ58: 0.572011 | BR58: 0.118312 | BS58: 10.91448562 | BT58: =IF(COUNTIF($I$29:$L$29,TRUE)=0,0,IF(SUMIF($I$29:$L$29,TRUE,BO58:BR58)/COUNTIF($I$29:$L$29,TRUE)>=$L$30,$F$20/2,$F$20/2*(SUMIF($I$29:$L$29,TRUE,BO58:BR58)/COUNTIF($I$29:$L$29,TRUE)/$L$30)))+IF(BS58>=10,$F$20/2,IF(BS58<(10),BS58*($F$20/2/10))) -> 0.5910930333 | BU58: =SUM(BA58+BB58+BC58+BD58+BE58+BF58+BK58+BG58+BH58+BI58+BJ58+BL58+BM58+BN58+BT58) -> 18.8527597 | BV58: =+BU58*$H$9 -> 6.284253233 | BW58: 5244.606552 | BX58: =BW58/X58 -> 0.8844193174 | BY58: =IF(BX58>0,IF(BX58>=$DC$28,$DA$28,IF(BX58<$DC$28,$DA$29,0)),0) -> 1 | BZ58: 4323.927714 | CA58: =BZ58/X58 -> 0.7291615032 | CB58: =IF(CA58,$F$23,0) -> 1 | CC58: =IF(DS58>0,$F$24,0) -> 1 | CD58: 3595.981726 | CE58: =CD58/X58 -> 0.6064050129 | CF58: =IF(CE58>0,IF(CE58>=$DC$22,$DA$22,IF(CE58<$DC$28,$DA$23,0)),0) -> 1 | CG58: 367.4013491 | CH58: =IF(CG58>0,IF(CG58>=100,$F$26,IF(CG58<100,$F$26/2)),0) -> 1 | CI58: =SUM(DW58) -> 1 | CJ58: =IF(EA58>0,$F$28,0) -> 0 | CK58: =IF(DX58>0,$F$29,0) -> 1 | CL58: =IF(EC58>0,$F$30,0) -> 1 | CM58: =SUM(BY58,CB58,CH58,CC58,CF58,CI58,CJ58,CK58,CL58) -> 8 | CN58: =+CM58*$H$22 -> 2.666666667 | CO58: =SUM(AY58,BU58,CM58) -> 41.8527597 | CP58: =SUM(AZ58,BV58,CN58) -> 13.9509199 | CQ58: =IF(D58<($Z$13*1785),1,IF(D58<(($Z$14+$Z$13)*1785),2,IF(D58<(($Z$15+$Z$13+$Z$14)*1785),3,4))) -> 1 | CR58: =VLOOKUP(C58,Taul1!$F$6:$G$1718,2,FALSE) -> 1 | CX58: https://www.google.com/maps/@60.13786427,24.53488695,3a,75y,90t/data=!3m3!1e1!3m1!2e0 | DA58: 0 | DB58: 1 | DC58: 0 | DD58: =SUM(DA58:DC58) -> 1 | DE58: 2 | DF58: 0 | DG58: 0 | DH58: 12 | DI58: 2 | DJ58: 157 | DK58: 102 | DL58: 0 | DM58: 0 | DN58: 0 | DP58: 5244.606552 | DQ58: 18 | DR58: 1 | DS58: 4 | DT58: 3595.981726 | DU58: =+IF(AA58>$K$8,$F$27/2,0) -> 1 | DV58: =+IF(AA58/Y58>1.5,$F$27/2,0) -> 0 | DW58: =SUM(DU58:DV58) -> 1 | DX58: 6 | DY58: 0 | DZ58: 0 | EA58: =SUM(DY58:DZ58) -> 0 | EC58: 1 | ED58: 2 | EG58: 10747
A59: 296_2_0 | B59: 1 | C59: =CONCATENATE(S59,"_",T59) -> 296_2 | D59: =RANK(CP59,$CP$37:$CP$1816) -> 23 | E59: 23 | F59: =E59-D59 -> 0 | G59: =CP59 -> 13.91304637 | H59: =AZ59 -> 5 | I59: =BV59 -> 6.246379708 | J59: =CN59 -> 2.666666667 | K59: =CQ59 -> 1 | L59: =B59-K59 -> 0 | M59: =HYPERLINK(CX59,"Gmaps") -> Gmaps | N59: =IF(Y59>$K$6,"LOPUT","VÄHÄ") -> LOPUT | O59: =IF(S59<40,"Valta",IF(S59<100,"Kanta",IF(S59<1000,"Seutu",IF(S59>999,"Yhdys")))) -> Seutu | P59: Uusi Orimattilantie | Q59: Lahti | R59: Päijät-Häme | S59: 296 | T59: 2 | U59: 0 | V59: 2 | W59: 1930 | X59: 1930 | Y59: 10692 | Z59: 476 | AA59: 11761 | AB59: 10692 (100 %) | AC59: PK2 | AD59: PK2 (99 %) | AE59: 60 (101 %) | AF59: Ise (100 %) | AG59: Asfalttibetoni (16 %), Kivimastiksiasfaltti (85 %) | AH59: 1 | AI59: 8 | AJ59: 0.09171779141 | AK59: 165 | AN59: Maantie tai katu (101 %) | AO59: 0.1982589878 | AR59: =+IF(Y59>=$K$6,$F$5,($F$5/($K$6))*Y59) -> 9 | AS59: 239 | AV59: =+IF(AS59>=$L$15,$J$15,IF(AS59<($L$15),AS59*($J$15/($L$15)),)) -> 3 | AW59: 3885 | AX59: =+IF(AW59>=$L$11,$J$11,IF(AW59<($L$11),AW59*($J$11/($L$11)),)) -> 3 | AY59: =SUM(AR59,AV59,AX59) -> 15 | AZ59: =+AY59*$H$5 -> 5 | BA59: =+IF(Z59=0,0,IF(Z59>$K$7,$F$9,($F$9/$K$7)*Z59)) -> 8 | BB59: =IF(DD59>0,$F$10,0) -> 2 | BC59: =IF(DE59>0,$F$11,0) -> 0 | BD59: =IF(DF59>0,$F$12,0) -> 1 | BE59: =IF(DG59>0,$F$13,0) -> 0 | BF59: =IF(DI59>0,$F$14,IF(DH59>0,$F$14/2,0)) -> 1 | BG59: =+IF(DJ59>=$L$19,$J$19,IF(DJ59<($L$19),DJ59*($J$19/($L$19)),)) -> 0.09333333333 | BH59: =+IF(DK59>=$L$20,$J$20,IF(DK59<($L$20),DK59*($J$20/($L$20)),)) -> 0 | BI59: =+IF(DL59>=$L$21,$J$21,IF(DL59<($L$21),DL59*($J$21/($L$21)),)) -> 0 | BJ59: =+IF(DM59>=$L$22,$J$22,IF(DM59<($L$22),DM59*($J$22/($L$22)),)) -> 0 | BK59: =IF(DN59>0,$F$16,0) -> 2 | BL59: =+IF(DQ59>=$L$25,$J$25,IF(DQ59<($L$25),DQ59*($J$25/($L$25)),)) -> 2 | BM59: =IF(EG59>100000,$F$18,IF(EG59>0,$F$18/2,0)) -> 0.5 | BN59: =IF(ED59>0,$F$19,0) -> 2 | BO59: 0.710775 | BP59: 0.570065 | BQ59: 0.432819 | BR59: 0.2691 | BS59: 1.773676475 | BT59: =IF(COUNTIF($I$29:$L$29,TRUE)=0,0,IF(SUMIF($I$29:$L$29,TRUE,BO59:BR59)/COUNTIF($I$29:$L$29,TRUE)>=$L$30,$F$20/2,$F$20/2*(SUMIF($I$29:$L$29,TRUE,BO59:BR59)/COUNTIF($I$29:$L$29,TRUE)/$L$30)))+IF(BS59>=10,$F$20/2,IF(BS59<(10),BS59*($F$20/2/10))) -> 0.1458057904 | BU59: =SUM(BA59+BB59+BC59+BD59+BE59+BF59+BK59+BG59+BH59+BI59+BJ59+BL59+BM59+BN59+BT59) -> 18.73913912 | BV59: =+BU59*$H$9 -> 6.246379708 | BW59: 1944.477046 | BX59: =BW59/X59 -> 1.00750106 | BY59: =IF(BX59>0,IF(BX59>=$DC$28,$DA$28,IF(BX59<$DC$28,$DA$29,0)),0) -> 1 | BZ59: 1944.477046 | CA59: =BZ59/X59 -> 1.00750106 | CB59: =IF(CA59,$F$23,0) -> 1 | CC59: =IF(DS59>0,$F$24,0) -> 1 | CD59: 1864.903573 | CE59: =CD59/X59 -> 0.9662712814 | CF59: =IF(CE59>0,IF(CE59>=$DC$22,$DA$22,IF(CE59<$DC$28,$DA$23,0)),0) -> 1 | CG59: 147.0777202 | CH59: =IF(CG59>0,IF(CG59>=100,$F$26,IF(CG59<100,$F$26/2)),0) -> 1 | CI59: =SUM(DW59) -> 1 | CJ59: =IF(EA59>0,$F$28,0) -> 0 | CK59: =IF(DX59>0,$F$29,0) -> 1 | CL59: =IF(EC59>0,$F$30,0) -> 1 | CM59: =SUM(BY59,CB59,CH59,CC59,CF59,CI59,CJ59,CK59,CL59) -> 8 | CN59: =+CM59*$H$22 -> 2.666666667 | CO59: =SUM(AY59,BU59,CM59) -> 41.73913912 | CP59: =SUM(AZ59,BV59,CN59) -> 13.91304637 | CQ59: =IF(D59<($Z$13*1785),1,IF(D59<(($Z$14+$Z$13)*1785),2,IF(D59<(($Z$15+$Z$13+$Z$14)*1785),3,4))) -> 1 | CR59: =VLOOKUP(C59,Taul1!$F$6:$G$1718,2,FALSE) -> 1 | CX59: https://www.google.com/maps/@60.94578496,25.60510961,3a,75y,90t/data=!3m3!1e1!3m1!2e0 | DA59: 0 | DB59: 0 | DC59: 2 | DD59: =SUM(DA59:DC59) -> 2 | DE59: 0 | DF59: 1 | DG59: 0 | DH59: 3 | DI59: 0 | DJ59: 56 | DK59: 0 | DL59: 0 | DM59: 0 | DN59: 2 | DP59: 1944.477046 | DQ59: 3 | DR59: 1 | DS59: 40 | DT59: 1864.903573 | DU59: =+IF(AA59>$K$8,$F$27/2,0) -> 1 | DV59: =+IF(AA59/Y59>1.5,$F$27/2,0) -> 0 | DW59: =SUM(DU59:DV59) -> 1 | DX59: 1 | DY59: 0 | DZ59: 0 | EA59: =SUM(DY59:DZ59) -> 0 | EC59: 1 | ED59: 1 | EG59: 16490
A60: 363_1_0 | B60: 1 | C60: =CONCATENATE(S60,"_",T60) -> 363_1 | D60: =RANK(CP60,$CP$37:$CP$1816) -> 24 | E60: 24 | F60: =E60-D60 -> 0 | G60: =CP60 -> 13.89333333 | H60: =AZ60 -> 5 | I60: =BV60 -> 6.56 | J60: =CN60 -> 2.333333333 | K60: =CQ60 -> 1 | L60: =B60-K60 -> 0 | M60: =HYPERLINK(CX60,"Gmaps") -> Gmaps | N60: =IF(Y60>$K$6,"LOPUT","VÄHÄ") -> LOPUT | O60: =IF(S60<40,"Valta",IF(S60<100,"Kanta",IF(S60<1000,"Seutu",IF(S60>999,"Yhdys")))) -> Seutu | P60: Vuolenkoskentie | Q60: Heinola | R60: Päijät-Häme | S60: 363 | T60: 1 | U60: 0 | V60: 1 | W60: 3090 | X60: 3090 | Y60: 2797.614887 | Z60: 200.3932039 | AA60: 3318.286408 | AB60: 2717 (62 %), 2929 (38 %) | AC60: PK2 | AD60: PK2 (100 %) | AE60: 60 (100 %) | AF60: Ib (100 %) | AG60: Asfalttibetoni (100 %) | AH60: 0 | AI60: 1 | AJ60: 0.02906976744 | AK60: 59.5631068 | AN60: Maantie tai katu (100 %) | AO60: 0.986870552 | AR60: =+IF(Y60>=$K$6,$F$5,($F$5/($K$6))*Y60) -> 9 | AS60: 316 | AV60: =+IF(AS60>=$L$15,$J$15,IF(AS60<($L$15),AS60*($J$15/($L$15)),)) -> 3 | AW60: 755 | AX60: =+IF(AW60>=$L$11,$J$11,IF(AW60<($L$11),AW60*($J$11/($L$11)),)) -> 3 | AY60: =SUM(AR60,AV60,AX60) -> 15 | AZ60: =+AY60*$H$5 -> 5 | BA60: =+IF(Z60=0,0,IF(Z60>$K$7,$F$9,($F$9/$K$7)*Z60)) -> 8 | BB60: =IF(DD60>0,$F$10,0) -> 2 | BC60: =IF(DE60>0,$F$11,0) -> 0 | BD60: =IF(DF60>0,$F$12,0) -> 1 | BE60: =IF(DG60>0,$F$13,0) -> 1 | BF60: =IF(DI60>0,$F$14,IF(DH60>0,$F$14/2,0)) -> 2 | BG60: =+IF(DJ60>=$L$19,$J$19,IF(DJ60<($L$19),DJ60*($J$19/($L$19)),)) -> 0.5 | BH60: =+IF(DK60>=$L$20,$J$20,IF(DK60<($L$20),DK60*($J$20/($L$20)),)) -> 0.18 | BI60: =+IF(DL60>=$L$21,$J$21,IF(DL60<($L$21),DL60*($J$21/($L$21)),)) -> 0 | BJ60: =+IF(DM60>=$L$22,$J$22,IF(DM60<($L$22),DM60*($J$22/($L$22)),)) -> 0 | BK60: =IF(DN60>0,$F$16,0) -> 0 | BL60: =+IF(DQ60>=$L$25,$J$25,IF(DQ60<($L$25),DQ60*($J$25/($L$25)),)) -> 2 | BM60: =IF(EG60>100000,$F$18,IF(EG60>0,$F$18/2,0)) -> 0 | BN60: =IF(ED60>0,$F$19,0) -> 2 | BO60: 4.22898 | BP60: 7.90163 | BQ60: 4.91164 | BR60: 3.88296 | BS60: 22.74440271 | BT60: =IF(COUNTIF($I$29:$L$29,TRUE)=0,0,IF(SUMIF($I$29:$L$29,TRUE,BO60:BR60)/COUNTIF($I$29:$L$29,TRUE)>=$L$30,$F$20/2,$F$20/2*(SUMIF($I$29:$L$29,TRUE,BO60:BR60)/COUNTIF($I$29:$L$29,TRUE)/$L$30)))+IF(BS60>=10,$F$20/2,IF(BS60<(10),BS60*($F$20/2/10))) -> 1 | BU60: =SUM(BA60+BB60+BC60+BD60+BE60+BF60+BK60+BG60+BH60+BI60+BJ60+BL60+BM60+BN60+BT60) -> 19.68 | BV60: =+BU60*$H$9 -> 6.56 | BW60: 0 | BX60: =BW60/X60 -> 0 | BY60: =IF(BX60>0,IF(BX60>=$DC$28,$DA$28,IF(BX60<$DC$28,$DA$29,0)),0) -> 0 | BZ60: 3083.195613 | CA60: =BZ60/X60 -> 0.9977979329 | CB60: =IF(CA60,$F$23,0) -> 1 | CC60: =IF(DS60>0,$F$24,0) -> 1 | CD60: 1193.609521 | CE60: =CD60/X60 -> 0.3862813985 | CF60: =IF(CE60>0,IF(CE60>=$DC$22,$DA$22,IF(CE60<$DC$28,$DA$23,0)),0) -> 0.5 | CG60: 26.99029126 | CH60: =IF(CG60>0,IF(CG60>=100,$F$26,IF(CG60<100,$F$26/2)),0) -> 0.5 | CI60: =SUM(DW60) -> 1 | CJ60: =IF(EA60>0,$F$28,0) -> 1 | CK60: =IF(DX60>0,$F$29,0) -> 1 | CL60: =IF(EC60>0,$F$30,0) -> 1 | CM60: =SUM(BY60,CB60,CH60,CC60,CF60,CI60,CJ60,CK60,CL60) -> 7 | CN60: =+CM60*$H$22 -> 2.333333333 | CO60: =SUM(AY60,BU60,CM60) -> 41.68 | CP60: =SUM(AZ60,BV60,CN60) -> 13.89333333 | CQ60: =IF(D60<($Z$13*1785),1,IF(D60<(($Z$14+$Z$13)*1785),2,IF(D60<(($Z$15+$Z$13+$Z$14)*1785),3,4))) -> 1 | CR60: =VLOOKUP(C60,Taul1!$F$6:$G$1718,2,FALSE) -> 2 | CX60: https://www.google.com/maps/@61.10816176,25.93520524,3a,75y,90t/data=!3m3!1e1!3m1!2e0 | DA60: 0 | DB60: 0 | DC60: 2 | DD60: =SUM(DA60:DC60) -> 2 | DE60: 0 | DF60: 3 | DG60: 1 | DH60: 9 | DI60: 1 | DJ60: 491 | DK60: 36 | DL60: 0 | DM60: 0 | DN60: 0 | DP60: 0 | DQ60: 11 | DR60: 0 | DS60: 2 | DT60: 1193.609521 | DU60: =+IF(AA60>$K$8,$F$27/2,0) -> 1 | DV60: =+IF(AA60/Y60>1.5,$F$27/2,0) -> 0 | DW60: =SUM(DU60:DV60) -> 1 | DX60: 1 | DY60: 0 | DZ60: 1 | EA60: =SUM(DY60:DZ60) -> 1 | EC60: 1 | ED60: 1 | EG60: 0
A61: 1452_1_0 | B61: 1 | C61: =CONCATENATE(S61,"_",T61) -> 1452_1 | D61: =RANK(CP61,$CP$37:$CP$1816) -> 25 | E61: 25 | F61: =E61-D61 -> 0 | G61: =CP61 -> 13.89319922 | H61: =AZ61 -> 4.925 | I61: =BV61 -> 6.30153255 | J61: =CN61 -> 2.666666667 | K61: =CQ61 -> 1 | L61: =B61-K61 -> 0 | M61: =HYPERLINK(CX61,"Gmaps") -> Gmaps | N61: =IF(Y61>$K$6,"LOPUT","VÄHÄ") -> LOPUT | O61: =IF(S61<40,"Valta",IF(S61<100,"Kanta",IF(S61<1000,"Seutu",IF(S61>999,"Yhdys")))) -> Yhdys | P61: Kartanoväylä, Vähänummentie | Q61: Järvenpää | R61: Uusimaa | S61: 1452 | T61: 1 | U61: 0 | V61: 1 | W61: 3610 | X61: 3610 | Y61: 8542.861496 | Z61: 502.9556787 | AA61: 8455.750693 | AB61: 7732 (30 %), 8889 (70 %) | AC61: PK2 | AD61: PK2 (100 %) | AE61: 50 (25 %), 60 (75 %) | AF61: Is (100 %) | AG61: Asfalttibetoni (1 %), Kivimastiksiasfaltti (95 %) | AH61: 4 | AI61: 16 | AJ61: 0.002082032063 | AK61: 167.3573407 | AN61: Maantie (100 %) | AO61: 0.7734261881 | AR61: =+IF(Y61>=$K$6,$F$5,($F$5/($K$6))*Y61) -> 9 | AS61: 37 | AV61: =+IF(AS61>=$L$15,$J$15,IF(AS61<($L$15),AS61*($J$15/($L$15)),)) -> 2.775 | AW61: 8287 | AX61: =+IF(AW61>=$L$11,$J$11,IF(AW61<($L$11),AW61*($J$11/($L$11)),)) -> 3 | AY61: =SUM(AR61,AV61,AX61) -> 14.775 | AZ61: =+AY61*$H$5 -> 4.925 | BA61: =+IF(Z61=0,0,IF(Z61>$K$7,$F$9,($F$9/$K$7)*Z61)) -> 8 | BB61: =IF(DD61>0,$F$10,0) -> 0 | BC61: =IF(DE61>0,$F$11,0) -> 1 | BD61: =IF(DF61>0,$F$12,0) -> 1 | BE61: =IF(DG61>0,$F$13,0) -> 0 | BF61: =IF(DI61>0,$F$14,IF(DH61>0,$F$14/2,0)) -> 2 | BG61: =+IF(DJ61>=$L$19,$J$19,IF(DJ61<($L$19),DJ61*($J$19/($L$19)),)) -> 0.09833333333 | BH61: =+IF(DK61>=$L$20,$J$20,IF(DK61<($L$20),DK61*($J$20/($L$20)),)) -> 0.255 | BI61: =+IF(DL61>=$L$21,$J$21,IF(DL61<($L$21),DL61*($J$21/($L$21)),)) -> 0 | BJ61: =+IF(DM61>=$L$22,$J$22,IF(DM61<($L$22),DM61*($J$22/($L$22)),)) -> 0 | BK61: =IF(DN61>0,$F$16,0) -> 2 | BL61: =+IF(DQ61>=$L$25,$J$25,IF(DQ61<($L$25),DQ61*($J$25/($L$25)),)) -> 2 | BM61: =IF(EG61>100000,$F$18,IF(EG61>0,$F$18/2,0)) -> 0.5 | BN61: =IF(ED61>0,$F$19,0) -> 2 | BO61: 0.234437 | BP61: 0.402219 | BQ61: 0.278348 | BR61: 0.286593 | BS61: 0.4152836534 | BT61: =IF(COUNTIF($I$29:$L$29,TRUE)=0,0,IF(SUMIF($I$29:$L$29,TRUE,BO61:BR61)/COUNTIF($I$29:$L$29,TRUE)>=$L$30,$F$20/2,$F$20/2*(SUMIF($I$29:$L$29,TRUE,BO61:BR61)/COUNTIF($I$29:$L$29,TRUE)/$L$30)))+IF(BS61>=10,$F$20/2,IF(BS61<(10),BS61*($F$20/2/10))) -> 0.051264316 | BU61: =SUM(BA61+BB61+BC61+BD61+BE61+BF61+BK61+BG61+BH61+BI61+BJ61+BL61+BM61+BN61+BT61) -> 18.90459765 | BV61: =+BU61*$H$9 -> 6.30153255 | BW61: 3602.617065 | BX61: =BW61/X61 -> 0.9979548658 | BY61: =IF(BX61>0,IF(BX61>=$DC$28,$DA$28,IF(BX61<$DC$28,$DA$29,0)),0) -> 1 | BZ61: 3602.617065 | CA61: =BZ61/X61 -> 0.9979548658 | CB61: =IF(CA61,$F$23,0) -> 1 | CC61: =IF(DS61>0,$F$24,0) -> 1 | CD61: 3127.760905 | CE61: =CD61/X61 -> 0.8664157632 | CF61: =IF(CE61>0,IF(CE61>=$DC$22,$DA$22,IF(CE61<$DC$28,$DA$23,0)),0) -> 1 | CG61: 378.0166205 | CH61: =IF(CG61>0,IF(CG61>=100,$F$26,IF(CG61<100,$F$26/2)),0) -> 1 | CI61: =SUM(DW61) -> 1 | CJ61: =IF(EA61>0,$F$28,0) -> 0 | CK61: =IF(DX61>0,$F$29,0) -> 1 | CL61: =IF(EC61>0,$F$30,0) -> 1 | CM61: =SUM(BY61,CB61,CH61,CC61,CF61,CI61,CJ61,CK61,CL61) -> 8 | CN61: =+CM61*$H$22 -> 2.666666667 | CO61: =SUM(AY61,BU61,CM61) -> 41.67959765 | CP61: =SUM(AZ61,BV61,CN61) -> 13.89319922 | CQ61: =IF(D61<($Z$13*1785),1,IF(D61<(($Z$14+$Z$13)*1785),2,IF(D61<(($Z$15+$Z$13+$Z$14)*1785),3,4))) -> 1 | CR61: =VLOOKUP(C61,Taul1!$F$6:$G$1718,2,FALSE) -> 2 | CX61: https://www.google.com/maps/@60.49441406,25.15185996,3a,75y,90t/data=!3m3!1e1!3m1!2e0 | DA61: 0 | DB61: 0 | DC61: 0 | DD61: =SUM(DA61:DC61) -> 0 | DE61: 12 | DF61: 1 | DG61: 0 | DH61: 32 | DI61: 6 | DJ61: 59 | DK61: 51 | DL61: 0 | DM61: 0 | DN61: 4 | DP61: 3602.617065 | DQ61: 32 | DR61: 1 | DS61: 22 | DT61: 3127.760905 | DU61: =+IF(AA61>$K$8,$F$27/2,0) -> 1 | DV61: =+IF(AA61/Y61>1.5,$F$27/2,0) -> 0 | DW61: =SUM(DU61:DV61) -> 1 | DX61: 1 | DY61: 0 | DZ61: 0 | EA61: =SUM(DY61:DZ61) -> 0 | EC61: 1 | ED61: 6 | EG61: 42272
A62: 10_17_0 | B62: 1 | C62: =CONCATENATE(S62,"_",T62) -> 10_17 | D62: =RANK(CP62,$CP$37:$CP$1816) -> 26 | E62: 26 | F62: =E62-D62 -> 0 | G62: =CP62 -> 13.81388889 | H62: =AZ62 -> 4.275 | I62: =BV62 -> 7.205555556 | J62: =CN62 -> 2.333333333 | K62: =CQ62 -> 1 | L62: =B62-K62 -> 0 | M62: =HYPERLINK(CX62,"Gmaps") -> Gmaps | N62: =IF(Y62>$K$6,"LOPUT","VÄHÄ") -> LOPUT | O62: =IF(S62<40,"Valta",IF(S62<100,"Kanta",IF(S62<1000,"Seutu",IF(S62>999,"Yhdys")))) -> Valta | P62: Valtatie 10 | Q62: Forssa, Tammela | R62: Kanta-Häme | S62: 10 | T62: 17 | U62: 0 | V62: 17 | W62: 6533 | X62: 6533 | Y62: 4775.192102 | Z62: 636.0078065 | AA62: 5875.440839 | AB62: 4414 (78 %), 6028 (22 %) | AC62: PK1 | AD62: PK1 (99 %) | AE62: 60 (12 %), 80 (61 %), 100 (27 %) | AF62: Is (100 %) | AG62: Asfalttibetoni (52 %), Kivimastiksiasfaltti (48 %) | AH62: 3 | AI62: 7 | AJ62: 0 | AK62: 480.0907699 | AN62: Maantie (99 %) | AO62: 0 | AR62: =+IF(Y62>=$K$6,$F$5,($F$5/($K$6))*Y62) -> 9 | AS62: 11 | AV62: =+IF(AS62>=$L$15,$J$15,IF(AS62<($L$15),AS62*($J$15/($L$15)),)) -> 0.825 | AW62: 2678 | AX62: =+IF(AW62>=$L$11,$J$11,IF(AW62<($L$11),AW62*($J$11/($L$11)),)) -> 3 | AY62: =SUM(AR62,AV62,AX62) -> 12.825 | AZ62: =+AY62*$H$5 -> 4.275 | BA62: =+IF(Z62=0,0,IF(Z62>$K$7,$F$9,($F$9/$K$7)*Z62)) -> 8 | BB62: =IF(DD62>0,$F$10,0) -> 2 | BC62: =IF(DE62>0,$F$11,0) -> 1 | BD62: =IF(DF62>0,$F$12,0) -> 1 | BE62: =IF(DG62>0,$F$13,0) -> 1 | BF62: =IF(DI62>0,$F$14,IF(DH62>0,$F$14/2,0)) -> 1 | BG62: =+IF(DJ62>=$L$19,$J$19,IF(DJ62<($L$19),DJ62*($J$19/($L$19)),)) -> 0.09166666667 | BH62: =+IF(DK62>=$L$20,$J$20,IF(DK62<($L$20),DK62*($J$20/($L$20)),)) -> 0.025 | BI62: =+IF(DL62>=$L$21,$J$21,IF(DL62<($L$21),DL62*($J$21/($L$21)),)) -> 0.5 | BJ62: =+IF(DM62>=$L$22,$J$22,IF(DM62<($L$22),DM62*($J$22/($L$22)),)) -> 0 | BK62: =IF(DN62>0,$F$16,0) -> 2 | BL62: =+IF(DQ62>=$L$25,$J$25,IF(DQ62<($L$25),DQ62*($J$25/($L$25)),)) -> 2 | BM62: =IF(EG62>100000,$F$18,IF(EG62>0,$F$18/2,0)) -> 0 | BN62: =IF(ED62>0,$F$19,0) -> 2 | BO62: 16.04 | BP62: 21.4473 | BQ62: 15.4163 | BR62: 6.06521 | BS62: 28.68262916 | BT62: =IF(COUNTIF($I$29:$L$29,TRUE)=0,0,IF(SUMIF($I$29:$L$29,TRUE,BO62:BR62)/COUNTIF($I$29:$L$29,TRUE)>=$L$30,$F$20/2,$F$20/2*(SUMIF($I$29:$L$29,TRUE,BO62:BR62)/COUNTIF($I$29:$L$29,TRUE)/$L$30)))+IF(BS62>=10,$F$20/2,IF(BS62<(10),BS62*($F$20/2/10))) -> 1 | BU62: =SUM(BA62+BB62+BC62+BD62+BE62+BF62+BK62+BG62+BH62+BI62+BJ62+BL62+BM62+BN62+BT62) -> 21.61666667 | BV62: =+BU62*$H$9 -> 7.205555556 | BW62: 4203.866934 | BX62: =BW62/X62 -> 0.6434818512 | BY62: =IF(BX62>0,IF(BX62>=$DC$28,$DA$28,IF(BX62<$DC$28,$DA$29,0)),0) -> 1 | BZ62: 6525.309618 | CA62: =BZ62/X62 -> 0.9988228406 | CB62: =IF(CA62,$F$23,0) -> 1 | CC62: =IF(DS62>0,$F$24,0) -> 1 | CD62: 4274.649295 | CE62: =CD62/X62 -> 0.6543164389 | CF62: =IF(CE62>0,IF(CE62>=$DC$22,$DA$22,IF(CE62<$DC$28,$DA$23,0)),0) -> 1 | CG62: 167.5518139 | CH62: =IF(CG62>0,IF(CG62>=100,$F$26,IF(CG62<100,$F$26/2)),0) -> 1 | CI62: =SUM(DW62) -> 1 | CJ62: =IF(EA62>0,$F$28,0) -> 0 | CK62: =IF(DX62>0,$F$29,0) -> 0 | CL62: =IF(EC62>0,$F$30,0) -> 1 | CM62: =SUM(BY62,CB62,CH62,CC62,CF62,CI62,CJ62,CK62,CL62) -> 7 | CN62: =+CM62*$H$22 -> 2.333333333 | CO62: =SUM(AY62,BU62,CM62) -> 41.44166667 | CP62: =SUM(AZ62,BV62,CN62) -> 13.81388889 | CQ62: =IF(D62<($Z$13*1785),1,IF(D62<(($Z$14+$Z$13)*1785),2,IF(D62<(($Z$15+$Z$13+$Z$14)*1785),3,4))) -> 1 | CR62: =VLOOKUP(C62,Taul1!$F$6:$G$1718,2,FALSE) -> 2 | CX62: https://www.google.com/maps/@60.82571438,23.59731282,3a,75y,90t/data=!3m3!1e1!3m1!2e0 | DA62: 0 | DB62: 0 | DC62: 34 | DD62: =SUM(DA62:DC62) -> 34 | DE62: 3 | DF62: 1 | DG62: 1 | DH62: 13 | DI62: 0 | DJ62: 55 | DK62: 5 | DL62: 1851 | DM62: 0 | DN62: 1 | DP62: 4203.866934 | DQ62: 7 | DR62: 0 | DS62: 18 | DT62: 4274.649295 | DU62: =+IF(AA62>$K$8,$F$27/2,0) -> 1 | DV62: =+IF(AA62/Y62>1.5,$F$27/2,0) -> 0 | DW62: =SUM(DU62:DV62) -> 1 | DX62: 0 | DY62: 0 | DZ62: 0 | EA62: =SUM(DY62:DZ62) -> 0 | EC62: 1 | ED62: 2 | EG62: 0
A63: 55_3_0 | B63: 1 | C63: =CONCATENATE(S63,"_",T63) -> 55_3 | D63: =RANK(CP63,$CP$37:$CP$1816) -> 27 | E63: 27 | F63: =E63-D63 -> 0 | G63: =CP63 -> 13.80281844 | H63: =AZ63 -> 4.575 | I63: =BV63 -> 6.894485111 | J63: =CN63 -> 2.333333333 | K63: =CQ63 -> 1 | L63: =B63-K63 -> 0 | M63: =HYPERLINK(CX63,"Gmaps") -> Gmaps | N63: =IF(Y63>$K$6,"LOPUT","VÄHÄ") -> LOPUT | O63: =IF(S63<40,"Valta",IF(S63<100,"Kanta",IF(S63<1000,"Seutu",IF(S63>999,"Yhdys")))) -> Kanta | P63: Mäntsäläntie, Porvoontie | Q63: Askola, Mäntsälä | R63: Uusimaa | S63: 55 | T63: 3 | U63: 0 | V63: 3 | W63: 15082 | X63: 15082 | Y63: 3800.097003 | Z63: 442.4744066 | AA63: 4108.792203 | AB63: 3555 (84 %), 5122 (16 %) | AC63: PK1 | AD63: PK1 (100 %) | AE63: 60 (1 %), 80 (19 %), 100 (80 %) | AF63: Is (100 %) | AG63: Asfalttibetoni (100 %) | AH63: 5 | AI63: 15 | AJ63: 0 | AK63: 254.8435884 | AN63: Maantie (100 %) | AO63: 0.004137492605 | AR63: =+IF(Y63>=$K$6,$F$5,($F$5/($K$6))*Y63) -> 9 | AS63: 23 | AV63: =+IF(AS63>=$L$15,$J$15,IF(AS63<($L$15),AS63*($J$15/($L$15)),)) -> 1.725 | AW63: 1942 | AX63: =+IF(AW63>=$L$11,$J$11,IF(AW63<($L$11),AW63*($J$11/($L$11)),)) -> 3 | AY63: =SUM(AR63,AV63,AX63) -> 13.725 | AZ63: =+AY63*$H$5 -> 4.575 | BA63: =+IF(Z63=0,0,IF(Z63>$K$7,$F$9,($F$9/$K$7)*Z63)) -> 8 | BB63: =IF(DD63>0,$F$10,0) -> 2 | BC63: =IF(DE63>0,$F$11,0) -> 1 | BD63: =IF(DF63>0,$F$12,0) -> 1 | BE63: =IF(DG63>0,$F$13,0) -> 0 | BF63: =IF(DI63>0,$F$14,IF(DH63>0,$F$14/2,0)) -> 1 | BG63: =+IF(DJ63>=$L$19,$J$19,IF(DJ63<($L$19),DJ63*($J$19/($L$19)),)) -> 0.5 | BH63: =+IF(DK63>=$L$20,$J$20,IF(DK63<($L$20),DK63*($J$20/($L$20)),)) -> 0.355 | BI63: =+IF(DL63>=$L$21,$J$21,IF(DL63<($L$21),DL63*($J$21/($L$21)),)) -> 0 | BJ63: =+IF(DM63>=$L$22,$J$22,IF(DM63<($L$22),DM63*($J$22/($L$22)),)) -> 0 | BK63: =IF(DN63>0,$F$16,0) -> 2 | BL63: =+IF(DQ63>=$L$25,$J$25,IF(DQ63<($L$25),DQ63*($J$25/($L$25)),)) -> 2 | BM63: =IF(EG63>100000,$F$18,IF(EG63>0,$F$18/2,0)) -> 0 | BN63: =IF(ED63>0,$F$19,0) -> 2 | BO63: 3.5449 | BP63: 3.0699 | BQ63: 3.23886 | BR63: 2.55628 | BS63: 11.58533639 | BT63: =IF(COUNTIF($I$29:$L$29,TRUE)=0,0,IF(SUMIF($I$29:$L$29,TRUE,BO63:BR63)/COUNTIF($I$29:$L$29,TRUE)>=$L$30,$F$20/2,$F$20/2*(SUMIF($I$29:$L$29,TRUE,BO63:BR63)/COUNTIF($I$29:$L$29,TRUE)/$L$30)))+IF(BS63>=10,$F$20/2,IF(BS63<(10),BS63*($F$20/2/10))) -> 0.8284553333 | BU63: =SUM(BA63+BB63+BC63+BD63+BE63+BF63+BK63+BG63+BH63+BI63+BJ63+BL63+BM63+BN63+BT63) -> 20.68345533 | BV63: =+BU63*$H$9 -> 6.894485111 | BW63: 7892.69238 | BX63: =BW63/X63 -> 0.5233186832 | BY63: =IF(BX63>0,IF(BX63>=$DC$28,$DA$28,IF(BX63<$DC$28,$DA$29,0)),0) -> 1 | BZ63: 15079.14529 | CA63: =BZ63/X63 -> 0.9998107207 | CB63: =IF(CA63,$F$23,0) -> 1 | CC63: =IF(DS63>0,$F$24,0) -> 1 | CD63: 1720.806629 | CE63: =CD63/X63 -> 0.1140967132 | CF63: =IF(CE63>0,IF(CE63>=$DC$22,$DA$22,IF(CE63<$DC$28,$DA$23,0)),0) -> 0.5 | CG63: 45.51279671 | CH63: =IF(CG63>0,IF(CG63>=100,$F$26,IF(CG63<100,$F$26/2)),0) -> 0.5 | CI63: =SUM(DW63) -> 1 | CJ63: =IF(EA63>0,$F$28,0) -> 0 | CK63: =IF(DX63>0,$F$29,0) -> 1 | CL63: =IF(EC63>0,$F$30,0) -> 1 | CM63: =SUM(BY63,CB63,CH63,CC63,CF63,CI63,CJ63,CK63,CL63) -> 7 | CN63: =+CM63*$H$22 -> 2.333333333 | CO63: =SUM(AY63,BU63,CM63) -> 41.40845533 | CP63: =SUM(AZ63,BV63,CN63) -> 13.80281844 | CQ63: =IF(D63<($Z$13*1785),1,IF(D63<(($Z$14+$Z$13)*1785),2,IF(D63<(($Z$15+$Z$13+$Z$14)*1785),3,4))) -> 1 | CR63: =VLOOKUP(C63,Taul1!$F$6:$G$1718,2,FALSE) -> 2 | CX63: https://www.google.com/maps/@60.49662658,25.55352297,3a,75y,90t/data=!3m3!1e1!3m1!2e0 | DA63: 0 | DB63: 1 | DC63: 14 | DD63: =SUM(DA63:DC63) -> 15 | DE63: 1 | DF63: 4 | DG63: 0 | DH63: 65 | DI63: 0 | DJ63: 796 | DK63: 71 | DL63: 0 | DM63: 0 | DN63: 1 | DP63: 7892.69238 | DQ63: 16 | DR63: 0 | DS63: 2 | DT63: 1720.806629 | DU63: =+IF(AA63>$K$8,$F$27/2,0) -> 1 | DV63: =+IF(AA63/Y63>1.5,$F$27/2,0) -> 0 | DW63: =SUM(DU63:DV63) -> 1 | DX63: 1 | DY63: 0 | DZ63: 0 | EA63: =SUM(DY63:DZ63) -> 0 | EC63: 1 | ED63: 2 | EG63: 0
A64: 25_9_0 | B64: 1 | C64: =CONCATENATE(S64,"_",T64) -> 25_9 | D64: =RANK(CP64,$CP$37:$CP$1816) -> 28 | E64: 28 | F64: =E64-D64 -> 0 | G64: =CP64 -> 13.72896024 | H64: =AZ64 -> 5 | I64: =BV64 -> 6.062293576 | J64: =CN64 -> 2.666666667 | K64: =CQ64 -> 1 | L64: =B64-K64 -> 0 | M64: =HYPERLINK(CX64,"Gmaps") -> Gmaps | N64: =IF(Y64>$K$6,"LOPUT","VÄHÄ") -> LOPUT | O64: =IF(S64<40,"Valta",IF(S64<100,"Kanta",IF(S64<1000,"Seutu",IF(S64>999,"Yhdys")))) -> Valta | P64: Hangontie, Hangonväylä | Q64: Raasepori | R64: Uusimaa | S64: 25 | T64: 9 | U64: 0 | V64: 9 | W64: 3688 | X64: 3688 | Y64: 10328 | Z64: 873 | AA64: 12251 | AB64: 10328 (100 %) | AC64: PK1 | AD64: PK1 (100 %) | AE64: 50 (2 %), 60 (44 %), 80 (54 %) | AF64: Is (100 %) | AG64: Asfalttibetoni (2 %), Kivimastiksiasfaltti (94 %) | AH64: 2 | AI64: 9 | AJ64: 0.07714561234 | AK64: 579 | AL64: Kattava | AM64: I | AN64: Maantie (100 %) | AO64: 0.1737071957 | AR64: =+IF(Y64>=$K$6,$F$5,($F$5/($K$6))*Y64) -> 9 | AS64: 40 | AV64: =+IF(AS64>=$L$15,$J$15,IF(AS64<($L$15),AS64*($J$15/($L$15)),)) -> 3 | AW64: 3602 | AX64: =+IF(AW64>=$L$11,$J$11,IF(AW64<($L$11),AW64*($J$11/($L$11)),)) -> 3 | AY64: =SUM(AR64,AV64,AX64) -> 15 | AZ64: =+AY64*$H$5 -> 5 | BA64: =+IF(Z64=0,0,IF(Z64>$K$7,$F$9,($F$9/$K$7)*Z64)) -> 8 | BB64: =IF(DD64>0,$F$10,0) -> 2 | BC64: =IF(DE64>0,$F$11,0) -> 1 | BD64: =IF(DF64>0,$F$12,0) -> 0 | BE64: =IF(DG64>0,$F$13,0) -> 0 | BF64: =IF(DI64>0,$F$14,IF(DH64>0,$F$14/2,0)) -> 2 | BG64: =+IF(DJ64>=$L$19,$J$19,IF(DJ64<($L$19),DJ64*($J$19/($L$19)),)) -> 0.2016666667 | BH64: =+IF(DK64>=$L$20,$J$20,IF(DK64<($L$20),DK64*($J$20/($L$20)),)) -> 0.035 | BI64: =+IF(DL64>=$L$21,$J$21,IF(DL64<($L$21),DL64*($J$21/($L$21)),)) -> 0 | BJ64: =+IF(DM64>=$L$22,$J$22,IF(DM64<($L$22),DM64*($J$22/($L$22)),)) -> 0 | BK64: =IF(DN64>0,$F$16,0) -> 0 | BL64: =+IF(DQ64>=$L$25,$J$25,IF(DQ64<($L$25),DQ64*($J$25/($L$25)),)) -> 2 | BM64: =IF(EG64>100000,$F$18,IF(EG64>0,$F$18/2,0)) -> 0 | BN64: =IF(ED64>0,$F$19,0) -> 2 | BO64: 8.83563 | BP64: 9.02866 | BQ64: 8.52166 | BR64: 4.59288 | BS64: 9.004281218 | BT64: =IF(COUNTIF($I$29:$L$29,TRUE)=0,0,IF(SUMIF($I$29:$L$29,TRUE,BO64:BR64)/COUNTIF($I$29:$L$29,TRUE)>=$L$30,$F$20/2,$F$20/2*(SUMIF($I$29:$L$29,TRUE,BO64:BR64)/COUNTIF($I$29:$L$29,TRUE)/$L$30)))+IF(BS64>=10,$F$20/2,IF(BS64<(10),BS64*($F$20/2/10))) -> 0.9502140609 | BU64: =SUM(BA64+BB64+BC64+BD64+BE64+BF64+BK64+BG64+BH64+BI64+BJ64+BL64+BM64+BN64+BT64) -> 18.18688073 | BV64: =+BU64*$H$9 -> 6.062293576 | BW64: 3689.631932 | BX64: =BW64/X64 -> 1.000442498 | BY64: =IF(BX64>0,IF(BX64>=$DC$28,$DA$28,IF(BX64<$DC$28,$DA$29,0)),0) -> 1 | BZ64: 3097.307545 | CA64: =BZ64/X64 -> 0.8398339331 | CB64: =IF(CA64,$F$23,0) -> 1 | CC64: =IF(DS64>0,$F$24,0) -> 0 | CD64: 3676.057644 | CE64: =CD64/X64 -> 0.9967618339 | CF64: =IF(CE64>0,IF(CE64>=$DC$22,$DA$22,IF(CE64<$DC$28,$DA$23,0)),0) -> 1 | CG64: 222.8655098 | CH64: =IF(CG64>0,IF(CG64>=100,$F$26,IF(CG64<100,$F$26/2)),0) -> 1 | CI64: =SUM(DW64) -> 1 | CJ64: =IF(EA64>0,$F$28,0) -> 1 | CK64: =IF(DX64>0,$F$29,0) -> 1 | CL64: =IF(EC64>0,$F$30,0) -> 1 | CM64: =SUM(BY64,CB64,CH64,CC64,CF64,CI64,CJ64,CK64,CL64) -> 8 | CN64: =+CM64*$H$22 -> 2.666666667 | CO64: =SUM(AY64,BU64,CM64) -> 41.18688073 | CP64: =SUM(AZ64,BV64,CN64) -> 13.72896024 | CQ64: =IF(D64<($Z$13*1785),1,IF(D64<(($Z$14+$Z$13)*1785),2,IF(D64<(($Z$15+$Z$13+$Z$14)*1785),3,4))) -> 1 | CR64: =VLOOKUP(C64,Taul1!$F$6:$G$1718,2,FALSE) -> 1 | CX64: https://www.google.com/maps/@59.98455971,23.41897985,3a,75y,90t/data=!3m3!1e1!3m1!2e0 | DA64: 0 | DB64: 0 | DC64: 1 | DD64: =SUM(DA64:DC64) -> 1 | DE64: 1 | DF64: 0 | DG64: 0 | DH64: 3 | DI64: 1 | DJ64: 121 | DK64: 7 | DL64: 0 | DM64: 0 | DN64: 0 | DP64: 3689.631932 | DQ64: 11 | DR64: 0 | DS64: 0 | DT64: 3676.057644 | DU64: =+IF(AA64>$K$8,$F$27/2,0) -> 1 | DV64: =+IF(AA64/Y64>1.5,$F$27/2,0) -> 0 | DW64: =SUM(DU64:DV64) -> 1 | DX64: 4 | DY64: 0 | DZ64: 1 | EA64: =SUM(DY64:DZ64) -> 1 | EC64: 1 | ED64: 7 | EG64: 0
A65: 45_3_0 | B65: 1 | C65: =CONCATENATE(S65,"_",T65) -> 45_3 | D65: =RANK(CP65,$CP$37:$CP$1816) -> 29 | E65: 29 | F65: =E65-D65 -> 0 | G65: =CP65 -> 13.70448373 | H65: =AZ65 -> 5 | I65: =BV65 -> 6.371150398 | J65: =CN65 -> 2.333333333 | K65: =CQ65 -> 1 | L65: =B65-K65 -> 0 | M65: =HYPERLINK(CX65,"Gmaps") -> Gmaps | N65: =IF(Y65>$K$6,"LOPUT","VÄHÄ") -> LOPUT | O65: =IF(S65<40,"Valta",IF(S65<100,"Kanta",IF(S65<1000,"Seutu",IF(S65>999,"Yhdys")))) -> Kanta | P65: Tuusulanväylä | Q65: Tuusula, Vantaa | R65: Uusimaa | S65: 45 | T65: 3 | U65: 0 | V65: 3 | W65: 8967 | X65: 8967 | Y65: 43784.98327 | Z65: 2046.726553 | AA65: 43790.27545 | AB65: 29941 (31 %), 42175 (23 %), 51927 (32 %), 59103 (13 %) | AC65: PK1 | AD65: PK1 (99 %) | AE65: 60 (3 %), 80 (11 %), 100 (87 %) | AF65: Ise (100 %) | AG65: Kivimastiksiasfaltti (99 %) | AH65: 10 | AI65: 39 | AJ65: 0.1302011473 | AK65: 659.8904873 | AN65: Maantie (100 %) | AO65: 0.4774444247 | AR65: =+IF(Y65>=$K$6,$F$5,($F$5/($K$6))*Y65) -> 9 | AS65: 1234 | AV65: =+IF(AS65>=$L$15,$J$15,IF(AS65<($L$15),AS65*($J$15/($L$15)),)) -> 3 | AW65: 30602 | AX65: =+IF(AW65>=$L$11,$J$11,IF(AW65<($L$11),AW65*($J$11/($L$11)),)) -> 3 | AY65: =SUM(AR65,AV65,AX65) -> 15 | AZ65: =+AY65*$H$5 -> 5 | BA65: =+IF(Z65=0,0,IF(Z65>$K$7,$F$9,($F$9/$K$7)*Z65)) -> 8 | BB65: =IF(DD65>0,$F$10,0) -> 0 | BC65: =IF(DE65>0,$F$11,0) -> 1 | BD65: =IF(DF65>0,$F$12,0) -> 1 | BE65: =IF(DG65>0,$F$13,0) -> 0 | BF65: =IF(DI65>0,$F$14,IF(DH65>0,$F$14/2,0)) -> 2 | BG65: =+IF(DJ65>=$L$19,$J$19,IF(DJ65<($L$19),DJ65*($J$19/($L$19)),)) -> 0 | BH65: =+IF(DK65>=$L$20,$J$20,IF(DK65<($L$20),DK65*($J$20/($L$20)),)) -> 0 | BI65: =+IF(DL65>=$L$21,$J$21,IF(DL65<($L$21),DL65*($J$21/($L$21)),)) -> 0 | BJ65: =+IF(DM65>=$L$22,$J$22,IF(DM65<($L$22),DM65*($J$22/($L$22)),)) -> 0 | BK65: =IF(DN65>0,$F$16,0) -> 2 | BL65: =+IF(DQ65>=$L$25,$J$25,IF(DQ65<($L$25),DQ65*($J$25/($L$25)),)) -> 2 | BM65: =IF(EG65>100000,$F$18,IF(EG65>0,$F$18/2,0)) -> 1 | BN65: =IF(ED65>0,$F$19,0) -> 2 | BO65: 0.413829 | BP65: 0.47073 | BQ65: 0.207048 | BR65: 0.114835 | BS65: 1.541285855 | BT65: =IF(COUNTIF($I$29:$L$29,TRUE)=0,0,IF(SUMIF($I$29:$L$29,TRUE,BO65:BR65)/COUNTIF($I$29:$L$29,TRUE)>=$L$30,$F$20/2,$F$20/2*(SUMIF($I$29:$L$29,TRUE,BO65:BR65)/COUNTIF($I$29:$L$29,TRUE)/$L$30)))+IF(BS65>=10,$F$20/2,IF(BS65<(10),BS65*($F$20/2/10))) -> 0.1134511928 | BU65: =SUM(BA65+BB65+BC65+BD65+BE65+BF65+BK65+BG65+BH65+BI65+BJ65+BL65+BM65+BN65+BT65) -> 19.11345119 | BV65: =+BU65*$H$9 -> 6.371150398 | BW65: 8760.162141 | BX65: =BW65/X65 -> 0.9769334383 | BY65: =IF(BX65>0,IF(BX65>=$DC$28,$DA$28,IF(BX65<$DC$28,$DA$29,0)),0) -> 1 | BZ65: 8978.020896 | CA65: =BZ65/X65 -> 1.001229051 | CB65: =IF(CA65,$F$23,0) -> 1 | CC65: =IF(DS65>0,$F$24,0) -> 1 | CD65: 6559.243512 | CE65: =CD65/X65 -> 0.7314869535 | CF65: =IF(CE65>0,IF(CE65>=$DC$22,$DA$22,IF(CE65<$DC$28,$DA$23,0)),0) -> 1 | CG65: 193.8370693 | CH65: =IF(CG65>0,IF(CG65>=100,$F$26,IF(CG65<100,$F$26/2)),0) -> 1 | CI65: =SUM(DW65) -> 1 | CJ65: =IF(EA65>0,$F$28,0) -> 0 | CK65: =IF(DX65>0,$F$29,0) -> 0 | CL65: =IF(EC65>0,$F$30,0) -> 1 | CM65: =SUM(BY65,CB65,CH65,CC65,CF65,CI65,CJ65,CK65,CL65) -> 7 | CN65: =+CM65*$H$22 -> 2.333333333 | CO65: =SUM(AY65,BU65,CM65) -> 41.11345119 | CP65: =SUM(AZ65,BV65,CN65) -> 13.70448373 | CQ65: =IF(D65<($Z$13*1785),1,IF(D65<(($Z$14+$Z$13)*1785),2,IF(D65<(($Z$15+$Z$13+$Z$14)*1785),3,4))) -> 1 | CR65: =VLOOKUP(C65,Taul1!$F$6:$G$1718,2,FALSE) -> 4 | CX65: https://www.google.com/maps/@60.28773999,24.98054941,3a,75y,90t/data=!3m3!1e1!3m1!2e0 | DA65: 0 | DB65: 0 | DC65: 0 | DD65: =SUM(DA65:DC65) -> 0 | DE65: 9 | DF65: 4 | DG65: 0 | DH65: 0 | DI65: 2 | DJ65: 0 | DK65: 0 | DL65: 0 | DM65: 0 | DN65: 4 | DP65: 8760.162141 | DQ65: 69 | DR65: 3 | DS65: 13 | DT65: 6559.243512 | DU65: =+IF(AA65>$K$8,$F$27/2,0) -> 1 | DV65: =+IF(AA65/Y65>1.5,$F$27/2,0) -> 0 | DW65: =SUM(DU65:DV65) -> 1 | DX65: 0 | DY65: 0 | DZ65: 0 | EA65: =SUM(DY65:DZ65) -> 0 | EC65: 1 | ED65: 9 | EG65: 213754
A66: 170_19_0 | B66: 1 | C66: =CONCATENATE(S66,"_",T66) -> 170_19 | D66: =RANK(CP66,$CP$37:$CP$1816) -> 30 | E66: 30 | F66: =E66-D66 -> 0 | G66: =CP66 -> 13.69037148 | H66: =AZ66 -> 5 | I66: =BV66 -> 5.690371476 | J66: =CN66 -> 3 | K66: =CQ66 -> 1 | L66: =B66-K66 -> 0 | M66: =HYPERLINK(CX66,"Gmaps") -> Gmaps | N66: =IF(Y66>$K$6,"LOPUT","VÄHÄ") -> LOPUT | O66: =IF(S66<40,"Valta",IF(S66<100,"Kanta",IF(S66<1000,"Seutu",IF(S66>999,"Yhdys")))) -> Seutu | P66: Helsingintie | Q66: Loviisa | R66: Uusimaa | S66: 170 | T66: 19 | U66: 0 | V66: 19 | W66: 949 | X66: 949 | Y66: 7110 | Z66: 414 | AA66: 7821 | AB66: 7110 (100 %) | AC66: PK2 | AD66: PK2 (99 %) | AE66: 50 (99 %) | AF66: Is (99 %) | AG66: Asfalttibetoni (99 %) | AH66: 0 | AI66: 2 | AJ66: 0.105374078 | AK66: 161 | AN66: Katu (99 %) | AO66: 0.9868802822 | AR66: =+IF(Y66>=$K$6,$F$5,($F$5/($K$6))*Y66) -> 9 | AS66: 64 | AV66: =+IF(AS66>=$L$15,$J$15,IF(AS66<($L$15),AS66*($J$15/($L$15)),)) -> 3 | AW66: 1709 | AX66: =+IF(AW66>=$L$11,$J$11,IF(AW66<($L$11),AW66*($J$11/($L$11)),)) -> 3 | AY66: =SUM(AR66,AV66,AX66) -> 15 | AZ66: =+AY66*$H$5 -> 5 | BA66: =+IF(Z66=0,0,IF(Z66>$K$7,$F$9,($F$9/$K$7)*Z66)) -> 8 | BB66: =IF(DD66>0,$F$10,0) -> 0 | BC66: =IF(DE66>0,$F$11,0) -> 1 | BD66: =IF(DF66>0,$F$12,0) -> 0 | BE66: =IF(DG66>0,$F$13,0) -> 0 | BF66: =IF(DI66>0,$F$14,IF(DH66>0,$F$14/2,0)) -> 2 | BG66: =+IF(DJ66>=$L$19,$J$19,IF(DJ66<($L$19),DJ66*($J$19/($L$19)),)) -> 0 | BH66: =+IF(DK66>=$L$20,$J$20,IF(DK66<($L$20),DK66*($J$20/($L$20)),)) -> 0 | BI66: =+IF(DL66>=$L$21,$J$21,IF(DL66<($L$21),DL66*($J$21/($L$21)),)) -> 0 | BJ66: =+IF(DM66>=$L$22,$J$22,IF(DM66<($L$22),DM66*($J$22/($L$22)),)) -> 0 | BK66: =IF(DN66>0,$F$16,0) -> 2 | BL66: =+IF(DQ66>=$L$25,$J$25,IF(DQ66<($L$25),DQ66*($J$25/($L$25)),)) -> 1.333333333 | BM66: =IF(EG66>100000,$F$18,IF(EG66>0,$F$18/2,0)) -> 0.5 | BN66: =IF(ED66>0,$F$19,0) -> 2 | BO66: 1.33376 | BP66: 0.936434 | BQ66: 0.657467 | BR66: 0.247928 | BS66: 2.803847903 | BT66: =IF(COUNTIF($I$29:$L$29,TRUE)=0,0,IF(SUMIF($I$29:$L$29,TRUE,BO66:BR66)/COUNTIF($I$29:$L$29,TRUE)>=$L$30,$F$20/2,$F$20/2*(SUMIF($I$29:$L$29,TRUE,BO66:BR66)/COUNTIF($I$29:$L$29,TRUE)/$L$30)))+IF(BS66>=10,$F$20/2,IF(BS66<(10),BS66*($F$20/2/10))) -> 0.2377810951 | BU66: =SUM(BA66+BB66+BC66+BD66+BE66+BF66+BK66+BG66+BH66+BI66+BJ66+BL66+BM66+BN66+BT66) -> 17.07111443 | BV66: =+BU66*$H$9 -> 5.690371476 | BW66: 936.5493878 | BX66: =BW66/X66 -> 0.9868802822 | BY66: =IF(BX66>0,IF(BX66>=$DC$28,$DA$28,IF(BX66<$DC$28,$DA$29,0)),0) -> 1 | BZ66: 936.5493878 | CA66: =BZ66/X66 -> 0.9868802822 | CB66: =IF(CA66,$F$23,0) -> 1 | CC66: =IF(DS66>0,$F$24,0) -> 1 | CD66: 936.5493878 | CE66: =CD66/X66 -> 0.9868802822 | CF66: =IF(CE66>0,IF(CE66>=$DC$22,$DA$22,IF(CE66<$DC$28,$DA$23,0)),0) -> 1 | CG66: 203.7934668 | CH66: =IF(CG66>0,IF(CG66>=100,$F$26,IF(CG66<100,$F$26/2)),0) -> 1 | CI66: =SUM(DW66) -> 1 | CJ66: =IF(EA66>0,$F$28,0) -> 1 | CK66: =IF(DX66>0,$F$29,0) -> 1 | CL66: =IF(EC66>0,$F$30,0) -> 1 | CM66: =SUM(BY66,CB66,CH66,CC66,CF66,CI66,CJ66,CK66,CL66) -> 9 | CN66: =+CM66*$H$22 -> 3 | CO66: =SUM(AY66,BU66,CM66) -> 41.07111443 | CP66: =SUM(AZ66,BV66,CN66) -> 13.69037148 | CQ66: =IF(D66<($Z$13*1785),1,IF(D66<(($Z$14+$Z$13)*1785),2,IF(D66<(($Z$15+$Z$13+$Z$14)*1785),3,4))) -> 1 | CR66: =VLOOKUP(C66,Taul1!$F$6:$G$1718,2,FALSE) -> 1 | CX66: https://www.google.com/maps/@60.4581729,26.19446269,3a,75y,90t/data=!3m3!1e1!3m1!2e0 | DA66: 0 | DB66: 0 | DC66: 0 | DD66: =SUM(DA66:DC66) -> 0 | DE66: 2 | DF66: 0 | DG66: 0 | DH66: 4 | DI66: 3 | DJ66: 0 | DK66: 0 | DL66: 0 | DM66: 0 | DN66: 1 | DP66: 936.5493878 | DQ66: 2 | DR66: 1 | DS66: 2 | DT66: 936.5493878 | DU66: =+IF(AA66>$K$8,$F$27/2,0) -> 1 | DV66: =+IF(AA66/Y66>1.5,$F$27/2,0) -> 0 | DW66: =SUM(DU66:DV66) -> 1 | DX66: 2 | DY66: 0 | DZ66: 1 | EA66: =SUM(DY66:DZ66) -> 1 | EC66: 1 | ED66: 5 | EG66: 37753
A67: 152_1_0 | B67: 1 | C67: =CONCATENATE(S67,"_",T67) -> 152_1 | D67: =RANK(CP67,$CP$37:$CP$1816) -> 31 | E67: 31 | F67: =E67-D67 -> 0 | G67: =CP67 -> 13.68517729 | H67: =AZ67 -> 5 | I67: =BV67 -> 6.018510619 | J67: =CN67 -> 2.666666667 | K67: =CQ67 -> 1 | L67: =B67-K67 -> 0 | M67: =HYPERLINK(CX67,"Gmaps") -> Gmaps | N67: =IF(Y67>$K$6,"LOPUT","VÄHÄ") -> LOPUT | O67: =IF(S67<40,"Valta",IF(S67<100,"Kanta",IF(S67<1000,"Seutu",IF(S67>999,"Yhdys")))) -> Seutu | P67: Kulomäentie, Sipoontie | Q67: Tuusula, Vantaa | R67: Uusimaa | S67: 152 | T67: 1 | U67: 0 | V67: 1 | W67: 7468 | X67: 7468 | Y67: 12775.03562 | Z67: 720.366631 | AA67: 12294.81307 | AB67: 11157 (14 %), 13048 (86 %) | AC67: PK2 | AD67: PK2 (97 %) | AE67: 50 (32 %), 60 (68 %) | AF67: Ise (100 %) | AG67: Kivimastiksiasfaltti (100 %) | AH67: 17 | AI67: 33 | AJ67: 0.003154242456 | AK67: 255.4710766 | AN67: Katu (12 %), Maantie tai katu (88 %) | AO67: 0.9996950309 | AR67: =+IF(Y67>=$K$6,$F$5,($F$5/($K$6))*Y67) -> 9 | AS67: 3907 | AV67: =+IF(AS67>=$L$15,$J$15,IF(AS67<($L$15),AS67*($J$15/($L$15)),)) -> 3 | AW67: 18740 | AX67: =+IF(AW67>=$L$11,$J$11,IF(AW67<($L$11),AW67*($J$11/($L$11)),)) -> 3 | AY67: =SUM(AR67,AV67,AX67) -> 15 | AZ67: =+AY67*$H$5 -> 5 | BA67: =+IF(Z67=0,0,IF(Z67>$K$7,$F$9,($F$9/$K$7)*Z67)) -> 8 | BB67: =IF(DD67>0,$F$10,0) -> 0 | BC67: =IF(DE67>0,$F$11,0) -> 1 | BD67: =IF(DF67>0,$F$12,0) -> 0 | BE67: =IF(DG67>0,$F$13,0) -> 0 | BF67: =IF(DI67>0,$F$14,IF(DH67>0,$F$14/2,0)) -> 2 | BG67: =+IF(DJ67>=$L$19,$J$19,IF(DJ67<($L$19),DJ67*($J$19/($L$19)),)) -> 0 | BH67: =+IF(DK67>=$L$20,$J$20,IF(DK67<($L$20),DK67*($J$20/($L$20)),)) -> 0 | BI67: =+IF(DL67>=$L$21,$J$21,IF(DL67<($L$21),DL67*($J$21/($L$21)),)) -> 0 | BJ67: =+IF(DM67>=$L$22,$J$22,IF(DM67<($L$22),DM67*($J$22/($L$22)),)) -> 0 | BK67: =IF(DN67>0,$F$16,0) -> 2 | BL67: =+IF(DQ67>=$L$25,$J$25,IF(DQ67<($L$25),DQ67*($J$25/($L$25)),)) -> 2 | BM67: =IF(EG67>100000,$F$18,IF(EG67>0,$F$18/2,0)) -> 1 | BN67: =IF(ED67>0,$F$19,0) -> 2 | BO67: 0.142074 | BP67: 0.261465 | BQ67: 0.0948075 | BR67: 0.050404 | BS67: 0.7784061608 | BT67: =IF(COUNTIF($I$29:$L$29,TRUE)=0,0,IF(SUMIF($I$29:$L$29,TRUE,BO67:BR67)/COUNTIF($I$29:$L$29,TRUE)>=$L$30,$F$20/2,$F$20/2*(SUMIF($I$29:$L$29,TRUE,BO67:BR67)/COUNTIF($I$29:$L$29,TRUE)/$L$30)))+IF(BS67>=10,$F$20/2,IF(BS67<(10),BS67*($F$20/2/10))) -> 0.05553185804 | BU67: =SUM(BA67+BB67+BC67+BD67+BE67+BF67+BK67+BG67+BH67+BI67+BJ67+BL67+BM67+BN67+BT67) -> 18.05553186 | BV67: =+BU67*$H$9 -> 6.018510619 | BW67: 7420.160068 | BX67: =BW67/X67 -> 0.9935940101 | BY67: =IF(BX67>0,IF(BX67>=$DC$28,$DA$28,IF(BX67<$DC$28,$DA$29,0)),0) -> 1 | BZ67: 7450.550747 | CA67: =BZ67/X67 -> 0.9976634637 | CB67: =IF(CA67,$F$23,0) -> 1 | CC67: =IF(DS67>0,$F$24,0) -> 1 | CD67: 7270.083882 | CE67: =CD67/X67 -> 0.9734981096 | CF67: =IF(CE67>0,IF(CE67>=$DC$22,$DA$22,IF(CE67<$DC$28,$DA$23,0)),0) -> 1 | CG67: 1561.111944 | CH67: =IF(CG67>0,IF(CG67>=100,$F$26,IF(CG67<100,$F$26/2)),0) -> 1 | CI67: =SUM(DW67) -> 1 | CJ67: =IF(EA67>0,$F$28,0) -> 0 | CK67: =IF(DX67>0,$F$29,0) -> 1 | CL67: =IF(EC67>0,$F$30,0) -> 1 | CM67: =SUM(BY67,CB67,CH67,CC67,CF67,CI67,CJ67,CK67,CL67) -> 8 | CN67: =+CM67*$H$22 -> 2.666666667 | CO67: =SUM(AY67,BU67,CM67) -> 41.05553186 | CP67: =SUM(AZ67,BV67,CN67) -> 13.68517729 | CQ67: =IF(D67<($Z$13*1785),1,IF(D67<(($Z$14+$Z$13)*1785),2,IF(D67<(($Z$15+$Z$13+$Z$14)*1785),3,4))) -> 1 | CR67: =VLOOKUP(C67,Taul1!$F$6:$G$1718,2,FALSE) -> 2 | CX67: https://www.google.com/maps/@60.34035693,24.99816855,3a,75y,90t/data=!3m3!1e1!3m1!2e0 | DA67: 0 | DB67: 0 | DC67: 0 | DD67: =SUM(DA67:DC67) -> 0 | DE67: 8 | DF67: 0 | DG67: 0 | DH67: 4 | DI67: 3 | DJ67: 0 | DK67: 0 | DL67: 0 | DM67: 0 | DN67: 2 | DP67: 7420.160068 | DQ67: 43 | DR67: 2 | DS67: 15 | DT67: 7270.083882 | DU67: =+IF(AA67>$K$8,$F$27/2,0) -> 1 | DV67: =+IF(AA67/Y67>1.5,$F$27/2,0) -> 0 | DW67: =SUM(DU67:DV67) -> 1 | DX67: 3 | DY67: 0 | DZ67: 0 | EA67: =SUM(DY67:DZ67) -> 0 | EC67: 1 | ED67: 8 | EG67: 160640
A68: 12_223_0 | B68: 1 | C68: =CONCATENATE(S68,"_",T68) -> 12_223 | D68: =RANK(CP68,$CP$37:$CP$1816) -> 32 | E68: 32 | F68: =E68-D68 -> 0 | G68: =CP68 -> 13.67935192 | H68: =AZ68 -> 5 | I68: =BV68 -> 6.679351917 | J68: =CN68 -> 2 | K68: =CQ68 -> 1 | L68: =B68-K68 -> 0 | M68: =HYPERLINK(CX68,"Gmaps") -> Gmaps | N68: =IF(Y68>$K$6,"LOPUT","VÄHÄ") -> LOPUT | O68: =IF(S68<40,"Valta",IF(S68<100,"Kanta",IF(S68<1000,"Seutu",IF(S68>999,"Yhdys")))) -> Valta | P68: Eteläinen Kehätie | Q68: Lahti | R68: Päijät-Häme | S68: 12 | T68: 223 | U68: 0 | V68: 223 | W68: 4573 | X68: 4573 | Y68: 12156.89263 | Z68: 1253.936147 | AA68: 13572.48896 | AB68: 11857 (44 %), 12390 (56 %) | AC68: PK1 | AD68: PK1 (100 %) | AE68: 80 (101 %) | AF68: Is (100 %) | AG68: Kivimastiksiasfaltti (100 %) | AH68: 1 | AI68: 8 | AJ68: 0 | AK68: 755.9385524 | AL68: Kattava | AM68: I | AN68: Maantie (101 %) | AO68: 0 | AR68: =+IF(Y68>=$K$6,$F$5,($F$5/($K$6))*Y68) -> 9 | AS68: 1605 | AV68: =+IF(AS68>=$L$15,$J$15,IF(AS68<($L$15),AS68*($J$15/($L$15)),)) -> 3 | AW68: 5219 | AX68: =+IF(AW68>=$L$11,$J$11,IF(AW68<($L$11),AW68*($J$11/($L$11)),)) -> 3 | AY68: =SUM(AR68,AV68,AX68) -> 15 | AZ68: =+AY68*$H$5 -> 5 | BA68: =+IF(Z68=0,0,IF(Z68>$K$7,$F$9,($F$9/$K$7)*Z68)) -> 8 | BB68: =IF(DD68>0,$F$10,0) -> 2 | BC68: =IF(DE68>0,$F$11,0) -> 1 | BD68: =IF(DF68>0,$F$12,0) -> 0 | BE68: =IF(DG68>0,$F$13,0) -> 0 | BF68: =IF(DI68>0,$F$14,IF(DH68>0,$F$14/2,0)) -> 2 | BG68: =+IF(DJ68>=$L$19,$J$19,IF(DJ68<($L$19),DJ68*($J$19/($L$19)),)) -> 0 | BH68: =+IF(DK68>=$L$20,$J$20,IF(DK68<($L$20),DK68*($J$20/($L$20)),)) -> 0 | BI68: =+IF(DL68>=$L$21,$J$21,IF(DL68<($L$21),DL68*($J$21/($L$21)),)) -> 0 | BJ68: =+IF(DM68>=$L$22,$J$22,IF(DM68<($L$22),DM68*($J$22/($L$22)),)) -> 0 | BK68: =IF(DN68>0,$F$16,0) -> 2 | BL68: =+IF(DQ68>=$L$25,$J$25,IF(DQ68<($L$25),DQ68*($J$25/($L$25)),)) -> 2 | BM68: =IF(EG68>100000,$F$18,IF(EG68>0,$F$18/2,0)) -> 0.5 | BN68: =IF(ED68>0,$F$19,0) -> 2 | BO68: 4.31952 | BP68: 13.6228 | BQ68: 11.891 | BR68: 13.0387 | BS68: 0.7611150147 | BT68: =IF(COUNTIF($I$29:$L$29,TRUE)=0,0,IF(SUMIF($I$29:$L$29,TRUE,BO68:BR68)/COUNTIF($I$29:$L$29,TRUE)>=$L$30,$F$20/2,$F$20/2*(SUMIF($I$29:$L$29,TRUE,BO68:BR68)/COUNTIF($I$29:$L$29,TRUE)/$L$30)))+IF(BS68>=10,$F$20/2,IF(BS68<(10),BS68*($F$20/2/10))) -> 0.5380557507 | BU68: =SUM(BA68+BB68+BC68+BD68+BE68+BF68+BK68+BG68+BH68+BI68+BJ68+BL68+BM68+BN68+BT68) -> 20.03805575 | BV68: =+BU68*$H$9 -> 6.679351917 | BW68: 4557.805621 | BX68: =BW68/X68 -> 0.9966773717 | BY68: =IF(BX68>0,IF(BX68>=$DC$28,$DA$28,IF(BX68<$DC$28,$DA$29,0)),0) -> 1 | BZ68: 0 | CA68: =BZ68/X68 -> 0 | CB68: =IF(CA68,$F$23,0) -> 0 | CC68: =IF(DS68>0,$F$24,0) -> 1 | CD68: 3460.999278 | CE68: =CD68/X68 -> 0.7568334305 | CF68: =IF(CE68>0,IF(CE68>=$DC$22,$DA$22,IF(CE68<$DC$28,$DA$23,0)),0) -> 1 | CG68: 627.9247759 | CH68: =IF(CG68>0,IF(CG68>=100,$F$26,IF(CG68<100,$F$26/2)),0) -> 1 | CI68: =SUM(DW68) -> 1 | CJ68: =IF(EA68>0,$F$28,0) -> 0 | CK68: =IF(DX68>0,$F$29,0) -> 0 | CL68: =IF(EC68>0,$F$30,0) -> 1 | CM68: =SUM(BY68,CB68,CH68,CC68,CF68,CI68,CJ68,CK68,CL68) -> 6 | CN68: =+CM68*$H$22 -> 2 | CO68: =SUM(AY68,BU68,CM68) -> 41.03805575 | CP68: =SUM(AZ68,BV68,CN68) -> 13.67935192 | CQ68: =IF(D68<($Z$13*1785),1,IF(D68<(($Z$14+$Z$13)*1785),2,IF(D68<(($Z$15+$Z$13+$Z$14)*1785),3,4))) -> 1 | CR68: =VLOOKUP(C68,Taul1!$F$6:$G$1718,2,FALSE) -> 2 | CX68: https://www.google.com/maps/@60.95508262,25.61727605,3a,75y,90t/data=!3m3!1e1!3m1!2e0 | DA68: 0 | DB68: 0 | DC68: 7 | DD68: =SUM(DA68:DC68) -> 7 | DE68: 5 | DF68: 0 | DG68: 0 | DH68: 0 | DI68: 1 | DJ68: 0 | DK68: 0 | DL68: 0 | DM68: 0 | DN68: 1 | DP68: 4557.805621 | DQ68: 19 | DR68: 1 | DS68: 19 | DT68: 3460.999278 | DU68: =+IF(AA68>$K$8,$F$27/2,0) -> 1 | DV68: =+IF(AA68/Y68>1.5,$F$27/2,0) -> 0 | DW68: =SUM(DU68:DV68) -> 1 | DX68: 0 | DY68: 0 | DZ68: 0 | EA68: =SUM(DY68:DZ68) -> 0 | EC68: 1 | ED68: 9 | EG68: 47866
A69: 10_25_0 | B69: 1 | C69: =CONCATENATE(S69,"_",T69) -> 10_25 | D69: =RANK(CP69,$CP$37:$CP$1816) -> 33 | E69: 33 | F69: =E69-D69 -> 0 | G69: =CP69 -> 13.66666667 | H69: =AZ69 -> 5 | I69: =BV69 -> 6.333333333 | J69: =CN69 -> 2.333333333 | K69: =CQ69 -> 1 | L69: =B69-K69 -> 0 | M69: =HYPERLINK(CX69,"Gmaps") -> Gmaps | N69: =IF(Y69>$K$6,"LOPUT","VÄHÄ") -> LOPUT | O69: =IF(S69<40,"Valta",IF(S69<100,"Kanta",IF(S69<1000,"Seutu",IF(S69>999,"Yhdys")))) -> Valta | P69: Turun Valtatie | Q69: Hämeenlinna | R69: Kanta-Häme | S69: 10 | T69: 25 | U69: 0 | V69: 25 | W69: 6298 | X69: 6298 | Y69: 8754.038901 | Z69: 723.9806288 | AA69: 9814.663862 | AB69: 4270 (39 %), 7919 (24 %), 13892 (38 %) | AC69: PK1 | AD69: PK1 (100 %) | AE69: 50 (3 %), 60 (6 %), 70 (36 %), 80 (55 %) | AF69: Is (62 %), Ise (38 %) | AG69: Asfalttibetoni (27 %), Kivimastiksiasfaltti (73 %) | AH69: 5 | AI69: 12 | AJ69: 0.3073131254 | AK69: 371.5385837 | AL69: Kattava | AN69: Maantie (100 %) | AO69: 0.6050832998 | AR69: =+IF(Y69>=$K$6,$F$5,($F$5/($K$6))*Y69) -> 9 | AS69: 173 | AV69: =+IF(AS69>=$L$15,$J$15,IF(AS69<($L$15),AS69*($J$15/($L$15)),)) -> 3 | AW69: 9046 | AX69: =+IF(AW69>=$L$11,$J$11,IF(AW69<($L$11),AW69*($J$11/($L$11)),)) -> 3 | AY69: =SUM(AR69,AV69,AX69) -> 15 | AZ69: =+AY69*$H$5 -> 5 | BA69: =+IF(Z69=0,0,IF(Z69>$K$7,$F$9,($F$9/$K$7)*Z69)) -> 8 | BB69: =IF(DD69>0,$F$10,0) -> 2 | BC69: =IF(DE69>0,$F$11,0) -> 1 | BD69: =IF(DF69>0,$F$12,0) -> 0 | BE69: =IF(DG69>0,$F$13,0) -> 0 | BF69: =IF(DI69>0,$F$14,IF(DH69>0,$F$14/2,0)) -> 2 | BG69: =+IF(DJ69>=$L$19,$J$19,IF(DJ69<($L$19),DJ69*($J$19/($L$19)),)) -> 0 | BH69: =+IF(DK69>=$L$20,$J$20,IF(DK69<($L$20),DK69*($J$20/($L$20)),)) -> 0 | BI69: =+IF(DL69>=$L$21,$J$21,IF(DL69<($L$21),DL69*($J$21/($L$21)),)) -> 0 | BJ69: =+IF(DM69>=$L$22,$J$22,IF(DM69<($L$22),DM69*($J$22/($L$22)),)) -> 0 | BK69: =IF(DN69>0,$F$16,0) -> 0 | BL69: =+IF(DQ69>=$L$25,$J$25,IF(DQ69<($L$25),DQ69*($J$25/($L$25)),)) -> 2 | BM69: =IF(EG69>100000,$F$18,IF(EG69>0,$F$18/2,0)) -> 1 | BN69: =IF(ED69>0,$F$19,0) -> 2 | BO69: 12.263 | BP69: 14.8027 | BQ69: 10.3785 | BR69: 6.27875 | BS69: 10.43764929 | BT69: =IF(COUNTIF($I$29:$L$29,TRUE)=0,0,IF(SUMIF($I$29:$L$29,TRUE,BO69:BR69)/COUNTIF($I$29:$L$29,TRUE)>=$L$30,$F$20/2,$F$20/2*(SUMIF($I$29:$L$29,TRUE,BO69:BR69)/COUNTIF($I$29:$L$29,TRUE)/$L$30)))+IF(BS69>=10,$F$20/2,IF(BS69<(10),BS69*($F$20/2/10))) -> 1 | BU69: =SUM(BA69+BB69+BC69+BD69+BE69+BF69+BK69+BG69+BH69+BI69+BJ69+BL69+BM69+BN69+BT69) -> 19 | BV69: =+BU69*$H$9 -> 6.333333333 | BW69: 5382.134028 | BX69: =BW69/X69 -> 0.8545782833 | BY69: =IF(BX69>0,IF(BX69>=$DC$28,$DA$28,IF(BX69<$DC$28,$DA$29,0)),0) -> 1 | BZ69: 6287.747689 | CA69: =BZ69/X69 -> 0.9983721322 | CB69: =IF(CA69,$F$23,0) -> 1 | CC69: =IF(DS69>0,$F$24,0) -> 1 | CD69: 1851.955226 | CE69: =CD69/X69 -> 0.2940544976 | CF69: =IF(CE69>0,IF(CE69>=$DC$22,$DA$22,IF(CE69<$DC$28,$DA$23,0)),0) -> 0.5 | CG69: 33.99682439 | CH69: =IF(CG69>0,IF(CG69>=100,$F$26,IF(CG69<100,$F$26/2)),0) -> 0.5 | CI69: =SUM(DW69) -> 1 | CJ69: =IF(EA69>0,$F$28,0) -> 0 | CK69: =IF(DX69>0,$F$29,0) -> 1 | CL69: =IF(EC69>0,$F$30,0) -> 1 | CM69: =SUM(BY69,CB69,CH69,CC69,CF69,CI69,CJ69,CK69,CL69) -> 7 | CN69: =+CM69*$H$22 -> 2.333333333 | CO69: =SUM(AY69,BU69,CM69) -> 41 | CP69: =SUM(AZ69,BV69,CN69) -> 13.66666667 | CQ69: =IF(D69<($Z$13*1785),1,IF(D69<(($Z$14+$Z$13)*1785),2,IF(D69<(($Z$15+$Z$13+$Z$14)*1785),3,4))) -> 1 | CR69: =VLOOKUP(C69,Taul1!$F$6:$G$1718,2,FALSE) -> 3 | CX69: https://www.google.com/maps/@60.95395551,24.41038145,3a,75y,90t/data=!3m3!1e1!3m1!2e0 | DA69: 0 | DB69: 0 | DC69: 1 | DD69: =SUM(DA69:DC69) -> 1 | DE69: 11 | DF69: 0 | DG69: 0 | DH69: 3 | DI69: 1 | DJ69: 0 | DK69: 0 | DL69: 0 | DM69: 0 | DN69: 0 | DP69: 5382.134028 | DQ69: 17 | DR69: 4 | DS69: 44 | DT69: 1851.955226 | DU69: =+IF(AA69>$K$8,$F$27/2,0) -> 1 | DV69: =+IF(AA69/Y69>1.5,$F$27/2,0) -> 0 | DW69: =SUM(DU69:DV69) -> 1 | DX69: 1 | DY69: 0 | DZ69: 0 | EA69: =SUM(DY69:DZ69) -> 0 | EC69: 1 | ED69: 3 | EG69: 155580
A70: 133_1_0 | B70: 1 | C70: =CONCATENATE(S70,"_",T70) -> 133_1 | D70: =RANK(CP70,$CP$37:$CP$1816) -> 34 | E70: 34 | F70: =E70-D70 -> 0 | G70: =CP70 -> 13.62069679 | H70: =AZ70 -> 5 | I70: =BV70 -> 6.620696787 | J70: =CN70 -> 2 | K70: =CQ70 -> 1 | L70: =B70-K70 -> 0 | M70: =HYPERLINK(CX70,"Gmaps") -> Gmaps | N70: =IF(Y70>$K$6,"LOPUT","VÄHÄ") -> LOPUT | O70: =IF(S70<40,"Valta",IF(S70<100,"Kanta",IF(S70<1000,"Seutu",IF(S70>999,"Yhdys")))) -> Seutu | P70: Helsingintie, Vihtijärventie | Q70: Karkkila | R70: Uusimaa | S70: 133 | T70: 1 | U70: 0 | V70: 1 | W70: 6490 | X70: 6490 | Y70: 2077 | Z70: 126 | AA70: 2460 | AB70: 2077 (100 %) | AC70: PK2 | AD70: PK2 (100 %) | AE70: 50 (37 %), 60 (27 %), 80 (37 %) | AF70: Ib (100 %) | AG70: Asfalttibetoni (92 %), Kantavan kerroksen asfalttibetoni (ABK) (8 %) | AH70: 2 | AI70: 3 | AJ70: 0.2773497689 | AK70: 43 | AN70: Katu (25 %), Maantie tai katu (75 %) | AO70: 0.4442425976 | AR70: =+IF(Y70>=$K$6,$F$5,($F$5/($K$6))*Y70) -> 9 | AS70: 158 | AV70: =+IF(AS70>=$L$15,$J$15,IF(AS70<($L$15),AS70*($J$15/($L$15)),)) -> 3 | AW70: 2209 | AX70: =+IF(AW70>=$L$11,$J$11,IF(AW70<($L$11),AW70*($J$11/($L$11)),)) -> 3 | AY70: =SUM(AR70,AV70,AX70) -> 15 | AZ70: =+AY70*$H$5 -> 5 | BA70: =+IF(Z70=0,0,IF(Z70>$K$7,$F$9,($F$9/$K$7)*Z70)) -> 8 | BB70: =IF(DD70>0,$F$10,0) -> 2 | BC70: =IF(DE70>0,$F$11,0) -> 0 | BD70: =IF(DF70>0,$F$12,0) -> 1 | BE70: =IF(DG70>0,$F$13,0) -> 1 | BF70: =IF(DI70>0,$F$14,IF(DH70>0,$F$14/2,0)) -> 1 | BG70: =+IF(DJ70>=$L$19,$J$19,IF(DJ70<($L$19),DJ70*($J$19/($L$19)),)) -> 0.1183333333 | BH70: =+IF(DK70>=$L$20,$J$20,IF(DK70<($L$20),DK70*($J$20/($L$20)),)) -> 0 | BI70: =+IF(DL70>=$L$21,$J$21,IF(DL70<($L$21),DL70*($J$21/($L$21)),)) -> 0 | BJ70: =+IF(DM70>=$L$22,$J$22,IF(DM70<($L$22),DM70*($J$22/($L$22)),)) -> 0 | BK70: =IF(DN70>0,$F$16,0) -> 2 | BL70: =+IF(DQ70>=$L$25,$J$25,IF(DQ70<($L$25),DQ70*($J$25/($L$25)),)) -> 2 | BM70: =IF(EG70>100000,$F$18,IF(EG70>0,$F$18/2,0)) -> 0.5 | BN70: =IF(ED70>0,$F$19,0) -> 2 | BO70: 1.41157 | BP70: 2.13094 | BQ70: 0.866365 | BR70: 0.519389 | BS70: 1.93589055 | BT70: =IF(COUNTIF($I$29:$L$29,TRUE)=0,0,IF(SUMIF($I$29:$L$29,TRUE,BO70:BR70)/COUNTIF($I$29:$L$29,TRUE)>=$L$30,$F$20/2,$F$20/2*(SUMIF($I$29:$L$29,TRUE,BO70:BR70)/COUNTIF($I$29:$L$29,TRUE)/$L$30)))+IF(BS70>=10,$F$20/2,IF(BS70<(10),BS70*($F$20/2/10))) -> 0.2437570275 | BU70: =SUM(BA70+BB70+BC70+BD70+BE70+BF70+BK70+BG70+BH70+BI70+BJ70+BL70+BM70+BN70+BT70) -> 19.86209036 | BV70: =+BU70*$H$9 -> 6.620696787 | BW70: 1819.36674 | BX70: =BW70/X70 -> 0.2803338583 | BY70: =IF(BX70>0,IF(BX70>=$DC$28,$DA$28,IF(BX70<$DC$28,$DA$29,0)),0) -> 0.5 | BZ70: 6435.1 | CA70: =BZ70/X70 -> 0.991540832 | CB70: =IF(CA70,$F$23,0) -> 1 | CC70: =IF(DS70>0,$F$24,0) -> 1 | CD70: 3018.092392 | CE70: =CD70/X70 -> 0.4650373485 | CF70: =IF(CE70>0,IF(CE70>=$DC$22,$DA$22,IF(CE70<$DC$28,$DA$23,0)),0) -> 0.5 | CG70: 196.6687211 | CH70: =IF(CG70>0,IF(CG70>=100,$F$26,IF(CG70<100,$F$26/2)),0) -> 1 | CI70: =SUM(DW70) -> 1 | CJ70: =IF(EA70>0,$F$28,0) -> 0 | CK70: =IF(DX70>0,$F$29,0) -> 0 | CL70: =IF(EC70>0,$F$30,0) -> 1 | CM70: =SUM(BY70,CB70,CH70,CC70,CF70,CI70,CJ70,CK70,CL70) -> 6 | CN70: =+CM70*$H$22 -> 2 | CO70: =SUM(AY70,BU70,CM70) -> 40.86209036 | CP70: =SUM(AZ70,BV70,CN70) -> 13.62069679 | CQ70: =IF(D70<($Z$13*1785),1,IF(D70<(($Z$14+$Z$13)*1785),2,IF(D70<(($Z$15+$Z$13+$Z$14)*1785),3,4))) -> 1 | CR70: =VLOOKUP(C70,Taul1!$F$6:$G$1718,2,FALSE) -> 1 | CX70: https://www.google.com/maps/@60.53336467,24.23563968,3a,75y,90t/data=!3m3!1e1!3m1!2e0 | DA70: 0 | DB70: 0 | DC70: 2 | DD70: =SUM(DA70:DC70) -> 2 | DE70: 0 | DF70: 5 | DG70: 1 | DH70: 5 | DI70: 0 | DJ70: 71 | DK70: 0 | DL70: 0 | DM70: 0 | DN70: 1 | DP70: 1819.36674 | DQ70: 3 | DR70: 1 | DS70: 24 | DT70: 3018.092392 | DU70: =+IF(AA70>$K$8,$F$27/2,0) -> 1 | DV70: =+IF(AA70/Y70>1.5,$F$27/2,0) -> 0 | DW70: =SUM(DU70:DV70) -> 1 | DX70: 0 | DY70: 0 | DZ70: 0 | EA70: =SUM(DY70:DZ70) -> 0 | EC70: 1 | ED70: 2 | EG70: 10088
A71: 148_3_0 | B71: 1 | C71: =CONCATENATE(S71,"_",T71) -> 148_3 | D71: =RANK(CP71,$CP$37:$CP$1816) -> 35 | E71: 35 | F71: =E71-D71 -> 0 | G71: =CP71 -> 13.61920754 | H71: =AZ71 -> 5 | I71: =BV71 -> 6.285874206 | J71: =CN71 -> 2.333333333 | K71: =CQ71 -> 1 | L71: =B71-K71 -> 0 | M71: =HYPERLINK(CX71,"Gmaps") -> Gmaps | N71: =IF(Y71>$K$6,"LOPUT","VÄHÄ") -> LOPUT | O71: =IF(S71<40,"Valta",IF(S71<100,"Kanta",IF(S71<1000,"Seutu",IF(S71>999,"Yhdys")))) -> Seutu | P71: Keravantie | Q71: Kerava, Sipoo | R71: Uusimaa | S71: 148 | T71: 3 | U71: 0 | V71: 3 | W71: 6891 | X71: 6891 | Y71: 7121.672616 | Z71: 719.7126687 | AA71: 7429.370483 | AB71: 6106 (78 %), 10772 (22 %) | AC71: PK2 | AD71: PK2 (99 %) | AE71: 60 (54 %), 80 (46 %) | AF71: Is (100 %) | AG71: Asfalttibetoni (90 %), Kivimastiksiasfaltti (10 %) | AH71: 6 | AI71: 14 | AJ71: 0.4572320732 | AK71: 417.9764911 | AN71: Maantie (100 %) | AO71: 0.2167641762 | AR71: =+IF(Y71>=$K$6,$F$5,($F$5/($K$6))*Y71) -> 9 | AS71: 636 | AV71: =+IF(AS71>=$L$15,$J$15,IF(AS71<($L$15),AS71*($J$15/($L$15)),)) -> 3 | AW71: 6332 | AX71: =+IF(AW71>=$L$11,$J$11,IF(AW71<($L$11),AW71*($J$11/($L$11)),)) -> 3 | AY71: =SUM(AR71,AV71,AX71) -> 15 | AZ71: =+AY71*$H$5 -> 5 | BA71: =+IF(Z71=0,0,IF(Z71>$K$7,$F$9,($F$9/$K$7)*Z71)) -> 8 | BB71: =IF(DD71>0,$F$10,0) -> 0 | BC71: =IF(DE71>0,$F$11,0) -> 0 | BD71: =IF(DF71>0,$F$12,0) -> 1 | BE71: =IF(DG71>0,$F$13,0) -> 0 | BF71: =IF(DI71>0,$F$14,IF(DH71>0,$F$14/2,0)) -> 2 | BG71: =+IF(DJ71>=$L$19,$J$19,IF(DJ71<($L$19),DJ71*($J$19/($L$19)),)) -> 0.5 | BH71: =+IF(DK71>=$L$20,$J$20,IF(DK71<($L$20),DK71*($J$20/($L$20)),)) -> 0 | BI71: =+IF(DL71>=$L$21,$J$21,IF(DL71<($L$21),DL71*($J$21/($L$21)),)) -> 0 | BJ71: =+IF(DM71>=$L$22,$J$22,IF(DM71<($L$22),DM71*($J$22/($L$22)),)) -> 0 | BK71: =IF(DN71>0,$F$16,0) -> 2 | BL71: =+IF(DQ71>=$L$25,$J$25,IF(DQ71<($L$25),DQ71*($J$25/($L$25)),)) -> 2 | BM71: =IF(EG71>100000,$F$18,IF(EG71>0,$F$18/2,0)) -> 1 | BN71: =IF(ED71>0,$F$19,0) -> 2 | BO71: 0.44427 | BP71: 0.847652 | BQ71: 1.54072 | BR71: 0.232297 | BS71: 5.264024382 | BT71: =IF(COUNTIF($I$29:$L$29,TRUE)=0,0,IF(SUMIF($I$29:$L$29,TRUE,BO71:BR71)/COUNTIF($I$29:$L$29,TRUE)>=$L$30,$F$20/2,$F$20/2*(SUMIF($I$29:$L$29,TRUE,BO71:BR71)/COUNTIF($I$29:$L$29,TRUE)/$L$30)))+IF(BS71>=10,$F$20/2,IF(BS71<(10),BS71*($F$20/2/10))) -> 0.3576226191 | BU71: =SUM(BA71+BB71+BC71+BD71+BE71+BF71+BK71+BG71+BH71+BI71+BJ71+BL71+BM71+BN71+BT71) -> 18.85762262 | BV71: =+BU71*$H$9 -> 6.285874206 | BW71: 3685.028026 | BX71: =BW71/X71 -> 0.5347595452 | BY71: =IF(BX71>0,IF(BX71>=$DC$28,$DA$28,IF(BX71<$DC$28,$DA$29,0)),0) -> 1 | BZ71: 6655.136494 | CA71: =BZ71/X71 -> 0.9657722383 | CB71: =IF(CA71,$F$23,0) -> 1 | CC71: =IF(DS71>0,$F$24,0) -> 1 | CD71: 2651.091265 | CE71: =CD71/X71 -> 0.3847179313 | CF71: =IF(CE71>0,IF(CE71>=$DC$22,$DA$22,IF(CE71<$DC$28,$DA$23,0)),0) -> 0.5 | CG71: 63.39544333 | CH71: =IF(CG71>0,IF(CG71>=100,$F$26,IF(CG71<100,$F$26/2)),0) -> 0.5 | CI71: =SUM(DW71) -> 1 | CJ71: =IF(EA71>0,$F$28,0) -> 0 | CK71: =IF(DX71>0,$F$29,0) -> 1 | CL71: =IF(EC71>0,$F$30,0) -> 1 | CM71: =SUM(BY71,CB71,CH71,CC71,CF71,CI71,CJ71,CK71,CL71) -> 7 | CN71: =+CM71*$H$22 -> 2.333333333 | CO71: =SUM(AY71,BU71,CM71) -> 40.85762262 | CP71: =SUM(AZ71,BV71,CN71) -> 13.61920754 | CQ71: =IF(D71<($Z$13*1785),1,IF(D71<(($Z$14+$Z$13)*1785),2,IF(D71<(($Z$15+$Z$13+$Z$14)*1785),3,4))) -> 1 | CR71: =VLOOKUP(C71,Taul1!$F$6:$G$1718,2,FALSE) -> 2 | CX71: https://www.google.com/maps/@60.38784404,25.11907106,3a,75y,90t/data=!3m3!1e1!3m1!2e0 | DA71: 0 | DB71: 0 | DC71: 0 | DD71: =SUM(DA71:DC71) -> 0 | DE71: 0 | DF71: 2 | DG71: 0 | DH71: 11 | DI71: 5 | DJ71: 329 | DK71: 0 | DL71: 0 | DM71: 0 | DN71: 1 | DP71: 3685.028026 | DQ71: 20 | DR71: 4 | DS71: 15 | DT71: 2651.091265 | DU71: =+IF(AA71>$K$8,$F$27/2,0) -> 1 | DV71: =+IF(AA71/Y71>1.5,$F$27/2,0) -> 0 | DW71: =SUM(DU71:DV71) -> 1 | DX71: 2 | DY71: 0 | DZ71: 0 | EA71: =SUM(DY71:DZ71) -> 0 | EC71: 1 | ED71: 4 | EG71: 393313
A72: 140_30_0 | B72: 1 | C72: =CONCATENATE(S72,"_",T72) -> 140_30 | D72: =RANK(CP72,$CP$37:$CP$1816) -> 36 | E72: 36 | F72: =E72-D72 -> 0 | G72: =CP72 -> 13.58439589 | H72: =AZ72 -> 5 | I72: =BV72 -> 5.584395889 | J72: =CN72 -> 3 | K72: =CQ72 -> 1 | L72: =B72-K72 -> 0 | M72: =HYPERLINK(CX72,"Gmaps") -> Gmaps | N72: =IF(Y72>$K$6,"LOPUT","VÄHÄ") -> LOPUT | O72: =IF(S72<40,"Valta",IF(S72<100,"Kanta",IF(S72<1000,"Seutu",IF(S72>999,"Yhdys")))) -> Seutu | P72: Lahdentie, Myllyojantie | Q72: Heinola | R72: Päijät-Häme | S72: 140 | T72: 30 | U72: 0 | V72: 30 | W72: 4366 | X72: 4366 | Y72: 3710 | Z72: 179 | AA72: 4103 | AB72: 3710 (100 %) | AC72: PK2 | AD72: PK2 (99 %) | AE72: 60 (20 %), 70 (80 %) | AF72: Ib (100 %) | AG72: Asfalttibetoni (100 %) | AH72: 2 | AI72: 2 | AJ72: 0.1570210857 | AK72: 57 | AN72: Katu (100 %) | AO72: 0.8868482756 | AR72: =+IF(Y72>=$K$6,$F$5,($F$5/($K$6))*Y72) -> 9 | AS72: 489 | AV72: =+IF(AS72>=$L$15,$J$15,IF(AS72<($L$15),AS72*($J$15/($L$15)),)) -> 3 | AW72: 2071 | AX72: =+IF(AW72>=$L$11,$J$11,IF(AW72<($L$11),AW72*($J$11/($L$11)),)) -> 3 | AY72: =SUM(AR72,AV72,AX72) -> 15 | AZ72: =+AY72*$H$5 -> 5 | BA72: =+IF(Z72=0,0,IF(Z72>$K$7,$F$9,($F$9/$K$7)*Z72)) -> 8 | BB72: =IF(DD72>0,$F$10,0) -> 0 | BC72: =IF(DE72>0,$F$11,0) -> 1 | BD72: =IF(DF72>0,$F$12,0) -> 1 | BE72: =IF(DG72>0,$F$13,0) -> 0 | BF72: =IF(DI72>0,$F$14,IF(DH72>0,$F$14/2,0)) -> 2 | BG72: =+IF(DJ72>=$L$19,$J$19,IF(DJ72<($L$19),DJ72*($J$19/($L$19)),)) -> 0 | BH72: =+IF(DK72>=$L$20,$J$20,IF(DK72<($L$20),DK72*($J$20/($L$20)),)) -> 0 | BI72: =+IF(DL72>=$L$21,$J$21,IF(DL72<($L$21),DL72*($J$21/($L$21)),)) -> 0 | BJ72: =+IF(DM72>=$L$22,$J$22,IF(DM72<($L$22),DM72*($J$22/($L$22)),)) -> 0 | BK72: =IF(DN72>0,$F$16,0) -> 0 | BL72: =+IF(DQ72>=$L$25,$J$25,IF(DQ72<($L$25),DQ72*($J$25/($L$25)),)) -> 2 | BM72: =IF(EG72>100000,$F$18,IF(EG72>0,$F$18/2,0)) -> 0 | BN72: =IF(ED72>0,$F$19,0) -> 2 | BO72: 2.64412 | BP72: 2.33198 | BQ72: 2.61953 | BR72: 1.08946 | BS72: 16.67500308 | BT72: =IF(COUNTIF($I$29:$L$29,TRUE)=0,0,IF(SUMIF($I$29:$L$29,TRUE,BO72:BR72)/COUNTIF($I$29:$L$29,TRUE)>=$L$30,$F$20/2,$F$20/2*(SUMIF($I$29:$L$29,TRUE,BO72:BR72)/COUNTIF($I$29:$L$29,TRUE)/$L$30)))+IF(BS72>=10,$F$20/2,IF(BS72<(10),BS72*($F$20/2/10))) -> 0.7531876667 | BU72: =SUM(BA72+BB72+BC72+BD72+BE72+BF72+BK72+BG72+BH72+BI72+BJ72+BL72+BM72+BN72+BT72) -> 16.75318767 | BV72: =+BU72*$H$9 -> 5.584395889 | BW72: 4365.937924 | BX72: =BW72/X72 -> 0.999985782 | BY72: =IF(BX72>0,IF(BX72>=$DC$28,$DA$28,IF(BX72<$DC$28,$DA$29,0)),0) -> 1 | BZ72: 4365.937924 | CA72: =BZ72/X72 -> 0.999985782 | CB72: =IF(CA72,$F$23,0) -> 1 | CC72: =IF(DS72>0,$F$24,0) -> 1 | CD72: 3923.816716 | CE72: =CD72/X72 -> 0.8987211902 | CF72: =IF(CE72>0,IF(CE72>=$DC$22,$DA$22,IF(CE72<$DC$28,$DA$23,0)),0) -> 1 | CG72: 265.5519927 | CH72: =IF(CG72>0,IF(CG72>=100,$F$26,IF(CG72<100,$F$26/2)),0) -> 1 | CI72: =SUM(DW72) -> 1 | CJ72: =IF(EA72>0,$F$28,0) -> 1 | CK72: =IF(DX72>0,$F$29,0) -> 1 | CL72: =IF(EC72>0,$F$30,0) -> 1 | CM72: =SUM(BY72,CB72,CH72,CC72,CF72,CI72,CJ72,CK72,CL72) -> 9 | CN72: =+CM72*$H$22 -> 3 | CO72: =SUM(AY72,BU72,CM72) -> 40.75318767 | CP72: =SUM(AZ72,BV72,CN72) -> 13.58439589 | CQ72: =IF(D72<($Z$13*1785),1,IF(D72<(($Z$14+$Z$13)*1785),2,IF(D72<(($Z$15+$Z$13+$Z$14)*1785),3,4))) -> 1 | CR72: =VLOOKUP(C72,Taul1!$F$6:$G$1718,2,FALSE) -> 1 | CX72: https://www.google.com/maps/@61.15556596,25.98388638,3a,75y,90t/data=!3m3!1e1!3m1!2e0 | DA72: 0 | DB72: 0 | DC72: 0 | DD72: =SUM(DA72:DC72) -> 0 | DE72: 3 | DF72: 1 | DG72: 0 | DH72: 1 | DI72: 2 | DJ72: 0 | DK72: 0 | DL72: 0 | DM72: 0 | DN72: 0 | DP72: 4365.937924 | DQ72: 4 | DR72: 0 | DS72: 3 | DT72: 3923.816716 | DU72: =+IF(AA72>$K$8,$F$27/2,0) -> 1 | DV72: =+IF(AA72/Y72>1.5,$F$27/2,0) -> 0 | DW72: =SUM(DU72:DV72) -> 1 | DX72: 1 | DY72: 0 | DZ72: 1 | EA72: =SUM(DY72:DZ72) -> 1 | EC72: 1 | ED72: 1 | EG72: 0
A73: 1361_1_3207 | B73: 1 | C73: =CONCATENATE(S73,"_",T73) -> 1361_1 | D73: =RANK(CP73,$CP$37:$CP$1816) -> 37 | E73: 37 | F73: =E73-D73 -> 0 | G73: =CP73 -> 13.54742164 | H73: =AZ73 -> 4.25 | I73: =BV73 -> 6.797421642 | J73: =CN73 -> 2.5 | K73: =CQ73 -> 1 | L73: =B73-K73 -> 0 | M73: =HYPERLINK(CX73,"Gmaps") -> Gmaps | N73: =IF(Y73>$K$6,"LOPUT","VÄHÄ") -> LOPUT | O73: =IF(S73<40,"Valta",IF(S73<100,"Kanta",IF(S73<1000,"Seutu",IF(S73>999,"Yhdys")))) -> Yhdys | P73: Kytäjäntie, Läntinen Yhdystie | Q73: Hyvinkää | R73: Uusimaa | S73: 1361 | T73: 1 | U73: 3207 | V73: 1 | W73: 12163 | X73: 8956 | Y73: 2532.350045 | Z73: 96.59669495 | AA73: 3083.242184 | AB73: 1963 (94 %), 12306 (6 %) | AC73: PK2 | AD73: PK2 (99 %) | AE73: 50 (25 %), 70 (75 %) | AF73: Ib (100 %) | AG73: Asfalttibetoni (100 %) | AH73: 3 | AI73: 5 | AJ73: 0.3573023671 | AK73: 31.42217508 | AN73: Katu (73 %) | AO73: 0.1830757694 | AR73: =+IF(Y73>=$K$6,$F$5,($F$5/($K$6))*Y73) -> 9 | AS73: 10 | AV73: =+IF(AS73>=$L$15,$J$15,IF(AS73<($L$15),AS73*($J$15/($L$15)),)) -> 0.75 | AW73: 6727 | AX73: =+IF(AW73>=$L$11,$J$11,IF(AW73<($L$11),AW73*($J$11/($L$11)),)) -> 3 | AY73: =SUM(AR73,AV73,AX73) -> 12.75 | AZ73: =+AY73*$H$5 -> 4.25 | BA73: =+IF(Z73=0,0,IF(Z73>$K$7,$F$9,($F$9/$K$7)*Z73)) -> 8 | BB73: =IF(DD73>0,$F$10,0) -> 2 | BC73: =IF(DE73>0,$F$11,0) -> 1 | BD73: =IF(DF73>0,$F$12,0) -> 1 | BE73: =IF(DG73>0,$F$13,0) -> 0 | BF73: =IF(DI73>0,$F$14,IF(DH73>0,$F$14/2,0)) -> 2 | BG73: =+IF(DJ73>=$L$19,$J$19,IF(DJ73<($L$19),DJ73*($J$19/($L$19)),)) -> 0.02166666667 | BH73: =+IF(DK73>=$L$20,$J$20,IF(DK73<($L$20),DK73*($J$20/($L$20)),)) -> 0.225 | BI73: =+IF(DL73>=$L$21,$J$21,IF(DL73<($L$21),DL73*($J$21/($L$21)),)) -> 0 | BJ73: =+IF(DM73>=$L$22,$J$22,IF(DM73<($L$22),DM73*($J$22/($L$22)),)) -> 0 | BK73: =IF(DN73>0,$F$16,0) -> 2 | BL73: =+IF(DQ73>=$L$25,$J$25,IF(DQ73<($L$25),DQ73*($J$25/($L$25)),)) -> 2 | BM73: =IF(EG73>100000,$F$18,IF(EG73>0,$F$18/2,0)) -> 0 | BN73: =IF(ED73>0,$F$19,0) -> 2 | BO73: 0.996715 | BP73: 1.45481 | BQ73: 0.954645 | BR73: 0.675735 | BS73: 0.6411852116 | BT73: =IF(COUNTIF($I$29:$L$29,TRUE)=0,0,IF(SUMIF($I$29:$L$29,TRUE,BO73:BR73)/COUNTIF($I$29:$L$29,TRUE)>=$L$30,$F$20/2,$F$20/2*(SUMIF($I$29:$L$29,TRUE,BO73:BR73)/COUNTIF($I$29:$L$29,TRUE)/$L$30)))+IF(BS73>=10,$F$20/2,IF(BS73<(10),BS73*($F$20/2/10))) -> 0.1455982606 | BU73: =SUM(BA73+BB73+BC73+BD73+BE73+BF73+BK73+BG73+BH73+BI73+BJ73+BL73+BM73+BN73+BT73) -> 20.39226493 | BV73: =+BU73*$H$9 -> 6.797421642 | BW73: 1383.370186 | BX73: =BW73/X73 -> 0.1544629506 | BY73: =IF(BX73>0,IF(BX73>=$DC$28,$DA$28,IF(BX73<$DC$28,$DA$29,0)),0) -> 0.5 | BZ73: 8784.901376 | CA73: =BZ73/X73 -> 0.9808956427 | CB73: =IF(CA73,$F$23,0) -> 1 | CC73: =IF(DS73>0,$F$24,0) -> 1 | CD73: 771.0977506 | CE73: =CD73/X73 -> 0.08609845362 | CF73: =IF(CE73>0,IF(CE73>=$DC$22,$DA$22,IF(CE73<$DC$28,$DA$23,0)),0) -> 0.5 | CG73: 12.88521661 | CH73: =IF(CG73>0,IF(CG73>=100,$F$26,IF(CG73<100,$F$26/2)),0) -> 0.5 | CI73: =SUM(DW73) -> 1 | CJ73: =IF(EA73>0,$F$28,0) -> 1 | CK73: =IF(DX73>0,$F$29,0) -> 1 | CL73: =IF(EC73>0,$F$30,0) -> 1 | CM73: =SUM(BY73,CB73,CH73,CC73,CF73,CI73,CJ73,CK73,CL73) -> 7.5 | CN73: =+CM73*$H$22 -> 2.5 | CO73: =SUM(AY73,BU73,CM73) -> 40.64226493 | CP73: =SUM(AZ73,BV73,CN73) -> 13.54742164 | CQ73: =IF(D73<($Z$13*1785),1,IF(D73<(($Z$14+$Z$13)*1785),2,IF(D73<(($Z$15+$Z$13+$Z$14)*1785),3,4))) -> 1 | CR73: =VLOOKUP(C73,Taul1!$F$6:$G$1718,2,FALSE) -> 2 | CX73: https://www.google.com/maps/@60.62063526,24.81622165,3a,75y,90t/data=!3m3!1e1!3m1!2e0 | DA73: 1 | DB73: 0 | DC73: 0 | DD73: =SUM(DA73:DC73) -> 1 | DE73: 1 | DF73: 2 | DG73: 0 | DH73: 2 | DI73: 3 | DJ73: 13 | DK73: 45 | DL73: 0 | DM73: 0 | DN73: 1 | DP73: 1383.370186 | DQ73: 15 | DR73: 0 | DS73: 18 | DT73: 771.0977506 | DU73: =+IF(AA73>$K$8,$F$27/2,0) -> 1 | DV73: =+IF(AA73/Y73>1.5,$F$27/2,0) -> 0 | DW73: =SUM(DU73:DV73) -> 1 | DX73: 2 | DY73: 0 | DZ73: 1 | EA73: =SUM(DY73:DZ73) -> 1 | EC73: 1 | ED73: 4 | EG73: 0
A74: 12_222_0 | B74: 1 | C74: =CONCATENATE(S74,"_",T74) -> 12_222 | D74: =RANK(CP74,$CP$37:$CP$1816) -> 38 | E74: 38 | F74: =E74-D74 -> 0 | G74: =CP74 -> 13.53875562 | H74: =AZ74 -> 5 | I74: =BV74 -> 6.705422291 | J74: =CN74 -> 1.833333333 | K74: =CQ74 -> 1 | L74: =B74-K74 -> 0 | M74: =HYPERLINK(CX74,"Gmaps") -> Gmaps | N74: =IF(Y74>$K$6,"LOPUT","VÄHÄ") -> LOPUT | O74: =IF(S74<40,"Valta",IF(S74<100,"Kanta",IF(S74<1000,"Seutu",IF(S74>999,"Yhdys")))) -> Valta | P74: Eteläinen Kehätie | Q74: Hollola, Lahti | R74: Päijät-Häme | S74: 12 | T74: 222 | U74: 0 | V74: 222 | W74: 5044 | X74: 5044 | Y74: 9987.0682 | Z74: 1115.256146 | AA74: 9886.794607 | AB74: 9413 (25 %), 10175 (75 %) | AC74: PK1 | AD74: PK1 (100 %) | AE74: 80 (54 %), 100 (46 %) | AF74: Is (100 %) | AG74: Asfalttibetoni (89 %), Kivimastiksiasfaltti (11 %) | AH74: 1 | AI74: 5 | AJ74: 0.05614823133 | AK74: 777.0134814 | AL74: Kattava | AM74: I | AN74: Maantie (100 %) | AO74: 0 | AR74: =+IF(Y74>=$K$6,$F$5,($F$5/($K$6))*Y74) -> 9 | AS74: 225 | AV74: =+IF(AS74>=$L$15,$J$15,IF(AS74<($L$15),AS74*($J$15/($L$15)),)) -> 3 | AW74: 4324 | AX74: =+IF(AW74>=$L$11,$J$11,IF(AW74<($L$11),AW74*($J$11/($L$11)),)) -> 3 | AY74: =SUM(AR74,AV74,AX74) -> 15 | AZ74: =+AY74*$H$5 -> 5 | BA74: =+IF(Z74=0,0,IF(Z74>$K$7,$F$9,($F$9/$K$7)*Z74)) -> 8 | BB74: =IF(DD74>0,$F$10,0) -> 2 | BC74: =IF(DE74>0,$F$11,0) -> 1 | BD74: =IF(DF74>0,$F$12,0) -> 1 | BE74: =IF(DG74>0,$F$13,0) -> 0 | BF74: =IF(DI74>0,$F$14,IF(DH74>0,$F$14/2,0)) -> 1 | BG74: =+IF(DJ74>=$L$19,$J$19,IF(DJ74<($L$19),DJ74*($J$19/($L$19)),)) -> 0 | BH74: =+IF(DK74>=$L$20,$J$20,IF(DK74<($L$20),DK74*($J$20/($L$20)),)) -> 0.025 | BI74: =+IF(DL74>=$L$21,$J$21,IF(DL74<($L$21),DL74*($J$21/($L$21)),)) -> 0 | BJ74: =+IF(DM74>=$L$22,$J$22,IF(DM74<($L$22),DM74*($J$22/($L$22)),)) -> 0 | BK74: =IF(DN74>0,$F$16,0) -> 2 | BL74: =+IF(DQ74>=$L$25,$J$25,IF(DQ74<($L$25),DQ74*($J$25/($L$25)),)) -> 2 | BM74: =IF(EG74>100000,$F$18,IF(EG74>0,$F$18/2,0)) -> 0.5 | BN74: =IF(ED74>0,$F$19,0) -> 2 | BO74: 5.9956 | BP74: 19.0499 | BQ74: 16.6253 | BR74: 18.8028 | BS74: 1.825337467 | BT74: =IF(COUNTIF($I$29:$L$29,TRUE)=0,0,IF(SUMIF($I$29:$L$29,TRUE,BO74:BR74)/COUNTIF($I$29:$L$29,TRUE)>=$L$30,$F$20/2,$F$20/2*(SUMIF($I$29:$L$29,TRUE,BO74:BR74)/COUNTIF($I$29:$L$29,TRUE)/$L$30)))+IF(BS74>=10,$F$20/2,IF(BS74<(10),BS74*($F$20/2/10))) -> 0.5912668733 | BU74: =SUM(BA74+BB74+BC74+BD74+BE74+BF74+BK74+BG74+BH74+BI74+BJ74+BL74+BM74+BN74+BT74) -> 20.11626687 | BV74: =+BU74*$H$9 -> 6.705422291 | BW74: 3812.529641 | BX74: =BW74/X74 -> 0.7558544094 | BY74: =IF(BX74>0,IF(BX74>=$DC$28,$DA$28,IF(BX74<$DC$28,$DA$29,0)),0) -> 1 | BZ74: 0 | CA74: =BZ74/X74 -> 0 | CB74: =IF(CA74,$F$23,0) -> 0 | CC74: =IF(DS74>0,$F$24,0) -> 1 | CD74: 1139.151417 | CE74: =CD74/X74 -> 0.2258428663 | CF74: =IF(CE74>0,IF(CE74>=$DC$22,$DA$22,IF(CE74<$DC$28,$DA$23,0)),0) -> 0.5 | CG74: 115.59318 | CH74: =IF(CG74>0,IF(CG74>=100,$F$26,IF(CG74<100,$F$26/2)),0) -> 1 | CI74: =SUM(DW74) -> 1 | CJ74: =IF(EA74>0,$F$28,0) -> 0 | CK74: =IF(DX74>0,$F$29,0) -> 0 | CL74: =IF(EC74>0,$F$30,0) -> 1 | CM74: =SUM(BY74,CB74,CH74,CC74,CF74,CI74,CJ74,CK74,CL74) -> 5.5 | CN74: =+CM74*$H$22 -> 1.833333333 | CO74: =SUM(AY74,BU74,CM74) -> 40.61626687 | CP74: =SUM(AZ74,BV74,CN74) -> 13.53875562 | CQ74: =IF(D74<($Z$13*1785),1,IF(D74<(($Z$14+$Z$13)*1785),2,IF(D74<(($Z$15+$Z$13+$Z$14)*1785),3,4))) -> 1 | CR74: =VLOOKUP(C74,Taul1!$F$6:$G$1718,2,FALSE) -> 2 | CX74: https://www.google.com/maps/@60.96174275,25.52940693,3a,75y,90t/data=!3m3!1e1!3m1!2e0 | DA74: 0 | DB74: 0 | DC74: 6 | DD74: =SUM(DA74:DC74) -> 6 | DE74: 11 | DF74: 1 | DG74: 0 | DH74: 4 | DI74: 0 | DJ74: 0 | DK74: 5 | DL74: 0 | DM74: 0 | DN74: 2 | DP74: 3812.529641 | DQ74: 26 | DR74: 5 | DS74: 13 | DT74: 1139.151417 | DU74: =+IF(AA74>$K$8,$F$27/2,0) -> 1 | DV74: =+IF(AA74/Y74>1.5,$F$27/2,0) -> 0 | DW74: =SUM(DU74:DV74) -> 1 | DX74: 0 | DY74: 0 | DZ74: 0 | EA74: =SUM(DY74:DZ74) -> 0 | EC74: 1 | ED74: 3 | EG74: 82842
A75: 25_24_0 | B75: 1 | C75: =CONCATENATE(S75,"_",T75) -> 25_24 | D75: =RANK(CP75,$CP$37:$CP$1816) -> 39 | E75: 39 | F75: =E75-D75 -> 0 | G75: =CP75 -> 13.5 | H75: =AZ75 -> 5 | I75: =BV75 -> 5.833333333 | J75: =CN75 -> 2.666666667 | K75: =CQ75 -> 1 | L75: =B75-K75 -> 0 | M75: =HYPERLINK(CX75,"Gmaps") -> Gmaps | N75: =IF(Y75>$K$6,"LOPUT","VÄHÄ") -> LOPUT | O75: =IF(S75<40,"Valta",IF(S75<100,"Kanta",IF(S75<1000,"Seutu",IF(S75>999,"Yhdys")))) -> Valta | P75: Kehätie | Q75: Vihti | R75: Uusimaa | S75: 25 | T75: 24 | U75: 0 | V75: 24 | W75: 5425 | X75: 5425 | Y75: 7996.521659 | Z75: 781.6967742 | AA75: 9889.985253 | AB75: 7586 (88 %), 10910 (12 %) | AC75: PK1 | AD75: PK1 (100 %) | AE75: 60 (20 %), 80 (80 %) | AF75: Ise (100 %) | AG75: Kivimastiksiasfaltti (100 %) | AH75: 11 | AI75: 17 | AJ75: 0.3880070547 | AK75: 485.7529954 | AL75: Kattava | AM75: I | AN75: Maantie (100 %) | AO75: 0.01130999687 | AR75: =+IF(Y75>=$K$6,$F$5,($F$5/($K$6))*Y75) -> 9 | AS75: 71 | AV75: =+IF(AS75>=$L$15,$J$15,IF(AS75<($L$15),AS75*($J$15/($L$15)),)) -> 3 | AW75: 5811 | AX75: =+IF(AW75>=$L$11,$J$11,IF(AW75<($L$11),AW75*($J$11/($L$11)),)) -> 3 | AY75: =SUM(AR75,AV75,AX75) -> 15 | AZ75: =+AY75*$H$5 -> 5 | BA75: =+IF(Z75=0,0,IF(Z75>$K$7,$F$9,($F$9/$K$7)*Z75)) -> 8 | BB75: =IF(DD75>0,$F$10,0) -> 2 | BC75: =IF(DE75>0,$F$11,0) -> 0 | BD75: =IF(DF75>0,$F$12,0) -> 0 | BE75: =IF(DG75>0,$F$13,0) -> 0 | BF75: =IF(DI75>0,$F$14,IF(DH75>0,$F$14/2,0)) -> 1 | BG75: =+IF(DJ75>=$L$19,$J$19,IF(DJ75<($L$19),DJ75*($J$19/($L$19)),)) -> 0 | BH75: =+IF(DK75>=$L$20,$J$20,IF(DK75<($L$20),DK75*($J$20/($L$20)),)) -> 0.5 | BI75: =+IF(DL75>=$L$21,$J$21,IF(DL75<($L$21),DL75*($J$21/($L$21)),)) -> 0 | BJ75: =+IF(DM75>=$L$22,$J$22,IF(DM75<($L$22),DM75*($J$22/($L$22)),)) -> 0 | BK75: =IF(DN75>0,$F$16,0) -> 0 | BL75: =+IF(DQ75>=$L$25,$J$25,IF(DQ75<($L$25),DQ75*($J$25/($L$25)),)) -> 2 | BM75: =IF(EG75>100000,$F$18,IF(EG75>0,$F$18/2,0)) -> 1 | BN75: =IF(ED75>0,$F$19,0) -> 2 | BO75: 9.97136 | BP75: 9.98972 | BQ75: 6.91912 | BR75: 4.43046 | BS75: 18.26841114 | BT75: =IF(COUNTIF($I$29:$L$29,TRUE)=0,0,IF(SUMIF($I$29:$L$29,TRUE,BO75:BR75)/COUNTIF($I$29:$L$29,TRUE)>=$L$30,$F$20/2,$F$20/2*(SUMIF($I$29:$L$29,TRUE,BO75:BR75)/COUNTIF($I$29:$L$29,TRUE)/$L$30)))+IF(BS75>=10,$F$20/2,IF(BS75<(10),BS75*($F$20/2/10))) -> 1 | BU75: =SUM(BA75+BB75+BC75+BD75+BE75+BF75+BK75+BG75+BH75+BI75+BJ75+BL75+BM75+BN75+BT75) -> 17.5 | BV75: =+BU75*$H$9 -> 5.833333333 | BW75: 4530.348062 | BX75: =BW75/X75 -> 0.8350872004 | BY75: =IF(BX75>0,IF(BX75>=$DC$28,$DA$28,IF(BX75<$DC$28,$DA$29,0)),0) -> 1 | BZ75: 5437.066626 | CA75: =BZ75/X75 -> 1.002224263 | CB75: =IF(CA75,$F$23,0) -> 1 | CC75: =IF(DS75>0,$F$24,0) -> 1 | CD75: 4144.428582 | CE75: =CD75/X75 -> 0.7639499689 | CF75: =IF(CE75>0,IF(CE75>=$DC$22,$DA$22,IF(CE75<$DC$28,$DA$23,0)),0) -> 1 | CG75: 389.483871 | CH75: =IF(CG75>0,IF(CG75>=100,$F$26,IF(CG75<100,$F$26/2)),0) -> 1 | CI75: =SUM(DW75) -> 1 | CJ75: =IF(EA75>0,$F$28,0) -> 0 | CK75: =IF(DX75>0,$F$29,0) -> 1 | CL75: =IF(EC75>0,$F$30,0) -> 1 | CM75: =SUM(BY75,CB75,CH75,CC75,CF75,CI75,CJ75,CK75,CL75) -> 8 | CN75: =+CM75*$H$22 -> 2.666666667 | CO75: =SUM(AY75,BU75,CM75) -> 40.5 | CP75: =SUM(AZ75,BV75,CN75) -> 13.5 | CQ75: =IF(D75<($Z$13*1785),1,IF(D75<(($Z$14+$Z$13)*1785),2,IF(D75<(($Z$15+$Z$13+$Z$14)*1785),3,4))) -> 1 | CR75: =VLOOKUP(C75,Taul1!$F$6:$G$1718,2,FALSE) -> 2 | CX75: https://www.google.com/maps/@60.3480834,24.31895432,3a,75y,90t/data=!3m3!1e1!3m1!2e0 | DA75: 0 | DB75: 0 | DC75: 4 | DD75: =SUM(DA75:DC75) -> 4 | DE75: 0 | DF75: 0 | DG75: 0 | DH75: 2 | DI75: 0 | DJ75: 0 | DK75: 312 | DL75: 0 | DM75: 0 | DN75: 0 | DP75: 4530.348062 | DQ75: 3 | DR75: 1 | DS75: 28 | DT75: 4144.428582 | DU75: =+IF(AA75>$K$8,$F$27/2,0) -> 1 | DV75: =+IF(AA75/Y75>1.5,$F$27/2,0) -> 0 | DW75: =SUM(DU75:DV75) -> 1 | DX75: 2 | DY75: 0 | DZ75: 0 | EA75: =SUM(DY75:DZ75) -> 0 | EC75: 1 | ED75: 1 | EG75: 100001
A76: 170_11_2524 | B76: 1 | C76: =CONCATENATE(S76,"_",T76) -> 170_11 | D76: =RANK(CP76,$CP$37:$CP$1816) -> 40 | E76: 40 | F76: =E76-D76 -> 0 | G76: =CP76 -> 13.47263687 | H76: =AZ76 -> 5 | I76: =BV76 -> 6.13930354 | J76: =CN76 -> 2.333333333 | K76: =CQ76 -> 1 | L76: =B76-K76 -> 0 | M76: =HYPERLINK(CX76,"Gmaps") -> Gmaps | N76: =IF(Y76>$K$6,"LOPUT","VÄHÄ") -> LOPUT | O76: =IF(S76<40,"Valta",IF(S76<100,"Kanta",IF(S76<1000,"Seutu",IF(S76>999,"Yhdys")))) -> Seutu | P76: Loviisantie | Q76: Porvoo | R76: Uusimaa | S76: 170 | T76: 11 | U76: 2524 | V76: 11 | W76: 9237 | X76: 6713 | Y76: 2844.900194 | Z76: 117.641293 | AA76: 3195.035007 | AB76: 2271 (80 %), 5159 (20 %) | AC76: PK2 | AD76: PK2 (99 %) | AE76: 60 (31 %), 80 (69 %) | AF76: Ib (80 %), Is (20 %) | AG76: Asfalttibetoni (99 %) | AH76: 2 | AI76: 11 | AJ76: 0.05776173285 | AK76: 21.93594518 | AN76: Katu (13 %), Maantie tai katu (59 %) | AO76: 0.08192894616 | AR76: =+IF(Y76>=$K$6,$F$5,($F$5/($K$6))*Y76) -> 9 | AS76: 212 | AV76: =+IF(AS76>=$L$15,$J$15,IF(AS76<($L$15),AS76*($J$15/($L$15)),)) -> 3 | AW76: 2033 | AX76: =+IF(AW76>=$L$11,$J$11,IF(AW76<($L$11),AW76*($J$11/($L$11)),)) -> 3 | AY76: =SUM(AR76,AV76,AX76) -> 15 | AZ76: =+AY76*$H$5 -> 5 | BA76: =+IF(Z76=0,0,IF(Z76>$K$7,$F$9,($F$9/$K$7)*Z76)) -> 8 | BB76: =IF(DD76>0,$F$10,0) -> 2 | BC76: =IF(DE76>0,$F$11,0) -> 1 | BD76: =IF(DF76>0,$F$12,0) -> 0 | BE76: =IF(DG76>0,$F$13,0) -> 0 | BF76: =IF(DI76>0,$F$14,IF(DH76>0,$F$14/2,0)) -> 1 | BG76: =+IF(DJ76>=$L$19,$J$19,IF(DJ76<($L$19),DJ76*($J$19/($L$19)),)) -> 0 | BH76: =+IF(DK76>=$L$20,$J$20,IF(DK76<($L$20),DK76*($J$20/($L$20)),)) -> 0 | BI76: =+IF(DL76>=$L$21,$J$21,IF(DL76<($L$21),DL76*($J$21/($L$21)),)) -> 0 | BJ76: =+IF(DM76>=$L$22,$J$22,IF(DM76<($L$22),DM76*($J$22/($L$22)),)) -> 0 | BK76: =IF(DN76>0,$F$16,0) -> 2 | BL76: =+IF(DQ76>=$L$25,$J$25,IF(DQ76<($L$25),DQ76*($J$25/($L$25)),)) -> 2 | BM76: =IF(EG76>100000,$F$18,IF(EG76>0,$F$18/2,0)) -> 0 | BN76: =IF(ED76>0,$F$19,0) -> 2 | BO76: 0.574426 | BP76: 0.524788 | BQ76: 0.952845 | BR76: 0.473781 | BS76: 6.990173047 | BT76: =IF(COUNTIF($I$29:$L$29,TRUE)=0,0,IF(SUMIF($I$29:$L$29,TRUE,BO76:BR76)/COUNTIF($I$29:$L$29,TRUE)>=$L$30,$F$20/2,$F$20/2*(SUMIF($I$29:$L$29,TRUE,BO76:BR76)/COUNTIF($I$29:$L$29,TRUE)/$L$30)))+IF(BS76>=10,$F$20/2,IF(BS76<(10),BS76*($F$20/2/10))) -> 0.417910619 | BU76: =SUM(BA76+BB76+BC76+BD76+BE76+BF76+BK76+BG76+BH76+BI76+BJ76+BL76+BM76+BN76+BT76) -> 18.41791062 | BV76: =+BU76*$H$9 -> 6.13930354 | BW76: 4011.177523 | BX76: =BW76/X76 -> 0.5975238378 | BY76: =IF(BX76>0,IF(BX76>=$DC$28,$DA$28,IF(BX76<$DC$28,$DA$29,0)),0) -> 1 | BZ76: 6670.08894 | CA76: =BZ76/X76 -> 0.993607767 | CB76: =IF(CA76,$F$23,0) -> 1 | CC76: =IF(DS76>0,$F$24,0) -> 1 | CD76: 2273.633236 | CE76: =CD76/X76 -> 0.3386910823 | CF76: =IF(CE76>0,IF(CE76>=$DC$22,$DA$22,IF(CE76<$DC$28,$DA$23,0)),0) -> 0.5 | CG76: 40.8940861 | CH76: =IF(CG76>0,IF(CG76>=100,$F$26,IF(CG76<100,$F$26/2)),0) -> 0.5 | CI76: =SUM(DW76) -> 1 | CJ76: =IF(EA76>0,$F$28,0) -> 0 | CK76: =IF(DX76>0,$F$29,0) -> 1 | CL76: =IF(EC76>0,$F$30,0) -> 1 | CM76: =SUM(BY76,CB76,CH76,CC76,CF76,CI76,CJ76,CK76,CL76) -> 7 | CN76: =+CM76*$H$22 -> 2.333333333 | CO76: =SUM(AY76,BU76,CM76) -> 40.41791062 | CP76: =SUM(AZ76,BV76,CN76) -> 13.47263687 | CQ76: =IF(D76<($Z$13*1785),1,IF(D76<(($Z$14+$Z$13)*1785),2,IF(D76<(($Z$15+$Z$13+$Z$14)*1785),3,4))) -> 1 | CR76: =VLOOKUP(C76,Taul1!$F$6:$G$1718,2,FALSE) -> 2 | CX76: https://www.google.com/maps/@60.40854407,25.69499023,3a,75y,90t/data=!3m3!1e1!3m1!2e0 | DA76: 0 | DB76: 1 | DC76: 0 | DD76: =SUM(DA76:DC76) -> 1 | DE76: 6 | DF76: 0 | DG76: 0 | DH76: 3 | DI76: 0 | DJ76: 0 | DK76: 0 | DL76: 0 | DM76: 0 | DN76: 1 | DP76: 4011.177523 | DQ76: 12 | DR76: 0 | DS76: 5 | DT76: 2273.633236 | DU76: =+IF(AA76>$K$8,$F$27/2,0) -> 1 | DV76: =+IF(AA76/Y76>1.5,$F$27/2,0) -> 0 | DW76: =SUM(DU76:DV76) -> 1 | DX76: 1 | DY76: 0 | DZ76: 0 | EA76: =SUM(DY76:DZ76) -> 0 | EC76: 1 | ED76: 1 | EG76: 0
A77: 6_120_0 | B77: 1 | C77: =CONCATENATE(S77,"_",T77) -> 6_120 | D77: =RANK(CP77,$CP$37:$CP$1816) -> 41 | E77: 41 | F77: =E77-D77 -> 0 | G77: =CP77 -> 13.47166667 | H77: =AZ77 -> 5 | I77: =BV77 -> 6.138333333 | J77: =CN77 -> 2.333333333 | K77: =CQ77 -> 1 | L77: =B77-K77 -> 0 | M77: =HYPERLINK(CX77,"Gmaps") -> Gmaps | N77: =IF(Y77>$K$6,"LOPUT","VÄHÄ") -> LOPUT | O77: =IF(S77<40,"Valta",IF(S77<100,"Kanta",IF(S77<1000,"Seutu",IF(S77>999,"Yhdys")))) -> Valta | P77: Helsingintie | Q77: Lapinjärvi | R77: Uusimaa | S77: 6 | T77: 120 | U77: 0 | V77: 120 | W77: 9320 | X77: 9320 | Y77: 5739.493562 | Z77: 648.7832618 | AA77: 7068.957082 | AB77: 5429 (43 %), 5975 (57 %) | AC77: PK1 | AD77: PK1 (100 %) | AE77: 80 (32 %), 100 (68 %) | AF77: Is (100 %) | AG77: Kivimastiksiasfaltti (100 %) | AH77: 1 | AI77: 9 | AJ77: 0.076478586 | AK77: 479.7639485 | AL77: Kattava | AM77: I | AN77: Maantie (100 %) | AO77: 0.2050582957 | AR77: =+IF(Y77>=$K$6,$F$5,($F$5/($K$6))*Y77) -> 9 | AS77: 70 | AV77: =+IF(AS77>=$L$15,$J$15,IF(AS77<($L$15),AS77*($J$15/($L$15)),)) -> 3 | AW77: 2239 | AX77: =+IF(AW77>=$L$11,$J$11,IF(AW77<($L$11),AW77*($J$11/($L$11)),)) -> 3 | AY77: =SUM(AR77,AV77,AX77) -> 15 | AZ77: =+AY77*$H$5 -> 5 | BA77: =+IF(Z77=0,0,IF(Z77>$K$7,$F$9,($F$9/$K$7)*Z77)) -> 8 | BB77: =IF(DD77>0,$F$10,0) -> 2 | BC77: =IF(DE77>0,$F$11,0) -> 0 | BD77: =IF(DF77>0,$F$12,0) -> 0 | BE77: =IF(DG77>0,$F$13,0) -> 1 | BF77: =IF(DI77>0,$F$14,IF(DH77>0,$F$14/2,0)) -> 1 | BG77: =+IF(DJ77>=$L$19,$J$19,IF(DJ77<($L$19),DJ77*($J$19/($L$19)),)) -> 0.5 | BH77: =+IF(DK77>=$L$20,$J$20,IF(DK77<($L$20),DK77*($J$20/($L$20)),)) -> 0.415 | BI77: =+IF(DL77>=$L$21,$J$21,IF(DL77<($L$21),DL77*($J$21/($L$21)),)) -> 0.5 | BJ77: =+IF(DM77>=$L$22,$J$22,IF(DM77<($L$22),DM77*($J$22/($L$22)),)) -> 0 | BK77: =IF(DN77>0,$F$16,0) -> 0 | BL77: =+IF(DQ77>=$L$25,$J$25,IF(DQ77<($L$25),DQ77*($J$25/($L$25)),)) -> 2 | BM77: =IF(EG77>100000,$F$18,IF(EG77>0,$F$18/2,0)) -> 0 | BN77: =IF(ED77>0,$F$19,0) -> 2 | BO77: 7.17048 | BP77: 7.93112 | BQ77: 7.80137 | BR77: 6.52581 | BS77: 29.48685785 | BT77: =IF(COUNTIF($I$29:$L$29,TRUE)=0,0,IF(SUMIF($I$29:$L$29,TRUE,BO77:BR77)/COUNTIF($I$29:$L$29,TRUE)>=$L$30,$F$20/2,$F$20/2*(SUMIF($I$29:$L$29,TRUE,BO77:BR77)/COUNTIF($I$29:$L$29,TRUE)/$L$30)))+IF(BS77>=10,$F$20/2,IF(BS77<(10),BS77*($F$20/2/10))) -> 1 | BU77: =SUM(BA77+BB77+BC77+BD77+BE77+BF77+BK77+BG77+BH77+BI77+BJ77+BL77+BM77+BN77+BT77) -> 18.415 | BV77: =+BU77*$H$9 -> 6.138333333 | BW77: 5784.05689 | BX77: =BW77/X77 -> 0.6206069625 | BY77: =IF(BX77>0,IF(BX77>=$DC$28,$DA$28,IF(BX77<$DC$28,$DA$29,0)),0) -> 1 | BZ77: 8705.3052 | CA77: =BZ77/X77 -> 0.9340456223 | CB77: =IF(CA77,$F$23,0) -> 1 | CC77: =IF(DS77>0,$F$24,0) -> 1 | CD77: 2583.032761 | CE77: =CD77/X77 -> 0.2771494379 | CF77: =IF(CE77>0,IF(CE77>=$DC$22,$DA$22,IF(CE77<$DC$28,$DA$23,0)),0) -> 0.5 | CG77: 63.1223176 | CH77: =IF(CG77>0,IF(CG77>=100,$F$26,IF(CG77<100,$F$26/2)),0) -> 0.5 | CI77: =SUM(DW77) -> 1 | CJ77: =IF(EA77>0,$F$28,0) -> 0 | CK77: =IF(DX77>0,$F$29,0) -> 1 | CL77: =IF(EC77>0,$F$30,0) -> 1 | CM77: =SUM(BY77,CB77,CH77,CC77,CF77,CI77,CJ77,CK77,CL77) -> 7 | CN77: =+CM77*$H$22 -> 2.333333333 | CO77: =SUM(AY77,BU77,CM77) -> 40.415 | CP77: =SUM(AZ77,BV77,CN77) -> 13.47166667 | CQ77: =IF(D77<($Z$13*1785),1,IF(D77<(($Z$14+$Z$13)*1785),2,IF(D77<(($Z$15+$Z$13+$Z$14)*1785),3,4))) -> 1 | CR77: =VLOOKUP(C77,Taul1!$F$6:$G$1718,2,FALSE) -> 2 | CX77: https://www.google.com/maps/@60.6143116,26.15278966,3a,75y,90t/data=!3m3!1e1!3m1!2e0 | DA77: 0 | DB77: 2 | DC77: 3 | DD77: =SUM(DA77:DC77) -> 5 | DE77: 0 | DF77: 0 | DG77: 1 | DH77: 27 | DI77: 0 | DJ77: 595 | DK77: 83 | DL77: 5041 | DM77: 0 | DN77: 0 | DP77: 5784.05689 | DQ77: 7 | DR77: 0 | DS77: 1 | DT77: 2583.032761 | DU77: =+IF(AA77>$K$8,$F$27/2,0) -> 1 | DV77: =+IF(AA77/Y77>1.5,$F$27/2,0) -> 0 | DW77: =SUM(DU77:DV77) -> 1 | DX77: 1 | DY77: 0 | DZ77: 0 | EA77: =SUM(DY77:DZ77) -> 0 | EC77: 1 | ED77: 1 | EG77: 0
A78: 4_216_0 | B78: 1 | C78: =CONCATENATE(S78,"_",T78) -> 4_216 | D78: =RANK(CP78,$CP$37:$CP$1816) -> 42 | E78: 42 | F78: =E78-D78 -> 0 | G78: =CP78 -> 13.46112917 | H78: =AZ78 -> 5 | I78: =BV78 -> 5.961129173 | J78: =CN78 -> 2.5 | K78: =CQ78 -> 1 | L78: =B78-K78 -> 0 | M78: =HYPERLINK(CX78,"Gmaps") -> Gmaps | N78: =IF(Y78>$K$6,"LOPUT","VÄHÄ") -> LOPUT | O78: =IF(S78<40,"Valta",IF(S78<100,"Kanta",IF(S78<1000,"Seutu",IF(S78>999,"Yhdys")))) -> Valta | P78: Valtatie | Q78: Hartola | R78: Päijät-Häme | S78: 4 | T78: 216 | U78: 0 | V78: 216 | W78: 3952 | X78: 3952 | Y78: 7009.186235 | Z78: 978.6214575 | AA78: 8958.388664 | AB78: 6977 (46 %), 7037 (54 %) | AC78: PK1 | AD78: PK1 (100 %) | AE78: 80 (100 %) | AF78: Ise (100 %) | AG78: Kivimastiksiasfaltti (100 %) | AH78: 2 | AI78: 11 | AJ78: 0.2928274095 | AK78: 683.8805668 | AL78: Ydin | AM78: I | AN78: Maantie (100 %) | AO78: 0.7893320488 | AR78: =+IF(Y78>=$K$6,$F$5,($F$5/($K$6))*Y78) -> 9 | AS78: 114 | AV78: =+IF(AS78>=$L$15,$J$15,IF(AS78<($L$15),AS78*($J$15/($L$15)),)) -> 3 | AW78: 882 | AX78: =+IF(AW78>=$L$11,$J$11,IF(AW78<($L$11),AW78*($J$11/($L$11)),)) -> 3 | AY78: =SUM(AR78,AV78,AX78) -> 15 | AZ78: =+AY78*$H$5 -> 5 | BA78: =+IF(Z78=0,0,IF(Z78>$K$7,$F$9,($F$9/$K$7)*Z78)) -> 8 | BB78: =IF(DD78>0,$F$10,0) -> 2 | BC78: =IF(DE78>0,$F$11,0) -> 0 | BD78: =IF(DF78>0,$F$12,0) -> 0 | BE78: =IF(DG78>0,$F$13,0) -> 1 | BF78: =IF(DI78>0,$F$14,IF(DH78>0,$F$14/2,0)) -> 2 | BG78: =+IF(DJ78>=$L$19,$J$19,IF(DJ78<($L$19),DJ78*($J$19/($L$19)),)) -> 0 | BH78: =+IF(DK78>=$L$20,$J$20,IF(DK78<($L$20),DK78*($J$20/($L$20)),)) -> 0 | BI78: =+IF(DL78>=$L$21,$J$21,IF(DL78<($L$21),DL78*($J$21/($L$21)),)) -> 0 | BJ78: =+IF(DM78>=$L$22,$J$22,IF(DM78<($L$22),DM78*($J$22/($L$22)),)) -> 0 | BK78: =IF(DN78>0,$F$16,0) -> 0 | BL78: =+IF(DQ78>=$L$25,$J$25,IF(DQ78<($L$25),DQ78*($J$25/($L$25)),)) -> 2 | BM78: =IF(EG78>100000,$F$18,IF(EG78>0,$F$18/2,0)) -> 0 | BN78: =IF(ED78>0,$F$19,0) -> 2 | BO78: 23.4625 | BP78: 33.7633 | BQ78: 22.9239 | BR78: 9.54594 | BS78: 7.667750358 | BT78: =IF(COUNTIF($I$29:$L$29,TRUE)=0,0,IF(SUMIF($I$29:$L$29,TRUE,BO78:BR78)/COUNTIF($I$29:$L$29,TRUE)>=$L$30,$F$20/2,$F$20/2*(SUMIF($I$29:$L$29,TRUE,BO78:BR78)/COUNTIF($I$29:$L$29,TRUE)/$L$30)))+IF(BS78>=10,$F$20/2,IF(BS78<(10),BS78*($F$20/2/10))) -> 0.8833875179 | BU78: =SUM(BA78+BB78+BC78+BD78+BE78+BF78+BK78+BG78+BH78+BI78+BJ78+BL78+BM78+BN78+BT78) -> 17.88338752 | BV78: =+BU78*$H$9 -> 5.961129173 | BW78: 3318.310516 | BX78: =BW78/X78 -> 0.8396534707 | BY78: =IF(BX78>0,IF(BX78>=$DC$28,$DA$28,IF(BX78<$DC$28,$DA$29,0)),0) -> 1 | BZ78: 3946.628233 | CA78: =BZ78/X78 -> 0.9986407472 | CB78: =IF(CA78,$F$23,0) -> 1 | CC78: =IF(DS78>0,$F$24,0) -> 0 | CD78: 2169.915687 | CE78: =CD78/X78 -> 0.5490677345 | CF78: =IF(CE78>0,IF(CE78>=$DC$22,$DA$22,IF(CE78<$DC$28,$DA$23,0)),0) -> 1 | CG78: 58.79352227 | CH78: =IF(CG78>0,IF(CG78>=100,$F$26,IF(CG78<100,$F$26/2)),0) -> 0.5 | CI78: =SUM(DW78) -> 1 | CJ78: =IF(EA78>0,$F$28,0) -> 1 | CK78: =IF(DX78>0,$F$29,0) -> 1 | CL78: =IF(EC78>0,$F$30,0) -> 1 | CM78: =SUM(BY78,CB78,CH78,CC78,CF78,CI78,CJ78,CK78,CL78) -> 7.5 | CN78: =+CM78*$H$22 -> 2.5 | CO78: =SUM(AY78,BU78,CM78) -> 40.38338752 | CP78: =SUM(AZ78,BV78,CN78) -> 13.46112917 | CQ78: =IF(D78<($Z$13*1785),1,IF(D78<(($Z$14+$Z$13)*1785),2,IF(D78<(($Z$15+$Z$13+$Z$14)*1785),3,4))) -> 1 | CR78: =VLOOKUP(C78,Taul1!$F$6:$G$1718,2,FALSE) -> 2 | CX78: https://www.google.com/maps/@61.54584502,26.00800981,3a,75y,90t/data=!3m3!1e1!3m1!2e0 | DA78: 0 | DB78: 0 | DC78: 8 | DD78: =SUM(DA78:DC78) -> 8 | DE78: 0 | DF78: 0 | DG78: 1 | DH78: 0 | DI78: 1 | DJ78: 0 | DK78: 0 | DL78: 0 | DM78: 0 | DN78: 0 | DP78: 3318.310516 | DQ78: 3 | DR78: 0 | DS78: 0 | DT78: 2169.915687 | DU78: =+IF(AA78>$K$8,$F$27/2,0) -> 1 | DV78: =+IF(AA78/Y78>1.5,$F$27/2,0) -> 0 | DW78: =SUM(DU78:DV78) -> 1 | DX78: 3 | DY78: 0 | DZ78: 1 | EA78: =SUM(DY78:DZ78) -> 1 | EC78: 1 | ED78: 1 | EG78: 0
A79: 170_10_0 | B79: 1 | C79: =CONCATENATE(S79,"_",T79) -> 170_10 | D79: =RANK(CP79,$CP$37:$CP$1816) -> 43 | E79: 43 | F79: =E79-D79 -> 0 | G79: =CP79 -> 13.45956186 | H79: =AZ79 -> 5 | I79: =BV79 -> 5.792895192 | J79: =CN79 -> 2.666666667 | K79: =CQ79 -> 1 | L79: =B79-K79 -> 0 | M79: =HYPERLINK(CX79,"Gmaps") -> Gmaps | N79: =IF(Y79>$K$6,"LOPUT","VÄHÄ") -> LOPUT | O79: =IF(S79<40,"Valta",IF(S79<100,"Kanta",IF(S79<1000,"Seutu",IF(S79>999,"Yhdys")))) -> Seutu | P79: Helsingintie, Läntinen Mannerheiminväylä, Mannerheiminkatu | Q79: Porvoo | R79: Uusimaa | S79: 170 | T79: 10 | U79: 0 | V79: 10 | W79: 4570 | X79: 4570 | Y79: 6506.319198 | Z79: 373.0533378 | AA79: 7103.832864 | AB79: 4142 (77 %), 14301 (23 %) | AC79: PK2 | AD79: PK2 (100 %) | AE79: 40 (2 %), 50 (53 %), 60 (28 %), 80 (19 %) | AF79: Is (100 %) | AG79: Asfalttibetoni (18 %), Kivimastiksiasfaltti (83 %) | AH79: 0 | AI79: 3 | AJ79: 0.01694340901 | AK79: 83.28375021 | AN79: Katu (101 %) | AO79: 0.5776045855 | AR79: =+IF(Y79>=$K$6,$F$5,($F$5/($K$6))*Y79) -> 9 | AS79: 1117 | AV79: =+IF(AS79>=$L$15,$J$15,IF(AS79<($L$15),AS79*($J$15/($L$15)),)) -> 3 | AW79: 9961 | AX79: =+IF(AW79>=$L$11,$J$11,IF(AW79<($L$11),AW79*($J$11/($L$11)),)) -> 3 | AY79: =SUM(AR79,AV79,AX79) -> 15 | AZ79: =+AY79*$H$5 -> 5 | BA79: =+IF(Z79=0,0,IF(Z79>$K$7,$F$9,($F$9/$K$7)*Z79)) -> 8 | BB79: =IF(DD79>0,$F$10,0) -> 0 | BC79: =IF(DE79>0,$F$11,0) -> 0 | BD79: =IF(DF79>0,$F$12,0) -> 1 | BE79: =IF(DG79>0,$F$13,0) -> 0 | BF79: =IF(DI79>0,$F$14,IF(DH79>0,$F$14/2,0)) -> 2 | BG79: =+IF(DJ79>=$L$19,$J$19,IF(DJ79<($L$19),DJ79*($J$19/($L$19)),)) -> 0 | BH79: =+IF(DK79>=$L$20,$J$20,IF(DK79<($L$20),DK79*($J$20/($L$20)),)) -> 0.035 | BI79: =+IF(DL79>=$L$21,$J$21,IF(DL79<($L$21),DL79*($J$21/($L$21)),)) -> 0 | BJ79: =+IF(DM79>=$L$22,$J$22,IF(DM79<($L$22),DM79*($J$22/($L$22)),)) -> 0 | BK79: =IF(DN79>0,$F$16,0) -> 2 | BL79: =+IF(DQ79>=$L$25,$J$25,IF(DQ79<($L$25),DQ79*($J$25/($L$25)),)) -> 2 | BM79: =IF(EG79>100000,$F$18,IF(EG79>0,$F$18/2,0)) -> 0 | BN79: =IF(ED79>0,$F$19,0) -> 2 | BO79: 0.191537 | BP79: 0.110956 | BQ79: 0.120821 | BR79: 0.0750112 | BS79: 6.591502184 | BT79: =IF(COUNTIF($I$29:$L$29,TRUE)=0,0,IF(SUMIF($I$29:$L$29,TRUE,BO79:BR79)/COUNTIF($I$29:$L$29,TRUE)>=$L$30,$F$20/2,$F$20/2*(SUMIF($I$29:$L$29,TRUE,BO79:BR79)/COUNTIF($I$29:$L$29,TRUE)/$L$30)))+IF(BS79>=10,$F$20/2,IF(BS79<(10),BS79*($F$20/2/10))) -> 0.3436855759 | BU79: =SUM(BA79+BB79+BC79+BD79+BE79+BF79+BK79+BG79+BH79+BI79+BJ79+BL79+BM79+BN79+BT79) -> 17.37868558 | BV79: =+BU79*$H$9 -> 5.792895192 | BW79: 4570 | BX79: =BW79/X79 -> 1 | BY79: =IF(BX79>0,IF(BX79>=$DC$28,$DA$28,IF(BX79<$DC$28,$DA$29,0)),0) -> 1 | BZ79: 4570 | CA79: =BZ79/X79 -> 1 | CB79: =IF(CA79,$F$23,0) -> 1 | CC79: =IF(DS79>0,$F$24,0) -> 1 | CD79: 3468 | CE79: =CD79/X79 -> 0.7588621444 | CF79: =IF(CE79>0,IF(CE79>=$DC$22,$DA$22,IF(CE79<$DC$28,$DA$23,0)),0) -> 1 | CG79: 1022.113633 | CH79: =IF(CG79>0,IF(CG79>=100,$F$26,IF(CG79<100,$F$26/2)),0) -> 1 | CI79: =SUM(DW79) -> 1 | CJ79: =IF(EA79>0,$F$28,0) -> 0 | CK79: =IF(DX79>0,$F$29,0) -> 1 | CL79: =IF(EC79>0,$F$30,0) -> 1 | CM79: =SUM(BY79,CB79,CH79,CC79,CF79,CI79,CJ79,CK79,CL79) -> 8 | CN79: =+CM79*$H$22 -> 2.666666667 | CO79: =SUM(AY79,BU79,CM79) -> 40.37868558 | CP79: =SUM(AZ79,BV79,CN79) -> 13.45956186 | CQ79: =IF(D79<($Z$13*1785),1,IF(D79<(($Z$14+$Z$13)*1785),2,IF(D79<(($Z$15+$Z$13+$Z$14)*1785),3,4))) -> 1 | CR79: =VLOOKUP(C79,Taul1!$F$6:$G$1718,2,FALSE) -> 2 | CX79: https://www.google.com/maps/@60.36974669,25.56510899,3a,75y,90t/data=!3m3!1e1!3m1!2e0 | DA79: 0 | DB79: 0 | DC79: 0 | DD79: =SUM(DA79:DC79) -> 0 | DE79: 0 | DF79: 1 | DG79: 0 | DH79: 7 | DI79: 2 | DJ79: 0 | DK79: 7 | DL79: 0 | DM79: 0 | DN79: 1 | DP79: 6113.937583 | DQ79: 21 | DR79: 0 | DS79: 11 | DT79: 4934.635552 | DU79: =+IF(AA79>$K$8,$F$27/2,0) -> 1 | DV79: =+IF(AA79/Y79>1.5,$F$27/2,0) -> 0 | DW79: =SUM(DU79:DV79) -> 1 | DX79: 1 | DY79: 0 | DZ79: 0 | EA79: =SUM(DY79:DZ79) -> 0 | EC79: 1 | ED79: 13 | EG79: 0
A80: 110_18_0 | B80: 1 | C80: =CONCATENATE(S80,"_",T80) -> 110_18 | D80: =RANK(CP80,$CP$37:$CP$1816) -> 44 | E80: 44 | F80: =E80-D80 -> 0 | G80: =CP80 -> 13.43320842 | H80: =AZ80 -> 4.675 | I80: =BV80 -> 6.924875089 | J80: =CN80 -> 1.833333333 | K80: =CQ80 -> 1 | L80: =B80-K80 -> 0 | M80: =HYPERLINK(CX80,"Gmaps") -> Gmaps | N80: =IF(Y80>$K$6,"LOPUT","VÄHÄ") -> LOPUT | O80: =IF(S80<40,"Valta",IF(S80<100,"Kanta",IF(S80<1000,"Seutu",IF(S80>999,"Yhdys")))) -> Seutu | P80: Turuntie | Q80: Lohja, Salo | R80: Uusimaa | S80: 110 | T80: 18 | U80: 0 | V80: 18 | W80: 5338 | X80: 5338 | Y80: 2262 | Z80: 110 | AA80: 2921 | AB80: 2262 (100 %) | AC80: PK2 | AD80: PK2 (100 %) | AE80: 80 (100 %) | AF80: Ib (6 %), Is (94 %) | AG80: Asfalttibetoni (100 %) | AH80: 0 | AI80: 2 | AJ80: 0.1303550974 | AK80: 17 | AN80: Maantie tai katu (100 %) | AO80: 0 | AR80: =+IF(Y80>=$K$6,$F$5,($F$5/($K$6))*Y80) -> 9 | AS80: 27 | AV80: =+IF(AS80>=$L$15,$J$15,IF(AS80<($L$15),AS80*($J$15/($L$15)),)) -> 2.025 | AW80: 482 | AX80: =+IF(AW80>=$L$11,$J$11,IF(AW80<($L$11),AW80*($J$11/($L$11)),)) -> 3 | AY80: =SUM(AR80,AV80,AX80) -> 14.025 | AZ80: =+AY80*$H$5 -> 4.675 | BA80: =+IF(Z80=0,0,IF(Z80>$K$7,$F$9,($F$9/$K$7)*Z80)) -> 8 | BB80: =IF(DD80>0,$F$10,0) -> 2 | BC80: =IF(DE80>0,$F$11,0) -> 1 | BD80: =IF(DF80>0,$F$12,0) -> 1 | BE80: =IF(DG80>0,$F$13,0) -> 0 | BF80: =IF(DI80>0,$F$14,IF(DH80>0,$F$14/2,0)) -> 2 | BG80: =+IF(DJ80>=$L$19,$J$19,IF(DJ80<($L$19),DJ80*($J$19/($L$19)),)) -> 0.2266666667 | BH80: =+IF(DK80>=$L$20,$J$20,IF(DK80<($L$20),DK80*($J$20/($L$20)),)) -> 0.435 | BI80: =+IF(DL80>=$L$21,$J$21,IF(DL80<($L$21),DL80*($J$21/($L$21)),)) -> 0 | BJ80: =+IF(DM80>=$L$22,$J$22,IF(DM80<($L$22),DM80*($J$22/($L$22)),)) -> 0 | BK80: =IF(DN80>0,$F$16,0) -> 2 | BL80: =+IF(DQ80>=$L$25,$J$25,IF(DQ80<($L$25),DQ80*($J$25/($L$25)),)) -> 2 | BM80: =IF(EG80>100000,$F$18,IF(EG80>0,$F$18/2,0)) -> 0 | BN80: =IF(ED80>0,$F$19,0) -> 2 | BO80: 0.718357 | BP80: 0.924222 | BQ80: 0.483411 | BR80: 0.0639312 | BS80: 0.8418453576 | BT80: =IF(COUNTIF($I$29:$L$29,TRUE)=0,0,IF(SUMIF($I$29:$L$29,TRUE,BO80:BR80)/COUNTIF($I$29:$L$29,TRUE)>=$L$30,$F$20/2,$F$20/2*(SUMIF($I$29:$L$29,TRUE,BO80:BR80)/COUNTIF($I$29:$L$29,TRUE)/$L$30)))+IF(BS80>=10,$F$20/2,IF(BS80<(10),BS80*($F$20/2/10))) -> 0.1129586012 | BU80: =SUM(BA80+BB80+BC80+BD80+BE80+BF80+BK80+BG80+BH80+BI80+BJ80+BL80+BM80+BN80+BT80) -> 20.77462527 | BV80: =+BU80*$H$9 -> 6.924875089 | BW80: 1293.921848 | BX80: =BW80/X80 -> 0.242398248 | BY80: =IF(BX80>0,IF(BX80>=$DC$28,$DA$28,IF(BX80<$DC$28,$DA$29,0)),0) -> 0.5 | BZ80: 5317.68457 | CA80: =BZ80/X80 -> 0.9961941869 | CB80: =IF(CA80,$F$23,0) -> 1 | CC80: =IF(DS80>0,$F$24,0) -> 1 | CD80: 236.1946907 | CE80: =CD80/X80 -> 0.04424778769 | CF80: =IF(CE80>0,IF(CE80>=$DC$22,$DA$22,IF(CE80<$DC$28,$DA$23,0)),0) -> 0.5 | CG80: 14.51854627 | CH80: =IF(CG80>0,IF(CG80>=100,$F$26,IF(CG80<100,$F$26/2)),0) -> 0.5 | CI80: =SUM(DW80) -> 1 | CJ80: =IF(EA80>0,$F$28,0) -> 0 | CK80: =IF(DX80>0,$F$29,0) -> 0 | CL80: =IF(EC80>0,$F$30,0) -> 1 | CM80: =SUM(BY80,CB80,CH80,CC80,CF80,CI80,CJ80,CK80,CL80) -> 5.5 | CN80: =+CM80*$H$22 -> 1.833333333 | CO80: =SUM(AY80,BU80,CM80) -> 40.29962527 | CP80: =SUM(AZ80,BV80,CN80) -> 13.43320842 | CQ80: =IF(D80<($Z$13*1785),1,IF(D80<(($Z$14+$Z$13)*1785),2,IF(D80<(($Z$15+$Z$13+$Z$14)*1785),3,4))) -> 1 | CR80: =VLOOKUP(C80,Taul1!$F$6:$G$1718,2,FALSE) -> 1 | CX80: https://www.google.com/maps/@60.38419595,23.88350013,3a,75y,90t/data=!3m3!1e1!3m1!2e0 | DA80: 0 | DB80: 1 | DC80: 1 | DD80: =SUM(DA80:DC80) -> 2 | DE80: 2 | DF80: 3 | DG80: 0 | DH80: 27 | DI80: 1 | DJ80: 136 | DK80: 87 | DL80: 0 | DM80: 0 | DN80: 2 | DP80: 1293.921848 | DQ80: 3 | DR80: 0 | DS80: 2 | DT80: 236.1946907 | DU80: =+IF(AA80>$K$8,$F$27/2,0) -> 1 | DV80: =+IF(AA80/Y80>1.5,$F$27/2,0) -> 0 | DW80: =SUM(DU80:DV80) -> 1 | DX80: 0 | DY80: 0 | DZ80: 0 | EA80: =SUM(DY80:DZ80) -> 0 | EC80: 1 | ED80: 3 | EG80: 0
A81: 167_4_0 | B81: 1 | C81: =CONCATENATE(S81,"_",T81) -> 167_4 | D81: =RANK(CP81,$CP$37:$CP$1816) -> 45 | E81: 45 | F81: =E81-D81 -> 0 | G81: =CP81 -> 13.40947944 | H81: =AZ81 -> 5 | I81: =BV81 -> 6.076146111 | J81: =CN81 -> 2.333333333 | K81: =CQ81 -> 1 | L81: =B81-K81 -> 0 | M81: =HYPERLINK(CX81,"Gmaps") -> Gmaps | N81: =IF(Y81>$K$6,"LOPUT","VÄHÄ") -> LOPUT | O81: =IF(S81<40,"Valta",IF(S81<100,"Kanta",IF(S81<1000,"Seutu",IF(S81>999,"Yhdys")))) -> Seutu | P81: Lahdentie | Q81: Orimattila | R81: Päijät-Häme | S81: 167 | T81: 4 | U81: 0 | V81: 4 | W81: 4145 | X81: 4145 | Y81: 7519 | Z81: 407 | AA81: 7443 | AB81: 7519 (100 %) | AC81: PK2 | AD81: PK2 (100 %) | AE81: 80 (100 %) | AF81: Is (100 %) | AG81: Kivimastiksiasfaltti (100 %) | AH81: 2 | AI81: 6 | AJ81: 0 | AK81: 86 | AN81: Maantie (100 %) | AO81: 0.9291646394 | AR81: =+IF(Y81>=$K$6,$F$5,($F$5/($K$6))*Y81) -> 9 | AS81: 448 | AV81: =+IF(AS81>=$L$15,$J$15,IF(AS81<($L$15),AS81*($J$15/($L$15)),)) -> 3 | AW81: 2475 | AX81: =+IF(AW81>=$L$11,$J$11,IF(AW81<($L$11),AW81*($J$11/($L$11)),)) -> 3 | AY81: =SUM(AR81,AV81,AX81) -> 15 | AZ81: =+AY81*$H$5 -> 5 | BA81: =+IF(Z81=0,0,IF(Z81>$K$7,$F$9,($F$9/$K$7)*Z81)) -> 8 | BB81: =IF(DD81>0,$F$10,0) -> 2 | BC81: =IF(DE81>0,$F$11,0) -> 0 | BD81: =IF(DF81>0,$F$12,0) -> 0 | BE81: =IF(DG81>0,$F$13,0) -> 0 | BF81: =IF(DI81>0,$F$14,IF(DH81>0,$F$14/2,0)) -> 1 | BG81: =+IF(DJ81>=$L$19,$J$19,IF(DJ81<($L$19),DJ81*($J$19/($L$19)),)) -> 0.06 | BH81: =+IF(DK81>=$L$20,$J$20,IF(DK81<($L$20),DK81*($J$20/($L$20)),)) -> 0.5 | BI81: =+IF(DL81>=$L$21,$J$21,IF(DL81<($L$21),DL81*($J$21/($L$21)),)) -> 0 | BJ81: =+IF(DM81>=$L$22,$J$22,IF(DM81<($L$22),DM81*($J$22/($L$22)),)) -> 0 | BK81: =IF(DN81>0,$F$16,0) -> 2 | BL81: =+IF(DQ81>=$L$25,$J$25,IF(DQ81<($L$25),DQ81*($J$25/($L$25)),)) -> 2 | BM81: =IF(EG81>100000,$F$18,IF(EG81>0,$F$18/2,0)) -> 0 | BN81: =IF(ED81>0,$F$19,0) -> 2 | BO81: 1.31404 | BP81: 2.75545 | BQ81: 0.98366 | BR81: 1.04438 | BS81: 10.171039 | BT81: =IF(COUNTIF($I$29:$L$29,TRUE)=0,0,IF(SUMIF($I$29:$L$29,TRUE,BO81:BR81)/COUNTIF($I$29:$L$29,TRUE)>=$L$30,$F$20/2,$F$20/2*(SUMIF($I$29:$L$29,TRUE,BO81:BR81)/COUNTIF($I$29:$L$29,TRUE)/$L$30)))+IF(BS81>=10,$F$20/2,IF(BS81<(10),BS81*($F$20/2/10))) -> 0.6684383333 | BU81: =SUM(BA81+BB81+BC81+BD81+BE81+BF81+BK81+BG81+BH81+BI81+BJ81+BL81+BM81+BN81+BT81) -> 18.22843833 | BV81: =+BU81*$H$9 -> 6.076146111 | BW81: 4140.061005 | BX81: =BW81/X81 -> 0.9988084451 | BY81: =IF(BX81>0,IF(BX81>=$DC$28,$DA$28,IF(BX81<$DC$28,$DA$29,0)),0) -> 1 | BZ81: 4140.061005 | CA81: =BZ81/X81 -> 0.9988084451 | CB81: =IF(CA81,$F$23,0) -> 1 | CC81: =IF(DS81>0,$F$24,0) -> 1 | CD81: 1220.065245 | CE81: =CD81/X81 -> 0.2943462593 | CF81: =IF(CE81>0,IF(CE81>=$DC$22,$DA$22,IF(CE81<$DC$28,$DA$23,0)),0) -> 0.5 | CG81: 39.36308806 | CH81: =IF(CG81>0,IF(CG81>=100,$F$26,IF(CG81<100,$F$26/2)),0) -> 0.5 | CI81: =SUM(DW81) -> 1 | CJ81: =IF(EA81>0,$F$28,0) -> 1 | CK81: =IF(DX81>0,$F$29,0) -> 0 | CL81: =IF(EC81>0,$F$30,0) -> 1 | CM81: =SUM(BY81,CB81,CH81,CC81,CF81,CI81,CJ81,CK81,CL81) -> 7 | CN81: =+CM81*$H$22 -> 2.333333333 | CO81: =SUM(AY81,BU81,CM81) -> 40.22843833 | CP81: =SUM(AZ81,BV81,CN81) -> 13.40947944 | CQ81: =IF(D81<($Z$13*1785),1,IF(D81<(($Z$14+$Z$13)*1785),2,IF(D81<(($Z$15+$Z$13+$Z$14)*1785),3,4))) -> 1 | CR81: =VLOOKUP(C81,Taul1!$F$6:$G$1718,2,FALSE) -> 1 | CX81: https://www.google.com/maps/@60.88536626,25.69125018,3a,75y,90t/data=!3m3!1e1!3m1!2e0 | DA81: 0 | DB81: 0 | DC81: 2 | DD81: =SUM(DA81:DC81) -> 2 | DE81: 0 | DF81: 0 | DG81: 0 | DH81: 11 | DI81: 0 | DJ81: 36 | DK81: 108 | DL81: 0 | DM81: 0 | DN81: 1 | DP81: 4140.061005 | DQ81: 4 | DR81: 0 | DS81: 4 | DT81: 1220.065245 | DU81: =+IF(AA81>$K$8,$F$27/2,0) -> 1 | DV81: =+IF(AA81/Y81>1.5,$F$27/2,0) -> 0 | DW81: =SUM(DU81:DV81) -> 1 | DX81: 0 | DY81: 0 | DZ81: 1 | EA81: =SUM(DY81:DZ81) -> 1 | EC81: 1 | ED81: 1 | EG81: 0
A82: 1403_1_0 | B82: 1 | C82: =CONCATENATE(S82,"_",T82) -> 1403_1 | D82: =RANK(CP82,$CP$37:$CP$1816) -> 46 | E82: 46 | F82: =E82-D82 -> 0 | G82: =CP82 -> 13.39000517 | H82: =AZ82 -> 4.35 | I82: =BV82 -> 6.3733385 | J82: =CN82 -> 2.666666667 | K82: =CQ82 -> 1 | L82: =B82-K82 -> 0 | M82: =HYPERLINK(CX82,"Gmaps") -> Gmaps | N82: =IF(Y82>$K$6,"LOPUT","VÄHÄ") -> LOPUT | O82: =IF(S82<40,"Valta",IF(S82<100,"Kanta",IF(S82<1000,"Seutu",IF(S82>999,"Yhdys")))) -> Yhdys | P82: Ridasjärventie, Uudenkyläntie | Q82: Hyvinkää, Nurmijärvi, Tuusula | R82: Uusimaa | S82: 1403 | T82: 1 | U82: 0 | V82: 1 | W82: 6702 | X82: 6702 | Y82: 2660.555953 | Z82: 178.2063563 | AA82: 2741.498657 | AB82: 1611 (47 %), 3583 (53 %) | AC82: PK2 | AD82: PK2 (99 %) | AE82: 40 (6 %), 50 (28 %), 60 (66 %) | AF82: Is (100 %) | AG82: Asfalttibetoni (100 %) | AH82: 1 | AI82: 5 | AJ82: 0.02984183826 | AK82: 66.48254252 | AN82: Katu (100 %) | AO82: 0.5368365536 | AR82: =+IF(Y82>=$K$6,$F$5,($F$5/($K$6))*Y82) -> 9 | AS82: 14 | AV82: =+IF(AS82>=$L$15,$J$15,IF(AS82<($L$15),AS82*($J$15/($L$15)),)) -> 1.05 | AW82: 2117 | AX82: =+IF(AW82>=$L$11,$J$11,IF(AW82<($L$11),AW82*($J$11/($L$11)),)) -> 3 | AY82: =SUM(AR82,AV82,AX82) -> 13.05 | AZ82: =+AY82*$H$5 -> 4.35 | BA82: =+IF(Z82=0,0,IF(Z82>$K$7,$F$9,($F$9/$K$7)*Z82)) -> 8 | BB82: =IF(DD82>0,$F$10,0) -> 2 | BC82: =IF(DE82>0,$F$11,0) -> 1 | BD82: =IF(DF82>0,$F$12,0) -> 0 | BE82: =IF(DG82>0,$F$13,0) -> 0 | BF82: =IF(DI82>0,$F$14,IF(DH82>0,$F$14/2,0)) -> 2 | BG82: =+IF(DJ82>=$L$19,$J$19,IF(DJ82<($L$19),DJ82*($J$19/($L$19)),)) -> 0.04333333333 | BH82: =+IF(DK82>=$L$20,$J$20,IF(DK82<($L$20),DK82*($J$20/($L$20)),)) -> 0 | BI82: =+IF(DL82>=$L$21,$J$21,IF(DL82<($L$21),DL82*($J$21/($L$21)),)) -> 0 | BJ82: =+IF(DM82>=$L$22,$J$22,IF(DM82<($L$22),DM82*($J$22/($L$22)),)) -> 0 | BK82: =IF(DN82>0,$F$16,0) -> 2 | BL82: =+IF(DQ82>=$L$25,$J$25,IF(DQ82<($L$25),DQ82*($J$25/($L$25)),)) -> 2 | BM82: =IF(EG82>100000,$F$18,IF(EG82>0,$F$18/2,0)) -> 0 | BN82: =IF(ED82>0,$F$19,0) -> 2 | BO82: 1.02095 | BP82: 0.334983 | BQ82: 0.300331 | BR82: 0.140308 | BS82: 0.4294673606 | BT82: =IF(COUNTIF($I$29:$L$29,TRUE)=0,0,IF(SUMIF($I$29:$L$29,TRUE,BO82:BR82)/COUNTIF($I$29:$L$29,TRUE)>=$L$30,$F$20/2,$F$20/2*(SUMIF($I$29:$L$29,TRUE,BO82:BR82)/COUNTIF($I$29:$L$29,TRUE)/$L$30)))+IF(BS82>=10,$F$20/2,IF(BS82<(10),BS82*($F$20/2/10))) -> 0.07668216803 | BU82: =SUM(BA82+BB82+BC82+BD82+BE82+BF82+BK82+BG82+BH82+BI82+BJ82+BL82+BM82+BN82+BT82) -> 19.1200155 | BV82: =+BU82*$H$9 -> 6.3733385 | BW82: 6690.445092 | BX82: =BW82/X82 -> 0.9982759015 | BY82: =IF(BX82>0,IF(BX82>=$DC$28,$DA$28,IF(BX82<$DC$28,$DA$29,0)),0) -> 1 | BZ82: 3564.431851 | CA82: =BZ82/X82 -> 0.531845994 | CB82: =IF(CA82,$F$23,0) -> 1 | CC82: =IF(DS82>0,$F$24,0) -> 1 | CD82: 4410.958964 | CE82: =CD82/X82 -> 0.6581556198 | CF82: =IF(CE82>0,IF(CE82>=$DC$22,$DA$22,IF(CE82<$DC$28,$DA$23,0)),0) -> 1 | CG82: 475.9653835 | CH82: =IF(CG82>0,IF(CG82>=100,$F$26,IF(CG82<100,$F$26/2)),0) -> 1 | CI82: =SUM(DW82) -> 1 | CJ82: =IF(EA82>0,$F$28,0) -> 0 | CK82: =IF(DX82>0,$F$29,0) -> 1 | CL82: =IF(EC82>0,$F$30,0) -> 1 | CM82: =SUM(BY82,CB82,CH82,CC82,CF82,CI82,CJ82,CK82,CL82) -> 8 | CN82: =+CM82*$H$22 -> 2.666666667 | CO82: =SUM(AY82,BU82,CM82) -> 40.1700155 | CP82: =SUM(AZ82,BV82,CN82) -> 13.39000517 | CQ82: =IF(D82<($Z$13*1785),1,IF(D82<(($Z$14+$Z$13)*1785),2,IF(D82<(($Z$15+$Z$13+$Z$14)*1785),3,4))) -> 1 | CR82: =VLOOKUP(C82,Taul1!$F$6:$G$1718,2,FALSE) -> 2 | CX82: https://www.google.com/maps/@60.5332706,24.91856001,3a,75y,90t/data=!3m3!1e1!3m1!2e0 | DA82: 1 | DB82: 0 | DC82: 0 | DD82: =SUM(DA82:DC82) -> 1 | DE82: 1 | DF82: 0 | DG82: 0 | DH82: 2 | DI82: 1 | DJ82: 26 | DK82: 0 | DL82: 0 | DM82: 0 | DN82: 1 | DP82: 6690.445092 | DQ82: 5 | DR82: 0 | DS82: 9 | DT82: 4410.958964 | DU82: =+IF(AA82>$K$8,$F$27/2,0) -> 1 | DV82: =+IF(AA82/Y82>1.5,$F$27/2,0) -> 0 | DW82: =SUM(DU82:DV82) -> 1 | DX82: 1 | DY82: 0 | DZ82: 0 | EA82: =SUM(DY82:DZ82) -> 0 | EC82: 1 | ED82: 2 | EG82: 0
A83: 1421_2_0 | B83: 1 | C83: =CONCATENATE(S83,"_",T83) -> 1421_2 | D83: =RANK(CP83,$CP$37:$CP$1816) -> 47 | E83: 47 | F83: =E83-D83 -> 0 | G83: =CP83 -> 13.3698137 | H83: =AZ83 -> 5 | I83: =BV83 -> 5.536480366 | J83: =CN83 -> 2.833333333 | K83: =CQ83 -> 1 | L83: =B83-K83 -> 0 | M83: =HYPERLINK(CX83,"Gmaps") -> Gmaps | N83: =IF(Y83>$K$6,"LOPUT","VÄHÄ") -> LOPUT | O83: =IF(S83<40,"Valta",IF(S83<100,"Kanta",IF(S83<1000,"Seutu",IF(S83>999,"Yhdys")))) -> Yhdys | P83: Jokelantie | Q83: Hyvinkää, Tuusula | R83: Uusimaa | S83: 1421 | T83: 2 | U83: 0 | V83: 2 | W83: 15012 | X83: 15012 | Y83: 5851.678457 | Z83: 193.4406475 | AA83: 5792.708633 | AB83: 5532 (19 %), 5605 (50 %), 6449 (31 %) | AC83: PK2 | AD83: PK2 (95 %) | AE83: 40 (6 %), 50 (20 %), 60 (33 %), 70 (21 %), 80 (19 %) | AF83: Is (100 %) | AG83: Asfalttibetoni (77 %), Kivimastiksiasfaltti (23 %) | AH83: 5 | AI83: 21 | AJ83: 0 | AK83: 62.56155076 | AN83: Katu (100 %) | AO83: 0.8723900538 | AR83: =+IF(Y83>=$K$6,$F$5,($F$5/($K$6))*Y83) -> 9 | AS83: 238 | AV83: =+IF(AS83>=$L$15,$J$15,IF(AS83<($L$15),AS83*($J$15/($L$15)),)) -> 3 | AW83: 1636 | AX83: =+IF(AW83>=$L$11,$J$11,IF(AW83<($L$11),AW83*($J$11/($L$11)),)) -> 3 | AY83: =SUM(AR83,AV83,AX83) -> 15 | AZ83: =+AY83*$H$5 -> 5 | BA83: =+IF(Z83=0,0,IF(Z83>$K$7,$F$9,($F$9/$K$7)*Z83)) -> 8 | BB83: =IF(DD83>0,$F$10,0) -> 2 | BC83: =IF(DE83>0,$F$11,0) -> 1 | BD83: =IF(DF83>0,$F$12,0) -> 0 | BE83: =IF(DG83>0,$F$13,0) -> 0 | BF83: =IF(DI83>0,$F$14,IF(DH83>0,$F$14/2,0)) -> 2 | BG83: =+IF(DJ83>=$L$19,$J$19,IF(DJ83<($L$19),DJ83*($J$19/($L$19)),)) -> 0.04333333333 | BH83: =+IF(DK83>=$L$20,$J$20,IF(DK83<($L$20),DK83*($J$20/($L$20)),)) -> 0 | BI83: =+IF(DL83>=$L$21,$J$21,IF(DL83<($L$21),DL83*($J$21/($L$21)),)) -> 0 | BJ83: =+IF(DM83>=$L$22,$J$22,IF(DM83<($L$22),DM83*($J$22/($L$22)),)) -> 0 | BK83: =IF(DN83>0,$F$16,0) -> 2 | BL83: =+IF(DQ83>=$L$25,$J$25,IF(DQ83<($L$25),DQ83*($J$25/($L$25)),)) -> 1.333333333 | BM83: =IF(EG83>100000,$F$18,IF(EG83>0,$F$18/2,0)) -> 0 | BN83: =IF(ED83>0,$F$19,0) -> 0 | BO83: 0.546853 | BP83: 0.294189 | BQ83: 0.166434 | BR83: 0.052401 | BS83: 3.983837961 | BT83: =IF(COUNTIF($I$29:$L$29,TRUE)=0,0,IF(SUMIF($I$29:$L$29,TRUE,BO83:BR83)/COUNTIF($I$29:$L$29,TRUE)>=$L$30,$F$20/2,$F$20/2*(SUMIF($I$29:$L$29,TRUE,BO83:BR83)/COUNTIF($I$29:$L$29,TRUE)/$L$30)))+IF(BS83>=10,$F$20/2,IF(BS83<(10),BS83*($F$20/2/10))) -> 0.2327744314 | BU83: =SUM(BA83+BB83+BC83+BD83+BE83+BF83+BK83+BG83+BH83+BI83+BJ83+BL83+BM83+BN83+BT83) -> 16.6094411 | BV83: =+BU83*$H$9 -> 5.536480366 | BW83: 8765.948162 | BX83: =BW83/X83 -> 0.5839294006 | BY83: =IF(BX83>0,IF(BX83>=$DC$28,$DA$28,IF(BX83<$DC$28,$DA$29,0)),0) -> 1 | BZ83: 14985.03459 | CA83: =BZ83/X83 -> 0.998203743 | CB83: =IF(CA83,$F$23,0) -> 1 | CC83: =IF(DS83>0,$F$24,0) -> 1 | CD83: 5496.33313 | CE83: =CD83/X83 -> 0.3661293052 | CF83: =IF(CE83>0,IF(CE83>=$DC$22,$DA$22,IF(CE83<$DC$28,$DA$23,0)),0) -> 0.5 | CG83: 206.6496136 | CH83: =IF(CG83>0,IF(CG83>=100,$F$26,IF(CG83<100,$F$26/2)),0) -> 1 | CI83: =SUM(DW83) -> 1 | CJ83: =IF(EA83>0,$F$28,0) -> 1 | CK83: =IF(DX83>0,$F$29,0) -> 1 | CL83: =IF(EC83>0,$F$30,0) -> 1 | CM83: =SUM(BY83,CB83,CH83,CC83,CF83,CI83,CJ83,CK83,CL83) -> 8.5 | CN83: =+CM83*$H$22 -> 2.833333333 | CO83: =SUM(AY83,BU83,CM83) -> 40.1094411 | CP83: =SUM(AZ83,BV83,CN83) -> 13.3698137 | CQ83: =IF(D83<($Z$13*1785),1,IF(D83<(($Z$14+$Z$13)*1785),2,IF(D83<(($Z$15+$Z$13+$Z$14)*1785),3,4))) -> 1 | CR83: =VLOOKUP(C83,Taul1!$F$6:$G$1718,2,FALSE) -> 3 | CX83: https://www.google.com/maps/@60.50126471,25.03174414,3a,75y,90t/data=!3m3!1e1!3m1!2e0 | DA83: 1 | DB83: 0 | DC83: 0 | DD83: =SUM(DA83:DC83) -> 1 | DE83: 2 | DF83: 0 | DG83: 0 | DH83: 1 | DI83: 1 | DJ83: 26 | DK83: 0 | DL83: 0 | DM83: 0 | DN83: 1 | DP83: 8765.948162 | DQ83: 2 | DR83: 0 | DS83: 14 | DT83: 5496.33313 | DU83: =+IF(AA83>$K$8,$F$27/2,0) -> 1 | DV83: =+IF(AA83/Y83>1.5,$F$27/2,0) -> 0 | DW83: =SUM(DU83:DV83) -> 1 | DX83: 1 | DY83: 0 | DZ83: 1 | EA83: =SUM(DY83:DZ83) -> 1 | EC83: 1 | ED83: 0 | EG83: 0
A84: 2_15_0 | B84: 1 | C84: =CONCATENATE(S84,"_",T84) -> 2_15 | D84: =RANK(CP84,$CP$37:$CP$1816) -> 48 | E84: 48 | F84: =E84-D84 -> 0 | G84: =CP84 -> 13.36388889 | H84: =AZ84 -> 5 | I84: =BV84 -> 6.530555556 | J84: =CN84 -> 1.833333333 | K84: =CQ84 -> 1 | L84: =B84-K84 -> 0 | M84: =HYPERLINK(CX84,"Gmaps") -> Gmaps | N84: =IF(Y84>$K$6,"LOPUT","VÄHÄ") -> LOPUT | O84: =IF(S84<40,"Valta",IF(S84<100,"Kanta",IF(S84<1000,"Seutu",IF(S84>999,"Yhdys")))) -> Valta | P84: Porintie | Q84: Karkkila | R84: Uusimaa | S84: 2 | T84: 15 | U84: 0 | V84: 15 | W84: 6921 | X84: 6921 | Y84: 4596 | Z84: 521 | AA84: 5933 | AB84: 4596 (100 %) | AC84: PK1 | AD84: PK1 (100 %) | AE84: 80 (26 %), 100 (74 %) | AF84: Is (100 %) | AG84: Asfalttibetoni (2 %), Kivimastiksiasfaltti (98 %) | AH84: 2 | AI84: 5 | AJ84: 0.11199776 | AK84: 371 | AL84: Kattava | AM84: I | AN84: Maantie (100 %) | AO84: 0.2609936698 | AR84: =+IF(Y84>=$K$6,$F$5,($F$5/($K$6))*Y84) -> 9 | AS84: 139 | AV84: =+IF(AS84>=$L$15,$J$15,IF(AS84<($L$15),AS84*($J$15/($L$15)),)) -> 3 | AW84: 1657 | AX84: =+IF(AW84>=$L$11,$J$11,IF(AW84<($L$11),AW84*($J$11/($L$11)),)) -> 3 | AY84: =SUM(AR84,AV84,AX84) -> 15 | AZ84: =+AY84*$H$5 -> 5 | BA84: =+IF(Z84=0,0,IF(Z84>$K$7,$F$9,($F$9/$K$7)*Z84)) -> 8 | BB84: =IF(DD84>0,$F$10,0) -> 2 | BC84: =IF(DE84>0,$F$11,0) -> 1 | BD84: =IF(DF84>0,$F$12,0) -> 1 | BE84: =IF(DG84>0,$F$13,0) -> 0 | BF84: =IF(DI84>0,$F$14,IF(DH84>0,$F$14/2,0)) -> 2 | BG84: =+IF(DJ84>=$L$19,$J$19,IF(DJ84<($L$19),DJ84*($J$19/($L$19)),)) -> 0.4166666667 | BH84: =+IF(DK84>=$L$20,$J$20,IF(DK84<($L$20),DK84*($J$20/($L$20)),)) -> 0.175 | BI84: =+IF(DL84>=$L$21,$J$21,IF(DL84<($L$21),DL84*($J$21/($L$21)),)) -> 0 | BJ84: =+IF(DM84>=$L$22,$J$22,IF(DM84<($L$22),DM84*($J$22/($L$22)),)) -> 0 | BK84: =IF(DN84>0,$F$16,0) -> 0 | BL84: =+IF(DQ84>=$L$25,$J$25,IF(DQ84<($L$25),DQ84*($J$25/($L$25)),)) -> 2 | BM84: =IF(EG84>100000,$F$18,IF(EG84>0,$F$18/2,0)) -> 0 | BN84: =IF(ED84>0,$F$19,0) -> 2 | BO84: 6.64435 | BP84: 10.0985 | BQ84: 7.10467 | BR84: 3.37531 | BS84: 10.94936251 | BT84: =IF(COUNTIF($I$29:$L$29,TRUE)=0,0,IF(SUMIF($I$29:$L$29,TRUE,BO84:BR84)/COUNTIF($I$29:$L$29,TRUE)>=$L$30,$F$20/2,$F$20/2*(SUMIF($I$29:$L$29,TRUE,BO84:BR84)/COUNTIF($I$29:$L$29,TRUE)/$L$30)))+IF(BS84>=10,$F$20/2,IF(BS84<(10),BS84*($F$20/2/10))) -> 1 | BU84: =SUM(BA84+BB84+BC84+BD84+BE84+BF84+BK84+BG84+BH84+BI84+BJ84+BL84+BM84+BN84+BT84) -> 19.59166667 | BV84: =+BU84*$H$9 -> 6.530555556 | BW84: 3339.960334 | BX84: =BW84/X84 -> 0.4825834899 | BY84: =IF(BX84>0,IF(BX84>=$DC$28,$DA$28,IF(BX84<$DC$28,$DA$29,0)),0) -> 0.5 | BZ84: 6922.705095 | CA84: =BZ84/X84 -> 1.000246365 | CB84: =IF(CA84,$F$23,0) -> 1 | CC84: =IF(DS84>0,$F$24,0) -> 0 | CD84: 1274.239226 | CE84: =CD84/X84 -> 0.1841120106 | CF84: =IF(CE84>0,IF(CE84>=$DC$22,$DA$22,IF(CE84<$DC$28,$DA$23,0)),0) -> 0.5 | CG84: 59.08770409 | CH84: =IF(CG84>0,IF(CG84>=100,$F$26,IF(CG84<100,$F$26/2)),0) -> 0.5 | CI84: =SUM(DW84) -> 1 | CJ84: =IF(EA84>0,$F$28,0) -> 0 | CK84: =IF(DX84>0,$F$29,0) -> 1 | CL84: =IF(EC84>0,$F$30,0) -> 1 | CM84: =SUM(BY84,CB84,CH84,CC84,CF84,CI84,CJ84,CK84,CL84) -> 5.5 | CN84: =+CM84*$H$22 -> 1.833333333 | CO84: =SUM(AY84,BU84,CM84) -> 40.09166667 | CP84: =SUM(AZ84,BV84,CN84) -> 13.36388889 | CQ84: =IF(D84<($Z$13*1785),1,IF(D84<(($Z$14+$Z$13)*1785),2,IF(D84<(($Z$15+$Z$13+$Z$14)*1785),3,4))) -> 1 | CR84: =VLOOKUP(C84,Taul1!$F$6:$G$1718,2,FALSE) -> 1 | CX84: https://www.google.com/maps/@60.5448322,24.21781589,3a,75y,90t/data=!3m3!1e1!3m1!2e0 | DA84: 0 | DB84: 1 | DC84: 3 | DD84: =SUM(DA84:DC84) -> 4 | DE84: 1 | DF84: 5 | DG84: 0 | DH84: 10 | DI84: 2 | DJ84: 250 | DK84: 35 | DL84: 0 | DM84: 0 | DN84: 0 | DP84: 3339.960334 | DQ84: 10 | DR84: 0 | DS84: 0 | DT84: 1274.239226 | DU84: =+IF(AA84>$K$8,$F$27/2,0) -> 1 | DV84: =+IF(AA84/Y84>1.5,$F$27/2,0) -> 0 | DW84: =SUM(DU84:DV84) -> 1 | DX84: 1 | DY84: 0 | DZ84: 0 | EA84: =SUM(DY84:DZ84) -> 0 | EC84: 1 | ED84: 1 | EG84: 0
A85: 290_13_0 | B85: 1 | C85: =CONCATENATE(S85,"_",T85) -> 290_13 | D85: =RANK(CP85,$CP$37:$CP$1816) -> 49 | E85: 49 | F85: =E85-D85 -> 0 | G85: =CP85 -> 13.3297098 | H85: =AZ85 -> 5 | I85: =BV85 -> 5.663043132 | J85: =CN85 -> 2.666666667 | K85: =CQ85 -> 1 | L85: =B85-K85 -> 0 | M85: =HYPERLINK(CX85,"Gmaps") -> Gmaps | N85: =IF(Y85>$K$6,"LOPUT","VÄHÄ") -> LOPUT | O85: =IF(S85<40,"Valta",IF(S85<100,"Kanta",IF(S85<1000,"Seutu",IF(S85>999,"Yhdys")))) -> Seutu | P85: Harvialantie | Q85: Hämeenlinna, Janakkala | R85: Kanta-Häme | S85: 290 | T85: 13 | U85: 0 | V85: 13 | W85: 5425 | X85: 5425 | Y85: 7372.266359 | Z85: 338.7410138 | AA85: 7307.337327 | AB85: 5124 (54 %), 9993 (46 %) | AC85: PK2 | AD85: PK2 (100 %) | AE85: 50 (18 %), 60 (63 %), 80 (19 %) | AF85: Is (100 %) | AG85: Asfalttibetoni (99 %) | AH85: 5 | AI85: 9 | AJ85: 0.003709198813 | AK85: 153.0414747 | AN85: Katu (100 %) | AO85: 0.9989887652 | AR85: =+IF(Y85>=$K$6,$F$5,($F$5/($K$6))*Y85) -> 9 | AS85: 266 | AV85: =+IF(AS85>=$L$15,$J$15,IF(AS85<($L$15),AS85*($J$15/($L$15)),)) -> 3 | AW85: 3860 | AX85: =+IF(AW85>=$L$11,$J$11,IF(AW85<($L$11),AW85*($J$11/($L$11)),)) -> 3 | AY85: =SUM(AR85,AV85,AX85) -> 15 | AZ85: =+AY85*$H$5 -> 5 | BA85: =+IF(Z85=0,0,IF(Z85>$K$7,$F$9,($F$9/$K$7)*Z85)) -> 8 | BB85: =IF(DD85>0,$F$10,0) -> 0 | BC85: =IF(DE85>0,$F$11,0) -> 0 | BD85: =IF(DF85>0,$F$12,0) -> 0 | BE85: =IF(DG85>0,$F$13,0) -> 0 | BF85: =IF(DI85>0,$F$14,IF(DH85>0,$F$14/2,0)) -> 2 | BG85: =+IF(DJ85>=$L$19,$J$19,IF(DJ85<($L$19),DJ85*($J$19/($L$19)),)) -> 0 | BH85: =+IF(DK85>=$L$20,$J$20,IF(DK85<($L$20),DK85*($J$20/($L$20)),)) -> 0 | BI85: =+IF(DL85>=$L$21,$J$21,IF(DL85<($L$21),DL85*($J$21/($L$21)),)) -> 0 | BJ85: =+IF(DM85>=$L$22,$J$22,IF(DM85<($L$22),DM85*($J$22/($L$22)),)) -> 0 | BK85: =IF(DN85>0,$F$16,0) -> 2 | BL85: =+IF(DQ85>=$L$25,$J$25,IF(DQ85<($L$25),DQ85*($J$25/($L$25)),)) -> 2 | BM85: =IF(EG85>100000,$F$18,IF(EG85>0,$F$18/2,0)) -> 0.5 | BN85: =IF(ED85>0,$F$19,0) -> 2 | BO85: 2.95534 | BP85: 5.38024 | BQ85: 2.73932 | BR85: 0.812028 | BS85: 2.399321279 | BT85: =IF(COUNTIF($I$29:$L$29,TRUE)=0,0,IF(SUMIF($I$29:$L$29,TRUE,BO85:BR85)/COUNTIF($I$29:$L$29,TRUE)>=$L$30,$F$20/2,$F$20/2*(SUMIF($I$29:$L$29,TRUE,BO85:BR85)/COUNTIF($I$29:$L$29,TRUE)/$L$30)))+IF(BS85>=10,$F$20/2,IF(BS85<(10),BS85*($F$20/2/10))) -> 0.4891293973 | BU85: =SUM(BA85+BB85+BC85+BD85+BE85+BF85+BK85+BG85+BH85+BI85+BJ85+BL85+BM85+BN85+BT85) -> 16.9891294 | BV85: =+BU85*$H$9 -> 5.663043132 | BW85: 5419.514051 | BX85: =BW85/X85 -> 0.9989887651 | BY85: =IF(BX85>0,IF(BX85>=$DC$28,$DA$28,IF(BX85<$DC$28,$DA$29,0)),0) -> 1 | BZ85: 5419.514051 | CA85: =BZ85/X85 -> 0.9989887651 | CB85: =IF(CA85,$F$23,0) -> 1 | CC85: =IF(DS85>0,$F$24,0) -> 1 | CD85: 4785.895176 | CE85: =CD85/X85 -> 0.8821926591 | CF85: =IF(CE85>0,IF(CE85>=$DC$22,$DA$22,IF(CE85<$DC$28,$DA$23,0)),0) -> 1 | CG85: 491.5437788 | CH85: =IF(CG85>0,IF(CG85>=100,$F$26,IF(CG85<100,$F$26/2)),0) -> 1 | CI85: =SUM(DW85) -> 1 | CJ85: =IF(EA85>0,$F$28,0) -> 1 | CK85: =IF(DX85>0,$F$29,0) -> 0 | CL85: =IF(EC85>0,$F$30,0) -> 1 | CM85: =SUM(BY85,CB85,CH85,CC85,CF85,CI85,CJ85,CK85,CL85) -> 8 | CN85: =+CM85*$H$22 -> 2.666666667 | CO85: =SUM(AY85,BU85,CM85) -> 39.9891294 | CP85: =SUM(AZ85,BV85,CN85) -> 13.3297098 | CQ85: =IF(D85<($Z$13*1785),1,IF(D85<(($Z$14+$Z$13)*1785),2,IF(D85<(($Z$15+$Z$13+$Z$14)*1785),3,4))) -> 1 | CR85: =VLOOKUP(C85,Taul1!$F$6:$G$1718,2,FALSE) -> 2 | CX85: https://www.google.com/maps/@60.95930021,24.58730192,3a,75y,90t/data=!3m3!1e1!3m1!2e0 | DA85: 0 | DB85: 0 | DC85: 0 | DD85: =SUM(DA85:DC85) -> 0 | DE85: 0 | DF85: 0 | DG85: 0 | DH85: 7 | DI85: 1 | DJ85: 0 | DK85: 0 | DL85: 0 | DM85: 0 | DN85: 1 | DP85: 5419.514051 | DQ85: 8 | DR85: 1 | DS85: 16 | DT85: 4785.895176 | DU85: =+IF(AA85>$K$8,$F$27/2,0) -> 1 | DV85: =+IF(AA85/Y85>1.5,$F$27/2,0) -> 0 | DW85: =SUM(DU85:DV85) -> 1 | DX85: 0 | DY85: 0 | DZ85: 1 | EA85: =SUM(DY85:DZ85) -> 1 | EC85: 1 | ED85: 4 | EG85: 30983
A86: 12_218_0 | B86: 1 | C86: =CONCATENATE(S86,"_",T86) -> 12_218 | D86: =RANK(CP86,$CP$37:$CP$1816) -> 50 | E86: 50 | F86: =E86-D86 -> 0 | G86: =CP86 -> 13.32055556 | H86: =AZ86 -> 5 | I86: =BV86 -> 6.320555556 | J86: =CN86 -> 2 | K86: =CQ86 -> 1 | L86: =B86-K86 -> 0 | M86: =HYPERLINK(CX86,"Gmaps") -> Gmaps | N86: =IF(Y86>$K$6,"LOPUT","VÄHÄ") -> LOPUT | O86: =IF(S86<40,"Valta",IF(S86<100,"Kanta",IF(S86<1000,"Seutu",IF(S86>999,"Yhdys")))) -> Valta | P86: Tampereentie | Q86: Hollola | R86: Päijät-Häme | S86: 12 | T86: 218 | U86: 0 | V86: 218 | W86: 5157 | X86: 5157 | Y86: 5889.073298 | Z86: 560.1151832 | AA86: 7017.314136 | AB86: 5743 (68 %), 6193 (32 %) | AC86: PK1 | AD86: PK1 (97 %) | AE86: 80 (77 %), 100 (22 %) | AF86: Is (100 %) | AG86: Asfalttibetoni (100 %) | AH86: 0 | AI86: 1 | AJ86: 0 | AK86: 330.2931937 | AL86: Kattava | AM86: I | AN86: Maantie (100 %) | AO86: 0.0170510908 | AR86: =+IF(Y86>=$K$6,$F$5,($F$5/($K$6))*Y86) -> 9 | AS86: 75 | AV86: =+IF(AS86>=$L$15,$J$15,IF(AS86<($L$15),AS86*($J$15/($L$15)),)) -> 3 | AW86: 2051 | AX86: =+IF(AW86>=$L$11,$J$11,IF(AW86<($L$11),AW86*($J$11/($L$11)),)) -> 3 | AY86: =SUM(AR86,AV86,AX86) -> 15 | AZ86: =+AY86*$H$5 -> 5 | BA86: =+IF(Z86=0,0,IF(Z86>$K$7,$F$9,($F$9/$K$7)*Z86)) -> 8 | BB86: =IF(DD86>0,$F$10,0) -> 2 | BC86: =IF(DE86>0,$F$11,0) -> 1 | BD86: =IF(DF86>0,$F$12,0) -> 1 | BE86: =IF(DG86>0,$F$13,0) -> 0 | BF86: =IF(DI86>0,$F$14,IF(DH86>0,$F$14/2,0)) -> 2 | BG86: =+IF(DJ86>=$L$19,$J$19,IF(DJ86<($L$19),DJ86*($J$19/($L$19)),)) -> 0.5 | BH86: =+IF(DK86>=$L$20,$J$20,IF(DK86<($L$20),DK86*($J$20/($L$20)),)) -> 0.295 | BI86: =+IF(DL86>=$L$21,$J$21,IF(DL86<($L$21),DL86*($J$21/($L$21)),)) -> 0.5 | BJ86: =+IF(DM86>=$L$22,$J$22,IF(DM86<($L$22),DM86*($J$22/($L$22)),)) -> 0 | BK86: =IF(DN86>0,$F$16,0) -> 0 | BL86: =+IF(DQ86>=$L$25,$J$25,IF(DQ86<($L$25),DQ86*($J$25/($L$25)),)) -> 0.6666666667 | BM86: =IF(EG86>100000,$F$18,IF(EG86>0,$F$18/2,0)) -> 0 | BN86: =IF(ED86>0,$F$19,0) -> 2 | BO86: 21.5192 | BP86: 27.4865 | BQ86: 18.6758 | BR86: 15.6068 | BS86: 26.36487419 | BT86: =IF(COUNTIF($I$29:$L$29,TRUE)=0,0,IF(SUMIF($I$29:$L$29,TRUE,BO86:BR86)/COUNTIF($I$29:$L$29,TRUE)>=$L$30,$F$20/2,$F$20/2*(SUMIF($I$29:$L$29,TRUE,BO86:BR86)/COUNTIF($I$29:$L$29,TRUE)/$L$30)))+IF(BS86>=10,$F$20/2,IF(BS86<(10),BS86*($F$20/2/10))) -> 1 | BU86: =SUM(BA86+BB86+BC86+BD86+BE86+BF86+BK86+BG86+BH86+BI86+BJ86+BL86+BM86+BN86+BT86) -> 18.96166667 | BV86: =+BU86*$H$9 -> 6.320555556 | BW86: 3720.936198 | BX86: =BW86/X86 -> 0.721531161 | BY86: =IF(BX86>0,IF(BX86>=$DC$28,$DA$28,IF(BX86<$DC$28,$DA$29,0)),0) -> 1 | BZ86: 5149.025716 | CA86: =BZ86/X86 -> 0.9984536971 | CB86: =IF(CA86,$F$23,0) -> 1 | CC86: =IF(DS86>0,$F$24,0) -> 1 | CD86: 1252.027145 | CE86: =CD86/X86 -> 0.2427820719 | CF86: =IF(CE86>0,IF(CE86>=$DC$22,$DA$22,IF(CE86<$DC$28,$DA$23,0)),0) -> 0.5 | CG86: 61.29765367 | CH86: =IF(CG86>0,IF(CG86>=100,$F$26,IF(CG86<100,$F$26/2)),0) -> 0.5 | CI86: =SUM(DW86) -> 1 | CJ86: =IF(EA86>0,$F$28,0) -> 0 | CK86: =IF(DX86>0,$F$29,0) -> 0 | CL86: =IF(EC86>0,$F$30,0) -> 1 | CM86: =SUM(BY86,CB86,CH86,CC86,CF86,CI86,CJ86,CK86,CL86) -> 6 | CN86: =+CM86*$H$22 -> 2 | CO86: =SUM(AY86,BU86,CM86) -> 39.96166667 | CP86: =SUM(AZ86,BV86,CN86) -> 13.32055556 | CQ86: =IF(D86<($Z$13*1785),1,IF(D86<(($Z$14+$Z$13)*1785),2,IF(D86<(($Z$15+$Z$13+$Z$14)*1785),3,4))) -> 1 | CR86: =VLOOKUP(C86,Taul1!$F$6:$G$1718,2,FALSE) -> 2 | CX86: https://www.google.com/maps/@61.02522817,25.11091166,3a,75y,90t/data=!3m3!1e1!3m1!2e0 | DA86: 0 | DB86: 1 | DC86: 10 | DD86: =SUM(DA86:DC86) -> 11 | DE86: 2 | DF86: 3 | DG86: 0 | DH86: 32 | DI86: 2 | DJ86: 388 | DK86: 59 | DL86: 2590 | DM86: 0 | DN86: 0 | DP86: 3720.936198 | DQ86: 1 | DR86: 0 | DS86: 2 | DT86: 1252.027145 | DU86: =+IF(AA86>$K$8,$F$27/2,0) -> 1 | DV86: =+IF(AA86/Y86>1.5,$F$27/2,0) -> 0 | DW86: =SUM(DU86:DV86) -> 1 | DX86: 0 | DY86: 0 | DZ86: 0 | EA86: =SUM(DY86:DZ86) -> 0 | EC86: 1 | ED86: 1 | EG86: 0
A87: 167_7_0 | B87: 1 | C87: =CONCATENATE(S87,"_",T87) -> 167_7 | D87: =RANK(CP87,$CP$37:$CP$1816) -> 51 | E87: 51 | F87: =E87-D87 -> 0 | G87: =CP87 -> 13.28866148 | H87: =AZ87 -> 5 | I87: =BV87 -> 5.955328145 | J87: =CN87 -> 2.333333333 | K87: =CQ87 -> 1 | L87: =B87-K87 -> 0 | M87: =HYPERLINK(CX87,"Gmaps") -> Gmaps | N87: =IF(Y87>$K$6,"LOPUT","VÄHÄ") -> LOPUT | O87: =IF(S87<40,"Valta",IF(S87<100,"Kanta",IF(S87<1000,"Seutu",IF(S87>999,"Yhdys")))) -> Seutu | P87: Artjärventie, Pakaantie | Q87: Orimattila | R87: Päijät-Häme | S87: 167 | T87: 7 | U87: 0 | V87: 7 | W87: 3549 | X87: 3549 | Y87: 3937.304311 | Z87: 247.4263173 | AA87: 4189.6337 | AB87: 2942 (35 %), 3929 (54 %), 7229 (11 %) | AC87: PK2 | AD87: PK2 (99 %) | AE87: 50 (42 %), 60 (58 %) | AF87: Is (100 %) | AG87: Asfalttibetoni (31 %), Kivimastiksiasfaltti (69 %) | AH87: 1 | AI87: 5 | AJ87: 0.112707805 | AK87: 88.8216399 | AN87: Maantie (100 %) | AO87: 0.8713882536 | AR87: =+IF(Y87>=$K$6,$F$5,($F$5/($K$6))*Y87) -> 9 | AS87: 429 | AV87: =+IF(AS87>=$L$15,$J$15,IF(AS87<($L$15),AS87*($J$15/($L$15)),)) -> 3 | AW87: 1535 | AX87: =+IF(AW87>=$L$11,$J$11,IF(AW87<($L$11),AW87*($J$11/($L$11)),)) -> 3 | AY87: =SUM(AR87,AV87,AX87) -> 15 | AZ87: =+AY87*$H$5 -> 5 | BA87: =+IF(Z87=0,0,IF(Z87>$K$7,$F$9,($F$9/$K$7)*Z87)) -> 8 | BB87: =IF(DD87>0,$F$10,0) -> 2 | BC87: =IF(DE87>0,$F$11,0) -> 1 | BD87: =IF(DF87>0,$F$12,0) -> 1 | BE87: =IF(DG87>0,$F$13,0) -> 0 | BF87: =IF(DI87>0,$F$14,IF(DH87>0,$F$14/2,0)) -> 1 | BG87: =+IF(DJ87>=$L$19,$J$19,IF(DJ87<($L$19),DJ87*($J$19/($L$19)),)) -> 0.003333333333 | BH87: =+IF(DK87>=$L$20,$J$20,IF(DK87<($L$20),DK87*($J$20/($L$20)),)) -> 0.125 | BI87: =+IF(DL87>=$L$21,$J$21,IF(DL87<($L$21),DL87*($J$21/($L$21)),)) -> 0 | BJ87: =+IF(DM87>=$L$22,$J$22,IF(DM87<($L$22),DM87*($J$22/($L$22)),)) -> 0 | BK87: =IF(DN87>0,$F$16,0) -> 0 | BL87: =+IF(DQ87>=$L$25,$J$25,IF(DQ87<($L$25),DQ87*($J$25/($L$25)),)) -> 2 | BM87: =IF(EG87>100000,$F$18,IF(EG87>0,$F$18/2,0)) -> 0 | BN87: =IF(ED87>0,$F$19,0) -> 2 | BO87: 3.191 | BP87: 3.32364 | BQ87: 3.04318 | BR87: 1.05817 | BS87: 8.381142058 | BT87: =IF(COUNTIF($I$29:$L$29,TRUE)=0,0,IF(SUMIF($I$29:$L$29,TRUE,BO87:BR87)/COUNTIF($I$29:$L$29,TRUE)>=$L$30,$F$20/2,$F$20/2*(SUMIF($I$29:$L$29,TRUE,BO87:BR87)/COUNTIF($I$29:$L$29,TRUE)/$L$30)))+IF(BS87>=10,$F$20/2,IF(BS87<(10),BS87*($F$20/2/10))) -> 0.7376511029 | BU87: =SUM(BA87+BB87+BC87+BD87+BE87+BF87+BK87+BG87+BH87+BI87+BJ87+BL87+BM87+BN87+BT87) -> 17.86598444 | BV87: =+BU87*$H$9 -> 5.955328145 | BW87: 2799.241174 | BX87: =BW87/X87 -> 0.788740821 | BY87: =IF(BX87>0,IF(BX87>=$DC$28,$DA$28,IF(BX87<$DC$28,$DA$29,0)),0) -> 1 | BZ87: 3543.593912 | CA87: =BZ87/X87 -> 0.9984767292 | CB87: =IF(CA87,$F$23,0) -> 1 | CC87: =IF(DS87>0,$F$24,0) -> 1 | CD87: 3156.649142 | CE87: =CD87/X87 -> 0.88944749 | CF87: =IF(CE87>0,IF(CE87>=$DC$22,$DA$22,IF(CE87<$DC$28,$DA$23,0)),0) -> 1 | CG87: 613.534235 | CH87: =IF(CG87>0,IF(CG87>=100,$F$26,IF(CG87<100,$F$26/2)),0) -> 1 | CI87: =SUM(DW87) -> 1 | CJ87: =IF(EA87>0,$F$28,0) -> 0 | CK87: =IF(DX87>0,$F$29,0) -> 0 | CL87: =IF(EC87>0,$F$30,0) -> 1 | CM87: =SUM(BY87,CB87,CH87,CC87,CF87,CI87,CJ87,CK87,CL87) -> 7 | CN87: =+CM87*$H$22 -> 2.333333333 | CO87: =SUM(AY87,BU87,CM87) -> 39.86598444 | CP87: =SUM(AZ87,BV87,CN87) -> 13.28866148 | CQ87: =IF(D87<($Z$13*1785),1,IF(D87<(($Z$14+$Z$13)*1785),2,IF(D87<(($Z$15+$Z$13+$Z$14)*1785),3,4))) -> 1 | CR87: =VLOOKUP(C87,Taul1!$F$6:$G$1718,2,FALSE) -> 3 | CX87: https://www.google.com/maps/@60.80170627,25.72899438,3a,75y,90t/data=!3m3!1e1!3m1!2e0 | DA87: 0 | DB87: 1 | DC87: 0 | DD87: =SUM(DA87:DC87) -> 1 | DE87: 1 | DF87: 6 | DG87: 0 | DH87: 5 | DI87: 0 | DJ87: 2 | DK87: 25 | DL87: 0 | DM87: 0 | DN87: 0 | DP87: 2799.241174 | DQ87: 4 | DR87: 0 | DS87: 5 | DT87: 3156.649142 | DU87: =+IF(AA87>$K$8,$F$27/2,0) -> 1 | DV87: =+IF(AA87/Y87>1.5,$F$27/2,0) -> 0 | DW87: =SUM(DU87:DV87) -> 1 | DX87: 0 | DY87: 0 | DZ87: 0 | EA87: =SUM(DY87:DZ87) -> 0 | EC87: 1 | ED87: 1 | EG87: 0
A88: 151_2_5839 | B88: 1 | C88: =CONCATENATE(S88,"_",T88) -> 151_2 | D88: =RANK(CP88,$CP$37:$CP$1816) -> 52 | E88: 52 | F88: =E88-D88 -> 0 | G88: =CP88 -> 13.25901048 | H88: =AZ88 -> 5 | I88: =BV88 -> 5.925677144 | J88: =CN88 -> 2.333333333 | K88: =CQ88 -> 1 | L88: =B88-K88 -> 0 | M88: =HYPERLINK(CX88,"Gmaps") -> Gmaps | N88: =IF(Y88>$K$6,"LOPUT","VÄHÄ") -> LOPUT | O88: =IF(S88<40,"Valta",IF(S88<100,"Kanta",IF(S88<1000,"Seutu",IF(S88>999,"Yhdys")))) -> Seutu | P88: Helkamäentie, Meijeritie | Q88: Askola | R88: Uusimaa | S88: 151 | T88: 2 | U88: 5839 | V88: 2 | W88: 6912 | X88: 1073 | Y88: 2900 | Z88: 105 | AA88: 3190 | AB88: 2900 (100 %) | AC88: PK2 | AD88: PK2 (100 %) | AE88: 40 (100 %) | AF88: Ib (12 %), Is (88 %) | AG88: Asfalttibetoni (100 %) | AH88: 2 | AI88: 3 | AJ88: 0.5503597122 | AK88: 20 | AN88: Katu (16 %) | AO88: 0.9996427875 | AR88: =+IF(Y88>=$K$6,$F$5,($F$5/($K$6))*Y88) -> 9 | AS88: 60 | AV88: =+IF(AS88>=$L$15,$J$15,IF(AS88<($L$15),AS88*($J$15/($L$15)),)) -> 3 | AW88: 550 | AX88: =+IF(AW88>=$L$11,$J$11,IF(AW88<($L$11),AW88*($J$11/($L$11)),)) -> 3 | AY88: =SUM(AR88,AV88,AX88) -> 15 | AZ88: =+AY88*$H$5 -> 5 | BA88: =+IF(Z88=0,0,IF(Z88>$K$7,$F$9,($F$9/$K$7)*Z88)) -> 8 | BB88: =IF(DD88>0,$F$10,0) -> 2 | BC88: =IF(DE88>0,$F$11,0) -> 0 | BD88: =IF(DF88>0,$F$12,0) -> 0 | BE88: =IF(DG88>0,$F$13,0) -> 0 | BF88: =IF(DI88>0,$F$14,IF(DH88>0,$F$14/2,0)) -> 1 | BG88: =+IF(DJ88>=$L$19,$J$19,IF(DJ88<($L$19),DJ88*($J$19/($L$19)),)) -> 0.18 | BH88: =+IF(DK88>=$L$20,$J$20,IF(DK88<($L$20),DK88*($J$20/($L$20)),)) -> 0.5 | BI88: =+IF(DL88>=$L$21,$J$21,IF(DL88<($L$21),DL88*($J$21/($L$21)),)) -> 0 | BJ88: =+IF(DM88>=$L$22,$J$22,IF(DM88<($L$22),DM88*($J$22/($L$22)),)) -> 0 | BK88: =IF(DN88>0,$F$16,0) -> 2 | BL88: =+IF(DQ88>=$L$25,$J$25,IF(DQ88<($L$25),DQ88*($J$25/($L$25)),)) -> 2 | BM88: =IF(EG88>100000,$F$18,IF(EG88>0,$F$18/2,0)) -> 0 | BN88: =IF(ED88>0,$F$19,0) -> 2 | BO88: 1.13865 | BP88: 0.666584 | BQ88: 0.823941 | BR88: 0.199241 | BS88: 0.1878453335 | BT88: =IF(COUNTIF($I$29:$L$29,TRUE)=0,0,IF(SUMIF($I$29:$L$29,TRUE,BO88:BR88)/COUNTIF($I$29:$L$29,TRUE)>=$L$30,$F$20/2,$F$20/2*(SUMIF($I$29:$L$29,TRUE,BO88:BR88)/COUNTIF($I$29:$L$29,TRUE)/$L$30)))+IF(BS88>=10,$F$20/2,IF(BS88<(10),BS88*($F$20/2/10))) -> 0.09703143334 | BU88: =SUM(BA88+BB88+BC88+BD88+BE88+BF88+BK88+BG88+BH88+BI88+BJ88+BL88+BM88+BN88+BT88) -> 17.77703143 | BV88: =+BU88*$H$9 -> 5.925677144 | BW88: 1072.616711 | BX88: =BW88/X88 -> 0.9996427875 | BY88: =IF(BX88>0,IF(BX88>=$DC$28,$DA$28,IF(BX88<$DC$28,$DA$29,0)),0) -> 1 | BZ88: 0 | CA88: =BZ88/X88 -> 0 | CB88: =IF(CA88,$F$23,0) -> 0 | CC88: =IF(DS88>0,$F$24,0) -> 1 | CD88: 1072.616711 | CE88: =CD88/X88 -> 0.9996427875 | CF88: =IF(CE88>0,IF(CE88>=$DC$22,$DA$22,IF(CE88<$DC$28,$DA$23,0)),0) -> 1 | CG88: 578.3932898 | CH88: =IF(CG88>0,IF(CG88>=100,$F$26,IF(CG88<100,$F$26/2)),0) -> 1 | CI88: =SUM(DW88) -> 1 | CJ88: =IF(EA88>0,$F$28,0) -> 0 | CK88: =IF(DX88>0,$F$29,0) -> 1 | CL88: =IF(EC88>0,$F$30,0) -> 1 | CM88: =SUM(BY88,CB88,CH88,CC88,CF88,CI88,CJ88,CK88,CL88) -> 7 | CN88: =+CM88*$H$22 -> 2.333333333 | CO88: =SUM(AY88,BU88,CM88) -> 39.77703143 | CP88: =SUM(AZ88,BV88,CN88) -> 13.25901048 | CQ88: =IF(D88<($Z$13*1785),1,IF(D88<(($Z$14+$Z$13)*1785),2,IF(D88<(($Z$15+$Z$13+$Z$14)*1785),3,4))) -> 1 | CR88: =VLOOKUP(C88,Taul1!$F$6:$G$1718,2,FALSE) -> 3 | CX88: https://www.google.com/maps/@60.49386804,25.53796566,3a,75y,90t/data=!3m3!1e1!3m1!2e0 | DA88: 0 | DB88: 0 | DC88: 9 | DD88: =SUM(DA88:DC88) -> 9 | DE88: 0 | DF88: 0 | DG88: 0 | DH88: 11 | DI88: 0 | DJ88: 108 | DK88: 152 | DL88: 0 | DM88: 0 | DN88: 1 | DP88: 1072.616711 | DQ88: 4 | DR88: 0 | DS88: 4 | DT88: 1072.616711 | DU88: =+IF(AA88>$K$8,$F$27/2,0) -> 1 | DV88: =+IF(AA88/Y88>1.5,$F$27/2,0) -> 0 | DW88: =SUM(DU88:DV88) -> 1 | DX88: 1 | DY88: 0 | DZ88: 0 | EA88: =SUM(DY88:DZ88) -> 0 | EC88: 1 | ED88: 3 | EG88: 0
A89: 167_5_0 | B89: 1 | C89: =CONCATENATE(S89,"_",T89) -> 167_5 | D89: =RANK(CP89,$CP$37:$CP$1816) -> 53 | E89: 53 | F89: =E89-D89 -> 0 | G89: =CP89 -> 13.23498131 | H89: =AZ89 -> 5 | I89: =BV89 -> 5.734981306 | J89: =CN89 -> 2.5 | K89: =CQ89 -> 1 | L89: =B89-K89 -> 0 | M89: =HYPERLINK(CX89,"Gmaps") -> Gmaps | N89: =IF(Y89>$K$6,"LOPUT","VÄHÄ") -> LOPUT | O89: =IF(S89<40,"Valta",IF(S89<100,"Kanta",IF(S89<1000,"Seutu",IF(S89>999,"Yhdys")))) -> Seutu | P89: Lahdentie | Q89: Orimattila | R89: Päijät-Häme | S89: 167 | T89: 5 | U89: 0 | V89: 5 | W89: 4613 | X89: 4613 | Y89: 7400.774117 | Z89: 399.717971 | AA89: 7370.822241 | AB89: 6967 (21 %), 7519 (79 %) | AC89: PK2 | AD89: PK2 (98 %) | AE89: 50 (32 %), 60 (5 %), 80 (63 %) | AF89: Is (100 %) | AG89: Kivimastiksiasfaltti (98 %) | AH89: 3 | AI89: 7 | AJ89: 0.002818122697 | AK89: 106.3468459 | AN89: Maantie (100 %) | AO89: 0.912100583 | AR89: =+IF(Y89>=$K$6,$F$5,($F$5/($K$6))*Y89) -> 9 | AS89: 483 | AV89: =+IF(AS89>=$L$15,$J$15,IF(AS89<($L$15),AS89*($J$15/($L$15)),)) -> 3 | AW89: 2637 | AX89: =+IF(AW89>=$L$11,$J$11,IF(AW89<($L$11),AW89*($J$11/($L$11)),)) -> 3 | AY89: =SUM(AR89,AV89,AX89) -> 15 | AZ89: =+AY89*$H$5 -> 5 | BA89: =+IF(Z89=0,0,IF(Z89>$K$7,$F$9,($F$9/$K$7)*Z89)) -> 8 | BB89: =IF(DD89>0,$F$10,0) -> 2 | BC89: =IF(DE89>0,$F$11,0) -> 0 | BD89: =IF(DF89>0,$F$12,0) -> 0 | BE89: =IF(DG89>0,$F$13,0) -> 0 | BF89: =IF(DI89>0,$F$14,IF(DH89>0,$F$14/2,0)) -> 1 | BG89: =+IF(DJ89>=$L$19,$J$19,IF(DJ89<($L$19),DJ89*($J$19/($L$19)),)) -> 0.06 | BH89: =+IF(DK89>=$L$20,$J$20,IF(DK89<($L$20),DK89*($J$20/($L$20)),)) -> 0.14 | BI89: =+IF(DL89>=$L$21,$J$21,IF(DL89<($L$21),DL89*($J$21/($L$21)),)) -> 0 | BJ89: =+IF(DM89>=$L$22,$J$22,IF(DM89<($L$22),DM89*($J$22/($L$22)),)) -> 0 | BK89: =IF(DN89>0,$F$16,0) -> 2 | BL89: =+IF(DQ89>=$L$25,$J$25,IF(DQ89<($L$25),DQ89*($J$25/($L$25)),)) -> 1.333333333 | BM89: =IF(EG89>100000,$F$18,IF(EG89>0,$F$18/2,0)) -> 0 | BN89: =IF(ED89>0,$F$19,0) -> 2 | BO89: 1.73102 | BP89: 2.82672 | BQ89: 0.833715 | BR89: 0.393865 | BS89: 9.837908374 | BT89: =IF(COUNTIF($I$29:$L$29,TRUE)=0,0,IF(SUMIF($I$29:$L$29,TRUE,BO89:BR89)/COUNTIF($I$29:$L$29,TRUE)>=$L$30,$F$20/2,$F$20/2*(SUMIF($I$29:$L$29,TRUE,BO89:BR89)/COUNTIF($I$29:$L$29,TRUE)/$L$30)))+IF(BS89>=10,$F$20/2,IF(BS89<(10),BS89*($F$20/2/10))) -> 0.6716105854 | BU89: =SUM(BA89+BB89+BC89+BD89+BE89+BF89+BK89+BG89+BH89+BI89+BJ89+BL89+BM89+BN89+BT89) -> 17.20494392 | BV89: =+BU89*$H$9 -> 5.734981306 | BW89: 4619.889892 | BX89: =BW89/X89 -> 1.001493582 | BY89: =IF(BX89>0,IF(BX89>=$DC$28,$DA$28,IF(BX89<$DC$28,$DA$29,0)),0) -> 1 | BZ89: 4619.889892 | CA89: =BZ89/X89 -> 1.001493582 | CB89: =IF(CA89,$F$23,0) -> 1 | CC89: =IF(DS89>0,$F$24,0) -> 1 | CD89: 2226.271729 | CE89: =CD89/X89 -> 0.4826082222 | CF89: =IF(CE89>0,IF(CE89>=$DC$22,$DA$22,IF(CE89<$DC$28,$DA$23,0)),0) -> 0.5 | CG89: 233.4487318 | CH89: =IF(CG89>0,IF(CG89>=100,$F$26,IF(CG89<100,$F$26/2)),0) -> 1 | CI89: =SUM(DW89) -> 1 | CJ89: =IF(EA89>0,$F$28,0) -> 1 | CK89: =IF(DX89>0,$F$29,0) -> 0 | CL89: =IF(EC89>0,$F$30,0) -> 1 | CM89: =SUM(BY89,CB89,CH89,CC89,CF89,CI89,CJ89,CK89,CL89) -> 7.5 | CN89: =+CM89*$H$22 -> 2.5 | CO89: =SUM(AY89,BU89,CM89) -> 39.70494392 | CP89: =SUM(AZ89,BV89,CN89) -> 13.23498131 | CQ89: =IF(D89<($Z$13*1785),1,IF(D89<(($Z$14+$Z$13)*1785),2,IF(D89<(($Z$15+$Z$13+$Z$14)*1785),3,4))) -> 1 | CR89: =VLOOKUP(C89,Taul1!$F$6:$G$1718,2,FALSE) -> 2 | CX89: https://www.google.com/maps/@60.85017139,25.71227493,3a,75y,90t/data=!3m3!1e1!3m1!2e0 | DA89: 0 | DB89: 0 | DC89: 2 | DD89: =SUM(DA89:DC89) -> 2 | DE89: 0 | DF89: 0 | DG89: 0 | DH89: 3 | DI89: 0 | DJ89: 36 | DK89: 28 | DL89: 0 | DM89: 0 | DN89: 1 | DP89: 4619.889892 | DQ89: 2 | DR89: 0 | DS89: 4 | DT89: 2226.271729 | DU89: =+IF(AA89>$K$8,$F$27/2,0) -> 1 | DV89: =+IF(AA89/Y89>1.5,$F$27/2,0) -> 0 | DW89: =SUM(DU89:DV89) -> 1 | DX89: 0 | DY89: 0 | DZ89: 1 | EA89: =SUM(DY89:DZ89) -> 1 | EC89: 1 | ED89: 1 | EG89: 0
A90: 130_13_0 | B90: 1 | C90: =CONCATENATE(S90,"_",T90) -> 130_13 | D90: =RANK(CP90,$CP$37:$CP$1816) -> 54 | E90: 54 | F90: =E90-D90 -> 0 | G90: =CP90 -> 13.22810296 | H90: =AZ90 -> 5 | I90: =BV90 -> 5.894769625 | J90: =CN90 -> 2.333333333 | K90: =CQ90 -> 1 | L90: =B90-K90 -> 0 | M90: =HYPERLINK(CX90,"Gmaps") -> Gmaps | N90: =IF(Y90>$K$6,"LOPUT","VÄHÄ") -> LOPUT | O90: =IF(S90<40,"Valta",IF(S90<100,"Kanta",IF(S90<1000,"Seutu",IF(S90>999,"Yhdys")))) -> Seutu | P90: Helsingintie | Q90: Hämeenlinna, Janakkala | R90: Kanta-Häme | S90: 130 | T90: 13 | U90: 0 | V90: 13 | W90: 15730 | X90: 15730 | Y90: 3372.895804 | Z90: 247.9642721 | AA90: 3612.766942 | AB90: 2367 (26 %), 3037 (23 %), 3074 (21 %), 3974 (9 %), 4975 (18 %), 5806 (3 %) | AC90: PK2 | AD90: PK2 (100 %) | AE90: 50 (1 %), 60 (12 %), 80 (87 %) | AF90: Is (100 %) | AG90: Asfalttibetoni (100 %) | AH90: 5 | AI90: 10 | AJ90: 0.001907183725 | AK90: 81.19027336 | AN90: Maantie tai katu (100 %) | AO90: 0.1058561377 | AR90: =+IF(Y90>=$K$6,$F$5,($F$5/($K$6))*Y90) -> 9 | AS90: 94 | AV90: =+IF(AS90>=$L$15,$J$15,IF(AS90<($L$15),AS90*($J$15/($L$15)),)) -> 3 | AW90: 2549 | AX90: =+IF(AW90>=$L$11,$J$11,IF(AW90<($L$11),AW90*($J$11/($L$11)),)) -> 3 | AY90: =SUM(AR90,AV90,AX90) -> 15 | AZ90: =+AY90*$H$5 -> 5 | BA90: =+IF(Z90=0,0,IF(Z90>$K$7,$F$9,($F$9/$K$7)*Z90)) -> 8 | BB90: =IF(DD90>0,$F$10,0) -> 2 | BC90: =IF(DE90>0,$F$11,0) -> 1 | BD90: =IF(DF90>0,$F$12,0) -> 0 | BE90: =IF(DG90>0,$F$13,0) -> 0 | BF90: =IF(DI90>0,$F$14,IF(DH90>0,$F$14/2,0)) -> 2 | BG90: =+IF(DJ90>=$L$19,$J$19,IF(DJ90<($L$19),DJ90*($J$19/($L$19)),)) -> 0.2166666667 | BH90: =+IF(DK90>=$L$20,$J$20,IF(DK90<($L$20),DK90*($J$20/($L$20)),)) -> 0.085 | BI90: =+IF(DL90>=$L$21,$J$21,IF(DL90<($L$21),DL90*($J$21/($L$21)),)) -> 0 | BJ90: =+IF(DM90>=$L$22,$J$22,IF(DM90<($L$22),DM90*($J$22/($L$22)),)) -> 0 | BK90: =IF(DN90>0,$F$16,0) -> 0 | BL90: =+IF(DQ90>=$L$25,$J$25,IF(DQ90<($L$25),DQ90*($J$25/($L$25)),)) -> 2 | BM90: =IF(EG90>100000,$F$18,IF(EG90>0,$F$18/2,0)) -> 0 | BN90: =IF(ED90>0,$F$19,0) -> 2 | BO90: 0.401442 | BP90: 0.64643 | BQ90: 1.13404 | BR90: 0.0794372 | BS90: 6.198236187 | BT90: =IF(COUNTIF($I$29:$L$29,TRUE)=0,0,IF(SUMIF($I$29:$L$29,TRUE,BO90:BR90)/COUNTIF($I$29:$L$29,TRUE)>=$L$30,$F$20/2,$F$20/2*(SUMIF($I$29:$L$29,TRUE,BO90:BR90)/COUNTIF($I$29:$L$29,TRUE)/$L$30)))+IF(BS90>=10,$F$20/2,IF(BS90<(10),BS90*($F$20/2/10))) -> 0.3826422093 | BU90: =SUM(BA90+BB90+BC90+BD90+BE90+BF90+BK90+BG90+BH90+BI90+BJ90+BL90+BM90+BN90+BT90) -> 17.68430888 | BV90: =+BU90*$H$9 -> 5.894769625 | BW90: 8992.93142 | BX90: =BW90/X90 -> 0.5717057483 | BY90: =IF(BX90>0,IF(BX90>=$DC$28,$DA$28,IF(BX90<$DC$28,$DA$29,0)),0) -> 1 | BZ90: 15238.62478 | CA90: =BZ90/X90 -> 0.9687619061 | CB90: =IF(CA90,$F$23,0) -> 1 | CC90: =IF(DS90>0,$F$24,0) -> 1 | CD90: 2095.879594 | CE90: =CD90/X90 -> 0.1332409151 | CF90: =IF(CE90>0,IF(CE90>=$DC$22,$DA$22,IF(CE90<$DC$28,$DA$23,0)),0) -> 0.5 | CG90: 34.51366815 | CH90: =IF(CG90>0,IF(CG90>=100,$F$26,IF(CG90<100,$F$26/2)),0) -> 0.5 | CI90: =SUM(DW90) -> 1 | CJ90: =IF(EA90>0,$F$28,0) -> 1 | CK90: =IF(DX90>0,$F$29,0) -> 0 | CL90: =IF(EC90>0,$F$30,0) -> 1 | CM90: =SUM(BY90,CB90,CH90,CC90,CF90,CI90,CJ90,CK90,CL90) -> 7 | CN90: =+CM90*$H$22 -> 2.333333333 | CO90: =SUM(AY90,BU90,CM90) -> 39.68430888 | CP90: =SUM(AZ90,BV90,CN90) -> 13.22810296 | CQ90: =IF(D90<($Z$13*1785),1,IF(D90<(($Z$14+$Z$13)*1785),2,IF(D90<(($Z$15+$Z$13+$Z$14)*1785),3,4))) -> 1 | CR90: =VLOOKUP(C90,Taul1!$F$6:$G$1718,2,FALSE) -> 6 | CX90: https://www.google.com/maps/@60.85191315,24.60246987,3a,75y,90t/data=!3m3!1e1!3m1!2e0 | DA90: 0 | DB90: 1 | DC90: 0 | DD90: =SUM(DA90:DC90) -> 1 | DE90: 9 | DF90: 0 | DG90: 0 | DH90: 17 | DI90: 1 | DJ90: 130 | DK90: 17 | DL90: 0 | DM90: 0 | DN90: 0 | DP90: 8992.93142 | DQ90: 5 | DR90: 0 | DS90: 17 | DT90: 2095.879594 | DU90: =+IF(AA90>$K$8,$F$27/2,0) -> 1 | DV90: =+IF(AA90/Y90>1.5,$F$27/2,0) -> 0 | DW90: =SUM(DU90:DV90) -> 1 | DX90: 0 | DY90: 0 | DZ90: 1 | EA90: =SUM(DY90:DZ90) -> 1 | EC90: 1 | ED90: 2 | EG90: 0
A91: 1125_1_0 | B91: 1 | C91: =CONCATENATE(S91,"_",T91) -> 1125_1 | D91: =RANK(CP91,$CP$37:$CP$1816) -> 55 | E91: 55 | F91: =E91-D91 -> 0 | G91: =CP91 -> 13.22237095 | H91: =AZ91 -> 5 | I91: =BV91 -> 5.88903762 | J91: =CN91 -> 2.333333333 | K91: =CQ91 -> 1 | L91: =B91-K91 -> 0 | M91: =HYPERLINK(CX91,"Gmaps") -> Gmaps | N91: =IF(Y91>$K$6,"LOPUT","VÄHÄ") -> LOPUT | O91: =IF(S91<40,"Valta",IF(S91<100,"Kanta",IF(S91<1000,"Seutu",IF(S91>999,"Yhdys")))) -> Yhdys | P91: Lohjanharjuntie | Q91: Lohja | R91: Uusimaa | S91: 1125 | T91: 1 | U91: 0 | V91: 1 | W91: 6364 | X91: 6364 | Y91: 5584 | Z91: 350 | AA91: 6142 | AB91: 5584 (100 %) | AC91: PK2 | AD91: PK2 (99 %) | AE91: 40 (3 %), 50 (62 %), 60 (33 %) | AF91: Is (99 %) | AG91: Asfalttibetoni (7 %), Kivimastiksiasfaltti (92 %) | AH91: 7 | AI91: 14 | AJ91: 0.07848285923 | AK91: 77 | AN91: Katu (99 %) | AO91: 0.9827163253 | AR91: =+IF(Y91>=$K$6,$F$5,($F$5/($K$6))*Y91) -> 9 | AS91: 186 | AV91: =+IF(AS91>=$L$15,$J$15,IF(AS91<($L$15),AS91*($J$15/($L$15)),)) -> 3 | AW91: 2854 | AX91: =+IF(AW91>=$L$11,$J$11,IF(AW91<($L$11),AW91*($J$11/($L$11)),)) -> 3 | AY91: =SUM(AR91,AV91,AX91) -> 15 | AZ91: =+AY91*$H$5 -> 5 | BA91: =+IF(Z91=0,0,IF(Z91>$K$7,$F$9,($F$9/$K$7)*Z91)) -> 8 | BB91: =IF(DD91>0,$F$10,0) -> 2 | BC91: =IF(DE91>0,$F$11,0) -> 1 | BD91: =IF(DF91>0,$F$12,0) -> 1 | BE91: =IF(DG91>0,$F$13,0) -> 0 | BF91: =IF(DI91>0,$F$14,IF(DH91>0,$F$14/2,0)) -> 1 | BG91: =+IF(DJ91>=$L$19,$J$19,IF(DJ91<($L$19),DJ91*($J$19/($L$19)),)) -> 0.008333333333 | BH91: =+IF(DK91>=$L$20,$J$20,IF(DK91<($L$20),DK91*($J$20/($L$20)),)) -> 0 | BI91: =+IF(DL91>=$L$21,$J$21,IF(DL91<($L$21),DL91*($J$21/($L$21)),)) -> 0 | BJ91: =+IF(DM91>=$L$22,$J$22,IF(DM91<($L$22),DM91*($J$22/($L$22)),)) -> 0 | BK91: =IF(DN91>0,$F$16,0) -> 0 | BL91: =+IF(DQ91>=$L$25,$J$25,IF(DQ91<($L$25),DQ91*($J$25/($L$25)),)) -> 2 | BM91: =IF(EG91>100000,$F$18,IF(EG91>0,$F$18/2,0)) -> 0.5 | BN91: =IF(ED91>0,$F$19,0) -> 2 | BO91: 2.23836 | BP91: 1.5273 | BQ91: 0.262398 | BR91: 0.332228 | BS91: 0.4902185406 | BT91: =IF(COUNTIF($I$29:$L$29,TRUE)=0,0,IF(SUMIF($I$29:$L$29,TRUE,BO91:BR91)/COUNTIF($I$29:$L$29,TRUE)>=$L$30,$F$20/2,$F$20/2*(SUMIF($I$29:$L$29,TRUE,BO91:BR91)/COUNTIF($I$29:$L$29,TRUE)/$L$30)))+IF(BS91>=10,$F$20/2,IF(BS91<(10),BS91*($F$20/2/10))) -> 0.158779527 | BU91: =SUM(BA91+BB91+BC91+BD91+BE91+BF91+BK91+BG91+BH91+BI91+BJ91+BL91+BM91+BN91+BT91) -> 17.66711286 | BV91: =+BU91*$H$9 -> 5.88903762 | BW91: 6309.693584 | BX91: =BW91/X91 -> 0.9914666222 | BY91: =IF(BX91>0,IF(BX91>=$DC$28,$DA$28,IF(BX91<$DC$28,$DA$29,0)),0) -> 1 | BZ91: 6171.590909 | CA91: =BZ91/X91 -> 0.9697660133 | CB91: =IF(CA91,$F$23,0) -> 1 | CC91: =IF(DS91>0,$F$24,0) -> 1 | CD91: 5272.269767 | CE91: =CD91/X91 -> 0.8284521947 | CF91: =IF(CE91>0,IF(CE91>=$DC$22,$DA$22,IF(CE91<$DC$28,$DA$23,0)),0) -> 1 | CG91: 481.433061 | CH91: =IF(CG91>0,IF(CG91>=100,$F$26,IF(CG91<100,$F$26/2)),0) -> 1 | CI91: =SUM(DW91) -> 1 | CJ91: =IF(EA91>0,$F$28,0) -> 0 | CK91: =IF(DX91>0,$F$29,0) -> 0 | CL91: =IF(EC91>0,$F$30,0) -> 1 | CM91: =SUM(BY91,CB91,CH91,CC91,CF91,CI91,CJ91,CK91,CL91) -> 7 | CN91: =+CM91*$H$22 -> 2.333333333 | CO91: =SUM(AY91,BU91,CM91) -> 39.66711286 | CP91: =SUM(AZ91,BV91,CN91) -> 13.22237095 | CQ91: =IF(D91<($Z$13*1785),1,IF(D91<(($Z$14+$Z$13)*1785),2,IF(D91<(($Z$15+$Z$13+$Z$14)*1785),3,4))) -> 1 | CR91: =VLOOKUP(C91,Taul1!$F$6:$G$1718,2,FALSE) -> 1 | CX91: https://www.google.com/maps/@60.27166205,24.11873066,3a,75y,90t/data=!3m3!1e1!3m1!2e0 | DA91: 0 | DB91: 0 | DC91: 2 | DD91: =SUM(DA91:DC91) -> 2 | DE91: 1 | DF91: 1 | DG91: 0 | DH91: 2 | DI91: 0 | DJ91: 5 | DK91: 0 | DL91: 0 | DM91: 0 | DN91: 0 | DP91: 6309.693584 | DQ91: 13 | DR91: 1 | DS91: 23 | DT91: 5272.269767 | DU91: =+IF(AA91>$K$8,$F$27/2,0) -> 1 | DV91: =+IF(AA91/Y91>1.5,$F$27/2,0) -> 0 | DW91: =SUM(DU91:DV91) -> 1 | DX91: 0 | DY91: 0 | DZ91: 0 | EA91: =SUM(DY91:DZ91) -> 0 | EC91: 1 | ED91: 4 | EG91: 11553
A92: 296_1_4899 | B92: 1 | C92: =CONCATENATE(S92,"_",T92) -> 296_1 | D92: =RANK(CP92,$CP$37:$CP$1816) -> 56 | E92: 56 | F92: =E92-D92 -> 0 | G92: =CP92 -> 13.22209958 | H92: =AZ92 -> 5 | I92: =BV92 -> 5.888766249 | J92: =CN92 -> 2.333333333 | K92: =CQ92 -> 1 | L92: =B92-K92 -> 0 | M92: =HYPERLINK(CX92,"Gmaps") -> Gmaps | N92: =IF(Y92>$K$6,"LOPUT","VÄHÄ") -> LOPUT | O92: =IF(S92<40,"Valta",IF(S92<100,"Kanta",IF(S92<1000,"Seutu",IF(S92>999,"Yhdys")))) -> Seutu | P92: Ala-Okeroistentie | Q92: Lahti | R92: Päijät-Häme | S92: 296 | T92: 1 | U92: 4899 | V92: 1 | W92: 6095 | X92: 1196 | Y92: 7974 | Z92: 382 | AA92: 8771 | AB92: 7974 (100 %) | AC92: PK2 | AD92: PK2 (100 %) | AE92: 60 (100 %) | AF92: Is (100 %) | AG92: Asfalttibetoni (20 %), Kivimastiksiasfaltti (76 %) | AH92: 0 | AI92: 1 | AJ92: 0 | AK92: 122 | AN92: Maantie tai katu (20 %) | AO92: 0.9973035687 | AR92: =+IF(Y92>=$K$6,$F$5,($F$5/($K$6))*Y92) -> 9 | AS92: 42 | AV92: =+IF(AS92>=$L$15,$J$15,IF(AS92<($L$15),AS92*($J$15/($L$15)),)) -> 3 | AW92: 2940 | AX92: =+IF(AW92>=$L$11,$J$11,IF(AW92<($L$11),AW92*($J$11/($L$11)),)) -> 3 | AY92: =SUM(AR92,AV92,AX92) -> 15 | AZ92: =+AY92*$H$5 -> 5 | BA92: =+IF(Z92=0,0,IF(Z92>$K$7,$F$9,($F$9/$K$7)*Z92)) -> 8 | BB92: =IF(DD92>0,$F$10,0) -> 2 | BC92: =IF(DE92>0,$F$11,0) -> 1 | BD92: =IF(DF92>0,$F$12,0) -> 1 | BE92: =IF(DG92>0,$F$13,0) -> 0 | BF92: =IF(DI92>0,$F$14,IF(DH92>0,$F$14/2,0)) -> 1 | BG92: =+IF(DJ92>=$L$19,$J$19,IF(DJ92<($L$19),DJ92*($J$19/($L$19)),)) -> 0 | BH92: =+IF(DK92>=$L$20,$J$20,IF(DK92<($L$20),DK92*($J$20/($L$20)),)) -> 0.025 | BI92: =+IF(DL92>=$L$21,$J$21,IF(DL92<($L$21),DL92*($J$21/($L$21)),)) -> 0 | BJ92: =+IF(DM92>=$L$22,$J$22,IF(DM92<($L$22),DM92*($J$22/($L$22)),)) -> 0 | BK92: =IF(DN92>0,$F$16,0) -> 2 | BL92: =+IF(DQ92>=$L$25,$J$25,IF(DQ92<($L$25),DQ92*($J$25/($L$25)),)) -> 2 | BM92: =IF(EG92>100000,$F$18,IF(EG92>0,$F$18/2,0)) -> 0.5 | BN92: =IF(ED92>0,$F$19,0) -> 0 | BO92: 0.47902 | BP92: 0.503582 | BQ92: 0.460768 | BR92: 0.229822 | BS92: 1.863728274 | BT92: =IF(COUNTIF($I$29:$L$29,TRUE)=0,0,IF(SUMIF($I$29:$L$29,TRUE,BO92:BR92)/COUNTIF($I$29:$L$29,TRUE)>=$L$30,$F$20/2,$F$20/2*(SUMIF($I$29:$L$29,TRUE,BO92:BR92)/COUNTIF($I$29:$L$29,TRUE)/$L$30)))+IF(BS92>=10,$F$20/2,IF(BS92<(10),BS92*($F$20/2/10))) -> 0.141298747 | BU92: =SUM(BA92+BB92+BC92+BD92+BE92+BF92+BK92+BG92+BH92+BI92+BJ92+BL92+BM92+BN92+BT92) -> 17.66629875 | BV92: =+BU92*$H$9 -> 5.888766249 | BW92: 1199.732023 | BX92: =BW92/X92 -> 1.003120421 | BY92: =IF(BX92>0,IF(BX92>=$DC$28,$DA$28,IF(BX92<$DC$28,$DA$29,0)),0) -> 1 | BZ92: 418.9199582 | CA92: =BZ92/X92 -> 0.3502675236 | CB92: =IF(CA92,$F$23,0) -> 1 | CC92: =IF(DS92>0,$F$24,0) -> 1 | CD92: 680.8062803 | CE92: =CD92/X92 -> 0.5692360203 | CF92: =IF(CE92>0,IF(CE92>=$DC$22,$DA$22,IF(CE92<$DC$28,$DA$23,0)),0) -> 1 | CG92: 102.4916388 | CH92: =IF(CG92>0,IF(CG92>=100,$F$26,IF(CG92<100,$F$26/2)),0) -> 1 | CI92: =SUM(DW92) -> 1 | CJ92: =IF(EA92>0,$F$28,0) -> 0 | CK92: =IF(DX92>0,$F$29,0) -> 0 | CL92: =IF(EC92>0,$F$30,0) -> 1 | CM92: =SUM(BY92,CB92,CH92,CC92,CF92,CI92,CJ92,CK92,CL92) -> 7 | CN92: =+CM92*$H$22 -> 2.333333333 | CO92: =SUM(AY92,BU92,CM92) -> 39.66629875 | CP92: =SUM(AZ92,BV92,CN92) -> 13.22209958 | CQ92: =IF(D92<($Z$13*1785),1,IF(D92<(($Z$14+$Z$13)*1785),2,IF(D92<(($Z$15+$Z$13+$Z$14)*1785),3,4))) -> 1 | CR92: =VLOOKUP(C92,Taul1!$F$6:$G$1718,2,FALSE) -> 1 | CX92: https://www.google.com/maps/@60.9514363,25.59775486,3a,75y,90t/data=!3m3!1e1!3m1!2e0 | DA92: 0 | DB92: 0 | DC92: 1 | DD92: =SUM(DA92:DC92) -> 1 | DE92: 5 | DF92: 1 | DG92: 0 | DH92: 1 | DI92: 0 | DJ92: 0 | DK92: 5 | DL92: 0 | DM92: 0 | DN92: 2 | DP92: 1199.732023 | DQ92: 7 | DR92: 1 | DS92: 33 | DT92: 680.8062803 | DU92: =+IF(AA92>$K$8,$F$27/2,0) -> 1 | DV92: =+IF(AA92/Y92>1.5,$F$27/2,0) -> 0 | DW92: =SUM(DU92:DV92) -> 1 | DX92: 0 | DY92: 0 | DZ92: 0 | EA92: =SUM(DY92:DZ92) -> 0 | EC92: 1 | ED92: 0 | EG92: 10992
A93: 312_3_0 | B93: 1 | C93: =CONCATENATE(S93,"_",T93) -> 312_3 | D93: =RANK(CP93,$CP$37:$CP$1816) -> 57 | E93: 57 | F93: =E93-D93 -> 0 | G93: =CP93 -> 13.21753887 | H93: =AZ93 -> 5 | I93: =BV93 -> 5.884205536 | J93: =CN93 -> 2.333333333 | K93: =CQ93 -> 1 | L93: =B93-K93 -> 0 | M93: =HYPERLINK(CX93,"Gmaps") -> Gmaps | N93: =IF(Y93>$K$6,"LOPUT","VÄHÄ") -> LOPUT | O93: =IF(S93<40,"Valta",IF(S93<100,"Kanta",IF(S93<1000,"Seutu",IF(S93>999,"Yhdys")))) -> Seutu | P93: Hedelmätie, Kouvolantie, Vaakatie | Q93: Lahti | R93: Päijät-Häme | S93: 312 | T93: 3 | U93: 0 | V93: 3 | W93: 5809 | X93: 5809 | Y93: 4054.44827 | Z93: 236.2936822 | AA93: 4151.553624 | AB93: 2440 (52 %), 4601 (21 %), 6694 (27 %) | AC93: PK2 | AD93: PK2 (100 %) | AE93: 50 (92 %), 60 (8 %) | AF93: Is (100 %) | AG93: Asfalttibetoni (45 %), Kivimastiksiasfaltti (54 %) | AH93: 2 | AI93: 7 | AJ93: 0.511310815 | AK93: 103.2602858 | AN93: Katu (100 %) | AO93: 0.5231282852 | AR93: =+IF(Y93>=$K$6,$F$5,($F$5/($K$6))*Y93) -> 9 | AS93: 622 | AV93: =+IF(AS93>=$L$15,$J$15,IF(AS93<($L$15),AS93*($J$15/($L$15)),)) -> 3 | AW93: 3441 | AX93: =+IF(AW93>=$L$11,$J$11,IF(AW93<($L$11),AW93*($J$11/($L$11)),)) -> 3 | AY93: =SUM(AR93,AV93,AX93) -> 15 | AZ93: =+AY93*$H$5 -> 5 | BA93: =+IF(Z93=0,0,IF(Z93>$K$7,$F$9,($F$9/$K$7)*Z93)) -> 8 | BB93: =IF(DD93>0,$F$10,0) -> 2 | BC93: =IF(DE93>0,$F$11,0) -> 0 | BD93: =IF(DF93>0,$F$12,0) -> 1 | BE93: =IF(DG93>0,$F$13,0) -> 0 | BF93: =IF(DI93>0,$F$14,IF(DH93>0,$F$14/2,0)) -> 2 | BG93: =+IF(DJ93>=$L$19,$J$19,IF(DJ93<($L$19),DJ93*($J$19/($L$19)),)) -> 0 | BH93: =+IF(DK93>=$L$20,$J$20,IF(DK93<($L$20),DK93*($J$20/($L$20)),)) -> 0 | BI93: =+IF(DL93>=$L$21,$J$21,IF(DL93<($L$21),DL93*($J$21/($L$21)),)) -> 0 | BJ93: =+IF(DM93>=$L$22,$J$22,IF(DM93<($L$22),DM93*($J$22/($L$22)),)) -> 0 | BK93: =IF(DN93>0,$F$16,0) -> 0 | BL93: =+IF(DQ93>=$L$25,$J$25,IF(DQ93<($L$25),DQ93*($J$25/($L$25)),)) -> 2 | BM93: =IF(EG93>100000,$F$18,IF(EG93>0,$F$18/2,0)) -> 0.5 | BN93: =IF(ED93>0,$F$19,0) -> 2 | BO93: 0.649282 | BP93: 0.716511 | BQ93: 0.842512 | BR93: 0.676741 | BS93: 1.580128845 | BT93: =IF(COUNTIF($I$29:$L$29,TRUE)=0,0,IF(SUMIF($I$29:$L$29,TRUE,BO93:BR93)/COUNTIF($I$29:$L$29,TRUE)>=$L$30,$F$20/2,$F$20/2*(SUMIF($I$29:$L$29,TRUE,BO93:BR93)/COUNTIF($I$29:$L$29,TRUE)/$L$30)))+IF(BS93>=10,$F$20/2,IF(BS93<(10),BS93*($F$20/2/10))) -> 0.1526166089 | BU93: =SUM(BA93+BB93+BC93+BD93+BE93+BF93+BK93+BG93+BH93+BI93+BJ93+BL93+BM93+BN93+BT93) -> 17.65261661 | BV93: =+BU93*$H$9 -> 5.884205536 | BW93: 5794.471508 | BX93: =BW93/X93 -> 0.9974989685 | BY93: =IF(BX93>0,IF(BX93>=$DC$28,$DA$28,IF(BX93<$DC$28,$DA$29,0)),0) -> 1 | BZ93: 5794.471508 | CA93: =BZ93/X93 -> 0.9974989685 | CB93: =IF(CA93,$F$23,0) -> 1 | CC93: =IF(DS93>0,$F$24,0) -> 1 | CD93: 5782.962394 | CE93: =CD93/X93 -> 0.9955177128 | CF93: =IF(CE93>0,IF(CE93>=$DC$22,$DA$22,IF(CE93<$DC$28,$DA$23,0)),0) -> 1 | CG93: 673.9894991 | CH93: =IF(CG93>0,IF(CG93>=100,$F$26,IF(CG93<100,$F$26/2)),0) -> 1 | CI93: =SUM(DW93) -> 1 | CJ93: =IF(EA93>0,$F$28,0) -> 0 | CK93: =IF(DX93>0,$F$29,0) -> 0 | CL93: =IF(EC93>0,$F$30,0) -> 1 | CM93: =SUM(BY93,CB93,CH93,CC93,CF93,CI93,CJ93,CK93,CL93) -> 7 | CN93: =+CM93*$H$22 -> 2.333333333 | CO93: =SUM(AY93,BU93,CM93) -> 39.65261661 | CP93: =SUM(AZ93,BV93,CN93) -> 13.21753887 | CQ93: =IF(D93<($Z$13*1785),1,IF(D93<(($Z$14+$Z$13)*1785),2,IF(D93<(($Z$15+$Z$13+$Z$14)*1785),3,4))) -> 1 | CR93: =VLOOKUP(C93,Taul1!$F$6:$G$1718,2,FALSE) -> 3 | CX93: https://www.google.com/maps/@60.947405,25.90671282,3a,75y,90t/data=!3m3!1e1!3m1!2e0 | DA93: 0 | DB93: 0 | DC93: 7 | DD93: =SUM(DA93:DC93) -> 7 | DE93: 0 | DF93: 1 | DG93: 0 | DH93: 3 | DI93: 1 | DJ93: 0 | DK93: 0 | DL93: 0 | DM93: 0 | DN93: 0 | DP93: 5794.471508 | DQ93: 8 | DR93: 1 | DS93: 13 | DT93: 5782.962394 | DU93: =+IF(AA93>$K$8,$F$27/2,0) -> 1 | DV93: =+IF(AA93/Y93>1.5,$F$27/2,0) -> 0 | DW93: =SUM(DU93:DV93) -> 1 | DX93: 0 | DY93: 0 | DZ93: 0 | EA93: =SUM(DY93:DZ93) -> 0 | EC93: 1 | ED93: 1 | EG93: 10800
A94: 1311_4_117 | B94: 1 | C94: =CONCATENATE(S94,"_",T94) -> 1311_4 | D94: =RANK(CP94,$CP$37:$CP$1816) -> 58 | E94: 58 | F94: =E94-D94 -> 0 | G94: =CP94 -> 13.2162558 | H94: =AZ94 -> 5 | I94: =BV94 -> 5.716255802 | J94: =CN94 -> 2.5 | K94: =CQ94 -> 1 | L94: =B94-K94 -> 0 | M94: =HYPERLINK(CX94,"Gmaps") -> Gmaps | N94: =IF(Y94>$K$6,"LOPUT","VÄHÄ") -> LOPUT | O94: =IF(S94<40,"Valta",IF(S94<100,"Kanta",IF(S94<1000,"Seutu",IF(S94>999,"Yhdys")))) -> Yhdys | P94: Rajamäentie | Q94: Nurmijärvi | R94: Uusimaa | S94: 1311 | T94: 4 | U94: 943 | V94: 4 | W94: 2096 | X94: 1153 | Y94: 5682 | Z94: 326 | AA94: 6250 | AB94: 5682 (100 %) | AC94: PK2 | AD94: PK2 (99 %) | AE94: 50 (58 %), 60 (41 %) | AF94: Is (99 %) | AG94: Asfalttibetoni (98 %) | AH94: 0 | AI94: 2 | AJ94: 0.08026755853 | AK94: 137 | AN94: Katu (93 %) | AO94: 0.7996530789 | AR94: =+IF(Y94>=$K$6,$F$5,($F$5/($K$6))*Y94) -> 9 | AS94: 78 | AV94: =+IF(AS94>=$L$15,$J$15,IF(AS94<($L$15),AS94*($J$15/($L$15)),)) -> 3 | AW94: 1526 | AX94: =+IF(AW94>=$L$11,$J$11,IF(AW94<($L$11),AW94*($J$11/($L$11)),)) -> 3 | AY94: =SUM(AR94,AV94,AX94) -> 15 | AZ94: =+AY94*$H$5 -> 5 | BA94: =+IF(Z94=0,0,IF(Z94>$K$7,$F$9,($F$9/$K$7)*Z94)) -> 8 | BB94: =IF(DD94>0,$F$10,0) -> 0 | BC94: =IF(DE94>0,$F$11,0) -> 1 | BD94: =IF(DF94>0,$F$12,0) -> 0 | BE94: =IF(DG94>0,$F$13,0) -> 0 | BF94: =IF(DI94>0,$F$14,IF(DH94>0,$F$14/2,0)) -> 2 | BG94: =+IF(DJ94>=$L$19,$J$19,IF(DJ94<($L$19),DJ94*($J$19/($L$19)),)) -> 0 | BH94: =+IF(DK94>=$L$20,$J$20,IF(DK94<($L$20),DK94*($J$20/($L$20)),)) -> 0 | BI94: =+IF(DL94>=$L$21,$J$21,IF(DL94<($L$21),DL94*($J$21/($L$21)),)) -> 0 | BJ94: =+IF(DM94>=$L$22,$J$22,IF(DM94<($L$22),DM94*($J$22/($L$22)),)) -> 0 | BK94: =IF(DN94>0,$F$16,0) -> 2 | BL94: =+IF(DQ94>=$L$25,$J$25,IF(DQ94<($L$25),DQ94*($J$25/($L$25)),)) -> 2 | BM94: =IF(EG94>100000,$F$18,IF(EG94>0,$F$18/2,0)) -> 0 | BN94: =IF(ED94>0,$F$19,0) -> 2 | BO94: 0.557229 | BP94: 0.789503 | BQ94: 1.39646 | BR94: 0.389068 | BS94: 1.146553449 | BT94: =IF(COUNTIF($I$29:$L$29,TRUE)=0,0,IF(SUMIF($I$29:$L$29,TRUE,BO94:BR94)/COUNTIF($I$29:$L$29,TRUE)>=$L$30,$F$20/2,$F$20/2*(SUMIF($I$29:$L$29,TRUE,BO94:BR94)/COUNTIF($I$29:$L$29,TRUE)/$L$30)))+IF(BS94>=10,$F$20/2,IF(BS94<(10),BS94*($F$20/2/10))) -> 0.1487674058 | BU94: =SUM(BA94+BB94+BC94+BD94+BE94+BF94+BK94+BG94+BH94+BI94+BJ94+BL94+BM94+BN94+BT94) -> 17.14876741 | BV94: =+BU94*$H$9 -> 5.716255802 | BW94: 1127 | BX94: =BW94/X94 -> 0.9774501301 | BY94: =IF(BX94>0,IF(BX94>=$DC$28,$DA$28,IF(BX94<$DC$28,$DA$29,0)),0) -> 1 | BZ94: 1127 | CA94: =BZ94/X94 -> 0.9774501301 | CB94: =IF(CA94,$F$23,0) -> 1 | CC94: =IF(DS94>0,$F$24,0) -> 1 | CD94: 448 | CE94: =CD94/X94 -> 0.3885516045 | CF94: =IF(CE94>0,IF(CE94>=$DC$22,$DA$22,IF(CE94<$DC$28,$DA$23,0)),0) -> 0.5 | CG94: 297.2713492 | CH94: =IF(CG94>0,IF(CG94>=100,$F$26,IF(CG94<100,$F$26/2)),0) -> 1 | CI94: =SUM(DW94) -> 1 | CJ94: =IF(EA94>0,$F$28,0) -> 1 | CK94: =IF(DX94>0,$F$29,0) -> 0 | CL94: =IF(EC94>0,$F$30,0) -> 1 | CM94: =SUM(BY94,CB94,CH94,CC94,CF94,CI94,CJ94,CK94,CL94) -> 7.5 | CN94: =+CM94*$H$22 -> 2.5 | CO94: =SUM(AY94,BU94,CM94) -> 39.64876741 | CP94: =SUM(AZ94,BV94,CN94) -> 13.2162558 | CQ94: =IF(D94<($Z$13*1785),1,IF(D94<(($Z$14+$Z$13)*1785),2,IF(D94<(($Z$15+$Z$13+$Z$14)*1785),3,4))) -> 1 | CR94: =VLOOKUP(C94,Taul1!$F$6:$G$1718,2,FALSE) -> 1 | CX94: https://www.google.com/maps/@60.5285414,24.74898537,3a,75y,90t/data=!3m3!1e1!3m1!2e0 | DA94: 0 | DB94: 0 | DC94: 0 | DD94: =SUM(DA94:DC94) -> 0 | DE94: 1 | DF94: 0 | DG94: 0 | DH94: 1 | DI94: 3 | DJ94: 0 | DK94: 0 | DL94: 0 | DM94: 0 | DN94: 1 | DP94: 1952.652157 | DQ94: 5 | DR94: 0 | DS94: 17 | DT94: 1274.023876 | DU94: =+IF(AA94>$K$8,$F$27/2,0) -> 1 | DV94: =+IF(AA94/Y94>1.5,$F$27/2,0) -> 0 | DW94: =SUM(DU94:DV94) -> 1 | DX94: 0 | DY94: 0 | DZ94: 1 | EA94: =SUM(DY94:DZ94) -> 1 | EC94: 1 | ED94: 2 | EG94: 0
A95: 145_4_0 | B95: 1 | C95: =CONCATENATE(S95,"_",T95) -> 145_4 | D95: =RANK(CP95,$CP$37:$CP$1816) -> 59 | E95: 59 | F95: =E95-D95 -> 0 | G95: =CP95 -> 13.19728596 | H95: =AZ95 -> 4.55 | I95: =BV95 -> 6.313952631 | J95: =CN95 -> 2.333333333 | K95: =CQ95 -> 1 | L95: =B95-K95 -> 0 | M95: =HYPERLINK(CX95,"Gmaps") -> Gmaps | N95: =IF(Y95>$K$6,"LOPUT","VÄHÄ") -> LOPUT | O95: =IF(S95<40,"Valta",IF(S95<100,"Kanta",IF(S95<1000,"Seutu",IF(S95>999,"Yhdys")))) -> Seutu | P95: Pohjoisväylä | Q95: Järvenpää, Tuusula | R95: Uusimaa | S95: 145 | T95: 4 | U95: 0 | V95: 4 | W95: 1129 | X95: 1129 | Y95: 10325.95571 | Z95: 381.7023915 | AA95: 10183.21169 | AB95: 6116 (53 %), 15084 (47 %) | AC95: PK2 | AD95: PK2 (92 %) | AE95: 60 (99 %) | AF95: Ise (99 %) | AG95: Asfalttibetoni (14 %), Kivimastiksiasfaltti (85 %) | AH95: 2 | AI95: 6 | AJ95: 0 | AK95: 138.2914083 | AN95: Katu (99 %) | AO95: 0.8497425262 | AR95: =+IF(Y95>=$K$6,$F$5,($F$5/($K$6))*Y95) -> 9 | AS95: 22 | AV95: =+IF(AS95>=$L$15,$J$15,IF(AS95<($L$15),AS95*($J$15/($L$15)),)) -> 1.65 | AW95: 12557 | AX95: =+IF(AW95>=$L$11,$J$11,IF(AW95<($L$11),AW95*($J$11/($L$11)),)) -> 3 | AY95: =SUM(AR95,AV95,AX95) -> 13.65 | AZ95: =+AY95*$H$5 -> 4.55 | BA95: =+IF(Z95=0,0,IF(Z95>$K$7,$F$9,($F$9/$K$7)*Z95)) -> 8 | BB95: =IF(DD95>0,$F$10,0) -> 0 | BC95: =IF(DE95>0,$F$11,0) -> 1 | BD95: =IF(DF95>0,$F$12,0) -> 1 | BE95: =IF(DG95>0,$F$13,0) -> 0 | BF95: =IF(DI95>0,$F$14,IF(DH95>0,$F$14/2,0)) -> 2 | BG95: =+IF(DJ95>=$L$19,$J$19,IF(DJ95<($L$19),DJ95*($J$19/($L$19)),)) -> 0.2166666667 | BH95: =+IF(DK95>=$L$20,$J$20,IF(DK95<($L$20),DK95*($J$20/($L$20)),)) -> 0.075 | BI95: =+IF(DL95>=$L$21,$J$21,IF(DL95<($L$21),DL95*($J$21/($L$21)),)) -> 0 | BJ95: =+IF(DM95>=$L$22,$J$22,IF(DM95<($L$22),DM95*($J$22/($L$22)),)) -> 0 | BK95: =IF(DN95>0,$F$16,0) -> 2 | BL95: =+IF(DQ95>=$L$25,$J$25,IF(DQ95<($L$25),DQ95*($J$25/($L$25)),)) -> 2 | BM95: =IF(EG95>100000,$F$18,IF(EG95>0,$F$18/2,0)) -> 0.5 | BN95: =IF(ED95>0,$F$19,0) -> 2 | BO95: 2.10399 | BP95: 0.88625 | BQ95: 0.473349 | BR95: 0.143748 | BS95: 0.6947651776 | BT95: =IF(COUNTIF($I$29:$L$29,TRUE)=0,0,IF(SUMIF($I$29:$L$29,TRUE,BO95:BR95)/COUNTIF($I$29:$L$29,TRUE)>=$L$30,$F$20/2,$F$20/2*(SUMIF($I$29:$L$29,TRUE,BO95:BR95)/COUNTIF($I$29:$L$29,TRUE)/$L$30)))+IF(BS95>=10,$F$20/2,IF(BS95<(10),BS95*($F$20/2/10))) -> 0.1501912255 | BU95: =SUM(BA95+BB95+BC95+BD95+BE95+BF95+BK95+BG95+BH95+BI95+BJ95+BL95+BM95+BN95+BT95) -> 18.94185789 | BV95: =+BU95*$H$9 -> 6.313952631 | BW95: 1121.146399 | BX95: =BW95/X95 -> 0.9930437543 | BY95: =IF(BX95>0,IF(BX95>=$DC$28,$DA$28,IF(BX95<$DC$28,$DA$29,0)),0) -> 1 | BZ95: 664.4059836 | CA95: =BZ95/X95 -> 0.5884906852 | CB95: =IF(CA95,$F$23,0) -> 1 | CC95: =IF(DS95>0,$F$24,0) -> 1 | CD95: 424.5976831 | CE95: =CD95/X95 -> 0.3760829788 | CF95: =IF(CE95>0,IF(CE95>=$DC$22,$DA$22,IF(CE95<$DC$28,$DA$23,0)),0) -> 0.5 | CG95: 15.58901683 | CH95: =IF(CG95>0,IF(CG95>=100,$F$26,IF(CG95<100,$F$26/2)),0) -> 0.5 | CI95: =SUM(DW95) -> 1 | CJ95: =IF(EA95>0,$F$28,0) -> 0 | CK95: =IF(DX95>0,$F$29,0) -> 1 | CL95: =IF(EC95>0,$F$30,0) -> 1 | CM95: =SUM(BY95,CB95,CH95,CC95,CF95,CI95,CJ95,CK95,CL95) -> 7 | CN95: =+CM95*$H$22 -> 2.333333333 | CO95: =SUM(AY95,BU95,CM95) -> 39.59185789 | CP95: =SUM(AZ95,BV95,CN95) -> 13.19728596 | CQ95: =IF(D95<($Z$13*1785),1,IF(D95<(($Z$14+$Z$13)*1785),2,IF(D95<(($Z$15+$Z$13+$Z$14)*1785),3,4))) -> 1 | CR95: =VLOOKUP(C95,Taul1!$F$6:$G$1718,2,FALSE) -> 2 | CX95: https://www.google.com/maps/@60.45590045,25.11742637,3a,75y,90t/data=!3m3!1e1!3m1!2e0 | DA95: 0 | DB95: 0 | DC95: 0 | DD95: =SUM(DA95:DC95) -> 0 | DE95: 6 | DF95: 5 | DG95: 0 | DH95: 14 | DI95: 4 | DJ95: 130 | DK95: 15 | DL95: 0 | DM95: 0 | DN95: 3 | DP95: 1121.146399 | DQ95: 14 | DR95: 2 | DS95: 14 | DT95: 424.5976831 | DU95: =+IF(AA95>$K$8,$F$27/2,0) -> 1 | DV95: =+IF(AA95/Y95>1.5,$F$27/2,0) -> 0 | DW95: =SUM(DU95:DV95) -> 1 | DX95: 2 | DY95: 0 | DZ95: 0 | EA95: =SUM(DY95:DZ95) -> 0 | EC95: 1 | ED95: 16 | EG95: 90767
A96: 120_7_0 | B96: 1 | C96: =CONCATENATE(S96,"_",T96) -> 120_7 | D96: =RANK(CP96,$CP$37:$CP$1816) -> 60 | E96: 60 | F96: =E96-D96 -> 0 | G96: =CP96 -> 13.18740308 | H96: =AZ96 -> 5 | I96: =BV96 -> 5.854069743 | J96: =CN96 -> 2.333333333 | K96: =CQ96 -> 1 | L96: =B96-K96 -> 0 | M96: =HYPERLINK(CX96,"Gmaps") -> Gmaps | N96: =IF(Y96>$K$6,"LOPUT","VÄHÄ") -> LOPUT | O96: =IF(S96<40,"Valta",IF(S96<100,"Kanta",IF(S96<1000,"Seutu",IF(S96>999,"Yhdys")))) -> Seutu | P96: Vanha Porintie | Q96: Vihti | R96: Uusimaa | S96: 120 | T96: 7 | U96: 0 | V96: 7 | W96: 8835 | X96: 8835 | Y96: 3078.808149 | Z96: 219.9642332 | AA96: 3582.411545 | AB96: 2274 (38 %), 3564 (62 %) | AC96: PK1 | AD96: PK1 (100 %) | AE96: 60 (14 %), 70 (21 %), 80 (65 %) | AF96: Is (100 %) | AG96: Asfalttibetoni (100 %) | AH96: 5 | AI96: 10 | AJ96: 0.05448620022 | AK96: 80.11046972 | AN96: Maantie tai katu (100 %) | AO96: 0 | AR96: =+IF(Y96>=$K$6,$F$5,($F$5/($K$6))*Y96) -> 9 | AS96: 62 | AV96: =+IF(AS96>=$L$15,$J$15,IF(AS96<($L$15),AS96*($J$15/($L$15)),)) -> 3 | AW96: 1061 | AX96: =+IF(AW96>=$L$11,$J$11,IF(AW96<($L$11),AW96*($J$11/($L$11)),)) -> 3 | AY96: =SUM(AR96,AV96,AX96) -> 15 | AZ96: =+AY96*$H$5 -> 5 | BA96: =+IF(Z96=0,0,IF(Z96>$K$7,$F$9,($F$9/$K$7)*Z96)) -> 8 | BB96: =IF(DD96>0,$F$10,0) -> 2 | BC96: =IF(DE96>0,$F$11,0) -> 1 | BD96: =IF(DF96>0,$F$12,0) -> 0 | BE96: =IF(DG96>0,$F$13,0) -> 0 | BF96: =IF(DI96>0,$F$14,IF(DH96>0,$F$14/2,0)) -> 2 | BG96: =+IF(DJ96>=$L$19,$J$19,IF(DJ96<($L$19),DJ96*($J$19/($L$19)),)) -> 0.2566666667 | BH96: =+IF(DK96>=$L$20,$J$20,IF(DK96<($L$20),DK96*($J$20/($L$20)),)) -> 0.07 | BI96: =+IF(DL96>=$L$21,$J$21,IF(DL96<($L$21),DL96*($J$21/($L$21)),)) -> 0 | BJ96: =+IF(DM96>=$L$22,$J$22,IF(DM96<($L$22),DM96*($J$22/($L$22)),)) -> 0 | BK96: =IF(DN96>0,$F$16,0) -> 0 | BL96: =+IF(DQ96>=$L$25,$J$25,IF(DQ96<($L$25),DQ96*($J$25/($L$25)),)) -> 2 | BM96: =IF(EG96>100000,$F$18,IF(EG96>0,$F$18/2,0)) -> 0 | BN96: =IF(ED96>0,$F$19,0) -> 2 | BO96: 0.401722 | BP96: 0.451238 | BQ96: 0.857384 | BR96: 0.407218 | BS96: 3.570621931 | BT96: =IF(COUNTIF($I$29:$L$29,TRUE)=0,0,IF(SUMIF($I$29:$L$29,TRUE,BO96:BR96)/COUNTIF($I$29:$L$29,TRUE)>=$L$30,$F$20/2,$F$20/2*(SUMIF($I$29:$L$29,TRUE,BO96:BR96)/COUNTIF($I$29:$L$29,TRUE)/$L$30)))+IF(BS96>=10,$F$20/2,IF(BS96<(10),BS96*($F$20/2/10))) -> 0.2355425632 | BU96: =SUM(BA96+BB96+BC96+BD96+BE96+BF96+BK96+BG96+BH96+BI96+BJ96+BL96+BM96+BN96+BT96) -> 17.56220923 | BV96: =+BU96*$H$9 -> 5.854069743 | BW96: 5527.761288 | BX96: =BW96/X96 -> 0.6256662465 | BY96: =IF(BX96>0,IF(BX96>=$DC$28,$DA$28,IF(BX96<$DC$28,$DA$29,0)),0) -> 1 | BZ96: 8623.379421 | CA96: =BZ96/X96 -> 0.9760474727 | CB96: =IF(CA96,$F$23,0) -> 1 | CC96: =IF(DS96>0,$F$24,0) -> 1 | CD96: 2408.583686 | CE96: =CD96/X96 -> 0.2726184138 | CF96: =IF(CE96>0,IF(CE96>=$DC$22,$DA$22,IF(CE96<$DC$28,$DA$23,0)),0) -> 0.5 | CG96: 57.20430108 | CH96: =IF(CG96>0,IF(CG96>=100,$F$26,IF(CG96<100,$F$26/2)),0) -> 0.5 | CI96: =SUM(DW96) -> 1 | CJ96: =IF(EA96>0,$F$28,0) -> 0 | CK96: =IF(DX96>0,$F$29,0) -> 1 | CL96: =IF(EC96>0,$F$30,0) -> 1 | CM96: =SUM(BY96,CB96,CH96,CC96,CF96,CI96,CJ96,CK96,CL96) -> 7 | CN96: =+CM96*$H$22 -> 2.333333333 | CO96: =SUM(AY96,BU96,CM96) -> 39.56220923 | CP96: =SUM(AZ96,BV96,CN96) -> 13.18740308 | CQ96: =IF(D96<($Z$13*1785),1,IF(D96<(($Z$14+$Z$13)*1785),2,IF(D96<(($Z$15+$Z$13+$Z$14)*1785),3,4))) -> 1 | CR96: =VLOOKUP(C96,Taul1!$F$6:$G$1718,2,FALSE) -> 2 | CX96: https://www.google.com/maps/@60.37869066,24.52018142,3a,75y,90t/data=!3m3!1e1!3m1!2e0 | DA96: 0 | DB96: 0 | DC96: 5 | DD96: =SUM(DA96:DC96) -> 5 | DE96: 1 | DF96: 0 | DG96: 0 | DH96: 9 | DI96: 1 | DJ96: 154 | DK96: 14 | DL96: 0 | DM96: 0 | DN96: 0 | DP96: 5527.761288 | DQ96: 5 | DR96: 0 | DS96: 13 | DT96: 2408.583686 | DU96: =+IF(AA96>$K$8,$F$27/2,0) -> 1 | DV96: =+IF(AA96/Y96>1.5,$F$27/2,0) -> 0 | DW96: =SUM(DU96:DV96) -> 1 | DX96: 4 | DY96: 0 | DZ96: 0 | EA96: =SUM(DY96:DZ96) -> 0 | EC96: 1 | ED96: 1 | EG96: 0
A97: 10_14_0 | B97: 1 | C97: =CONCATENATE(S97,"_",T97) -> 10_14 | D97: =RANK(CP97,$CP$37:$CP$1816) -> 61 | E97: 61 | F97: =E97-D97 -> 0 | G97: =CP97 -> 13.1785 | H97: =AZ97 -> 4.275 | I97: =BV97 -> 6.9035 | J97: =CN97 -> 2 | K97: =CQ97 -> 1 | L97: =B97-K97 -> 0 | M97: =HYPERLINK(CX97,"Gmaps") -> Gmaps | N97: =IF(Y97>$K$6,"LOPUT","VÄHÄ") -> LOPUT | O97: =IF(S97<40,"Valta",IF(S97<100,"Kanta",IF(S97<1000,"Seutu",IF(S97>999,"Yhdys")))) -> Valta | P97: Turun Valtatie | Q97: Jokioinen | R97: Kanta-Häme | S97: 10 | T97: 14 | U97: 0 | V97: 14 | W97: 6742 | X97: 6742 | Y97: 5347.698012 | Z97: 706.5458321 | AA97: 6110.738208 | AB97: 5080 (57 %), 5700 (43 %) | AC97: PK1 | AD97: PK1 (100 %) | AE97: 80 (4 %), 100 (96 %) | AF97: Is (100 %) | AG97: Asfalttibetoni (38 %), Kivimastiksiasfaltti (62 %) | AH97: 1 | AI97: 7 | AJ97: 0 | AK97: 438.0020765 | AN97: Maantie (100 %) | AO97: 0.02759170238 | AR97: =+IF(Y97>=$K$6,$F$5,($F$5/($K$6))*Y97) -> 9 | AS97: 11 | AV97: =+IF(AS97>=$L$15,$J$15,IF(AS97<($L$15),AS97*($J$15/($L$15)),)) -> 0.825 | AW97: 2188 | AX97: =+IF(AW97>=$L$11,$J$11,IF(AW97<($L$11),AW97*($J$11/($L$11)),)) -> 3 | AY97: =SUM(AR97,AV97,AX97) -> 12.825 | AZ97: =+AY97*$H$5 -> 4.275 | BA97: =+IF(Z97=0,0,IF(Z97>$K$7,$F$9,($F$9/$K$7)*Z97)) -> 8 | BB97: =IF(DD97>0,$F$10,0) -> 2 | BC97: =IF(DE97>0,$F$11,0) -> 1 | BD97: =IF(DF97>0,$F$12,0) -> 1 | BE97: =IF(DG97>0,$F$13,0) -> 0 | BF97: =IF(DI97>0,$F$14,IF(DH97>0,$F$14/2,0)) -> 1 | BG97: =+IF(DJ97>=$L$19,$J$19,IF(DJ97<($L$19),DJ97*($J$19/($L$19)),)) -> 0.24 | BH97: =+IF(DK97>=$L$20,$J$20,IF(DK97<($L$20),DK97*($J$20/($L$20)),)) -> 0.185 | BI97: =+IF(DL97>=$L$21,$J$21,IF(DL97<($L$21),DL97*($J$21/($L$21)),)) -> 0.2855 | BJ97: =+IF(DM97>=$L$22,$J$22,IF(DM97<($L$22),DM97*($J$22/($L$22)),)) -> 0 | BK97: =IF(DN97>0,$F$16,0) -> 2 | BL97: =+IF(DQ97>=$L$25,$J$25,IF(DQ97<($L$25),DQ97*($J$25/($L$25)),)) -> 2 | BM97: =IF(EG97>100000,$F$18,IF(EG97>0,$F$18/2,0)) -> 0 | BN97: =IF(ED97>0,$F$19,0) -> 2 | BO97: 9.77496 | BP97: 12.5764 | BQ97: 8.38075 | BR97: 2.64682 | BS97: 27.17995262 | BT97: =IF(COUNTIF($I$29:$L$29,TRUE)=0,0,IF(SUMIF($I$29:$L$29,TRUE,BO97:BR97)/COUNTIF($I$29:$L$29,TRUE)>=$L$30,$F$20/2,$F$20/2*(SUMIF($I$29:$L$29,TRUE,BO97:BR97)/COUNTIF($I$29:$L$29,TRUE)/$L$30)))+IF(BS97>=10,$F$20/2,IF(BS97<(10),BS97*($F$20/2/10))) -> 1 | BU97: =SUM(BA97+BB97+BC97+BD97+BE97+BF97+BK97+BG97+BH97+BI97+BJ97+BL97+BM97+BN97+BT97) -> 20.7105 | BV97: =+BU97*$H$9 -> 6.9035 | BW97: 4026.448299 | BX97: =BW97/X97 -> 0.5972186738 | BY97: =IF(BX97>0,IF(BX97>=$DC$28,$DA$28,IF(BX97<$DC$28,$DA$29,0)),0) -> 1 | BZ97: 6740.759777 | CA97: =BZ97/X97 -> 0.9998160452 | CB97: =IF(CA97,$F$23,0) -> 1 | CC97: =IF(DS97>0,$F$24,0) -> 1 | CD97: 2467.864133 | CE97: =CD97/X97 -> 0.3660433303 | CF97: =IF(CE97>0,IF(CE97>=$DC$22,$DA$22,IF(CE97<$DC$28,$DA$23,0)),0) -> 0.5 | CG97: 82.57935331 | CH97: =IF(CG97>0,IF(CG97>=100,$F$26,IF(CG97<100,$F$26/2)),0) -> 0.5 | CI97: =SUM(DW97) -> 1 | CJ97: =IF(EA97>0,$F$28,0) -> 0 | CK97: =IF(DX97>0,$F$29,0) -> 0 | CL97: =IF(EC97>0,$F$30,0) -> 1 | CM97: =SUM(BY97,CB97,CH97,CC97,CF97,CI97,CJ97,CK97,CL97) -> 6 | CN97: =+CM97*$H$22 -> 2 | CO97: =SUM(AY97,BU97,CM97) -> 39.5355 | CP97: =SUM(AZ97,BV97,CN97) -> 13.1785 | CQ97: =IF(D97<($Z$13*1785),1,IF(D97<(($Z$14+$Z$13)*1785),2,IF(D97<(($Z$15+$Z$13+$Z$14)*1785),3,4))) -> 1 | CR97: =VLOOKUP(C97,Taul1!$F$6:$G$1718,2,FALSE) -> 2 | CX97: https://www.google.com/maps/@60.7807947,23.42064426,3a,75y,90t/data=!3m3!1e1!3m1!2e0 | DA97: 0 | DB97: 0 | DC97: 19 | DD97: =SUM(DA97:DC97) -> 19 | DE97: 3 | DF97: 1 | DG97: 0 | DH97: 11 | DI97: 0 | DJ97: 144 | DK97: 37 | DL97: 571 | DM97: 0 | DN97: 1 | DP97: 4026.448299 | DQ97: 9 | DR97: 0 | DS97: 8 | DT97: 2467.864133 | DU97: =+IF(AA97>$K$8,$F$27/2,0) -> 1 | DV97: =+IF(AA97/Y97>1.5,$F$27/2,0) -> 0 | DW97: =SUM(DU97:DV97) -> 1 | DX97: 0 | DY97: 0 | DZ97: 0 | EA97: =SUM(DY97:DZ97) -> 0 | EC97: 1 | ED97: 1 | EG97: 0
A98: 140_13_0 | B98: 1 | C98: =CONCATENATE(S98,"_",T98) -> 140_13 | D98: =RANK(CP98,$CP$37:$CP$1816) -> 62 | E98: 62 | F98: =E98-D98 -> 0 | G98: =CP98 -> 13.17565121 | H98: =AZ98 -> 4.45 | I98: =BV98 -> 6.392317878 | J98: =CN98 -> 2.333333333 | K98: =CQ98 -> 1 | L98: =B98-K98 -> 0 | M98: =HYPERLINK(CX98,"Gmaps") -> Gmaps | N98: =IF(Y98>$K$6,"LOPUT","VÄHÄ") -> LOPUT | O98: =IF(S98<40,"Valta",IF(S98<100,"Kanta",IF(S98<1000,"Seutu",IF(S98>999,"Yhdys")))) -> Seutu | P98: Lahdentie, Pohjoinen Pikatie | Q98: Mäntsälä | R98: Uusimaa | S98: 140 | T98: 13 | U98: 0 | V98: 13 | W98: 8498 | X98: 8498 | Y98: 3991.728877 | Z98: 236.8103083 | AA98: 4356.385267 | AB98: 3684 (50 %), 4295 (50 %) | AC98: PK2 | AD98: PK2 (100 %) | AE98: 50 (19 %), 60 (25 %), 80 (56 %) | AF98: Is (100 %) | AG98: Asfalttibetoni (65 %), Kivimastiksiasfaltti (35 %) | AH98: 5 | AI98: 10 | AJ98: 0.1664970863 | AK98: 68.82489998 | AN98: Katu (48 %), Maantie tai katu (52 %) | AO98: 0.1996333116 | AR98: =+IF(Y98>=$K$6,$F$5,($F$5/($K$6))*Y98) -> 9 | AS98: 18 | AV98: =+IF(AS98>=$L$15,$J$15,IF(AS98<($L$15),AS98*($J$15/($L$15)),)) -> 1.35 | AW98: 2381 | AX98: =+IF(AW98>=$L$11,$J$11,IF(AW98<($L$11),AW98*($J$11/($L$11)),)) -> 3 | AY98: =SUM(AR98,AV98,AX98) -> 13.35 | AZ98: =+AY98*$H$5 -> 4.45 | BA98: =+IF(Z98=0,0,IF(Z98>$K$7,$F$9,($F$9/$K$7)*Z98)) -> 8 | BB98: =IF(DD98>0,$F$10,0) -> 2 | BC98: =IF(DE98>0,$F$11,0) -> 1 | BD98: =IF(DF98>0,$F$12,0) -> 1 | BE98: =IF(DG98>0,$F$13,0) -> 0 | BF98: =IF(DI98>0,$F$14,IF(DH98>0,$F$14/2,0)) -> 2 | BG98: =+IF(DJ98>=$L$19,$J$19,IF(DJ98<($L$19),DJ98*($J$19/($L$19)),)) -> 0.2716666667 | BH98: =+IF(DK98>=$L$20,$J$20,IF(DK98<($L$20),DK98*($J$20/($L$20)),)) -> 0.245 | BI98: =+IF(DL98>=$L$21,$J$21,IF(DL98<($L$21),DL98*($J$21/($L$21)),)) -> 0.0015 | BJ98: =+IF(DM98>=$L$22,$J$22,IF(DM98<($L$22),DM98*($J$22/($L$22)),)) -> 0 | BK98: =IF(DN98>0,$F$16,0) -> 2 | BL98: =+IF(DQ98>=$L$25,$J$25,IF(DQ98<($L$25),DQ98*($J$25/($L$25)),)) -> 2 | BM98: =IF(EG98>100000,$F$18,IF(EG98>0,$F$18/2,0)) -> 0 | BN98: =IF(ED98>0,$F$19,0) -> 0 | BO98: 2.05316 | BP98: 1.7784 | BQ98: 0.932049 | BR98: 0.626823 | BS98: 15.79829757 | BT98: =IF(COUNTIF($I$29:$L$29,TRUE)=0,0,IF(SUMIF($I$29:$L$29,TRUE,BO98:BR98)/COUNTIF($I$29:$L$29,TRUE)>=$L$30,$F$20/2,$F$20/2*(SUMIF($I$29:$L$29,TRUE,BO98:BR98)/COUNTIF($I$29:$L$29,TRUE)/$L$30)))+IF(BS98>=10,$F$20/2,IF(BS98<(10),BS98*($F$20/2/10))) -> 0.6587869667 | BU98: =SUM(BA98+BB98+BC98+BD98+BE98+BF98+BK98+BG98+BH98+BI98+BJ98+BL98+BM98+BN98+BT98) -> 19.17695363 | BV98: =+BU98*$H$9 -> 6.392317878 | BW98: 3469.354674 | BX98: =BW98/X98 -> 0.4082554335 | BY98: =IF(BX98>0,IF(BX98>=$DC$28,$DA$28,IF(BX98<$DC$28,$DA$29,0)),0) -> 0.5 | BZ98: 8498.245118 | CA98: =BZ98/X98 -> 1.000028844 | CB98: =IF(CA98,$F$23,0) -> 1 | CC98: =IF(DS98>0,$F$24,0) -> 1 | CD98: 2015.464739 | CE98: =CD98/X98 -> 0.2371693033 | CF98: =IF(CE98>0,IF(CE98>=$DC$22,$DA$22,IF(CE98<$DC$28,$DA$23,0)),0) -> 0.5 | CG98: 238.0129442 | CH98: =IF(CG98>0,IF(CG98>=100,$F$26,IF(CG98<100,$F$26/2)),0) -> 1 | CI98: =SUM(DW98) -> 1 | CJ98: =IF(EA98>0,$F$28,0) -> 1 | CK98: =IF(DX98>0,$F$29,0) -> 0 | CL98: =IF(EC98>0,$F$30,0) -> 1 | CM98: =SUM(BY98,CB98,CH98,CC98,CF98,CI98,CJ98,CK98,CL98) -> 7 | CN98: =+CM98*$H$22 -> 2.333333333 | CO98: =SUM(AY98,BU98,CM98) -> 39.52695363 | CP98: =SUM(AZ98,BV98,CN98) -> 13.17565121 | CQ98: =IF(D98<($Z$13*1785),1,IF(D98<(($Z$14+$Z$13)*1785),2,IF(D98<(($Z$15+$Z$13+$Z$14)*1785),3,4))) -> 1 | CR98: =VLOOKUP(C98,Taul1!$F$6:$G$1718,2,FALSE) -> 2 | CX98: https://www.google.com/maps/@60.63725163,25.31880319,3a,75y,90t/data=!3m3!1e1!3m1!2e0 | DA98: 0 | DB98: 1 | DC98: 1 | DD98: =SUM(DA98:DC98) -> 2 | DE98: 4 | DF98: 2 | DG98: 0 | DH98: 17 | DI98: 3 | DJ98: 163 | DK98: 49 | DL98: 3 | DM98: 0 | DN98: 2 | DP98: 3469.354674 | DQ98: 15 | DR98: 0 | DS98: 13 | DT98: 2015.464739 | DU98: =+IF(AA98>$K$8,$F$27/2,0) -> 1 | DV98: =+IF(AA98/Y98>1.5,$F$27/2,0) -> 0 | DW98: =SUM(DU98:DV98) -> 1 | DX98: 0 | DY98: 0 | DZ98: 1 | EA98: =SUM(DY98:DZ98) -> 1 | EC98: 1 | ED98: 0 | EG98: 0
A99: 54_10_0 | B99: 1 | C99: =CONCATENATE(S99,"_",T99) -> 54_10 | D99: =RANK(CP99,$CP$37:$CP$1816) -> 63 | E99: 63 | F99: =E99-D99 -> 0 | G99: =CP99 -> 13.16833333 | H99: =AZ99 -> 5 | I99: =BV99 -> 6.168333333 | J99: =CN99 -> 2 | K99: =CQ99 -> 1 | L99: =B99-K99 -> 0 | M99: =HYPERLINK(CX99,"Gmaps") -> Gmaps | N99: =IF(Y99>$K$6,"LOPUT","VÄHÄ") -> LOPUT | O99: =IF(S99<40,"Valta",IF(S99<100,"Kanta",IF(S99<1000,"Seutu",IF(S99>999,"Yhdys")))) -> Kanta | P99: Lahdentie, Lopen kantatie | Q99: Loppi, Riihimäki | R99: Kanta-Häme | S99: 54 | T99: 10 | U99: 0 | V99: 10 | W99: 4557 | X99: 4557 | Y99: 6267.879526 | Z99: 620.4621461 | AA99: 6893.314681 | AB99: 5053 (47 %), 7354 (53 %) | AC99: PK1 | AD99: PK1 (99 %) | AE99: 70 (22 %), 80 (77 %) | AF99: Is (100 %) | AG99: Asfalttibetoni (100 %) | AH99: 6 | AI99: 18 | AJ99: 0.01598976655 | AK99: 361.0947992 | AN99: Maantie (100 %) | AO99: 0.01859365683 | AR99: =+IF(Y99>=$K$6,$F$5,($F$5/($K$6))*Y99) -> 9 | AS99: 48 | AV99: =+IF(AS99>=$L$15,$J$15,IF(AS99<($L$15),AS99*($J$15/($L$15)),)) -> 3 | AW99: 2781 | AX99: =+IF(AW99>=$L$11,$J$11,IF(AW99<($L$11),AW99*($J$11/($L$11)),)) -> 3 | AY99: =SUM(AR99,AV99,AX99) -> 15 | AZ99: =+AY99*$H$5 -> 5 | BA99: =+IF(Z99=0,0,IF(Z99>$K$7,$F$9,($F$9/$K$7)*Z99)) -> 8 | BB99: =IF(DD99>0,$F$10,0) -> 2 | BC99: =IF(DE99>0,$F$11,0) -> 1 | BD99: =IF(DF99>0,$F$12,0) -> 0 | BE99: =IF(DG99>0,$F$13,0) -> 1 | BF99: =IF(DI99>0,$F$14,IF(DH99>0,$F$14/2,0)) -> 1 | BG99: =+IF(DJ99>=$L$19,$J$19,IF(DJ99<($L$19),DJ99*($J$19/($L$19)),)) -> 0.005 | BH99: =+IF(DK99>=$L$20,$J$20,IF(DK99<($L$20),DK99*($J$20/($L$20)),)) -> 0 | BI99: =+IF(DL99>=$L$21,$J$21,IF(DL99<($L$21),DL99*($J$21/($L$21)),)) -> 0 | BJ99: =+IF(DM99>=$L$22,$J$22,IF(DM99<($L$22),DM99*($J$22/($L$22)),)) -> 0 | BK99: =IF(DN99>0,$F$16,0) -> 0 | BL99: =+IF(DQ99>=$L$25,$J$25,IF(DQ99<($L$25),DQ99*($J$25/($L$25)),)) -> 2 | BM99: =IF(EG99>100000,$F$18,IF(EG99>0,$F$18/2,0)) -> 0.5 | BN99: =IF(ED99>0,$F$19,0) -> 2 | BO99: 6.65259 | BP99: 6.74875 | BQ99: 6.24982 | BR99: 1.8952 | BS99: 34.38862753 | BT99: =IF(COUNTIF($I$29:$L$29,TRUE)=0,0,IF(SUMIF($I$29:$L$29,TRUE,BO99:BR99)/COUNTIF($I$29:$L$29,TRUE)>=$L$30,$F$20/2,$F$20/2*(SUMIF($I$29:$L$29,TRUE,BO99:BR99)/COUNTIF($I$29:$L$29,TRUE)/$L$30)))+IF(BS99>=10,$F$20/2,IF(BS99<(10),BS99*($F$20/2/10))) -> 1 | BU99: =SUM(BA99+BB99+BC99+BD99+BE99+BF99+BK99+BG99+BH99+BI99+BJ99+BL99+BM99+BN99+BT99) -> 18.505 | BV99: =+BU99*$H$9 -> 6.168333333 | BW99: 4432.635354 | BX99: =BW99/X99 -> 0.9727090969 | BY99: =IF(BX99>0,IF(BX99>=$DC$28,$DA$28,IF(BX99<$DC$28,$DA$29,0)),0) -> 1 | BZ99: 4543.472515 | CA99: =BZ99/X99 -> 0.9970314932 | CB99: =IF(CA99,$F$23,0) -> 1 | CC99: =IF(DS99>0,$F$24,0) -> 1 | CD99: 361.570214 | CE99: =CD99/X99 -> 0.07934391355 | CF99: =IF(CE99>0,IF(CE99>=$DC$22,$DA$22,IF(CE99<$DC$28,$DA$23,0)),0) -> 0.5 | CG99: 19.34408602 | CH99: =IF(CG99>0,IF(CG99>=100,$F$26,IF(CG99<100,$F$26/2)),0) -> 0.5 | CI99: =SUM(DW99) -> 1 | CJ99: =IF(EA99>0,$F$28,0) -> 0 | CK99: =IF(DX99>0,$F$29,0) -> 0 | CL99: =IF(EC99>0,$F$30,0) -> 1 | CM99: =SUM(BY99,CB99,CH99,CC99,CF99,CI99,CJ99,CK99,CL99) -> 6 | CN99: =+CM99*$H$22 -> 2 | CO99: =SUM(AY99,BU99,CM99) -> 39.505 | CP99: =SUM(AZ99,BV99,CN99) -> 13.16833333 | CQ99: =IF(D99<($Z$13*1785),1,IF(D99<(($Z$14+$Z$13)*1785),2,IF(D99<(($Z$15+$Z$13+$Z$14)*1785),3,4))) -> 1 | CR99: =VLOOKUP(C99,Taul1!$F$6:$G$1718,2,FALSE) -> 2 | CX99: https://www.google.com/maps/@60.7445027,24.64774051,3a,75y,90t/data=!3m3!1e1!3m1!2e0 | DA99: 0 | DB99: 0 | DC99: 36 | DD99: =SUM(DA99:DC99) -> 36 | DE99: 1 | DF99: 0 | DG99: 1 | DH99: 11 | DI99: 0 | DJ99: 3 | DK99: 0 | DL99: 0 | DM99: 0 | DN99: 0 | DP99: 4432.635354 | DQ99: 3 | DR99: 1 | DS99: 24 | DT99: 361.570214 | DU99: =+IF(AA99>$K$8,$F$27/2,0) -> 1 | DV99: =+IF(AA99/Y99>1.5,$F$27/2,0) -> 0 | DW99: =SUM(DU99:DV99) -> 1 | DX99: 0 | DY99: 0 | DZ99: 0 | EA99: =SUM(DY99:DZ99) -> 0 | EC99: 1 | ED99: 1 | EG99: 13216
A100: 24_2_0 | B100: 1 | C100: =CONCATENATE(S100,"_",T100) -> 24_2 | D100: =RANK(CP100,$CP$37:$CP$1816) -> 64 | E100: 64 | F100: =E100-D100 -> 0 | G100: =CP100 -> 13.16666667 | H100: =AZ100 -> 5 | I100: =BV100 -> 5.5 | J100: =CN100 -> 2.666666667 | K100: =CQ100 -> 1 | L100: =B100-K100 -> 0 | M100: =HYPERLINK(CX100,"Gmaps") -> Gmaps | N100: =IF(Y100>$K$6,"LOPUT","VÄHÄ") -> LOPUT | O100: =IF(S100<40,"Valta",IF(S100<100,"Kanta",IF(S100<1000,"Seutu",IF(S100>999,"Yhdys")))) -> Valta | P100: Vesikansantie, Vääksyntie | Q100: Hollola, Lahti | R100: Päijät-Häme | S100: 24 | T100: 2 | U100: 0 | V100: 2 | W100: 5897 | X100: 5897 | Y100: 13726 | Z100: 530 | AA100: 17778 | AB100: 13726 (100 %) | AC100: PK2 | AD100: PK2 (100 %) | AE100: 60 (62 %), 70 (18 %), 80 (20 %) | AF100: Is (100 %) | AG100: Kivimastiksiasfaltti (100 %) | AH100: 3 | AI100: 11 | AJ100: 0.004037808571 | AK100: 178 | AN100: Maantie (100 %) | AO100: 0.8242621667 | AR100: =+IF(Y100>=$K$6,$F$5,($F$5/($K$6))*Y100) -> 9 | AS100: 783 | AV100: =+IF(AS100>=$L$15,$J$15,IF(AS100<($L$15),AS100*($J$15/($L$15)),)) -> 3 | AW100: 4771 | AX100: =+IF(AW100>=$L$11,$J$11,IF(AW100<($L$11),AW100*($J$11/($L$11)),)) -> 3 | AY100: =SUM(AR100,AV100,AX100) -> 15 | AZ100: =+AY100*$H$5 -> 5 | BA100: =+IF(Z100=0,0,IF(Z100>$K$7,$F$9,($F$9/$K$7)*Z100)) -> 8 | BB100: =IF(DD100>0,$F$10,0) -> 2 | BC100: =IF(DE100>0,$F$11,0) -> 0 | BD100: =IF(DF100>0,$F$12,0) -> 0 | BE100: =IF(DG100>0,$F$13,0) -> 0 | BF100: =IF(DI100>0,$F$14,IF(DH100>0,$F$14/2,0)) -> 1 | BG100: =+IF(DJ100>=$L$19,$J$19,IF(DJ100<($L$19),DJ100*($J$19/($L$19)),)) -> 0 | BH100: =+IF(DK100>=$L$20,$J$20,IF(DK100<($L$20),DK100*($J$20/($L$20)),)) -> 0 | BI100: =+IF(DL100>=$L$21,$J$21,IF(DL100<($L$21),DL100*($J$21/($L$21)),)) -> 0 | BJ100: =+IF(DM100>=$L$22,$J$22,IF(DM100<($L$22),DM100*($J$22/($L$22)),)) -> 0 | BK100: =IF(DN100>0,$F$16,0) -> 0 | BL100: =+IF(DQ100>=$L$25,$J$25,IF(DQ100<($L$25),DQ100*($J$25/($L$25)),)) -> 2 | BM100: =IF(EG100>100000,$F$18,IF(EG100>0,$F$18/2,0)) -> 0.5 | BN100: =IF(ED100>0,$F$19,0) -> 2 | BO100: 6.26151 | BP100: 6.55788 | BQ100: 3.05613 | BR100: 5.3713 | BS100: 19.01164212 | BT100: =IF(COUNTIF($I$29:$L$29,TRUE)=0,0,IF(SUMIF($I$29:$L$29,TRUE,BO100:BR100)/COUNTIF($I$29:$L$29,TRUE)>=$L$30,$F$20/2,$F$20/2*(SUMIF($I$29:$L$29,TRUE,BO100:BR100)/COUNTIF($I$29:$L$29,TRUE)/$L$30)))+IF(BS100>=10,$F$20/2,IF(BS100<(10),BS100*($F$20/2/10))) -> 1 | BU100: =SUM(BA100+BB100+BC100+BD100+BE100+BF100+BK100+BG100+BH100+BI100+BJ100+BL100+BM100+BN100+BT100) -> 16.5 | BV100: =+BU100*$H$9 -> 5.5 | BW100: 5883.063906 | BX100: =BW100/X100 -> 0.9976367485 | BY100: =IF(BX100>0,IF(BX100>=$DC$28,$DA$28,IF(BX100<$DC$28,$DA$29,0)),0) -> 1 | BZ100: 5883.063906 | CA100: =BZ100/X100 -> 0.9976367485 | CB100: =IF(CA100,$F$23,0) -> 1 | CC100: =IF(DS100>0,$F$24,0) -> 1 | CD100: 5378.1637 | CE100: =CD100/X100 -> 0.9120169068 | CF100: =IF(CE100>0,IF(CE100>=$DC$22,$DA$22,IF(CE100<$DC$28,$DA$23,0)),0) -> 1 | CG100: 468.1159912 | CH100: =IF(CG100>0,IF(CG100>=100,$F$26,IF(CG100<100,$F$26/2)),0) -> 1 | CI100: =SUM(DW100) -> 1 | CJ100: =IF(EA100>0,$F$28,0) -> 1 | CK100: =IF(DX100>0,$F$29,0) -> 0 | CL100: =IF(EC100>0,$F$30,0) -> 1 | CM100: =SUM(BY100,CB100,CH100,CC100,CF100,CI100,CJ100,CK100,CL100) -> 8 | CN100: =+CM100*$H$22 -> 2.666666667 | CO100: =SUM(AY100,BU100,CM100) -> 39.5 | CP100: =SUM(AZ100,BV100,CN100) -> 13.16666667 | CQ100: =IF(D100<($Z$13*1785),1,IF(D100<(($Z$14+$Z$13)*1785),2,IF(D100<(($Z$15+$Z$13+$Z$14)*1785),3,4))) -> 1 | CR100: =VLOOKUP(C100,Taul1!$F$6:$G$1718,2,FALSE) -> 1 | CX100: https://www.google.com/maps/@61.00936502,25.68292724,3a,75y,90t/data=!3m3!1e1!3m1!2e0 | DA100: 0 | DB100: 0 | DC100: 1 | DD100: =SUM(DA100:DC100) -> 1 | DE100: 0 | DF100: 0 | DG100: 0 | DH100: 1 | DI100: 0 | DJ100: 0 | DK100: 0 | DL100: 0 | DM100: 0 | DN100: 0 | DP100: 5883.063906 | DQ100: 8 | DR100: 1 | DS100: 15 | DT100: 5378.1637 | DU100: =+IF(AA100>$K$8,$F$27/2,0) -> 1 | DV100: =+IF(AA100/Y100>1.5,$F$27/2,0) -> 0 | DW100: =SUM(DU100:DV100) -> 1 | DX100: 0 | DY100: 0 | DZ100: 1 | EA100: =SUM(DY100:DZ100) -> 1 | EC100: 1 | ED100: 4 | EG100: 31013
A101: 295_4_0 | B101: 1 | C101: =CONCATENATE(S101,"_",T101) -> 295_4 | D101: =RANK(CP101,$CP$37:$CP$1816) -> 65 | E101: 65 | F101: =E101-D101 -> 0 | G101: =CP101 -> 13.143 | H101: =AZ101 -> 4 | I101: =BV101 -> 6.809666667 | J101: =CN101 -> 2.333333333 | K101: =CQ101 -> 1 | L101: =B101-K101 -> 0 | M101: =HYPERLINK(CX101,"Gmaps") -> Gmaps | N101: =IF(Y101>$K$6,"LOPUT","VÄHÄ") -> LOPUT | O101: =IF(S101<40,"Valta",IF(S101<100,"Kanta",IF(S101<1000,"Seutu",IF(S101>999,"Yhdys")))) -> Seutu | P101: Järveläntie, Kirkkotie | Q101: Kärkölä | R101: Päijät-Häme | S101: 295 | T101: 4 | U101: 0 | V101: 4 | W101: 5206 | X101: 5206 | Y101: 2395.838264 | Z101: 139.4652324 | AA101: 2618.899539 | AB101: 1943 (72 %), 3579 (28 %) | AC101: PK2 | AD101: PK2 (100 %) | AE101: 40 (10 %), 50 (49 %), 60 (41 %) | AF101: Ib (100 %) | AG101: Asfalttibetoni (100 %) | AH101: 6 | AI101: 8 | AJ101: 0.07270083606 | AK101: 51.0895121 | AN101: Katu (100 %) | AO101: 0.8210905036 | AR101: =+IF(Y101>=$K$6,$F$5,($F$5/($K$6))*Y101) -> 9 | AS101: 0 | AV101: =+IF(AS101>=$L$15,$J$15,IF(AS101<($L$15),AS101*($J$15/($L$15)),)) -> 0 | AW101: 884 | AX101: =+IF(AW101>=$L$11,$J$11,IF(AW101<($L$11),AW101*($J$11/($L$11)),)) -> 3 | AY101: =SUM(AR101,AV101,AX101) -> 12 | AZ101: =+AY101*$H$5 -> 4 | BA101: =+IF(Z101=0,0,IF(Z101>$K$7,$F$9,($F$9/$K$7)*Z101)) -> 8 | BB101: =IF(DD101>0,$F$10,0) -> 2 | BC101: =IF(DE101>0,$F$11,0) -> 1 | BD101: =IF(DF101>0,$F$12,0) -> 1 | BE101: =IF(DG101>0,$F$13,0) -> 0 | BF101: =IF(DI101>0,$F$14,IF(DH101>0,$F$14/2,0)) -> 2 | BG101: =+IF(DJ101>=$L$19,$J$19,IF(DJ101<($L$19),DJ101*($J$19/($L$19)),)) -> 0.42 | BH101: =+IF(DK101>=$L$20,$J$20,IF(DK101<($L$20),DK101*($J$20/($L$20)),)) -> 0.5 | BI101: =+IF(DL101>=$L$21,$J$21,IF(DL101<($L$21),DL101*($J$21/($L$21)),)) -> 0.009 | BJ101: =+IF(DM101>=$L$22,$J$22,IF(DM101<($L$22),DM101*($J$22/($L$22)),)) -> 0 | BK101: =IF(DN101>0,$F$16,0) -> 0 | BL101: =+IF(DQ101>=$L$25,$J$25,IF(DQ101<($L$25),DQ101*($J$25/($L$25)),)) -> 2 | BM101: =IF(EG101>100000,$F$18,IF(EG101>0,$F$18/2,0)) -> 0.5 | BN101: =IF(ED101>0,$F$19,0) -> 2 | BO101: 10.6054 | BP101: 18.0309 | BQ101: 12.833 | BR101: 9.16925 | BS101: 11.05652561 | BT101: =IF(COUNTIF($I$29:$L$29,TRUE)=0,0,IF(SUMIF($I$29:$L$29,TRUE,BO101:BR101)/COUNTIF($I$29:$L$29,TRUE)>=$L$30,$F$20/2,$F$20/2*(SUMIF($I$29:$L$29,TRUE,BO101:BR101)/COUNTIF($I$29:$L$29,TRUE)/$L$30)))+IF(BS101>=10,$F$20/2,IF(BS101<(10),BS101*($F$20/2/10))) -> 1 | BU101: =SUM(BA101+BB101+BC101+BD101+BE101+BF101+BK101+BG101+BH101+BI101+BJ101+BL101+BM101+BN101+BT101) -> 20.429 | BV101: =+BU101*$H$9 -> 6.809666667 | BW101: 2640.323538 | BX101: =BW101/X101 -> 0.5071693312 | BY101: =IF(BX101>0,IF(BX101>=$DC$28,$DA$28,IF(BX101<$DC$28,$DA$29,0)),0) -> 1 | BZ101: 0 | CA101: =BZ101/X101 -> 0 | CB101: =IF(CA101,$F$23,0) -> 0 | CC101: =IF(DS101>0,$F$24,0) -> 1 | CD101: 5204.68735 | CE101: =CD101/X101 -> 0.9997478583 | CF101: =IF(CE101>0,IF(CE101>=$DC$22,$DA$22,IF(CE101<$DC$28,$DA$23,0)),0) -> 1 | CG101: 265.6715328 | CH101: =IF(CG101>0,IF(CG101>=100,$F$26,IF(CG101<100,$F$26/2)),0) -> 1 | CI101: =SUM(DW101) -> 1 | CJ101: =IF(EA101>0,$F$28,0) -> 1 | CK101: =IF(DX101>0,$F$29,0) -> 0 | CL101: =IF(EC101>0,$F$30,0) -> 1 | CM101: =SUM(BY101,CB101,CH101,CC101,CF101,CI101,CJ101,CK101,CL101) -> 7 | CN101: =+CM101*$H$22 -> 2.333333333 | CO101: =SUM(AY101,BU101,CM101) -> 39.429 | CP101: =SUM(AZ101,BV101,CN101) -> 13.143 | CQ101: =IF(D101<($Z$13*1785),1,IF(D101<(($Z$14+$Z$13)*1785),2,IF(D101<(($Z$15+$Z$13+$Z$14)*1785),3,4))) -> 1 | CR101: =VLOOKUP(C101,Taul1!$F$6:$G$1718,2,FALSE) -> 2 | CX101: https://www.google.com/maps/@60.86900249,25.27723589,3a,75y,90t/data=!3m3!1e1!3m1!2e0 | DA101: 0 | DB101: 0 | DC101: 5 | DD101: =SUM(DA101:DC101) -> 5 | DE101: 4 | DF101: 10 | DG101: 0 | DH101: 13 | DI101: 2 | DJ101: 252 | DK101: 107 | DL101: 18 | DM101: 0 | DN101: 0 | DP101: 2640.323538 | DQ101: 5 | DR101: 1 | DS101: 52 | DT101: 5204.68735 | DU101: =+IF(AA101>$K$8,$F$27/2,0) -> 1 | DV101: =+IF(AA101/Y101>1.5,$F$27/2,0) -> 0 | DW101: =SUM(DU101:DV101) -> 1 | DX101: 0 | DY101: 0 | DZ101: 1 | EA101: =SUM(DY101:DZ101) -> 1 | EC101: 1 | ED101: 2 | EG101: 12161
A102: 290_12_0 | B102: 1 | C102: =CONCATENATE(S102,"_",T102) -> 290_12 | D102: =RANK(CP102,$CP$37:$CP$1816) -> 66 | E102: 66 | F102: =E102-D102 -> 0 | G102: =CP102 -> 13.11477467 | H102: =AZ102 -> 5 | I102: =BV102 -> 5.448108 | J102: =CN102 -> 2.666666667 | K102: =CQ102 -> 1 | L102: =B102-K102 -> 0 | M102: =HYPERLINK(CX102,"Gmaps") -> Gmaps | N102: =IF(Y102>$K$6,"LOPUT","VÄHÄ") -> LOPUT | O102: =IF(S102<40,"Valta",IF(S102<100,"Kanta",IF(S102<1000,"Seutu",IF(S102>999,"Yhdys")))) -> Seutu | P102: Harvialantie | Q102: Janakkala | R102: Kanta-Häme | S102: 290 | T102: 12 | U102: 0 | V102: 12 | W102: 5627 | X102: 5627 | Y102: 5678.09099 | Z102: 245.1156922 | AA102: 5913.636751 | AB102: 5124 (19 %), 5810 (81 %) | AC102: PK2 | AD102: PK2 (97 %) | AE102: 40 (12 %), 50 (8 %), 60 (34 %), 80 (46 %) | AF102: Is (100 %) | AG102: Asfalttibetoni (100 %) | AH102: 2 | AI102: 2 | AJ102: 0.2532973621 | AK102: 61.38457437 | AN102: Katu (100 %) | AO102: 0.9969883036 | AR102: =+IF(Y102>=$K$6,$F$5,($F$5/($K$6))*Y102) -> 9 | AS102: 168 | AV102: =+IF(AS102>=$L$15,$J$15,IF(AS102<($L$15),AS102*($J$15/($L$15)),)) -> 3 | AW102: 2440 | AX102: =+IF(AW102>=$L$11,$J$11,IF(AW102<($L$11),AW102*($J$11/($L$11)),)) -> 3 | AY102: =SUM(AR102,AV102,AX102) -> 15 | AZ102: =+AY102*$H$5 -> 5 | BA102: =+IF(Z102=0,0,IF(Z102>$K$7,$F$9,($F$9/$K$7)*Z102)) -> 8 | BB102: =IF(DD102>0,$F$10,0) -> 0 | BC102: =IF(DE102>0,$F$11,0) -> 1 | BD102: =IF(DF102>0,$F$12,0) -> 0 | BE102: =IF(DG102>0,$F$13,0) -> 0 | BF102: =IF(DI102>0,$F$14,IF(DH102>0,$F$14/2,0)) -> 1 | BG102: =+IF(DJ102>=$L$19,$J$19,IF(DJ102<($L$19),DJ102*($J$19/($L$19)),)) -> 0 | BH102: =+IF(DK102>=$L$20,$J$20,IF(DK102<($L$20),DK102*($J$20/($L$20)),)) -> 0 | BI102: =+IF(DL102>=$L$21,$J$21,IF(DL102<($L$21),DL102*($J$21/($L$21)),)) -> 0 | BJ102: =+IF(DM102>=$L$22,$J$22,IF(DM102<($L$22),DM102*($J$22/($L$22)),)) -> 0 | BK102: =IF(DN102>0,$F$16,0) -> 2 | BL102: =+IF(DQ102>=$L$25,$J$25,IF(DQ102<($L$25),DQ102*($J$25/($L$25)),)) -> 2 | BM102: =IF(EG102>100000,$F$18,IF(EG102>0,$F$18/2,0)) -> 0 | BN102: =IF(ED102>0,$F$19,0) -> 2 | BO102: 2.27632 | BP102: 3.91299 | BQ102: 1.17272 | BR102: 0.458673 | BS102: 1.978459996 | BT102: =IF(COUNTIF($I$29:$L$29,TRUE)=0,0,IF(SUMIF($I$29:$L$29,TRUE,BO102:BR102)/COUNTIF($I$29:$L$29,TRUE)>=$L$30,$F$20/2,$F$20/2*(SUMIF($I$29:$L$29,TRUE,BO102:BR102)/COUNTIF($I$29:$L$29,TRUE)/$L$30)))+IF(BS102>=10,$F$20/2,IF(BS102<(10),BS102*($F$20/2/10))) -> 0.3443239998 | BU102: =SUM(BA102+BB102+BC102+BD102+BE102+BF102+BK102+BG102+BH102+BI102+BJ102+BL102+BM102+BN102+BT102) -> 16.344324 | BV102: =+BU102*$H$9 -> 5.448108 | BW102: 5610.052682 | BX102: =BW102/X102 -> 0.9969882142 | BY102: =IF(BX102>0,IF(BX102>=$DC$28,$DA$28,IF(BX102<$DC$28,$DA$29,0)),0) -> 1 | BZ102: 5610.052681 | CA102: =BZ102/X102 -> 0.9969882142 | CB102: =IF(CA102,$F$23,0) -> 1 | CC102: =IF(DS102>0,$F$24,0) -> 1 | CD102: 3415.491032 | CE102: =CD102/X102 -> 0.6069825896 | CF102: =IF(CE102>0,IF(CE102>=$DC$22,$DA$22,IF(CE102<$DC$28,$DA$23,0)),0) -> 1 | CG102: 331.47201 | CH102: =IF(CG102>0,IF(CG102>=100,$F$26,IF(CG102<100,$F$26/2)),0) -> 1 | CI102: =SUM(DW102) -> 1 | CJ102: =IF(EA102>0,$F$28,0) -> 1 | CK102: =IF(DX102>0,$F$29,0) -> 0 | CL102: =IF(EC102>0,$F$30,0) -> 1 | CM102: =SUM(BY102,CB102,CH102,CC102,CF102,CI102,CJ102,CK102,CL102) -> 8 | CN102: =+CM102*$H$22 -> 2.666666667 | CO102: =SUM(AY102,BU102,CM102) -> 39.344324 | CP102: =SUM(AZ102,BV102,CN102) -> 13.11477467 | CQ102: =IF(D102<($Z$13*1785),1,IF(D102<(($Z$14+$Z$13)*1785),2,IF(D102<(($Z$15+$Z$13+$Z$14)*1785),3,4))) -> 1 | CR102: =VLOOKUP(C102,Taul1!$F$6:$G$1718,2,FALSE) -> 2 | CX102: https://www.google.com/maps/@60.92091594,24.65178524,3a,75y,90t/data=!3m3!1e1!3m1!2e0 | DA102: 0 | DB102: 0 | DC102: 0 | DD102: =SUM(DA102:DC102) -> 0 | DE102: 1 | DF102: 0 | DG102: 0 | DH102: 5 | DI102: 0 | DJ102: 0 | DK102: 0 | DL102: 0 | DM102: 0 | DN102: 3 | DP102: 5610.052682 | DQ102: 5 | DR102: 0 | DS102: 12 | DT102: 3415.491032 | DU102: =+IF(AA102>$K$8,$F$27/2,0) -> 1 | DV102: =+IF(AA102/Y102>1.5,$F$27/2,0) -> 0 | DW102: =SUM(DU102:DV102) -> 1 | DX102: 0 | DY102: 0 | DZ102: 1 | EA102: =SUM(DY102:DZ102) -> 1 | EC102: 1 | ED102: 4 | EG102: 0
A103: 140_11_0 | B103: 1 | C103: =CONCATENATE(S103,"_",T103) -> 140_11 | D103: =RANK(CP103,$CP$37:$CP$1816) -> 67 | E103: 67 | F103: =E103-D103 -> 0 | G103: =CP103 -> 13.07183016 | H103: =AZ103 -> 5 | I103: =BV103 -> 5.738496822 | J103: =CN103 -> 2.333333333 | K103: =CQ103 -> 1 | L103: =B103-K103 -> 0 | M103: =HYPERLINK(CX103,"Gmaps") -> Gmaps | N103: =IF(Y103>$K$6,"LOPUT","VÄHÄ") -> LOPUT | O103: =IF(S103<40,"Valta",IF(S103<100,"Kanta",IF(S103<1000,"Seutu",IF(S103>999,"Yhdys")))) -> Seutu | P103: Helsingintie | Q103: Mäntsälä | R103: Uusimaa | S103: 140 | T103: 11 | U103: 0 | V103: 11 | W103: 4590 | X103: 4590 | Y103: 4400 | Z103: 250 | AA103: 4356 | AB103: 4400 (100 %) | AC103: PK2 | AD103: PK2 (99 %) | AE103: 50 (40 %), 60 (20 %), 80 (40 %) | AF103: Is (100 %) | AG103: Asfalttibetoni (100 %) | AH103: 2 | AI103: 5 | AJ103: 0.08054772453 | AK103: 86 | AN103: Maantie tai katu (100 %) | AO103: 0.3762509553 | AR103: =+IF(Y103>=$K$6,$F$5,($F$5/($K$6))*Y103) -> 9 | AS103: 100 | AV103: =+IF(AS103>=$L$15,$J$15,IF(AS103<($L$15),AS103*($J$15/($L$15)),)) -> 3 | AW103: 814 | AX103: =+IF(AW103>=$L$11,$J$11,IF(AW103<($L$11),AW103*($J$11/($L$11)),)) -> 3 | AY103: =SUM(AR103,AV103,AX103) -> 15 | AZ103: =+AY103*$H$5 -> 5 | BA103: =+IF(Z103=0,0,IF(Z103>$K$7,$F$9,($F$9/$K$7)*Z103)) -> 8 | BB103: =IF(DD103>0,$F$10,0) -> 2 | BC103: =IF(DE103>0,$F$11,0) -> 1 | BD103: =IF(DF103>0,$F$12,0) -> 1 | BE103: =IF(DG103>0,$F$13,0) -> 0 | BF103: =IF(DI103>0,$F$14,IF(DH103>0,$F$14/2,0)) -> 2 | BG103: =+IF(DJ103>=$L$19,$J$19,IF(DJ103<($L$19),DJ103*($J$19/($L$19)),)) -> 0 | BH103: =+IF(DK103>=$L$20,$J$20,IF(DK103<($L$20),DK103*($J$20/($L$20)),)) -> 0 | BI103: =+IF(DL103>=$L$21,$J$21,IF(DL103<($L$21),DL103*($J$21/($L$21)),)) -> 0 | BJ103: =+IF(DM103>=$L$22,$J$22,IF(DM103<($L$22),DM103*($J$22/($L$22)),)) -> 0 | BK103: =IF(DN103>0,$F$16,0) -> 0 | BL103: =+IF(DQ103>=$L$25,$J$25,IF(DQ103<($L$25),DQ103*($J$25/($L$25)),)) -> 0.6666666667 | BM103: =IF(EG103>100000,$F$18,IF(EG103>0,$F$18/2,0)) -> 0 | BN103: =IF(ED103>0,$F$19,0) -> 2 | BO103: 0.830301 | BP103: 0.318875 | BQ103: 0.315538 | BR103: 0.237599 | BS103: 17.35690611 | BT103: =IF(COUNTIF($I$29:$L$29,TRUE)=0,0,IF(SUMIF($I$29:$L$29,TRUE,BO103:BR103)/COUNTIF($I$29:$L$29,TRUE)>=$L$30,$F$20/2,$F$20/2*(SUMIF($I$29:$L$29,TRUE,BO103:BR103)/COUNTIF($I$29:$L$29,TRUE)/$L$30)))+IF(BS103>=10,$F$20/2,IF(BS103<(10),BS103*($F$20/2/10))) -> 0.5488238 | BU103: =SUM(BA103+BB103+BC103+BD103+BE103+BF103+BK103+BG103+BH103+BI103+BJ103+BL103+BM103+BN103+BT103) -> 17.21549047 | BV103: =+BU103*$H$9 -> 5.738496822 | BW103: 2078.413417 | BX103: =BW103/X103 -> 0.4528133807 | BY103: =IF(BX103>0,IF(BX103>=$DC$28,$DA$28,IF(BX103<$DC$28,$DA$29,0)),0) -> 0.5 | BZ103: 4580.32734 | CA103: =BZ103/X103 -> 0.9978926666 | CB103: =IF(CA103,$F$23,0) -> 1 | CC103: =IF(DS103>0,$F$24,0) -> 1 | CD103: 2632.697753 | CE103: =CD103/X103 -> 0.5735724953 | CF103: =IF(CE103>0,IF(CE103>=$DC$22,$DA$22,IF(CE103<$DC$28,$DA$23,0)),0) -> 1 | CG103: 81.10457516 | CH103: =IF(CG103>0,IF(CG103>=100,$F$26,IF(CG103<100,$F$26/2)),0) -> 0.5 | CI103: =SUM(DW103) -> 1 | CJ103: =IF(EA103>0,$F$28,0) -> 1 | CK103: =IF(DX103>0,$F$29,0) -> 0 | CL103: =IF(EC103>0,$F$30,0) -> 1 | CM103: =SUM(BY103,CB103,CH103,CC103,CF103,CI103,CJ103,CK103,CL103) -> 7 | CN103: =+CM103*$H$22 -> 2.333333333 | CO103: =SUM(AY103,BU103,CM103) -> 39.21549047 | CP103: =SUM(AZ103,BV103,CN103) -> 13.07183016 | CQ103: =IF(D103<($Z$13*1785),1,IF(D103<(($Z$14+$Z$13)*1785),2,IF(D103<(($Z$15+$Z$13+$Z$14)*1785),3,4))) -> 1 | CR103: =VLOOKUP(C103,Taul1!$F$6:$G$1718,2,FALSE) -> 1 | CX103: https://www.google.com/maps/@60.59262749,25.24543727,3a,75y,90t/data=!3m3!1e1!3m1!2e0 | DA103: 0 | DB103: 0 | DC103: 2 | DD103: =SUM(DA103:DC103) -> 2 | DE103: 3 | DF103: 2 | DG103: 0 | DH103: 5 | DI103: 4 | DJ103: 0 | DK103: 0 | DL103: 0 | DM103: 0 | DN103: 0 | DP103: 2078.413417 | DQ103: 1 | DR103: 0 | DS103: 4 | DT103: 2632.697753 | DU103: =+IF(AA103>$K$8,$F$27/2,0) -> 1 | DV103: =+IF(AA103/Y103>1.5,$F$27/2,0) -> 0 | DW103: =SUM(DU103:DV103) -> 1 | DX103: 0 | DY103: 0 | DZ103: 1 | EA103: =SUM(DY103:DZ103) -> 1 | EC103: 1 | ED103: 2 | EG103: 0
A104: 25_16_0 | B104: 1 | C104: =CONCATENATE(S104,"_",T104) -> 25_16 | D104: =RANK(CP104,$CP$37:$CP$1816) -> 68 | E104: 68 | F104: =E104-D104 -> 0 | G104: =CP104 -> 13.06369457 | H104: =AZ104 -> 5 | I104: =BV104 -> 5.73036124 | J104: =CN104 -> 2.333333333 | K104: =CQ104 -> 1 | L104: =B104-K104 -> 0 | M104: =HYPERLINK(CX104,"Gmaps") -> Gmaps | N104: =IF(Y104>$K$6,"LOPUT","VÄHÄ") -> LOPUT | O104: =IF(S104<40,"Valta",IF(S104<100,"Kanta",IF(S104<1000,"Seutu",IF(S104>999,"Yhdys")))) -> Valta | P104: Lohjantie | Q104: Inkoo, Lohja, Raasepori | R104: Uusimaa | S104: 25 | T104: 16 | U104: 0 | V104: 16 | W104: 10601 | X104: 10601 | Y104: 5180.496368 | Z104: 536.7759645 | AA104: 6203.4559 | AB104: 4834 (63 %), 5772 (37 %) | AC104: PK1 | AD104: PK1 (100 %) | AE104: 80 (93 %), 100 (7 %) | AF104: Is (100 %) | AG104: Kivimastiksiasfaltti (100 %) | AH104: 5 | AI104: 22 | AJ104: 0 | AK104: 337.4590133 | AL104: Kattava | AM104: I | AN104: Maantie (100 %) | AO104: 0 | AR104: =+IF(Y104>=$K$6,$F$5,($F$5/($K$6))*Y104) -> 9 | AS104: 69 | AV104: =+IF(AS104>=$L$15,$J$15,IF(AS104<($L$15),AS104*($J$15/($L$15)),)) -> 3 | AW104: 2582 | AX104: =+IF(AW104>=$L$11,$J$11,IF(AW104<($L$11),AW104*($J$11/($L$11)),)) -> 3 | AY104: =SUM(AR104,AV104,AX104) -> 15 | AZ104: =+AY104*$H$5 -> 5 | BA104: =+IF(Z104=0,0,IF(Z104>$K$7,$F$9,($F$9/$K$7)*Z104)) -> 8 | BB104: =IF(DD104>0,$F$10,0) -> 2 | BC104: =IF(DE104>0,$F$11,0) -> 1 | BD104: =IF(DF104>0,$F$12,0) -> 0 | BE104: =IF(DG104>0,$F$13,0) -> 0 | BF104: =IF(DI104>0,$F$14,IF(DH104>0,$F$14/2,0)) -> 1 | BG104: =+IF(DJ104>=$L$19,$J$19,IF(DJ104<($L$19),DJ104*($J$19/($L$19)),)) -> 0 | BH104: =+IF(DK104>=$L$20,$J$20,IF(DK104<($L$20),DK104*($J$20/($L$20)),)) -> 0.5 | BI104: =+IF(DL104>=$L$21,$J$21,IF(DL104<($L$21),DL104*($J$21/($L$21)),)) -> 0 | BJ104: =+IF(DM104>=$L$22,$J$22,IF(DM104<($L$22),DM104*($J$22/($L$22)),)) -> 0 | BK104: =IF(DN104>0,$F$16,0) -> 0 | BL104: =+IF(DQ104>=$L$25,$J$25,IF(DQ104<($L$25),DQ104*($J$25/($L$25)),)) -> 1.333333333 | BM104: =IF(EG104>100000,$F$18,IF(EG104>0,$F$18/2,0)) -> 0.5 | BN104: =IF(ED104>0,$F$19,0) -> 2 | BO104: 8.30345 | BP104: 8.66592 | BQ104: 8.37915 | BR104: 5.10946 | BS104: 7.155007727 | BT104: =IF(COUNTIF($I$29:$L$29,TRUE)=0,0,IF(SUMIF($I$29:$L$29,TRUE,BO104:BR104)/COUNTIF($I$29:$L$29,TRUE)>=$L$30,$F$20/2,$F$20/2*(SUMIF($I$29:$L$29,TRUE,BO104:BR104)/COUNTIF($I$29:$L$29,TRUE)/$L$30)))+IF(BS104>=10,$F$20/2,IF(BS104<(10),BS104*($F$20/2/10))) -> 0.8577503864 | BU104: =SUM(BA104+BB104+BC104+BD104+BE104+BF104+BK104+BG104+BH104+BI104+BJ104+BL104+BM104+BN104+BT104) -> 17.19108372 | BV104: =+BU104*$H$9 -> 5.73036124 | BW104: 5968.920316 | BX104: =BW104/X104 -> 0.563052572 | BY104: =IF(BX104>0,IF(BX104>=$DC$28,$DA$28,IF(BX104<$DC$28,$DA$29,0)),0) -> 1 | BZ104: 10588.41165 | CA104: =BZ104/X104 -> 0.9988125322 | CB104: =IF(CA104,$F$23,0) -> 1 | CC104: =IF(DS104>0,$F$24,0) -> 1 | CD104: 343.5281773 | CE104: =CD104/X104 -> 0.03240526152 | CF104: =IF(CE104>0,IF(CE104>=$DC$22,$DA$22,IF(CE104<$DC$28,$DA$23,0)),0) -> 0.5 | CG104: 42.14696727 | CH104: =IF(CG104>0,IF(CG104>=100,$F$26,IF(CG104<100,$F$26/2)),0) -> 0.5 | CI104: =SUM(DW104) -> 1 | CJ104: =IF(EA104>0,$F$28,0) -> 1 | CK104: =IF(DX104>0,$F$29,0) -> 0 | CL104: =IF(EC104>0,$F$30,0) -> 1 | CM104: =SUM(BY104,CB104,CH104,CC104,CF104,CI104,CJ104,CK104,CL104) -> 7 | CN104: =+CM104*$H$22 -> 2.333333333 | CO104: =SUM(AY104,BU104,CM104) -> 39.19108372 | CP104: =SUM(AZ104,BV104,CN104) -> 13.06369457 | CQ104: =IF(D104<($Z$13*1785),1,IF(D104<(($Z$14+$Z$13)*1785),2,IF(D104<(($Z$15+$Z$13+$Z$14)*1785),3,4))) -> 1 | CR104: =VLOOKUP(C104,Taul1!$F$6:$G$1718,2,FALSE) -> 2 | CX104: https://www.google.com/maps/@60.09694644,23.76508369,3a,75y,90t/data=!3m3!1e1!3m1!2e0 | DA104: 0 | DB104: 1 | DC104: 5 | DD104: =SUM(DA104:DC104) -> 6 | DE104: 4 | DF104: 0 | DG104: 0 | DH104: 8 | DI104: 0 | DJ104: 0 | DK104: 145 | DL104: 0 | DM104: 0 | DN104: 0 | DP104: 5968.920316 | DQ104: 2 | DR104: 1 | DS104: 1 | DT104: 343.5281773 | DU104: =+IF(AA104>$K$8,$F$27/2,0) -> 1 | DV104: =+IF(AA104/Y104>1.5,$F$27/2,0) -> 0 | DW104: =SUM(DU104:DV104) -> 1 | DX104: 0 | DY104: 0 | DZ104: 1 | EA104: =SUM(DY104:DZ104) -> 1 | EC104: 1 | ED104: 1 | EG104: 22960
A105: 2873_3_0 | B105: 1 | C105: =CONCATENATE(S105,"_",T105) -> 2873_3 | D105: =RANK(CP105,$CP$37:$CP$1816) -> 69 | E105: 69 | F105: =E105-D105 -> 0 | G105: =CP105 -> 13.02905987 | H105: =AZ105 -> 5 | I105: =BV105 -> 6.02905987 | J105: =CN105 -> 2 | K105: =CQ105 -> 1 | L105: =B105-K105 -> 0 | M105: =HYPERLINK(CX105,"Gmaps") -> Gmaps | N105: =IF(Y105>$K$6,"LOPUT","VÄHÄ") -> LOPUT | O105: =IF(S105<40,"Valta",IF(S105<100,"Kanta",IF(S105<1000,"Seutu",IF(S105>999,"Yhdys")))) -> Yhdys | P105: Launostentie, Vähikkäläntie | Q105: Janakkala, Loppi | R105: Kanta-Häme | S105: 2873 | T105: 3 | U105: 0 | V105: 3 | W105: 6141 | X105: 6141 | Y105: 1306.006839 | Z105: 62.7381534 | AA105: 1645.817782 | AB105: 1188 (76 %), 1676 (24 %) | AC105: PK2 | AD105: PK2 (97 %) | AE105: 50 (32 %), 60 (8 %), 70 (13 %), 80 (46 %) | AF105: II (99 %) | AG105: Pehmeät asfalttibetonit (PAB-B) (99 %) | AH105: 2 | AI105: 7 | AJ105: 0.1858003582 | AK105: 18.75818271 | AN105: Katu (99 %) | AO105: 0.03606020557 | AR105: =+IF(Y105>=$K$6,$F$5,($F$5/($K$6))*Y105) -> 9 | AS105: 71 | AV105: =+IF(AS105>=$L$15,$J$15,IF(AS105<($L$15),AS105*($J$15/($L$15)),)) -> 3 | AW105: 381 | AX105: =+IF(AW105>=$L$11,$J$11,IF(AW105<($L$11),AW105*($J$11/($L$11)),)) -> 3 | AY105: =SUM(AR105,AV105,AX105) -> 15 | AZ105: =+AY105*$H$5 -> 5 | BA105: =+IF(Z105=0,0,IF(Z105>$K$7,$F$9,($F$9/$K$7)*Z105)) -> 8 | BB105: =IF(DD105>0,$F$10,0) -> 0 | BC105: =IF(DE105>0,$F$11,0) -> 0 | BD105: =IF(DF105>0,$F$12,0) -> 1 | BE105: =IF(DG105>0,$F$13,0) -> 0 | BF105: =IF(DI105>0,$F$14,IF(DH105>0,$F$14/2,0)) -> 2 | BG105: =+IF(DJ105>=$L$19,$J$19,IF(DJ105<($L$19),DJ105*($J$19/($L$19)),)) -> 0.2416666667 | BH105: =+IF(DK105>=$L$20,$J$20,IF(DK105<($L$20),DK105*($J$20/($L$20)),)) -> 0.125 | BI105: =+IF(DL105>=$L$21,$J$21,IF(DL105<($L$21),DL105*($J$21/($L$21)),)) -> 0 | BJ105: =+IF(DM105>=$L$22,$J$22,IF(DM105<($L$22),DM105*($J$22/($L$22)),)) -> 0.4 | BK105: =IF(DN105>0,$F$16,0) -> 2 | BL105: =+IF(DQ105>=$L$25,$J$25,IF(DQ105<($L$25),DQ105*($J$25/($L$25)),)) -> 2 | BM105: =IF(EG105>100000,$F$18,IF(EG105>0,$F$18/2,0)) -> 0 | BN105: =IF(ED105>0,$F$19,0) -> 2 | BO105: 1.59039 | BP105: 2.87942 | BQ105: 3.30389 | BR105: 0.836891 | BS105: 1.227792214 | BT105: =IF(COUNTIF($I$29:$L$29,TRUE)=0,0,IF(SUMIF($I$29:$L$29,TRUE,BO105:BR105)/COUNTIF($I$29:$L$29,TRUE)>=$L$30,$F$20/2,$F$20/2*(SUMIF($I$29:$L$29,TRUE,BO105:BR105)/COUNTIF($I$29:$L$29,TRUE)/$L$30)))+IF(BS105>=10,$F$20/2,IF(BS105<(10),BS105*($F$20/2/10))) -> 0.3205129441 | BU105: =SUM(BA105+BB105+BC105+BD105+BE105+BF105+BK105+BG105+BH105+BI105+BJ105+BL105+BM105+BN105+BT105) -> 18.08717961 | BV105: =+BU105*$H$9 -> 6.02905987 | BW105: 6108.289331 | BX105: =BW105/X105 -> 0.9946733971 | BY105: =IF(BX105>0,IF(BX105>=$DC$28,$DA$28,IF(BX105<$DC$28,$DA$29,0)),0) -> 1 | BZ105: 0 | CA105: =BZ105/X105 -> 0 | CB105: =IF(CA105,$F$23,0) -> 0 | CC105: =IF(DS105>0,$F$24,0) -> 1 | CD105: 847.9505697 | CE105: =CD105/X105 -> 0.13808021 | CF105: =IF(CE105>0,IF(CE105>=$DC$22,$DA$22,IF(CE105<$DC$28,$DA$23,0)),0) -> 0.5 | CG105: 81.97361993 | CH105: =IF(CG105>0,IF(CG105>=100,$F$26,IF(CG105<100,$F$26/2)),0) -> 0.5 | CI105: =SUM(DW105) -> 1 | CJ105: =IF(EA105>0,$F$28,0) -> 0 | CK105: =IF(DX105>0,$F$29,0) -> 1 | CL105: =IF(EC105>0,$F$30,0) -> 1 | CM105: =SUM(BY105,CB105,CH105,CC105,CF105,CI105,CJ105,CK105,CL105) -> 6 | CN105: =+CM105*$H$22 -> 2 | CO105: =SUM(AY105,BU105,CM105) -> 39.08717961 | CP105: =SUM(AZ105,BV105,CN105) -> 13.02905987 | CQ105: =IF(D105<($Z$13*1785),1,IF(D105<(($Z$14+$Z$13)*1785),2,IF(D105<(($Z$15+$Z$13+$Z$14)*1785),3,4))) -> 1 | CR105: =VLOOKUP(C105,Taul1!$F$6:$G$1718,2,FALSE) -> 2 | CX105: https://www.google.com/maps/@60.78347306,24.54213975,3a,75y,90t/data=!3m3!1e1!3m1!2e0 | DA105: 0 | DB105: 0 | DC105: 0 | DD105: =SUM(DA105:DC105) -> 0 | DE105: 0 | DF105: 3 | DG105: 0 | DH105: 18 | DI105: 1 | DJ105: 145 | DK105: 25 | DL105: 0 | DM105: 24 | DN105: 1 | DP105: 6108.289331 | DQ105: 8 | DR105: 0 | DS105: 5 | DT105: 847.9505697 | DU105: =+IF(AA105>$K$8,$F$27/2,0) -> 1 | DV105: =+IF(AA105/Y105>1.5,$F$27/2,0) -> 0 | DW105: =SUM(DU105:DV105) -> 1 | DX105: 1 | DY105: 0 | DZ105: 0 | EA105: =SUM(DY105:DZ105) -> 0 | EC105: 1 | ED105: 2 | EG105: 0
A106: 45_4_0 | B106: 1 | C106: =CONCATENATE(S106,"_",T106) -> 45_4 | D106: =RANK(CP106,$CP$37:$CP$1816) -> 70 | E106: 70 | F106: =E106-D106 -> 0 | G106: =CP106 -> 13.0222644 | H106: =AZ106 -> 5 | I106: =BV106 -> 5.688931064 | J106: =CN106 -> 2.333333333 | K106: =CQ106 -> 1 | L106: =B106-K106 -> 0 | M106: =HYPERLINK(CX106,"Gmaps") -> Gmaps | N106: =IF(Y106>$K$6,"LOPUT","VÄHÄ") -> LOPUT | O106: =IF(S106<40,"Valta",IF(S106<100,"Kanta",IF(S106<1000,"Seutu",IF(S106>999,"Yhdys")))) -> Kanta | P106: Tuusulanväylä | Q106: Tuusula | R106: Uusimaa | S106: 45 | T106: 4 | U106: 0 | V106: 4 | W106: 3428 | X106: 3428 | Y106: 24264.43436 | Z106: 861.4072345 | AA106: 26480.96149 | AB106: 21890 (71 %), 29941 (29 %) | AC106: PK1 | AD106: PK1 (99 %) | AE106: 50 (33 %), 60 (66 %) | AF106: Ise (99 %) | AG106: Kivimastiksiasfaltti (99 %) | AH106: 5 | AI106: 19 | AJ106: 0.01643006413 | AK106: 306.3538506 | AN106: Maantie (99 %) | AO106: 0.9944937826 | AR106: =+IF(Y106>=$K$6,$F$5,($F$5/($K$6))*Y106) -> 9 | AS106: 1323 | AV106: =+IF(AS106>=$L$15,$J$15,IF(AS106<($L$15),AS106*($J$15/($L$15)),)) -> 3 | AW106: 11634 | AX106: =+IF(AW106>=$L$11,$J$11,IF(AW106<($L$11),AW106*($J$11/($L$11)),)) -> 3 | AY106: =SUM(AR106,AV106,AX106) -> 15 | AZ106: =+AY106*$H$5 -> 5 | BA106: =+IF(Z106=0,0,IF(Z106>$K$7,$F$9,($F$9/$K$7)*Z106)) -> 8 | BB106: =IF(DD106>0,$F$10,0) -> 0 | BC106: =IF(DE106>0,$F$11,0) -> 1 | BD106: =IF(DF106>0,$F$12,0) -> 1 | BE106: =IF(DG106>0,$F$13,0) -> 0 | BF106: =IF(DI106>0,$F$14,IF(DH106>0,$F$14/2,0)) -> 0 | BG106: =+IF(DJ106>=$L$19,$J$19,IF(DJ106<($L$19),DJ106*($J$19/($L$19)),)) -> 0 | BH106: =+IF(DK106>=$L$20,$J$20,IF(DK106<($L$20),DK106*($J$20/($L$20)),)) -> 0 | BI106: =+IF(DL106>=$L$21,$J$21,IF(DL106<($L$21),DL106*($J$21/($L$21)),)) -> 0 | BJ106: =+IF(DM106>=$L$22,$J$22,IF(DM106<($L$22),DM106*($J$22/($L$22)),)) -> 0 | BK106: =IF(DN106>0,$F$16,0) -> 2 | BL106: =+IF(DQ106>=$L$25,$J$25,IF(DQ106<($L$25),DQ106*($J$25/($L$25)),)) -> 2 | BM106: =IF(EG106>100000,$F$18,IF(EG106>0,$F$18/2,0)) -> 1 | BN106: =IF(ED106>0,$F$19,0) -> 2 | BO106: 0.264461 | BP106: 0.348688 | BQ106: 0.105711 | BR106: 0.0873367 | BS106: 0.8566238596 | BT106: =IF(COUNTIF($I$29:$L$29,TRUE)=0,0,IF(SUMIF($I$29:$L$29,TRUE,BO106:BR106)/COUNTIF($I$29:$L$29,TRUE)>=$L$30,$F$20/2,$F$20/2*(SUMIF($I$29:$L$29,TRUE,BO106:BR106)/COUNTIF($I$29:$L$29,TRUE)/$L$30)))+IF(BS106>=10,$F$20/2,IF(BS106<(10),BS106*($F$20/2/10))) -> 0.06679319298 | BU106: =SUM(BA106+BB106+BC106+BD106+BE106+BF106+BK106+BG106+BH106+BI106+BJ106+BL106+BM106+BN106+BT106) -> 17.06679319 | BV106: =+BU106*$H$9 -> 5.688931064 | BW106: 3409.124687 | BX106: =BW106/X106 -> 0.9944937826 | BY106: =IF(BX106>0,IF(BX106>=$DC$28,$DA$28,IF(BX106<$DC$28,$DA$29,0)),0) -> 1 | BZ106: 3409.124687 | CA106: =BZ106/X106 -> 0.9944937826 | CB106: =IF(CA106,$F$23,0) -> 1 | CC106: =IF(DS106>0,$F$24,0) -> 1 | CD106: 3161.620083 | CE106: =CD106/X106 -> 0.9222929062 | CF106: =IF(CE106>0,IF(CE106>=$DC$22,$DA$22,IF(CE106<$DC$28,$DA$23,0)),0) -> 1 | CG106: 958.5775963 | CH106: =IF(CG106>0,IF(CG106>=100,$F$26,IF(CG106<100,$F$26/2)),0) -> 1 | CI106: =SUM(DW106) -> 1 | CJ106: =IF(EA106>0,$F$28,0) -> 0 | CK106: =IF(DX106>0,$F$29,0) -> 0 | CL106: =IF(EC106>0,$F$30,0) -> 1 | CM106: =SUM(BY106,CB106,CH106,CC106,CF106,CI106,CJ106,CK106,CL106) -> 7 | CN106: =+CM106*$H$22 -> 2.333333333 | CO106: =SUM(AY106,BU106,CM106) -> 39.06679319 | CP106: =SUM(AZ106,BV106,CN106) -> 13.0222644 | CQ106: =IF(D106<($Z$13*1785),1,IF(D106<(($Z$14+$Z$13)*1785),2,IF(D106<(($Z$15+$Z$13+$Z$14)*1785),3,4))) -> 1 | CR106: =VLOOKUP(C106,Taul1!$F$6:$G$1718,2,FALSE) -> 2 | CX106: https://www.google.com/maps/@60.3655686,25.0076305,3a,75y,90t/data=!3m3!1e1!3m1!2e0 | DA106: 0 | DB106: 0 | DC106: 0 | DD106: =SUM(DA106:DC106) -> 0 | DE106: 2 | DF106: 4 | DG106: 0 | DH106: 0 | DI106: 0 | DJ106: 0 | DK106: 0 | DL106: 0 | DM106: 0 | DN106: 3 | DP106: 3409.124687 | DQ106: 16 | DR106: 2 | DS106: 2 | DT106: 3161.620083 | DU106: =+IF(AA106>$K$8,$F$27/2,0) -> 1 | DV106: =+IF(AA106/Y106>1.5,$F$27/2,0) -> 0 | DW106: =SUM(DU106:DV106) -> 1 | DX106: 0 | DY106: 0 | DZ106: 0 | EA106: =SUM(DY106:DZ106) -> 0 | EC106: 1 | ED106: 5 | EG106: 100306
A107: 25_33_0 | B107: 1 | C107: =CONCATENATE(S107,"_",T107) -> 25_33 | D107: =RANK(CP107,$CP$37:$CP$1816) -> 71 | E107: 71 | F107: =E107-D107 -> 0 | G107: =CP107 -> 13.02216044 | H107: =AZ107 -> 5 | I107: =BV107 -> 6.022160444 | J107: =CN107 -> 2 | K107: =CQ107 -> 1 | L107: =B107-K107 -> 0 | M107: =HYPERLINK(CX107,"Gmaps") -> Gmaps | N107: =IF(Y107>$K$6,"LOPUT","VÄHÄ") -> LOPUT | O107: =IF(S107<40,"Valta",IF(S107<100,"Kanta",IF(S107<1000,"Seutu",IF(S107>999,"Yhdys")))) -> Valta | P107: Hangonväylä, Porvoonväylä | Q107: Hyvinkää | R107: Uusimaa | S107: 25 | T107: 33 | U107: 0 | V107: 33 | W107: 7777 | X107: 7777 | Y107: 8285 | Z107: 657 | AA107: 8976 | AB107: 8285 (100 %) | AC107: PK1 | AD107: PK1 (100 %) | AE107: 80 (48 %), 100 (51 %) | AF107: Is (100 %) | AG107: Kivimastiksiasfaltti (100 %) | AH107: 15 | AI107: 25 | AJ107: 0 | AK107: 478 | AL107: Kattava | AM107: I | AN107: Maantie (100 %) | AO107: 0 | AR107: =+IF(Y107>=$K$6,$F$5,($F$5/($K$6))*Y107) -> 9 | AS107: 51 | AV107: =+IF(AS107>=$L$15,$J$15,IF(AS107<($L$15),AS107*($J$15/($L$15)),)) -> 3 | AW107: 5966 | AX107: =+IF(AW107>=$L$11,$J$11,IF(AW107<($L$11),AW107*($J$11/($L$11)),)) -> 3 | AY107: =SUM(AR107,AV107,AX107) -> 15 | AZ107: =+AY107*$H$5 -> 5 | BA107: =+IF(Z107=0,0,IF(Z107>$K$7,$F$9,($F$9/$K$7)*Z107)) -> 8 | BB107: =IF(DD107>0,$F$10,0) -> 2 | BC107: =IF(DE107>0,$F$11,0) -> 1 | BD107: =IF(DF107>0,$F$12,0) -> 0 | BE107: =IF(DG107>0,$F$13,0) -> 0 | BF107: =IF(DI107>0,$F$14,IF(DH107>0,$F$14/2,0)) -> 0 | BG107: =+IF(DJ107>=$L$19,$J$19,IF(DJ107<($L$19),DJ107*($J$19/($L$19)),)) -> 0.08333333333 | BH107: =+IF(DK107>=$L$20,$J$20,IF(DK107<($L$20),DK107*($J$20/($L$20)),)) -> 0.02 | BI107: =+IF(DL107>=$L$21,$J$21,IF(DL107<($L$21),DL107*($J$21/($L$21)),)) -> 0 | BJ107: =+IF(DM107>=$L$22,$J$22,IF(DM107<($L$22),DM107*($J$22/($L$22)),)) -> 0 | BK107: =IF(DN107>0,$F$16,0) -> 2 | BL107: =+IF(DQ107>=$L$25,$J$25,IF(DQ107<($L$25),DQ107*($J$25/($L$25)),)) -> 2 | BM107: =IF(EG107>100000,$F$18,IF(EG107>0,$F$18/2,0)) -> 0 | BN107: =IF(ED107>0,$F$19,0) -> 2 | BO107: 3.79196 | BP107: 5.75777 | BQ107: 4.34471 | BR107: 3.18353 | BS107: 19.39288054 | BT107: =IF(COUNTIF($I$29:$L$29,TRUE)=0,0,IF(SUMIF($I$29:$L$29,TRUE,BO107:BR107)/COUNTIF($I$29:$L$29,TRUE)>=$L$30,$F$20/2,$F$20/2*(SUMIF($I$29:$L$29,TRUE,BO107:BR107)/COUNTIF($I$29:$L$29,TRUE)/$L$30)))+IF(BS107>=10,$F$20/2,IF(BS107<(10),BS107*($F$20/2/10))) -> 0.963148 | BU107: =SUM(BA107+BB107+BC107+BD107+BE107+BF107+BK107+BG107+BH107+BI107+BJ107+BL107+BM107+BN107+BT107) -> 18.06648133 | BV107: =+BU107*$H$9 -> 6.022160444 | BW107: 4230.008483 | BX107: =BW107/X107 -> 0.5439126248 | BY107: =IF(BX107>0,IF(BX107>=$DC$28,$DA$28,IF(BX107<$DC$28,$DA$29,0)),0) -> 1 | BZ107: 7457.808154 | CA107: =BZ107/X107 -> 0.9589569441 | CB107: =IF(CA107,$F$23,0) -> 1 | CC107: =IF(DS107>0,$F$24,0) -> 1 | CD107: 2113.379688 | CE107: =CD107/X107 -> 0.2717474204 | CF107: =IF(CE107>0,IF(CE107>=$DC$22,$DA$22,IF(CE107<$DC$28,$DA$23,0)),0) -> 0.5 | CG107: 37.76520509 | CH107: =IF(CG107>0,IF(CG107>=100,$F$26,IF(CG107<100,$F$26/2)),0) -> 0.5 | CI107: =SUM(DW107) -> 1 | CJ107: =IF(EA107>0,$F$28,0) -> 0 | CK107: =IF(DX107>0,$F$29,0) -> 0 | CL107: =IF(EC107>0,$F$30,0) -> 1 | CM107: =SUM(BY107,CB107,CH107,CC107,CF107,CI107,CJ107,CK107,CL107) -> 6 | CN107: =+CM107*$H$22 -> 2 | CO107: =SUM(AY107,BU107,CM107) -> 39.06648133 | CP107: =SUM(AZ107,BV107,CN107) -> 13.02216044 | CQ107: =IF(D107<($Z$13*1785),1,IF(D107<(($Z$14+$Z$13)*1785),2,IF(D107<(($Z$15+$Z$13+$Z$14)*1785),3,4))) -> 1 | CR107: =VLOOKUP(C107,Taul1!$F$6:$G$1718,2,FALSE) -> 1 | CX107: https://www.google.com/maps/@60.60421901,24.86742881,3a,75y,90t/data=!3m3!1e1!3m1!2e0 | DA107: 1 | DB107: 0 | DC107: 0 | DD107: =SUM(DA107:DC107) -> 1 | DE107: 3 | DF107: 0 | DG107: 0 | DH107: 0 | DI107: 0 | DJ107: 50 | DK107: 4 | DL107: 0 | DM107: 0 | DN107: 2 | DP107: 4230.008483 | DQ107: 37 | DR107: 0 | DS107: 3 | DT107: 2113.379688 | DU107: =+IF(AA107>$K$8,$F$27/2,0) -> 1 | DV107: =+IF(AA107/Y107>1.5,$F$27/2,0) -> 0 | DW107: =SUM(DU107:DV107) -> 1 | DX107: 0 | DY107: 0 | DZ107: 0 | EA107: =SUM(DY107:DZ107) -> 0 | EC107: 1 | ED107: 6 | EG107: 0
A108: 167_6_0 | B108: 1 | C108: =CONCATENATE(S108,"_",T108) -> 167_6 | D108: =RANK(CP108,$CP$37:$CP$1816) -> 72 | E108: 72 | F108: =E108-D108 -> 0 | G108: =CP108 -> 13.00718371 | H108: =AZ108 -> 5 | I108: =BV108 -> 5.340517044 | J108: =CN108 -> 2.666666667 | K108: =CQ108 -> 1 | L108: =B108-K108 -> 0 | M108: =HYPERLINK(CX108,"Gmaps") -> Gmaps | N108: =IF(Y108>$K$6,"LOPUT","VÄHÄ") -> LOPUT | O108: =IF(S108<40,"Valta",IF(S108<100,"Kanta",IF(S108<1000,"Seutu",IF(S108>999,"Yhdys")))) -> Seutu | P108: Lahdentie | Q108: Orimattila | R108: Päijät-Häme | S108: 167 | T108: 6 | U108: 0 | V108: 6 | W108: 923 | X108: 923 | Y108: 8897 | Z108: 398 | AA108: 9830 | AB108: 8897 (100 %) | AC108: PK2 | AD108: PK2 (100 %) | AE108: 50 (100 %) | AF108: Is (100 %) | AG108: Kivimastiksiasfaltti (99 %) | AH108: 0 | AI108: 2 | AJ108: 0.08984725966 | AK108: 114 | AN108: Maantie (100 %) | AO108: 0 | AR108: =+IF(Y108>=$K$6,$F$5,($F$5/($K$6))*Y108) -> 9 | AS108: 477 | AV108: =+IF(AS108>=$L$15,$J$15,IF(AS108<($L$15),AS108*($J$15/($L$15)),)) -> 3 | AW108: 2292 | AX108: =+IF(AW108>=$L$11,$J$11,IF(AW108<($L$11),AW108*($J$11/($L$11)),)) -> 3 | AY108: =SUM(AR108,AV108,AX108) -> 15 | AZ108: =+AY108*$H$5 -> 5 | BA108: =+IF(Z108=0,0,IF(Z108>$K$7,$F$9,($F$9/$K$7)*Z108)) -> 8 | BB108: =IF(DD108>0,$F$10,0) -> 2 | BC108: =IF(DE108>0,$F$11,0) -> 0 | BD108: =IF(DF108>0,$F$12,0) -> 1 | BE108: =IF(DG108>0,$F$13,0) -> 0 | BF108: =IF(DI108>0,$F$14,IF(DH108>0,$F$14/2,0)) -> 1 | BG108: =+IF(DJ108>=$L$19,$J$19,IF(DJ108<($L$19),DJ108*($J$19/($L$19)),)) -> 0 | BH108: =+IF(DK108>=$L$20,$J$20,IF(DK108<($L$20),DK108*($J$20/($L$20)),)) -> 0.035 | BI108: =+IF(DL108>=$L$21,$J$21,IF(DL108<($L$21),DL108*($J$21/($L$21)),)) -> 0 | BJ108: =+IF(DM108>=$L$22,$J$22,IF(DM108<($L$22),DM108*($J$22/($L$22)),)) -> 0 | BK108: =IF(DN108>0,$F$16,0) -> 0 | BL108: =+IF(DQ108>=$L$25,$J$25,IF(DQ108<($L$25),DQ108*($J$25/($L$25)),)) -> 1.333333333 | BM108: =IF(EG108>100000,$F$18,IF(EG108>0,$F$18/2,0)) -> 0 | BN108: =IF(ED108>0,$F$19,0) -> 2 | BO108: 1.55963 | BP108: 2.29984 | BQ108: 0.737064 | BR108: 0.358744 | BS108: 11.04930878 | BT108: =IF(COUNTIF($I$29:$L$29,TRUE)=0,0,IF(SUMIF($I$29:$L$29,TRUE,BO108:BR108)/COUNTIF($I$29:$L$29,TRUE)>=$L$30,$F$20/2,$F$20/2*(SUMIF($I$29:$L$29,TRUE,BO108:BR108)/COUNTIF($I$29:$L$29,TRUE)/$L$30)))+IF(BS108>=10,$F$20/2,IF(BS108<(10),BS108*($F$20/2/10))) -> 0.6532178 | BU108: =SUM(BA108+BB108+BC108+BD108+BE108+BF108+BK108+BG108+BH108+BI108+BJ108+BL108+BM108+BN108+BT108) -> 16.02155113 | BV108: =+BU108*$H$9 -> 5.340517044 | BW108: 922.9690075 | BX108: =BW108/X108 -> 0.9999664219 | BY108: =IF(BX108>0,IF(BX108>=$DC$28,$DA$28,IF(BX108<$DC$28,$DA$29,0)),0) -> 1 | BZ108: 922.9690075 | CA108: =BZ108/X108 -> 0.9999664219 | CB108: =IF(CA108,$F$23,0) -> 1 | CC108: =IF(DS108>0,$F$24,0) -> 1 | CD108: 922.9690075 | CE108: =CD108/X108 -> 0.9999664219 | CF108: =IF(CE108>0,IF(CE108>=$DC$22,$DA$22,IF(CE108<$DC$28,$DA$23,0)),0) -> 1 | CG108: 1902.127844 | CH108: =IF(CG108>0,IF(CG108>=100,$F$26,IF(CG108<100,$F$26/2)),0) -> 1 | CI108: =SUM(DW108) -> 1 | CJ108: =IF(EA108>0,$F$28,0) -> 1 | CK108: =IF(DX108>0,$F$29,0) -> 0 | CL108: =IF(EC108>0,$F$30,0) -> 1 | CM108: =SUM(BY108,CB108,CH108,CC108,CF108,CI108,CJ108,CK108,CL108) -> 8 | CN108: =+CM108*$H$22 -> 2.666666667 | CO108: =SUM(AY108,BU108,CM108) -> 39.02155113 | CP108: =SUM(AZ108,BV108,CN108) -> 13.00718371 | CQ108: =IF(D108<($Z$13*1785),1,IF(D108<(($Z$14+$Z$13)*1785),2,IF(D108<(($Z$15+$Z$13+$Z$14)*1785),3,4))) -> 1 | CR108: =VLOOKUP(C108,Taul1!$F$6:$G$1718,2,FALSE) -> 1 | CX108: https://www.google.com/maps/@60.81016435,25.7291381,3a,75y,90t/data=!3m3!1e1!3m1!2e0 | DA108: 0 | DB108: 0 | DC108: 1 | DD108: =SUM(DA108:DC108) -> 1 | DE108: 0 | DF108: 3 | DG108: 0 | DH108: 1 | DI108: 0 | DJ108: 0 | DK108: 7 | DL108: 0 | DM108: 0 | DN108: 0 | DP108: 922.9690075 | DQ108: 2 | DR108: 0 | DS108: 3 | DT108: 922.9690075 | DU108: =+IF(AA108>$K$8,$F$27/2,0) -> 1 | DV108: =+IF(AA108/Y108>1.5,$F$27/2,0) -> 0 | DW108: =SUM(DU108:DV108) -> 1 | DX108: 0 | DY108: 0 | DZ108: 1 | EA108: =SUM(DY108:DZ108) -> 1 | EC108: 1 | ED108: 3 | EG108: 0
A109: 120_3_0 | B109: 1 | C109: =CONCATENATE(S109,"_",T109) -> 120_3 | D109: =RANK(CP109,$CP$37:$CP$1816) -> 73 | E109: 73 | F109: =E109-D109 -> 0 | G109: =CP109 -> 13.00573116 | H109: =AZ109 -> 5 | I109: =BV109 -> 5.672397828 | J109: =CN109 -> 2.333333333 | K109: =CQ109 -> 1 | L109: =B109-K109 -> 0 | M109: =HYPERLINK(CX109,"Gmaps") -> Gmaps | N109: =IF(Y109>$K$6,"LOPUT","VÄHÄ") -> LOPUT | O109: =IF(S109<40,"Valta",IF(S109<100,"Kanta",IF(S109<1000,"Seutu",IF(S109>999,"Yhdys")))) -> Seutu | P109: Vihdintie | Q109: Espoo, Helsinki, Vantaa | R109: Uusimaa | S109: 120 | T109: 3 | U109: 0 | V109: 3 | W109: 5569 | X109: 5569 | Y109: 18088 | Z109: 733 | AA109: 18017 | AB109: 18088 (100 %) | AC109: PK1 | AD109: PK1 (100 %) | AE109: 60 (100 %) | AF109: Ise (100 %) | AG109: Kivimastiksiasfaltti (99 %) | AH109: 31 | AI109: 78 | AJ109: 0.1200156033 | AK109: 160 | AN109: Tarkastelun ulkopuolella (100 %) | AO109: 1 | AR109: =+IF(Y109>=$K$6,$F$5,($F$5/($K$6))*Y109) -> 9 | AS109: 11653 | AV109: =+IF(AS109>=$L$15,$J$15,IF(AS109<($L$15),AS109*($J$15/($L$15)),)) -> 3 | AW109: 25802 | AX109: =+IF(AW109>=$L$11,$J$11,IF(AW109<($L$11),AW109*($J$11/($L$11)),)) -> 3 | AY109: =SUM(AR109,AV109,AX109) -> 15 | AZ109: =+AY109*$H$5 -> 5 | BA109: =+IF(Z109=0,0,IF(Z109>$K$7,$F$9,($F$9/$K$7)*Z109)) -> 8 | BB109: =IF(DD109>0,$F$10,0) -> 0 | BC109: =IF(DE109>0,$F$11,0) -> 1 | BD109: =IF(DF109>0,$F$12,0) -> 0 | BE109: =IF(DG109>0,$F$13,0) -> 0 | BF109: =IF(DI109>0,$F$14,IF(DH109>0,$F$14/2,0)) -> 1 | BG109: =+IF(DJ109>=$L$19,$J$19,IF(DJ109<($L$19),DJ109*($J$19/($L$19)),)) -> 0 | BH109: =+IF(DK109>=$L$20,$J$20,IF(DK109<($L$20),DK109*($J$20/($L$20)),)) -> 0 | BI109: =+IF(DL109>=$L$21,$J$21,IF(DL109<($L$21),DL109*($J$21/($L$21)),)) -> 0 | BJ109: =+IF(DM109>=$L$22,$J$22,IF(DM109<($L$22),DM109*($J$22/($L$22)),)) -> 0 | BK109: =IF(DN109>0,$F$16,0) -> 2 | BL109: =+IF(DQ109>=$L$25,$J$25,IF(DQ109<($L$25),DQ109*($J$25/($L$25)),)) -> 2 | BM109: =IF(EG109>100000,$F$18,IF(EG109>0,$F$18/2,0)) -> 1 | BN109: =IF(ED109>0,$F$19,0) -> 2 | BO109: 0.294542 | BP109: 0.150476 | BQ109: 0.0101787 | BR109: 0.0100388 | BS109: 0.04040521535 | BT109: =IF(COUNTIF($I$29:$L$29,TRUE)=0,0,IF(SUMIF($I$29:$L$29,TRUE,BO109:BR109)/COUNTIF($I$29:$L$29,TRUE)>=$L$30,$F$20/2,$F$20/2*(SUMIF($I$29:$L$29,TRUE,BO109:BR109)/COUNTIF($I$29:$L$29,TRUE)/$L$30)))+IF(BS109>=10,$F$20/2,IF(BS109<(10),BS109*($F$20/2/10))) -> 0.0171934841 | BU109: =SUM(BA109+BB109+BC109+BD109+BE109+BF109+BK109+BG109+BH109+BI109+BJ109+BL109+BM109+BN109+BT109) -> 17.01719348 | BV109: =+BU109*$H$9 -> 5.672397828 | BW109: 5576.233916 | BX109: =BW109/X109 -> 1.001298961 | BY109: =IF(BX109>0,IF(BX109>=$DC$28,$DA$28,IF(BX109<$DC$28,$DA$29,0)),0) -> 1 | BZ109: 5378.764974 | CA109: =BZ109/X109 -> 0.9658403616 | CB109: =IF(CA109,$F$23,0) -> 1 | CC109: =IF(DS109>0,$F$24,0) -> 1 | CD109: 5576.233916 | CE109: =CD109/X109 -> 1.001298961 | CF109: =IF(CE109>0,IF(CE109>=$DC$22,$DA$22,IF(CE109<$DC$28,$DA$23,0)),0) -> 1 | CG109: 1731.294846 | CH109: =IF(CG109>0,IF(CG109>=100,$F$26,IF(CG109<100,$F$26/2)),0) -> 1 | CI109: =SUM(DW109) -> 1 | CJ109: =IF(EA109>0,$F$28,0) -> 0 | CK109: =IF(DX109>0,$F$29,0) -> 0 | CL109: =IF(EC109>0,$F$30,0) -> 1 | CM109: =SUM(BY109,CB109,CH109,CC109,CF109,CI109,CJ109,CK109,CL109) -> 7 | CN109: =+CM109*$H$22 -> 2.333333333 | CO109: =SUM(AY109,BU109,CM109) -> 39.01719348 | CP109: =SUM(AZ109,BV109,CN109) -> 13.00573116 | CQ109: =IF(D109<($Z$13*1785),1,IF(D109<(($Z$14+$Z$13)*1785),2,IF(D109<(($Z$15+$Z$13+$Z$14)*1785),3,4))) -> 1 | CR109: =VLOOKUP(C109,Taul1!$F$6:$G$1718,2,FALSE) -> 1 | CX109: https://www.google.com/maps/@60.23410694,24.86151696,3a,75y,90t/data=!3m3!1e1!3m1!2e0 | DA109: 0 | DB109: 0 | DC109: 0 | DD109: =SUM(DA109:DC109) -> 0 | DE109: 8 | DF109: 0 | DG109: 0 | DH109: 1 | DI109: 0 | DJ109: 0 | DK109: 0 | DL109: 0 | DM109: 0 | DN109: 1 | DP109: 5576.233916 | DQ109: 31 | DR109: 2 | DS109: 2 | DT109: 5576.233916 | DU109: =+IF(AA109>$K$8,$F$27/2,0) -> 1 | DV109: =+IF(AA109/Y109>1.5,$F$27/2,0) -> 0 | DW109: =SUM(DU109:DV109) -> 1 | DX109: 0 | DY109: 0 | DZ109: 0 | EA109: =SUM(DY109:DZ109) -> 0 | EC109: 1 | ED109: 14 | EG109: 219183
